Workbook

Sheet Matriz UARIV
D1: MATRIZ DE IDENTIFICACIÓN Y EVALUACIÓN DE ASPECTOS E IMPACTOS AMBIENTALES | O1: Código: 710,18,15-16
O2: Versión: 09
D3: SISTEMA DE GESTIÓN AMBIENTAL | O3: Fecha: 01/09/2022
D4: PROCEDIMIENTO PARA LA IDENTIFICACIÓN Y EVALUACIÓN DE ASPECTOS E IMPACTOS AMBIENTALES | O4: Página: 1 de 1

Sheet Control ANT
D1: MATRIZ DE IDENTIFICACIÓN Y EVALUACIÓN DE ASPECTOS E IMPACTOS AMBIENTALES | O1: Código: 710,18,15-16
O2: Versión: 09
D3: SISTEMA DE GESTIÓN AMBIENTAL | O3: Fecha: 01/09/2022
D4: PROCEDIMIENTO PARA LA IDENTIFICACIÓN Y EVALUACIÓN DE ASPECTOS E IMPACTOS AMBIENTALES | O4: Página: 1 de 1
A7: DIRECCIÓN TERRITORIAL ANTIOQUIA
A12: MATRIZ DE IDENTIFICACIÓN Y EVALUACIÓN DE ASPECTOS E IMPACTOS AMBIENTALES | E12: ANÁLISIS DETERMINACIÓN SIGNIFICANCIA INICIAL | I12: ANÁLISIS DETERMINACIÓN SIGNIFICANCIA FINAL | M12: ANÁLISIS IDENTIFICACIÓN DE ASPECTOS AMBIENTALES GENERADOS

Sheet Control ATL
D1: MATRIZ DE IDENTIFICACIÓN Y EVALUACIÓN DE ASPECTOS E IMPACTOS AMBIENTALES | O1: Código: 710,18,15-16
O2: Versión: 09
D3: SISTEMA DE GESTIÓN AMBIENTAL | O3: Fecha: 01/09/2022
D4: PROCEDIMIENTO PARA LA IDENTIFICACIÓN Y EVALUACIÓN DE ASPECTOS E IMPACTOS AMBIENTALES | O4: Página: 1 de 1
A7: DIRECCIÓN TERRITORIAL ATLÁNTICO
A12: MATRIZ DE IDENTIFICACIÓN Y EVALUACIÓN DE ASPECTOS E IMPACTOS AMBIENTALES | E12: ANÁLISIS DETERMINACIÓN SIGNIFICANCIA INICIAL | I12: ANÁLISIS DETERMINACIÓN SIGNIFICANCIA FINAL | M12: ANÁLISIS IDENTIFICACIÓN DE ASPECTOS AMBIENTALES GENERADOS

Sheet Control BSA
D1: MATRIZ DE IDENTIFICACIÓN Y EVALUACIÓN DE ASPECTOS E IMPACTOS AMBIENTALES | O1: Código: 710,18,15-16
O2: Versión: 09
D3: SISTEMA DE GESTIÓN AMBIENTAL | O3: Fecha: 01/09/2022
D4: PROCEDIMIENTO PARA LA IDENTIFICACIÓN Y EVALUACIÓN DE ASPECTOS E IMPACTOS AMBIENTALES | O4: Página: 1 de 1
A7: DIRECCIÓN TERRITORIAL BOLÍVAR Y SAN ANDRÉS
A12: MATRIZ DE IDENTIFICACIÓN Y EVALUACIÓN DE ASPECTOS E IMPACTOS AMBIENTALES | E12: ANÁLISIS DETERMINACIÓN SIGNIFICANCIA INICIAL | I12: ANÁLISIS DETERMINACIÓN SIGNIFICANCIA FINAL | M12: ANÁLISIS IDENTIFICACIÓN DE ASPECTOS AMBIENTALES GENERADOS

Sheet Control CQH
D1: MATRIZ DE IDENTIFICACIÓN Y EVALUACIÓN DE ASPECTOS E IMPACTOS AMBIENTALES | O1: Código: 710,18,15-16
O2: Versión: 09
D3: SISTEMA DE GESTIÓN AMBIENTAL | O3: Fecha: 01/09/2022
D4: PROCEDIMIENTO PARA LA IDENTIFICACIÓN Y EVALUACIÓN DE ASPECTOS E IMPACTOS AMBIENTALES | O4: Página: 1 de 1
A7: DIRECCIÓN TERRITORIAL CAQUETÁ - HUILA
A12: MATRIZ DE IDENTIFICACIÓN Y EVALUACIÓN DE ASPECTOS E IMPACTOS AMBIENTALES | E12: ANÁLISIS DETERMINACIÓN SIGNIFICANCIA INICIAL | I12: ANÁLISIS DETERMINACIÓN SIGNIFICANCIA FINAL | M12: ANÁLISIS IDENTIFICACIÓN DE ASPECTOS AMBIENTALES GENERADOS

Sheet Control CAU
D1: MATRIZ DE IDENTIFICACIÓN Y EVALUACIÓN DE ASPECTOS E IMPACTOS AMBIENTALES | O1: Código: 710,18,15-16
O2: Versión: 09
D3: SISTEMA DE GESTIÓN AMBIENTAL | O3: Fecha: 01/09/2022
D4: PROCEDIMIENTO PARA LA IDENTIFICACIÓN Y EVALUACIÓN DE ASPECTOS E IMPACTOS AMBIENTALES | O4: Página: 1 de 1
A7: DIRECCIÓN TERRITORIAL CAUCA
A12: MATRIZ DE IDENTIFICACIÓN Y EVALUACIÓN DE ASPECTOS E IMPACTOS AMBIENTALES | E12: ANÁLISIS DETERMINACIÓN SIGNIFICANCIA INICIAL | I12: ANÁLISIS DETERMINACIÓN SIGNIFICANCIA FINAL | M12: ANÁLISIS IDENTIFICACIÓN DE ASPECTOS AMBIENTALES GENERADOS

Sheet Control CTR
D1: MATRIZ DE IDENTIFICACIÓN Y EVALUACIÓN DE ASPECTOS E IMPACTOS AMBIENTALES | O1: Código: 710,18,15-16
O2: Versión: 09
D3: SISTEMA DE GESTIÓN AMBIENTAL | O3: Fecha: 01/09/2022
D4: PROCEDIMIENTO PARA LA IDENTIFICACIÓN Y EVALUACIÓN DE ASPECTOS E IMPACTOS AMBIENTALES | O4: Página: 1 de 1
A7: DIRECCIÓN TERRITORIAL CENTRAL
A12: MATRIZ DE IDENTIFICACIÓN Y EVALUACIÓN DE ASPECTOS E IMPACTOS AMBIENTALES | E12: ANÁLISIS DETERMINACIÓN SIGNIFICANCIA INICIAL | I12: ANÁLISIS DETERMINACIÓN SIGNIFICANCIA FINAL | M12: ANÁLISIS IDENTIFICACIÓN DE ASPECTOS AMBIENTALES GENERADOS

Sheet Control CHO
D1: MATRIZ DE IDENTIFICACIÓN Y EVALUACIÓN DE ASPECTOS E IMPACTOS AMBIENTALES | O1: Código: 710,18,15-16
O2: Versión: 09
D3: SISTEMA DE GESTIÓN AMBIENTAL | O3: Fecha: 01/09/2022
D4: PROCEDIMIENTO PARA LA IDENTIFICACIÓN Y EVALUACIÓN DE ASPECTOS E IMPACTOS AMBIENTALES | O4: Página: 1 de 1
A7: DIRECCIÓN TERRITORIAL CHOCÓ
A12: MATRIZ DE IDENTIFICACIÓN Y EVALUACIÓN DE ASPECTOS E IMPACTOS AMBIENTALES | E12: ANÁLISIS DETERMINACIÓN SIGNIFICANCIA INICIAL | I12: ANÁLISIS DETERMINACIÓN SIGNIFICANCIA FINAL | M12: ANÁLISIS IDENTIFICACIÓN DE ASPECTOS AMBIENTALES GENERADOS

Sheet Control CGJ
D1: MATRIZ DE IDENTIFICACIÓN Y EVALUACIÓN DE ASPECTOS E IMPACTOS AMBIENTALES | O1: Código: 710,18,15-16
O2: Versión: 09
D3: SISTEMA DE GESTIÓN AMBIENTAL | O3: Fecha: 01/09/2022
D4: PROCEDIMIENTO PARA LA IDENTIFICACIÓN Y EVALUACIÓN DE ASPECTOS E IMPACTOS AMBIENTALES | O4: Página: 1 de 1
A7: DIRECCIÓN TERRITORIAL CESAR Y GUAJIRA
A12: MATRIZ DE IDENTIFICACIÓN Y EVALUACIÓN DE ASPECTOS E IMPACTOS AMBIENTALES | E12: ANÁLISIS DETERMINACIÓN SIGNIFICANCIA INICIAL | I12: ANÁLISIS DETERMINACIÓN SIGNIFICANCIA FINAL | M12: ANÁLISIS IDENTIFICACIÓN DE ASPECTOS AMBIENTALES GENERADOS

Sheet Control COR
D1: MATRIZ DE IDENTIFICACIÓN Y EVALUACIÓN DE ASPECTOS E IMPACTOS AMBIENTALES | O1: Código: 710,18,15-16
O2: Versión: 09
D3: SISTEMA DE GESTIÓN AMBIENTAL | O3: Fecha: 01/09/2022
D4: PROCEDIMIENTO PARA LA IDENTIFICACIÓN Y EVALUACIÓN DE ASPECTOS E IMPACTOS AMBIENTALES | O4: Página: 1 de 1
A7: DIRECCIÓN TERRITORIAL CÓRDOBA
A12: MATRIZ DE IDENTIFICACIÓN Y EVALUACIÓN DE ASPECTOS E IMPACTOS AMBIENTALES | E12: ANÁLISIS DETERMINACIÓN SIGNIFICANCIA INICIAL | I12: ANÁLISIS DETERMINACIÓN SIGNIFICANCIA FINAL | M12: ANÁLISIS IDENTIFICACIÓN DE ASPECTOS AMBIENTALES GENERADOS

Sheet Control EJE
D1: MATRIZ DE IDENTIFICACIÓN Y EVALUACIÓN DE ASPECTOS E IMPACTOS AMBIENTALES | O1: Código: 710,18,15-16
O2: Versión: 09
D3: SISTEMA DE GESTIÓN AMBIENTAL | O3: Fecha: 01/09/2022
D4: PROCEDIMIENTO PARA LA IDENTIFICACIÓN Y EVALUACIÓN DE ASPECTOS E IMPACTOS AMBIENTALES | O4: Página: 1 de 1
A7: DIRECCIÓN TERRITORIAL EJE CAFETERO
A12: MATRIZ DE IDENTIFICACIÓN Y EVALUACIÓN DE ASPECTOS E IMPACTOS AMBIENTALES | E12: ANÁLISIS DETERMINACIÓN SIGNIFICANCIA INICIAL | I12: ANÁLISIS DETERMINACIÓN SIGNIFICANCIA FINAL | M12: ANÁLISIS IDENTIFICACIÓN DE ASPECTOS AMBIENTALES GENERADOS

Sheet Control MAG
D1: MATRIZ DE IDENTIFICACIÓN Y EVALUACIÓN DE ASPECTOS E IMPACTOS AMBIENTALES | O1: Código: 710,18,15-16
O2: Versión: 09
D3: SISTEMA DE GESTIÓN AMBIENTAL | O3: Fecha: 01/09/2022
D4: PROCEDIMIENTO PARA LA IDENTIFICACIÓN Y EVALUACIÓN DE ASPECTOS E IMPACTOS AMBIENTALES | O4: Página: 1 de 1
A7: DIRECCIÓN TERRITORIAL MAGDALENA
A12: MATRIZ DE IDENTIFICACIÓN Y EVALUACIÓN DE ASPECTOS E IMPACTOS AMBIENTALES | E12: ANÁLISIS DETERMINACIÓN SIGNIFICANCIA INICIAL | I12: ANÁLISIS DETERMINACIÓN SIGNIFICANCIA FINAL | M12: ANÁLISIS IDENTIFICACIÓN DE ASPECTOS AMBIENTALES GENERADOS

Sheet Control MGM
D1: MATRIZ DE IDENTIFICACIÓN Y EVALUACIÓN DE ASPECTOS E IMPACTOS AMBIENTALES | O1: Código: 710,18,15-16
O2: Versión: 09
D3: SISTEMA DE GESTIÓN AMBIENTAL | O3: Fecha: 01/09/2022
D4: PROCEDIMIENTO PARA LA IDENTIFICACIÓN Y EVALUACIÓN DE ASPECTOS E IMPACTOS AMBIENTALES | O4: Página: 1 de 1
A7: DIRECCIÓN TERRITORIAL MAGDALENA MEDIO
A12: MATRIZ DE IDENTIFICACIÓN Y EVALUACIÓN DE ASPECTOS E IMPACTOS AMBIENTALES | E12: ANÁLISIS DETERMINACIÓN SIGNIFICANCIA INICIAL | I12: ANÁLISIS DETERMINACIÓN SIGNIFICANCIA FINAL | M12: ANÁLISIS IDENTIFICACIÓN DE ASPECTOS AMBIENTALES GENERADOS

Sheet Control MTL
D1: MATRIZ DE IDENTIFICACIÓN Y EVALUACIÓN DE ASPECTOS E IMPACTOS AMBIENTALES | O1: Código: 710,18,15-16
O2: Versión: 09
D3: SISTEMA DE GESTIÓN AMBIENTAL | O3: Fecha: 01/09/2022
D4: PROCEDIMIENTO PARA LA IDENTIFICACIÓN Y EVALUACIÓN DE ASPECTOS E IMPACTOS AMBIENTALES | O4: Página: 1 de 1
A7: DIRECCIÓN TERRITORIAL META - LLANOS ORIENTALES
A12: MATRIZ DE IDENTIFICACIÓN Y EVALUACIÓN DE ASPECTOS E IMPACTOS AMBIENTALES | E12: ANÁLISIS DETERMINACIÓN SIGNIFICANCIA INICIAL | I12: ANÁLISIS DETERMINACIÓN SIGNIFICANCIA FINAL | M12: ANÁLISIS IDENTIFICACIÓN DE ASPECTOS AMBIENTALES GENERADOS

Sheet Control NAR
D1: MATRIZ DE IDENTIFICACIÓN Y EVALUACIÓN DE ASPECTOS E IMPACTOS AMBIENTALES | O1: Código: 710,18,15-16
O2: Versión: 09
D3: SISTEMA DE GESTIÓN AMBIENTAL | O3: Fecha: 01/09/2022
D4: PROCEDIMIENTO PARA LA IDENTIFICACIÓN Y EVALUACIÓN DE ASPECTOS E IMPACTOS AMBIENTALES | O4: Página: 1 de 1
A7: DIRECCIÓN TERRITORIAL NARIÑO
A12: MATRIZ DE IDENTIFICACIÓN Y EVALUACIÓN DE ASPECTOS E IMPACTOS AMBIENTALES | E12: ANÁLISIS DETERMINACIÓN SIGNIFICANCIA INICIAL | I12: ANÁLISIS DETERMINACIÓN SIGNIFICANCIA FINAL | M12: ANÁLISIS IDENTIFICACIÓN DE ASPECTOS AMBIENTALES GENERADOS

Sheet Control NTS
D1: MATRIZ DE IDENTIFICACIÓN Y EVALUACIÓN DE ASPECTOS E IMPACTOS AMBIENTALES | O1: Código: 710,18,15-16
O2: Versión: 09
D3: SISTEMA DE GESTIÓN AMBIENTAL | O3: Fecha: 01/09/2022
D4: PROCEDIMIENTO PARA LA IDENTIFICACIÓN Y EVALUACIÓN DE ASPECTOS E IMPACTOS AMBIENTALES | O4: Página: 1 de 1
A7: DIRECCIÓN TERRITORIAL NORTE DE SANTANDER
A12: MATRIZ DE IDENTIFICACIÓN Y EVALUACIÓN DE ASPECTOS E IMPACTOS AMBIENTALES | E12: ANÁLISIS DETERMINACIÓN SIGNIFICANCIA INICIAL | I12: ANÁLISIS DETERMINACIÓN SIGNIFICANCIA FINAL | M12: ANÁLISIS IDENTIFICACIÓN DE ASPECTOS AMBIENTALES GENERADOS

Sheet Control PUT
D1: MATRIZ DE IDENTIFICACIÓN Y EVALUACIÓN DE ASPECTOS E IMPACTOS AMBIENTALES | O1: Código: 710,18,15-16
O2: Versión: 09
D3: SISTEMA DE GESTIÓN AMBIENTAL | O3: Fecha: 01/09/2022
D4: PROCEDIMIENTO PARA LA IDENTIFICACIÓN Y EVALUACIÓN DE ASPECTOS E IMPACTOS AMBIENTALES | O4: Página: 1 de 1
A7: DIRECCIÓN TERRITORIAL PUTUMAYO
A12: MATRIZ DE IDENTIFICACIÓN Y EVALUACIÓN DE ASPECTOS E IMPACTOS AMBIENTALES | E12: ANÁLISIS DETERMINACIÓN SIGNIFICANCIA INICIAL | I12: ANÁLISIS DETERMINACIÓN SIGNIFICANCIA FINAL | M12: ANÁLISIS IDENTIFICACIÓN DE ASPECTOS AMBIENTALES GENERADOS

Sheet Control STD
D1: MATRIZ DE IDENTIFICACIÓN Y EVALUACIÓN DE ASPECTOS E IMPACTOS AMBIENTALES | O1: Código: 710,18,15-16
O2: Versión: 09
D3: SISTEMA DE GESTIÓN AMBIENTAL | O3: Fecha: 01/09/2022
D4: PROCEDIMIENTO PARA LA IDENTIFICACIÓN Y EVALUACIÓN DE ASPECTOS E IMPACTOS AMBIENTALES | O4: Página: 1 de 1
A7: DIRECCIÓN TERRITORIAL SANTANDER
A12: MATRIZ DE IDENTIFICACIÓN Y EVALUACIÓN DE ASPECTOS E IMPACTOS AMBIENTALES | E12: ANÁLISIS DETERMINACIÓN SIGNIFICANCIA INICIAL | I12: ANÁLISIS DETERMINACIÓN SIGNIFICANCIA FINAL | M12: ANÁLISIS IDENTIFICACIÓN DE ASPECTOS AMBIENTALES GENERADOS

Sheet Control SUC
D1: MATRIZ DE IDENTIFICACIÓN Y EVALUACIÓN DE ASPECTOS E IMPACTOS AMBIENTALES | O1: Código: 710,18,15-16
O2: Versión: 09
D3: SISTEMA DE GESTIÓN AMBIENTAL | O3: Fecha: 01/09/2022
D4: PROCEDIMIENTO PARA LA IDENTIFICACIÓN Y EVALUACIÓN DE ASPECTOS E IMPACTOS AMBIENTALES | O4: Página: 1 de 1
A7: DIRECCIÓN TERRITORIAL SUCRE
A12: MATRIZ DE IDENTIFICACIÓN Y EVALUACIÓN DE ASPECTOS E IMPACTOS AMBIENTALES | E12: ANÁLISIS DETERMINACIÓN SIGNIFICANCIA INICIAL | I12: ANÁLISIS DETERMINACIÓN SIGNIFICANCIA FINAL | M12: ANÁLISIS IDENTIFICACIÓN DE ASPECTOS AMBIENTALES GENERADOS

Sheet Control URA
D1: MATRIZ DE IDENTIFICACIÓN Y EVALUACIÓN DE ASPECTOS E IMPACTOS AMBIENTALES | O1: Código: 710,18,15-16
O2: Versión: 09
D3: SISTEMA DE GESTIÓN AMBIENTAL | O3: Fecha: 01/09/2022
D4: PROCEDIMIENTO PARA LA IDENTIFICACIÓN Y EVALUACIÓN DE ASPECTOS E IMPACTOS AMBIENTALES | O4: Página: 1 de 1
A7: DIRECCIÓN TERRITORIAL URABÁ
A12: MATRIZ DE IDENTIFICACIÓN Y EVALUACIÓN DE ASPECTOS E IMPACTOS AMBIENTALES | E12: ANÁLISIS DETERMINACIÓN SIGNIFICANCIA INICIAL | I12: ANÁLISIS DETERMINACIÓN SIGNIFICANCIA FINAL | M12: ANÁLISIS IDENTIFICACIÓN DE ASPECTOS AMBIENTALES GENERADOS

Sheet Control VAL
D1: MATRIZ DE IDENTIFICACIÓN Y EVALUACIÓN DE ASPECTOS E IMPACTOS AMBIENTALES | O1: Código: 710,18,15-16
O2: Versión: 09
D3: SISTEMA DE GESTIÓN AMBIENTAL | O3: Fecha: 01/09/2022
D4: PROCEDIMIENTO PARA LA IDENTIFICACIÓN Y EVALUACIÓN DE ASPECTOS E IMPACTOS AMBIENTALES | O4: Página: 1 de 1
A7: DIRECCIÓN TERRITORIAL VALLE
A12: MATRIZ DE IDENTIFICACIÓN Y EVALUACIÓN DE ASPECTOS E IMPACTOS AMBIENTALES | E12: ANÁLISIS DETERMINACIÓN SIGNIFICANCIA INICIAL | I12: ANÁLISIS DETERMINACIÓN SIGNIFICANCIA FINAL | M12: ANÁLISIS IDENTIFICACIÓN DE ASPECTOS AMBIENTALES GENERADOS

Sheet Control NN
D1: MATRIZ DE IDENTIFICACIÓN Y EVALUACIÓN DE ASPECTOS E IMPACTOS AMBIENTALES | O1: Código: 710,18,15-16
O2: Versión: 09
D3: SISTEMA DE GESTIÓN AMBIENTAL | O3: Fecha: 01/09/2022
D4: PROCEDIMIENTO PARA LA IDENTIFICACIÓN Y EVALUACIÓN DE ASPECTOS E IMPACTOS AMBIENTALES | O4: Página: 1 de 1
A7: PROCESOS NIVEL NACIONAL
A12: MATRIZ DE IDENTIFICACIÓN Y EVALUACIÓN DE ASPECTOS E IMPACTOS AMBIENTALES | E12: ANÁLISIS DETERMINACIÓN SIGNIFICANCIA INICIAL | I12: ANÁLISIS DETERMINACIÓN SIGNIFICANCIA FINAL | M12: ANÁLISIS IDENTIFICACIÓN DE ASPECTOS AMBIENTALES GENERADOS

Sheet Matriz ANT
E1: MATRIZ DE IDENTIFICACIÓN Y EVALUACIÓN DE ASPECTOS E IMPACTOS AMBIENTALES | AZ1: Código: 710,18,15-16
AZ2: Versión: 08
E3: SISTEMA DE GESTIÓN AMBIENTAL | AZ3: Fecha: 13/07/2022
E4: PROCEDIMIENTO PARA LA IDENTIFICACIÓN Y EVALUACIÓN DE ASPECTOS E IMPACTOS AMBIENTALES | AZ4: Página: 1 de 1
A6: IDENTIFICACIÓN DE LA ACTIVIDAD | J6: IDENTIFICACIÓN DE ASPECTOS E IMPACTOS AMBIENTALES | P6: SIGNIFICANCIA INICIAL DEL IMPACTO AMBIENTAL | AC6: APLICACIÓN DE CONTROLES OPERACIONALES | AY6: SIGNIFICANCIA FINAL DEL IMPACTO AMBIENTAL | BB6: DOCUMENTACIÓN Y ACTIVIDADES | BE6: OBSERVACIONES
A7: Dirección Territorial | B7: Proceso DT - NN / Condición ambiental | C7: Proceso / Condición ambiental | D7: Fase de actividad | E7: Actividad o Condición ambiental | F7: Sede actividad | G7: Ubicación de Condición Ambiental | H7: Condición de operación (Normal, anormal o emergencia) | I7: Origen de actividad | J7: Componente | K7: Aspecto | L7: Impacto | M7: Carácter | N7: Amenaza | O7: Oportunidad | P7: Criterio legal | S7: Criterio impacto ambiental | W7: Criterio Partes interesadas | Z7: TOTAL CRITERIOS | AA7: Puntaje Inicial | AB7: Significancia Inicial | AC7: Control administrativo | AJ7: Control operativo | AQ7: Control legal | AX7: Total controles | AY7: Sub Total | AZ7: Puntaje final | BA7: Significancia Final | BB7: Documento | BC7: Tipo de actividad | BD7: Descripción
P8: Existencia | Q8: Cumplimiento | R8: Total | S8: Frecuencia | T8: Severidad | U8: Alcance | V8: Total | W8: Exigencia | X8: Gestión | Y8: Total | AC8: Antes | AE8: Durante | AG8: Después | AI8: Total | AJ8: Antes | AL8: Durante | AN8: Después | AP8: Total | AQ8: Antes | AS8: Durante | AU8: Después | AW8: Total
A9: Dirección_Territorial_Antioquia | B9: Proceso_DT | C9: Comunicación_Estratégica_ | D9: DURANTE | E9: Actualización carteleras | F9: Administrativa | G9: N/A | H9: Normal | I9: Propia | J9: Suelo | K9: Consumo de energía eléctrica | L9: Agotamiento de los recursos naturales (-) | M9: Negativo | N9: Aumento del consumo del recurso por malas prácticas ambientales y/o daños en aparatos eléctricos y electrónicos | O9: Fortalecimiento de cultura ambiental de personas que hagan uso del recurso y/o revisiones periódicas de los equipos eléctricos y electrónicos | P9: 10 | Q9: 5 | R9: =P9*Q9 -> 50 | S9: 10 | T9: 1 | U9: 1 | V9: =SUM(S9*3.5)+(T9*3.5)+(U9*3) -> 41.5 | W9: 1 | X9: 1 | Y9: =W9*X9 -> 1 | Z9: =SUM(R9*0.45)+(V9*0.45)+(Y9*0.1) -> 41.275 | AA9: =IF(M9="NEGATIVO",Z9*-1,Z9*1) -> -41.275 | AB9: =+IF(AND(1<=AA9,AA9<=100),"POSITIVO",IF(AND(AA9<=-1,AA9>=-30),"Negativo BAJO",IF(AND(AA9<=-31,AA9>=-60),"Negativo MODERADO",IF(AND(AA9<=-61,AA9>=-100),"Negativo ALTO",IF(AND(0=AA9,AA9=0),"SIN IMPACTO"))))) -> Negativo MODERADO | AC9: No se aplica | AD9: =IF(AC9="No se aplica",$Z9*0.05,IF(AC9="Se aplica ocasionalmente",$Z9*0.1,IF(AC9="Se aplica rutinariamente",$Z9*0.25,"ERROR"))) -> 2.06375 | AE9: No se aplica | AF9: =IF(AE9="No se aplica",$Z9*0.05,IF(AE9="Se aplica ocasionalmente",$Z9*0.1,IF(AE9="Se aplica rutinariamente",$Z9*0.25,"ERROR"))) -> 2.06375 | AG9: No se aplica | AH9: =IF(AG9="No se aplica",$Z9*0.05,IF(AG9="Se aplica ocasionalmente",$Z9*0.1,IF(AG9="Se aplica rutinariamente",$Z9*0.25,"ERROR"))) -> 2.06375 | AI9: =SUM(AD9,AF9,AH9)/3 -> 2.06375 | AJ9: No se aplica | AK9: =IF(AJ9="No se aplica",$Z9*0.02,IF(AJ9="Se aplica ocasionalmente",$Z9*0.08,IF(AJ9="Se aplica rutinariamente",$Z9*0.2,"ERROR"))) -> 0.8255 | AL9: No se aplica | AM9: =IF(AL9="No se aplica",$Z9*0.02,IF(AL9="Se aplica ocasionalmente",$Z9*0.08,IF(AL9="Se aplica rutinariamente",$Z9*0.2,"ERROR"))) -> 0.8255 | AN9: No se aplica | AO9: =IF(AN9="No se aplica",$Z9*0.02,IF(AN9="Se aplica ocasionalmente",$Z9*0.08,IF(AN9="Se aplica rutinariamente",$Z9*0.2,"ERROR"))) -> 0.8255 | AP9: =SUM(AK9,AM9,AO9)/3 -> 0.8255 | AQ9: No se aplica | AR9: =IF(AQ9="No se aplica",$Z9*0.02,IF(AQ9="Se aplica ocasionalmente",$Z9*0.08,IF(AQ9="Se aplica rutinariamente",$Z9*0.2,"ERROR"))) -> 0.8255 | AS9: No se aplica | AT9: =IF(AS9="No se aplica",$Z9*0.02,IF(AS9="Se aplica ocasionalmente",$Z9*0.08,IF(AS9="Se aplica rutinariamente",$Z9*0.2,"ERROR"))) -> 0.8255 | AU9: No se aplica | AV9: =IF(AU9="No se aplica",$Z9*0.02,IF(AU9="Se aplica ocasionalmente",$Z9*0.08,IF(AU9="Se aplica rutinariamente",$Z9*0.2,"ERROR"))) -> 0.8255 | AW9: =SUM(AR9,AT9,AV9)/4 -> 0.619125 | AX9: =SUM(AI9,AP9,AW9) -> 3.508375 | AY9: =Z9-AX9 -> 37.766625 | AZ9: =IF(M9="NEGATIVO",AY9*-1,AY9*1) -> -37.766625 | BA9: =+IF(AND(1<=AZ9,AZ9<=100),"POSITIVO",IF(AND(AZ9<=-1,AZ9>=-30),"Negativo BAJO",IF(AND(AZ9<=-31,AZ9>=-60),"Negativo MODERADO",IF(AND(AZ9<=-61,AZ9>=-100),"Negativo ALTO",IF(AND(0=AZ9,AZ9=0),"SIN IMPACTO"))))) -> Negativo MODERADO | BB9: Guía de buenas prácticas ambientales, matriz de seguimiento a programas, estudios previos, anexo guía para supervisión SGA, normograma, matriz de verificación al cumplimiento legal | BC9: =IF(BA9="Negativo MODERADO","Control",IF(BA9="Negativo BAJO","Prevención",IF(BA9="Negativo ALTO","Control",IF(BA9="POSITIVO","Fomento",IF(BA9="SIN IMPACTO","N/A","ERROR"))))) -> Control | BD9: Seguir los lineamientos, directrices y/o requerimientos legales asociados con documento(s) relacionado(s)
A10: Dirección_Territorial_Antioquia | B10: Proceso_DT | C10: Comunicación_Estratégica_ | D10: DURANTE | E10: Actualización carteleras | F10: Administrativa | G10: N/A | H10: Normal | I10: Propia | J10: Flora | K10: Consumo de papel | L10: Agotamiento de los recursos naturales (-) | M10: Negativo | N10: Aumento del consumo del recurso por malas prácticas ambientales y/o cambios en los procesos | O10: Fortalecimiento de cultura ambiental de personas que hagan uso del recurso y/o establecimiento de recomendaciones ambientales en cambios de procesos | P10: 10 | Q10: 5 | R10: =P10*Q10 -> 50 | S10: 10 | T10: 1 | U10: 1 | V10: 41.5 | W10: 1 | X10: 1 | Y10: 1 | Z10: 41.275 | AA10: -41.275 | AB10: =+IF(AND(1<=AA10,AA10<=100),"POSITIVO",IF(AND(AA10<=-1,AA10>=-30),"Negativo BAJO",IF(AND(AA10<=-31,AA10>=-60),"Negativo MODERADO",IF(AND(AA10<=-61,AA10>=-100),"Negativo ALTO",IF(AND(0=AA10,AA10=0),"SIN IMPACTO"))))) -> Negativo MODERADO | AC10: Se aplica rutinariamente | AD10: 10.31875 | AE10: Se aplica rutinariamente | AF10: =IF(AE10="No se aplica",$Z10*0.05,IF(AE10="Se aplica ocasionalmente",$Z10*0.1,IF(AE10="Se aplica rutinariamente",$Z10*0.25,"ERROR"))) -> 10.31875 | AG10: Se aplica rutinariamente | AH10: 10.31875 | AI10: 10.31875 | AJ10: Se aplica rutinariamente | AK10: 8.255 | AL10: Se aplica rutinariamente | AM10: =IF(AL10="No se aplica",$Z10*0.02,IF(AL10="Se aplica ocasionalmente",$Z10*0.08,IF(AL10="Se aplica rutinariamente",$Z10*0.2,"ERROR"))) -> 8.255 | AN10: Se aplica rutinariamente | AO10: 8.255 | AP10: 8.255 | AQ10: Se aplica rutinariamente | AR10: 8.255 | AS10: Se aplica rutinariamente | AT10: 8.255 | AU10: Se aplica rutinariamente | AV10: 8.255 | AW10: 6.19125 | AX10: 24.765 | AY10: 16.51 | AZ10: -16.51 | BA10: =+IF(AND(1<=AZ10,AZ10<=100),"POSITIVO",IF(AND(AZ10<=-1,AZ10>=-30),"Negativo BAJO",IF(AND(AZ10<=-31,AZ10>=-60),"Negativo MODERADO",IF(AND(AZ10<=-61,AZ10>=-100),"Negativo ALTO",IF(AND(0=AZ10,AZ10=0),"SIN IMPACTO"))))) -> Negativo BAJO | BB10: Guía de buenas prácticas ambientales, matriz de seguimiento a programas, estudios previos, anexo guía para supervisión SGA, normograma, matriz de verificación al cumplimiento legal | BC10: =IF(BA10="Negativo MODERADO","Control",IF(BA10="Negativo BAJO","Prevención",IF(BA10="Negativo ALTO","Control",IF(BA10="POSITIVO","Fomento",IF(BA10="SIN IMPACTO","N/A","ERROR"))))) -> Prevención | BD10: Seguir los lineamientos, directrices y/o requerimientos legales asociados con documento(s) relacionado(s)
A11: Dirección_Territorial_Antioquia | B11: Proceso_DT | C11: Comunicación_Estratégica_ | D11: DURANTE | E11: Actualización carteleras | F11: Administrativa | G11: N/A | H11: Normal | I11: Propia | J11: Suelo | K11: Consumo de tóner | L11: Agotamiento de los recursos naturales (-) | M11: Negativo | N11: Aumento del consumo del recurso por malas prácticas ambientales y/o cambios en los procesos | O11: Fortalecimiento de cultura ambiental de personas que hagan uso del recurso y/o establecimiento de recomendaciones ambientales en cambios de procesos | P11: 1 | Q11: 1 | R11: =P11*Q11 -> 1 | S11: 10 | T11: 5 | U11: 1 | V11: =SUM(S11*3.5)+(T11*3.5)+(U11*3) -> 55.5 | W11: 1 | X11: 1 | Y11: 1 | Z11: 25.525 | AA11: -25.525 | AB11: =+IF(AND(1<=AA11,AA11<=100),"POSITIVO",IF(AND(AA11<=-1,AA11>=-30),"Negativo BAJO",IF(AND(AA11<=-31,AA11>=-60),"Negativo MODERADO",IF(AND(AA11<=-61,AA11>=-100),"Negativo ALTO",IF(AND(0=AA11,AA11=0),"SIN IMPACTO"))))) -> Negativo BAJO | AD11: ERROR | AF11: =IF(AE11="No se aplica",$Z11*0.05,IF(AE11="Se aplica ocasionalmente",$Z11*0.1,IF(AE11="Se aplica rutinariamente",$Z11*0.25,"ERROR"))) -> ERROR | AH11: ERROR | AI11: 0 | AK11: ERROR | AM11: =IF(AL11="No se aplica",$Z11*0.02,IF(AL11="Se aplica ocasionalmente",$Z11*0.08,IF(AL11="Se aplica rutinariamente",$Z11*0.2,"ERROR"))) -> ERROR | AO11: ERROR | AP11: 0 | AR11: ERROR | AT11: ERROR | AV11: ERROR | AW11: 0 | AX11: 0 | AY11: =Z11-AX11 -> 25.525 | AZ11: =IF(M11="NEGATIVO",AY11*-1,AY11*1) -> -25.525 | BA11: =+IF(AND(1<=AZ11,AZ11<=100),"POSITIVO",IF(AND(AZ11<=-1,AZ11>=-30),"Negativo BAJO",IF(AND(AZ11<=-31,AZ11>=-60),"Negativo MODERADO",IF(AND(AZ11<=-61,AZ11>=-100),"Negativo ALTO",IF(AND(0=AZ11,AZ11=0),"SIN IMPACTO"))))) -> Negativo BAJO | BB11: Estudios previos, anexo guía para supervisión SGA, normograma, matriz de verificación al cumplimiento legal, guía de buenas prácticas ambientales | BC11: Prevención | BD11: Seguir los lineamientos, directrices y/o requerimientos legales asociados con documento(s) relacionado(s)
A12: Dirección_Territorial_Antioquia | B12: Proceso_DT | C12: Comunicación_Estratégica_ | D12: DURANTE | E12: Actualización carteleras | F12: Administrativa | G12: N/A | H12: Normal | I12: Propia | J12: Sociedad | K12: Educación ambiental | L12: Fomento de buenas prácticas ambientales (+) | M12: Positivo | N12: Ausencia de participación de funcionarios, contratistas y operadores en jornadas de fortalecimiento de cultura y/o conocimientos ambientales | O12: Inclusión de responsabilidad de participación en actividades convocadas desde el SGA en matriz de roles, responsabilidades, autoridades y competencias | P12: 10 | Q12: 5 | R12: 50 | S12: 10 | T12: 5 | U12: 1 | V12: =SUM(S12*3.5)+(T12*3.5)+(U12*3) -> 55.5 | W12: 1 | X12: 1 | Y12: 1 | Z12: 47.575 | AA12: 47.575 | AB12: =+IF(AND(1<=AA12,AA12<=100),"POSITIVO",IF(AND(AA12<=-1,AA12>=-30),"Negativo BAJO",IF(AND(AA12<=-31,AA12>=-60),"Negativo MODERADO",IF(AND(AA12<=-61,AA12>=-100),"Negativo ALTO",IF(AND(0=AA12,AA12=0),"SIN IMPACTO"))))) -> POSITIVO | AD12: =IF(AC12="No se aplica",$Z12*0.05,IF(AC12="Se aplica ocasionalmente",$Z12*0.1,IF(AC12="Se aplica rutinariamente",$Z12*0.25,"ERROR"))) -> ERROR | AF12: =IF(AE12="No se aplica",$Z12*0.05,IF(AE12="Se aplica ocasionalmente",$Z12*0.1,IF(AE12="Se aplica rutinariamente",$Z12*0.25,"ERROR"))) -> ERROR | AH12: =IF(AG12="No se aplica",$Z12*0.05,IF(AG12="Se aplica ocasionalmente",$Z12*0.1,IF(AG12="Se aplica rutinariamente",$Z12*0.25,"ERROR"))) -> ERROR | AI12: =SUM(AD12,AF12,AH12)/3 -> 0 | AK12: =IF(AJ12="No se aplica",$Z12*0.02,IF(AJ12="Se aplica ocasionalmente",$Z12*0.08,IF(AJ12="Se aplica rutinariamente",$Z12*0.2,"ERROR"))) -> ERROR | AM12: =IF(AL12="No se aplica",$Z12*0.02,IF(AL12="Se aplica ocasionalmente",$Z12*0.08,IF(AL12="Se aplica rutinariamente",$Z12*0.2,"ERROR"))) -> ERROR | AO12: =IF(AN12="No se aplica",$Z12*0.02,IF(AN12="Se aplica ocasionalmente",$Z12*0.08,IF(AN12="Se aplica rutinariamente",$Z12*0.2,"ERROR"))) -> ERROR | AP12: =SUM(AK12,AM12,AO12)/3 -> 0 | AR12: =IF(AQ12="No se aplica",$Z12*0.02,IF(AQ12="Se aplica ocasionalmente",$Z12*0.08,IF(AQ12="Se aplica rutinariamente",$Z12*0.2,"ERROR"))) -> ERROR | AT12: =IF(AS12="No se aplica",$Z12*0.02,IF(AS12="Se aplica ocasionalmente",$Z12*0.08,IF(AS12="Se aplica rutinariamente",$Z12*0.2,"ERROR"))) -> ERROR | AV12: =IF(AU12="No se aplica",$Z12*0.02,IF(AU12="Se aplica ocasionalmente",$Z12*0.08,IF(AU12="Se aplica rutinariamente",$Z12*0.2,"ERROR"))) -> ERROR | AW12: =SUM(AR12,AT12,AV12)/4 -> 0 | AX12: =SUM(AI12,AP12,AW12) -> 0 | AY12: 47.575 | AZ12: 47.575 | BA12: POSITIVO | BB12: Guía de buenas prácticas ambientales, calendario ambiental, SUMA, registros de capacitación | BC12: Fomento | BD12: Seguir los lineamientos, directrices y/o requerimientos legales asociados con documento(s) relacionado(s)
A13: Dirección_Territorial_Antioquia | B13: Proceso_DT | C13: Comunicación_Estratégica_ | D13: DURANTE | E13: Actualización carteleras | F13: Administrativa | G13: N/A | H13: Normal | I13: Propia | J13: Suelo | K13: Generación de residuos aprovechables (PAPEL) | L13: Disminución de carga en los rellenos sanitarios (+) | M13: Positivo | N13: Inadecuada segregación del residuo sólido generado | O13: Fortalecimiento de conocimiento y cultura ambiental asociada con el manejo integral de residuos sólidos | P13: 10 | Q13: 5 | R13: 50 | S13: 10 | T13: 5 | U13: 10 | V13: 82.5 | W13: 1 | X13: 1 | Y13: 1 | Z13: 59.725 | AA13: 59.725 | AB13: POSITIVO | AD13: =IF(AC13="No se aplica",$Z13*0.05,IF(AC13="Se aplica ocasionalmente",$Z13*0.1,IF(AC13="Se aplica rutinariamente",$Z13*0.25,"ERROR"))) -> ERROR | AF13: =IF(AE13="No se aplica",$Z13*0.05,IF(AE13="Se aplica ocasionalmente",$Z13*0.1,IF(AE13="Se aplica rutinariamente",$Z13*0.25,"ERROR"))) -> ERROR | AH13: =IF(AG13="No se aplica",$Z13*0.05,IF(AG13="Se aplica ocasionalmente",$Z13*0.1,IF(AG13="Se aplica rutinariamente",$Z13*0.25,"ERROR"))) -> ERROR | AI13: =SUM(AD13,AF13,AH13)/3 -> 0 | AK13: =IF(AJ13="No se aplica",$Z13*0.02,IF(AJ13="Se aplica ocasionalmente",$Z13*0.08,IF(AJ13="Se aplica rutinariamente",$Z13*0.2,"ERROR"))) -> ERROR | AM13: =IF(AL13="No se aplica",$Z13*0.02,IF(AL13="Se aplica ocasionalmente",$Z13*0.08,IF(AL13="Se aplica rutinariamente",$Z13*0.2,"ERROR"))) -> ERROR | AO13: =IF(AN13="No se aplica",$Z13*0.02,IF(AN13="Se aplica ocasionalmente",$Z13*0.08,IF(AN13="Se aplica rutinariamente",$Z13*0.2,"ERROR"))) -> ERROR | AP13: =SUM(AK13,AM13,AO13)/3 -> 0 | AR13: =IF(AQ13="No se aplica",$Z13*0.02,IF(AQ13="Se aplica ocasionalmente",$Z13*0.08,IF(AQ13="Se aplica rutinariamente",$Z13*0.2,"ERROR"))) -> ERROR | AT13: =IF(AS13="No se aplica",$Z13*0.02,IF(AS13="Se aplica ocasionalmente",$Z13*0.08,IF(AS13="Se aplica rutinariamente",$Z13*0.2,"ERROR"))) -> ERROR | AV13: =IF(AU13="No se aplica",$Z13*0.02,IF(AU13="Se aplica ocasionalmente",$Z13*0.08,IF(AU13="Se aplica rutinariamente",$Z13*0.2,"ERROR"))) -> ERROR | AW13: =SUM(AR13,AT13,AV13)/4 -> 0 | AX13: =SUM(AI13,AP13,AW13) -> 0 | AY13: 59.725 | AZ13: 59.725 | BA13: POSITIVO | BB13: Plan de Gestión Integral de residuos sólidos, matriz de seguimiento a programas, certificados de aprovechamiento | BC13: Fomento | BD13: Seguir los lineamientos, directrices y/o requerimientos legales asociados con documento(s) relacionado(s)
A14: Dirección_Territorial_Antioquia | B14: Proceso_DT | C14: Comunicación_Estratégica_ | D14: DURANTE | E14: Actualización carteleras | F14: Administrativa | G14: N/A | H14: Normal | I14: Propia | J14: Suelo | K14: Generación de residuos peligrosos (TÓNERES) | L14: Contaminación del suelo (-) | M14: Negativo | N14: Inadecuado manejo integral del residuo sólido generado | O14: Fortalecimiento de conocimiento y cultura ambiental asociada con el manejo integral de residuos sólidos | P14: 10 | Q14: 5 | R14: 50 | S14: 5 | T14: 5 | U14: 1 | V14: =SUM(S14*3.5)+(T14*3.5)+(U14*3) -> 38 | W14: 1 | X14: 1 | Y14: 1 | Z14: =SUM(R14*0.45)+(V14*0.45)+(Y14*0.1) -> 39.7 | AA14: -39.7 | AB14: Negativo MODERADO | AC14: Se aplica rutinariamente | AD14: 9.925 | AE14: Se aplica rutinariamente | AF14: 9.925 | AG14: Se aplica rutinariamente | AH14: 9.925 | AI14: 9.925 | AJ14: Se aplica rutinariamente | AK14: 7.94 | AL14: Se aplica rutinariamente | AM14: 7.94 | AN14: Se aplica rutinariamente | AO14: 7.94 | AP14: 7.94 | AQ14: Se aplica rutinariamente | AR14: 7.94 | AS14: Se aplica rutinariamente | AT14: 7.94 | AU14: Se aplica rutinariamente | AV14: 7.94 | AW14: 5.955 | AX14: 23.82 | AY14: 15.88 | AZ14: -15.88 | BA14: =+IF(AND(1<=AZ14,AZ14<=100),"POSITIVO",IF(AND(AZ14<=-1,AZ14>=-30),"Negativo BAJO",IF(AND(AZ14<=-31,AZ14>=-60),"Negativo MODERADO",IF(AND(AZ14<=-61,AZ14>=-100),"Negativo ALTO",IF(AND(0=AZ14,AZ14=0),"SIN IMPACTO"))))) -> Negativo BAJO | BB14: Plan de Gestión Integral de residuos sólidos, matriz de seguimiento a programas, certificados de disposición final, licencia ambiental | BC14: Prevención | BD14: Seguir los lineamientos, directrices y/o requerimientos legales asociados con documento(s) relacionado(s)
A15: Dirección_Territorial_Antioquia | B15: Proceso_DT | C15: Comunicación_Estratégica_ | D15: DURANTE | E15: Escribir notas para web y manejo de redes sociales, toma de fotografías | F15: Administrativa | G15: N/A | H15: Normal | I15: Propia | J15: Suelo | K15: Consumo de energía eléctrica | L15: Agotamiento de los recursos naturales (-) | M15: Negativo | N15: Aumento del consumo del recurso por malas prácticas ambientales y/o daños en aparatos eléctricos y electrónicos | O15: Fortalecimiento de cultura ambiental de personas que hagan uso del recurso y/o revisiones periódicas de los equipos eléctricos y electrónicos | P15: 10 | Q15: 5 | R15: 50 | S15: 10 | T15: 1 | U15: 1 | V15: 41.5 | W15: 1 | X15: 1 | Y15: 1 | Z15: =SUM(R15*0.45)+(V15*0.45)+(Y15*0.1) -> 41.275 | AA15: -41.275 | AB15: Negativo MODERADO | AC15: Se aplica rutinariamente | AD15: 10.31875 | AE15: Se aplica rutinariamente | AF15: 10.31875 | AG15: Se aplica rutinariamente | AH15: 10.31875 | AI15: 10.31875 | AJ15: Se aplica rutinariamente | AK15: 8.255 | AL15: Se aplica rutinariamente | AM15: 8.255 | AN15: Se aplica rutinariamente | AO15: 8.255 | AP15: 8.255 | AQ15: Se aplica rutinariamente | AR15: 8.255 | AS15: Se aplica rutinariamente | AT15: 8.255 | AU15: Se aplica rutinariamente | AV15: 8.255 | AW15: 6.19125 | AX15: 24.765 | AY15: 16.51 | AZ15: -16.51 | BA15: =+IF(AND(1<=AZ15,AZ15<=100),"POSITIVO",IF(AND(AZ15<=-1,AZ15>=-30),"Negativo BAJO",IF(AND(AZ15<=-31,AZ15>=-60),"Negativo MODERADO",IF(AND(AZ15<=-61,AZ15>=-100),"Negativo ALTO",IF(AND(0=AZ15,AZ15=0),"SIN IMPACTO"))))) -> Negativo BAJO | BB15: Guía de buenas prácticas ambientales, matriz de seguimiento a programas, estudios previos, anexo guía para supervisión SGA, normograma, matriz de verificación al cumplimiento legal | BC15: Prevención | BD15: Seguir los lineamientos, directrices y/o requerimientos legales asociados con documento(s) relacionado(s)
A16: Dirección_Territorial_Antioquia | B16: Proceso_DT | C16: Comunicación_Estratégica_ | D16: DURANTE | E16: Escribir notas para web y manejo de redes sociales, toma de fotografías | F16: Administrativa | G16: N/A | H16: Normal | I16: Propia | J16: Suelo | K16: Generación de residuos de manejo especial (RAEE´S) | L16: Contaminación del suelo (-) | M16: Negativo | N16: Inadecuado manejo integral del residuo sólido generado | O16: Fortalecimiento de conocimiento y cultura ambiental asociada con el manejo integral de residuos sólidos | P16: 10 | Q16: 5 | R16: =P16*Q16 -> 50 | S16: 1 | T16: 1 | U16: 10 | V16: 37 | W16: 1 | X16: 1 | Y16: 1 | Z16: 39.25 | AA16: -39.25 | AB16: =+IF(AND(1<=AA16,AA16<=100),"POSITIVO",IF(AND(AA16<=-1,AA16>=-30),"Negativo BAJO",IF(AND(AA16<=-31,AA16>=-60),"Negativo MODERADO",IF(AND(AA16<=-61,AA16>=-100),"Negativo ALTO",IF(AND(0=AA16,AA16=0),"SIN IMPACTO"))))) -> Negativo MODERADO | AC16: Se aplica rutinariamente | AD16: 9.8125 | AE16: Se aplica rutinariamente | AF16: =IF(AE16="No se aplica",$Z16*0.05,IF(AE16="Se aplica ocasionalmente",$Z16*0.1,IF(AE16="Se aplica rutinariamente",$Z16*0.25,"ERROR"))) -> 9.8125 | AG16: Se aplica rutinariamente | AH16: 9.8125 | AI16: 9.8125 | AJ16: Se aplica rutinariamente | AK16: 7.85 | AL16: Se aplica rutinariamente | AM16: =IF(AL16="No se aplica",$Z16*0.02,IF(AL16="Se aplica ocasionalmente",$Z16*0.08,IF(AL16="Se aplica rutinariamente",$Z16*0.2,"ERROR"))) -> 7.85 | AN16: Se aplica rutinariamente | AO16: 7.85 | AP16: 7.85 | AQ16: Se aplica rutinariamente | AR16: 7.85 | AS16: Se aplica rutinariamente | AT16: 7.85 | AU16: Se aplica rutinariamente | AV16: 7.85 | AW16: 5.8875 | AX16: 23.55 | AY16: 15.7 | AZ16: -15.7 | BA16: Negativo BAJO | BB16: Plan de Gestión Integral de residuos sólidos, matriz de seguimiento a programas, certificados de disposición final, licencia ambiental | BC16: Prevención | BD16: Seguir los lineamientos, directrices y/o requerimientos legales asociados con documento(s) relacionado(s)
A17: Dirección_Territorial_Antioquia | B17: Proceso_DT | C17: Comunicación_Estratégica_ | D17: DURANTE | E17: Escribir notas para web y manejo de redes sociales, toma de fotografías | F17: Administrativa | G17: N/A | H17: Normal | I17: Propia | J17: Sociedad | K17: Educación ambiental | L17: Fomento de buenas prácticas ambientales (+) | M17: Positivo | N17: Ausencia de participación de funcionarios, contratistas y operadores en jornadas de fortalecimiento de cultura y/o conocimientos ambientales | O17: Inclusión de responsabilidad de participación en actividades convocadas desde el SGA en matriz de roles, responsabilidades, autoridades y competencias | P17: 10 | Q17: 5 | R17: =P17*Q17 -> 50 | S17: 10 | T17: 5 | U17: 10 | V17: =SUM(S17*3.5)+(T17*3.5)+(U17*3) -> 82.5 | W17: 1 | X17: 1 | Y17: 1 | Z17: 59.725 | AA17: 59.725 | AB17: =+IF(AND(1<=AA17,AA17<=100),"POSITIVO",IF(AND(AA17<=-1,AA17>=-30),"Negativo BAJO",IF(AND(AA17<=-31,AA17>=-60),"Negativo MODERADO",IF(AND(AA17<=-61,AA17>=-100),"Negativo ALTO",IF(AND(0=AA17,AA17=0),"SIN IMPACTO"))))) -> POSITIVO | AD17: ERROR | AF17: =IF(AE17="No se aplica",$Z17*0.05,IF(AE17="Se aplica ocasionalmente",$Z17*0.1,IF(AE17="Se aplica rutinariamente",$Z17*0.25,"ERROR"))) -> ERROR | AH17: ERROR | AI17: 0 | AK17: ERROR | AM17: =IF(AL17="No se aplica",$Z17*0.02,IF(AL17="Se aplica ocasionalmente",$Z17*0.08,IF(AL17="Se aplica rutinariamente",$Z17*0.2,"ERROR"))) -> ERROR | AO17: ERROR | AP17: 0 | AR17: ERROR | AT17: ERROR | AV17: ERROR | AW17: 0 | AX17: 0 | AY17: 59.725 | AZ17: 59.725 | BA17: POSITIVO | BB17: Guía de buenas prácticas ambientales, calendario ambiental, SUMA, registros de capacitación | BC17: Fomento | BD17: Seguir los lineamientos, directrices y/o requerimientos legales asociados con documento(s) relacionado(s)
A18: Dirección_Territorial_Antioquia | B18: Proceso_DT | C18: Comunicación_Estratégica_ | D18: DURANTE | E18: Grabación de audios para noticiero de radio y tv | F18: Administrativa | G18: N/A | H18: Normal | I18: Propia | J18: Suelo | K18: Consumo de energía eléctrica | L18: Agotamiento de los recursos naturales (-) | M18: Negativo | N18: Aumento del consumo del recurso por malas prácticas ambientales y/o daños en aparatos eléctricos y electrónicos | O18: Fortalecimiento de cultura ambiental de personas que hagan uso del recurso y/o revisiones periódicas de los equipos eléctricos y electrónicos | P18: 10 | Q18: 5 | R18: 50 | S18: 5 | T18: 1 | U18: 1 | V18: =SUM(S18*3.5)+(T18*3.5)+(U18*3) -> 24 | W18: 1 | X18: 1 | Y18: 1 | Z18: 33.4 | AA18: -33.4 | AB18: =+IF(AND(1<=AA18,AA18<=100),"POSITIVO",IF(AND(AA18<=-1,AA18>=-30),"Negativo BAJO",IF(AND(AA18<=-31,AA18>=-60),"Negativo MODERADO",IF(AND(AA18<=-61,AA18>=-100),"Negativo ALTO",IF(AND(0=AA18,AA18=0),"SIN IMPACTO"))))) -> Negativo MODERADO | AC18: Se aplica rutinariamente | AD18: =IF(AC18="No se aplica",$Z18*0.05,IF(AC18="Se aplica ocasionalmente",$Z18*0.1,IF(AC18="Se aplica rutinariamente",$Z18*0.25,"ERROR"))) -> 8.35 | AE18: Se aplica rutinariamente | AF18: =IF(AE18="No se aplica",$Z18*0.05,IF(AE18="Se aplica ocasionalmente",$Z18*0.1,IF(AE18="Se aplica rutinariamente",$Z18*0.25,"ERROR"))) -> 8.35 | AG18: Se aplica rutinariamente | AH18: =IF(AG18="No se aplica",$Z18*0.05,IF(AG18="Se aplica ocasionalmente",$Z18*0.1,IF(AG18="Se aplica rutinariamente",$Z18*0.25,"ERROR"))) -> 8.35 | AI18: =SUM(AD18,AF18,AH18)/3 -> 8.35 | AJ18: Se aplica rutinariamente | AK18: =IF(AJ18="No se aplica",$Z18*0.02,IF(AJ18="Se aplica ocasionalmente",$Z18*0.08,IF(AJ18="Se aplica rutinariamente",$Z18*0.2,"ERROR"))) -> 6.68 | AL18: Se aplica rutinariamente | AM18: =IF(AL18="No se aplica",$Z18*0.02,IF(AL18="Se aplica ocasionalmente",$Z18*0.08,IF(AL18="Se aplica rutinariamente",$Z18*0.2,"ERROR"))) -> 6.68 | AN18: Se aplica rutinariamente | AO18: =IF(AN18="No se aplica",$Z18*0.02,IF(AN18="Se aplica ocasionalmente",$Z18*0.08,IF(AN18="Se aplica rutinariamente",$Z18*0.2,"ERROR"))) -> 6.68 | AP18: =SUM(AK18,AM18,AO18)/3 -> 6.68 | AQ18: Se aplica rutinariamente | AR18: =IF(AQ18="No se aplica",$Z18*0.02,IF(AQ18="Se aplica ocasionalmente",$Z18*0.08,IF(AQ18="Se aplica rutinariamente",$Z18*0.2,"ERROR"))) -> 6.68 | AS18: Se aplica rutinariamente | AT18: =IF(AS18="No se aplica",$Z18*0.02,IF(AS18="Se aplica ocasionalmente",$Z18*0.08,IF(AS18="Se aplica rutinariamente",$Z18*0.2,"ERROR"))) -> 6.68 | AU18: Se aplica rutinariamente | AV18: =IF(AU18="No se aplica",$Z18*0.02,IF(AU18="Se aplica ocasionalmente",$Z18*0.08,IF(AU18="Se aplica rutinariamente",$Z18*0.2,"ERROR"))) -> 6.68 | AW18: =SUM(AR18,AT18,AV18)/4 -> 5.01 | AX18: =SUM(AI18,AP18,AW18) -> 20.04 | AY18: 13.36 | AZ18: -13.36 | BA18: Negativo BAJO | BB18: Guía de buenas prácticas ambientales, matriz de seguimiento a programas, estudios previos, anexo guía para supervisión SGA, normograma, matriz de verificación al cumplimiento legal | BC18: Prevención | BD18: Seguir los lineamientos, directrices y/o requerimientos legales asociados con documento(s) relacionado(s)
A19: Dirección_Territorial_Antioquia | B19: Proceso_DT | C19: Comunicación_Estratégica_ | D19: DURANTE | E19: Grabación de audios para noticiero de radio y tv | F19: Administrativa | G19: N/A | H19: Normal | I19: Propia | J19: Suelo | K19: Generación de residuos de manejo especial (RAEE´S) | L19: Contaminación del suelo (-) | M19: Negativo | N19: Inadecuado manejo integral del residuo sólido generado | O19: Fortalecimiento de conocimiento y cultura ambiental asociada con el manejo integral de residuos sólidos | P19: 10 | Q19: 5 | R19: 50 | S19: 1 | T19: 5 | U19: 10 | V19: 51 | W19: 1 | X19: 1 | Y19: 1 | Z19: 45.55 | AA19: -45.55 | AB19: Negativo MODERADO | AC19: Se aplica rutinariamente | AD19: =IF(AC19="No se aplica",$Z19*0.05,IF(AC19="Se aplica ocasionalmente",$Z19*0.1,IF(AC19="Se aplica rutinariamente",$Z19*0.25,"ERROR"))) -> 11.3875 | AE19: Se aplica rutinariamente | AF19: =IF(AE19="No se aplica",$Z19*0.05,IF(AE19="Se aplica ocasionalmente",$Z19*0.1,IF(AE19="Se aplica rutinariamente",$Z19*0.25,"ERROR"))) -> 11.3875 | AG19: Se aplica rutinariamente | AH19: =IF(AG19="No se aplica",$Z19*0.05,IF(AG19="Se aplica ocasionalmente",$Z19*0.1,IF(AG19="Se aplica rutinariamente",$Z19*0.25,"ERROR"))) -> 11.3875 | AI19: =SUM(AD19,AF19,AH19)/3 -> 11.3875 | AJ19: Se aplica rutinariamente | AK19: =IF(AJ19="No se aplica",$Z19*0.02,IF(AJ19="Se aplica ocasionalmente",$Z19*0.08,IF(AJ19="Se aplica rutinariamente",$Z19*0.2,"ERROR"))) -> 9.11 | AL19: Se aplica rutinariamente | AM19: =IF(AL19="No se aplica",$Z19*0.02,IF(AL19="Se aplica ocasionalmente",$Z19*0.08,IF(AL19="Se aplica rutinariamente",$Z19*0.2,"ERROR"))) -> 9.11 | AN19: Se aplica rutinariamente | AO19: =IF(AN19="No se aplica",$Z19*0.02,IF(AN19="Se aplica ocasionalmente",$Z19*0.08,IF(AN19="Se aplica rutinariamente",$Z19*0.2,"ERROR"))) -> 9.11 | AP19: =SUM(AK19,AM19,AO19)/3 -> 9.11 | AQ19: Se aplica rutinariamente | AR19: =IF(AQ19="No se aplica",$Z19*0.02,IF(AQ19="Se aplica ocasionalmente",$Z19*0.08,IF(AQ19="Se aplica rutinariamente",$Z19*0.2,"ERROR"))) -> 9.11 | AS19: Se aplica rutinariamente | AT19: =IF(AS19="No se aplica",$Z19*0.02,IF(AS19="Se aplica ocasionalmente",$Z19*0.08,IF(AS19="Se aplica rutinariamente",$Z19*0.2,"ERROR"))) -> 9.11 | AU19: Se aplica rutinariamente | AV19: =IF(AU19="No se aplica",$Z19*0.02,IF(AU19="Se aplica ocasionalmente",$Z19*0.08,IF(AU19="Se aplica rutinariamente",$Z19*0.2,"ERROR"))) -> 9.11 | AW19: =SUM(AR19,AT19,AV19)/4 -> 6.8325 | AX19: =SUM(AI19,AP19,AW19) -> 27.33 | AY19: 18.22 | AZ19: -18.22 | BA19: Negativo BAJO | BB19: Plan de Gestión Integral de residuos sólidos, matriz de seguimiento a programas, certificados de disposición final, licencia ambiental | BC19: Prevención | BD19: Seguir los lineamientos, directrices y/o requerimientos legales asociados con documento(s) relacionado(s)
A20: Dirección_Territorial_Antioquia | B20: Proceso_DT | C20: Comunicación_Estratégica_ | D20: DURANTE | E20: Grabación de audios para noticiero de radio y tv | F20: Administrativa | G20: N/A | H20: Normal | I20: Propia | J20: Sociedad | K20: Educación ambiental | L20: Fomento de buenas prácticas ambientales (+) | M20: Positivo | N20: Ausencia de participación de funcionarios, contratistas y operadores en jornadas de fortalecimiento de cultura y/o conocimientos ambientales | O20: Inclusión de responsabilidad de participación en actividades convocadas desde el SGA en matriz de roles, responsabilidades, autoridades y competencias | P20: 10 | Q20: 5 | R20: 50 | S20: 10 | T20: 5 | U20: 10 | V20: =SUM(S20*3.5)+(T20*3.5)+(U20*3) -> 82.5 | W20: 1 | X20: 1 | Y20: 1 | Z20: =SUM(R20*0.45)+(V20*0.45)+(Y20*0.1) -> 59.725 | AA20: 59.725 | AB20: POSITIVO | AD20: ERROR | AF20: ERROR | AH20: ERROR | AI20: 0 | AK20: ERROR | AM20: ERROR | AO20: ERROR | AP20: 0 | AR20: ERROR | AT20: ERROR | AV20: ERROR | AW20: 0 | AX20: 0 | AY20: 59.725 | AZ20: 59.725 | BA20: =+IF(AND(1<=AZ20,AZ20<=100),"POSITIVO",IF(AND(AZ20<=-1,AZ20>=-30),"Negativo BAJO",IF(AND(AZ20<=-31,AZ20>=-60),"Negativo MODERADO",IF(AND(AZ20<=-61,AZ20>=-100),"Negativo ALTO",IF(AND(0=AZ20,AZ20=0),"SIN IMPACTO"))))) -> POSITIVO | BB20: Guía de buenas prácticas ambientales, calendario ambiental, SUMA, registros de capacitación | BC20: Fomento | BD20: Seguir los lineamientos, directrices y/o requerimientos legales asociados con documento(s) relacionado(s)
A21: Dirección_Territorial_Antioquia | B21: Proceso_DT | C21: Gestión_Administrativa_ | D21: DURANTE | E21: Apoyo a la implementación del Sistema de Gestión Ambiental | F21: Administrativa | G21: N/A | H21: Normal | I21: Propia | J21: Sociedad | K21: Educación ambiental | L21: Fomento de buenas prácticas ambientales (+) | M21: Positivo | N21: Ausencia de participación de funcionarios, contratistas y operadores en jornadas de fortalecimiento de cultura y/o conocimientos ambientales | O21: Inclusión de responsabilidad de participación en actividades convocadas desde el SGA en matriz de roles, responsabilidades, autoridades y competencias | P21: 10 | Q21: 5 | R21: 50 | S21: 10 | T21: 5 | U21: 10 | V21: 82.5 | W21: 1 | X21: 1 | Y21: 1 | Z21: =SUM(R21*0.45)+(V21*0.45)+(Y21*0.1) -> 59.725 | AA21: 59.725 | AB21: POSITIVO | AD21: ERROR | AF21: ERROR | AH21: ERROR | AI21: 0 | AK21: ERROR | AM21: ERROR | AO21: ERROR | AP21: 0 | AR21: ERROR | AT21: ERROR | AV21: ERROR | AW21: 0 | AX21: 0 | AY21: 59.725 | AZ21: 59.725 | BA21: =+IF(AND(1<=AZ21,AZ21<=100),"POSITIVO",IF(AND(AZ21<=-1,AZ21>=-30),"Negativo BAJO",IF(AND(AZ21<=-31,AZ21>=-60),"Negativo MODERADO",IF(AND(AZ21<=-61,AZ21>=-100),"Negativo ALTO",IF(AND(0=AZ21,AZ21=0),"SIN IMPACTO"))))) -> POSITIVO | BB21: Guía de buenas prácticas ambientales, calendario ambiental, SUMA, registros de capacitación | BC21: Fomento | BD21: Seguir los lineamientos, directrices y/o requerimientos legales asociados con documento(s) relacionado(s)
A22: Dirección_Territorial_Antioquia | B22: Proceso_DT | C22: Gestión_Administrativa_ | D22: DURANTE | E22: Apoyo a la implementación del Sistema de Gestión Ambiental | F22: Administrativa | G22: N/A | H22: Normal | I22: Propia | J22: Sociedad | K22: Educación ambiental | L22: Reducción de afectación al medio ambiente (+) | M22: Positivo | N22: Ausencia de participación de funcionarios, contratistas y operadores en jornadas de fortalecimiento de cultura y/o conocimientos ambientales | O22: Inclusión de responsabilidad de participación en actividades convocadas desde el SGA en matriz de roles, responsabilidades, autoridades y competencias | P22: 10 | Q22: 5 | R22: =P22*Q22 -> 50 | S22: 10 | T22: 5 | U22: 10 | V22: 82.5 | W22: 1 | X22: 1 | Y22: 1 | Z22: 59.725 | AA22: 59.725 | AB22: =+IF(AND(1<=AA22,AA22<=100),"POSITIVO",IF(AND(AA22<=-1,AA22>=-30),"Negativo BAJO",IF(AND(AA22<=-31,AA22>=-60),"Negativo MODERADO",IF(AND(AA22<=-61,AA22>=-100),"Negativo ALTO",IF(AND(0=AA22,AA22=0),"SIN IMPACTO"))))) -> POSITIVO | AD22: ERROR | AF22: =IF(AE22="No se aplica",$Z22*0.05,IF(AE22="Se aplica ocasionalmente",$Z22*0.1,IF(AE22="Se aplica rutinariamente",$Z22*0.25,"ERROR"))) -> ERROR | AH22: ERROR | AI22: 0 | AK22: ERROR | AM22: =IF(AL22="No se aplica",$Z22*0.02,IF(AL22="Se aplica ocasionalmente",$Z22*0.08,IF(AL22="Se aplica rutinariamente",$Z22*0.2,"ERROR"))) -> ERROR | AO22: ERROR | AP22: 0 | AR22: ERROR | AT22: ERROR | AV22: ERROR | AW22: 0 | AX22: 0 | AY22: 59.725 | AZ22: 59.725 | BA22: POSITIVO | BB22: Guía de buenas prácticas ambientales, calendario ambiental, SUMA, registros de capacitación | BC22: Fomento | BD22: Seguir los lineamientos, directrices y/o requerimientos legales asociados con documento(s) relacionado(s)
A23: Dirección_Territorial_Antioquia | B23: Proceso_DT | C23: Gestión_Administrativa_ | D23: DURANTE | E23: Apoyo a la implementación del Sistema de Gestión Ambiental | F23: Administrativa | G23: N/A | H23: Normal | I23: Propia | J23: Sociedad | K23: Educación ambiental | L23: Generación / Fomento de educación y conciencia ambiental (+) | M23: Positivo | N23: Ausencia de participación de funcionarios, contratistas y operadores en jornadas de fortalecimiento de cultura y/o conocimientos ambientales | O23: Inclusión de responsabilidad de participación en actividades convocadas desde el SGA en matriz de roles, responsabilidades, autoridades y competencias | P23: 10 | Q23: 5 | R23: =P23*Q23 -> 50 | S23: 10 | T23: 5 | U23: 10 | V23: =SUM(S23*3.5)+(T23*3.5)+(U23*3) -> 82.5 | W23: 1 | X23: 1 | Y23: 1 | Z23: 59.725 | AA23: 59.725 | AB23: =+IF(AND(1<=AA23,AA23<=100),"POSITIVO",IF(AND(AA23<=-1,AA23>=-30),"Negativo BAJO",IF(AND(AA23<=-31,AA23>=-60),"Negativo MODERADO",IF(AND(AA23<=-61,AA23>=-100),"Negativo ALTO",IF(AND(0=AA23,AA23=0),"SIN IMPACTO"))))) -> POSITIVO | AD23: ERROR | AF23: =IF(AE23="No se aplica",$Z23*0.05,IF(AE23="Se aplica ocasionalmente",$Z23*0.1,IF(AE23="Se aplica rutinariamente",$Z23*0.25,"ERROR"))) -> ERROR | AH23: ERROR | AI23: 0 | AK23: ERROR | AM23: =IF(AL23="No se aplica",$Z23*0.02,IF(AL23="Se aplica ocasionalmente",$Z23*0.08,IF(AL23="Se aplica rutinariamente",$Z23*0.2,"ERROR"))) -> ERROR | AO23: ERROR | AP23: 0 | AR23: ERROR | AT23: ERROR | AV23: ERROR | AW23: 0 | AX23: 0 | AY23: 59.725 | AZ23: 59.725 | BA23: POSITIVO | BB23: Guía de buenas prácticas ambientales, calendario ambiental, SUMA, registros de capacitación | BC23: Fomento | BD23: Seguir los lineamientos, directrices y/o requerimientos legales asociados con documento(s) relacionado(s)
A24: Dirección_Territorial_Antioquia | B24: Proceso_DT | C24: Gestión_Administrativa_ | D24: DURANTE | E24: Apoyo a la implementación del Sistema de Gestión Ambiental | F24: Administrativa | G24: N/A | H24: Normal | I24: Propia | J24: Sociedad | K24: Educación ambiental | L24: Disminución de consumo de papel (+) | M24: Positivo | N24: Ausencia de participación de funcionarios, contratistas y operadores en jornadas de fortalecimiento de cultura y/o conocimientos ambientales | O24: Inclusión de responsabilidad de participación en actividades convocadas desde el SGA en matriz de roles, responsabilidades, autoridades y competencias | P24: 10 | Q24: 5 | R24: 50 | S24: 10 | T24: 5 | U24: 10 | V24: =SUM(S24*3.5)+(T24*3.5)+(U24*3) -> 82.5 | W24: 1 | X24: 1 | Y24: 1 | Z24: 59.725 | AA24: 59.725 | AB24: =+IF(AND(1<=AA24,AA24<=100),"POSITIVO",IF(AND(AA24<=-1,AA24>=-30),"Negativo BAJO",IF(AND(AA24<=-31,AA24>=-60),"Negativo MODERADO",IF(AND(AA24<=-61,AA24>=-100),"Negativo ALTO",IF(AND(0=AA24,AA24=0),"SIN IMPACTO"))))) -> POSITIVO | AD24: =IF(AC24="No se aplica",$Z24*0.05,IF(AC24="Se aplica ocasionalmente",$Z24*0.1,IF(AC24="Se aplica rutinariamente",$Z24*0.25,"ERROR"))) -> ERROR | AF24: =IF(AE24="No se aplica",$Z24*0.05,IF(AE24="Se aplica ocasionalmente",$Z24*0.1,IF(AE24="Se aplica rutinariamente",$Z24*0.25,"ERROR"))) -> ERROR | AH24: =IF(AG24="No se aplica",$Z24*0.05,IF(AG24="Se aplica ocasionalmente",$Z24*0.1,IF(AG24="Se aplica rutinariamente",$Z24*0.25,"ERROR"))) -> ERROR | AI24: =SUM(AD24,AF24,AH24)/3 -> 0 | AK24: =IF(AJ24="No se aplica",$Z24*0.02,IF(AJ24="Se aplica ocasionalmente",$Z24*0.08,IF(AJ24="Se aplica rutinariamente",$Z24*0.2,"ERROR"))) -> ERROR | AM24: =IF(AL24="No se aplica",$Z24*0.02,IF(AL24="Se aplica ocasionalmente",$Z24*0.08,IF(AL24="Se aplica rutinariamente",$Z24*0.2,"ERROR"))) -> ERROR | AO24: =IF(AN24="No se aplica",$Z24*0.02,IF(AN24="Se aplica ocasionalmente",$Z24*0.08,IF(AN24="Se aplica rutinariamente",$Z24*0.2,"ERROR"))) -> ERROR | AP24: =SUM(AK24,AM24,AO24)/3 -> 0 | AR24: =IF(AQ24="No se aplica",$Z24*0.02,IF(AQ24="Se aplica ocasionalmente",$Z24*0.08,IF(AQ24="Se aplica rutinariamente",$Z24*0.2,"ERROR"))) -> ERROR | AT24: =IF(AS24="No se aplica",$Z24*0.02,IF(AS24="Se aplica ocasionalmente",$Z24*0.08,IF(AS24="Se aplica rutinariamente",$Z24*0.2,"ERROR"))) -> ERROR | AV24: =IF(AU24="No se aplica",$Z24*0.02,IF(AU24="Se aplica ocasionalmente",$Z24*0.08,IF(AU24="Se aplica rutinariamente",$Z24*0.2,"ERROR"))) -> ERROR | AW24: =SUM(AR24,AT24,AV24)/4 -> 0 | AX24: =SUM(AI24,AP24,AW24) -> 0 | AY24: 59.725 | AZ24: 59.725 | BA24: POSITIVO | BB24: Guía de buenas prácticas ambientales, calendario ambiental, SUMA, registros de capacitación | BC24: Fomento | BD24: Seguir los lineamientos, directrices y/o requerimientos legales asociados con documento(s) relacionado(s)
A25: Dirección_Territorial_Antioquia | B25: Proceso_DT | C25: Gestión_Administrativa_ | D25: DURANTE | E25: Apoyo a la implementación del Sistema de Gestión Ambiental | F25: Administrativa | G25: N/A | H25: Normal | I25: Propia | J25: Sociedad | K25: Educación ambiental | L25: Disminución de consumo de energía (+) | M25: Positivo | N25: Ausencia de participación de funcionarios, contratistas y operadores en jornadas de fortalecimiento de cultura y/o conocimientos ambientales | O25: Inclusión de responsabilidad de participación en actividades convocadas desde el SGA en matriz de roles, responsabilidades, autoridades y competencias | P25: 10 | Q25: 5 | R25: 50 | S25: 10 | T25: 5 | U25: 10 | V25: 82.5 | W25: 1 | X25: 1 | Y25: 1 | Z25: 59.725 | AA25: 59.725 | AB25: POSITIVO | AD25: =IF(AC25="No se aplica",$Z25*0.05,IF(AC25="Se aplica ocasionalmente",$Z25*0.1,IF(AC25="Se aplica rutinariamente",$Z25*0.25,"ERROR"))) -> ERROR | AF25: =IF(AE25="No se aplica",$Z25*0.05,IF(AE25="Se aplica ocasionalmente",$Z25*0.1,IF(AE25="Se aplica rutinariamente",$Z25*0.25,"ERROR"))) -> ERROR | AH25: =IF(AG25="No se aplica",$Z25*0.05,IF(AG25="Se aplica ocasionalmente",$Z25*0.1,IF(AG25="Se aplica rutinariamente",$Z25*0.25,"ERROR"))) -> ERROR | AI25: =SUM(AD25,AF25,AH25)/3 -> 0 | AK25: =IF(AJ25="No se aplica",$Z25*0.02,IF(AJ25="Se aplica ocasionalmente",$Z25*0.08,IF(AJ25="Se aplica rutinariamente",$Z25*0.2,"ERROR"))) -> ERROR | AM25: =IF(AL25="No se aplica",$Z25*0.02,IF(AL25="Se aplica ocasionalmente",$Z25*0.08,IF(AL25="Se aplica rutinariamente",$Z25*0.2,"ERROR"))) -> ERROR | AO25: =IF(AN25="No se aplica",$Z25*0.02,IF(AN25="Se aplica ocasionalmente",$Z25*0.08,IF(AN25="Se aplica rutinariamente",$Z25*0.2,"ERROR"))) -> ERROR | AP25: =SUM(AK25,AM25,AO25)/3 -> 0 | AR25: =IF(AQ25="No se aplica",$Z25*0.02,IF(AQ25="Se aplica ocasionalmente",$Z25*0.08,IF(AQ25="Se aplica rutinariamente",$Z25*0.2,"ERROR"))) -> ERROR | AT25: =IF(AS25="No se aplica",$Z25*0.02,IF(AS25="Se aplica ocasionalmente",$Z25*0.08,IF(AS25="Se aplica rutinariamente",$Z25*0.2,"ERROR"))) -> ERROR | AV25: =IF(AU25="No se aplica",$Z25*0.02,IF(AU25="Se aplica ocasionalmente",$Z25*0.08,IF(AU25="Se aplica rutinariamente",$Z25*0.2,"ERROR"))) -> ERROR | AW25: =SUM(AR25,AT25,AV25)/4 -> 0 | AX25: =SUM(AI25,AP25,AW25) -> 0 | AY25: 59.725 | AZ25: 59.725 | BA25: POSITIVO | BB25: Guía de buenas prácticas ambientales, calendario ambiental, SUMA, registros de capacitación | BC25: Fomento | BD25: Seguir los lineamientos, directrices y/o requerimientos legales asociados con documento(s) relacionado(s)
A26: Dirección_Territorial_Antioquia | B26: Proceso_DT | C26: Gestión_Administrativa_ | D26: DURANTE | E26: Apoyo a la implementación del Sistema de Gestión Ambiental | F26: Administrativa | G26: N/A | H26: Normal | I26: Propia | J26: Sociedad | K26: Educación ambiental | L26: Disminución de consumo de agua (+) | M26: Positivo | N26: Ausencia de participación de funcionarios, contratistas y operadores en jornadas de fortalecimiento de cultura y/o conocimientos ambientales | O26: Inclusión de responsabilidad de participación en actividades convocadas desde el SGA en matriz de roles, responsabilidades, autoridades y competencias | P26: 10 | Q26: 5 | R26: 50 | S26: 10 | T26: 5 | U26: 10 | V26: =SUM(S26*3.5)+(T26*3.5)+(U26*3) -> 82.5 | W26: 1 | X26: 1 | Y26: 1 | Z26: =SUM(R26*0.45)+(V26*0.45)+(Y26*0.1) -> 59.725 | AA26: 59.725 | AB26: POSITIVO | AD26: ERROR | AF26: ERROR | AH26: ERROR | AI26: 0 | AK26: ERROR | AM26: ERROR | AO26: ERROR | AP26: 0 | AR26: ERROR | AT26: ERROR | AV26: ERROR | AW26: 0 | AX26: 0 | AY26: 59.725 | AZ26: 59.725 | BA26: =+IF(AND(1<=AZ26,AZ26<=100),"POSITIVO",IF(AND(AZ26<=-1,AZ26>=-30),"Negativo BAJO",IF(AND(AZ26<=-31,AZ26>=-60),"Negativo MODERADO",IF(AND(AZ26<=-61,AZ26>=-100),"Negativo ALTO",IF(AND(0=AZ26,AZ26=0),"SIN IMPACTO"))))) -> POSITIVO | BB26: Guía de buenas prácticas ambientales, calendario ambiental, SUMA, registros de capacitación | BC26: Fomento | BD26: Seguir los lineamientos, directrices y/o requerimientos legales asociados con documento(s) relacionado(s)
A27: Dirección_Territorial_Antioquia | B27: Proceso_DT | C27: Gestión_Administrativa_ | D27: DURANTE | E27: Apoyo a la implementación del Sistema de Gestión Ambiental | F27: Administrativa | G27: N/A | H27: Normal | I27: Propia | J27: Sociedad | K27: Educación ambiental | L27: Manejo integral de residuos sólidos (+) | M27: Positivo | N27: Ausencia de participación de funcionarios, contratistas y operadores en jornadas de fortalecimiento de cultura y/o conocimientos ambientales | O27: Inclusión de responsabilidad de participación en actividades convocadas desde el SGA en matriz de roles, responsabilidades, autoridades y competencias | P27: 10 | Q27: 5 | R27: 50 | S27: 10 | T27: 5 | U27: 10 | V27: 82.5 | W27: 1 | X27: 1 | Y27: 1 | Z27: =SUM(R27*0.45)+(V27*0.45)+(Y27*0.1) -> 59.725 | AA27: 59.725 | AB27: POSITIVO | AD27: ERROR | AF27: ERROR | AH27: ERROR | AI27: 0 | AK27: ERROR | AM27: ERROR | AO27: ERROR | AP27: 0 | AR27: ERROR | AT27: ERROR | AV27: ERROR | AW27: 0 | AX27: 0 | AY27: 59.725 | AZ27: 59.725 | BA27: =+IF(AND(1<=AZ27,AZ27<=100),"POSITIVO",IF(AND(AZ27<=-1,AZ27>=-30),"Negativo BAJO",IF(AND(AZ27<=-31,AZ27>=-60),"Negativo MODERADO",IF(AND(AZ27<=-61,AZ27>=-100),"Negativo ALTO",IF(AND(0=AZ27,AZ27=0),"SIN IMPACTO"))))) -> POSITIVO | BB27: Guía de buenas prácticas ambientales, calendario ambiental, SUMA, registros de capacitación | BC27: Fomento | BD27: Seguir los lineamientos, directrices y/o requerimientos legales asociados con documento(s) relacionado(s)
A28: Dirección_Territorial_Antioquia | B28: Proceso_DT | C28: Gestión_Administrativa_ | D28: DURANTE | E28: Apoyo a la implementación del Sistema de Gestión Ambiental | F28: Administrativa | G28: N/A | H28: Normal | I28: Propia | J28: Sociedad | K28: Educación ambiental | L28: Conservación de fauna (+) | M28: Positivo | N28: Ausencia de participación de funcionarios, contratistas y operadores en jornadas de fortalecimiento de cultura y/o conocimientos ambientales | O28: Inclusión de responsabilidad de participación en actividades convocadas desde el SGA en matriz de roles, responsabilidades, autoridades y competencias | P28: 10 | Q28: 5 | R28: =P28*Q28 -> 50 | S28: 10 | T28: 5 | U28: 10 | V28: 82.5 | W28: 1 | X28: 1 | Y28: 1 | Z28: 59.725 | AA28: 59.725 | AB28: =+IF(AND(1<=AA28,AA28<=100),"POSITIVO",IF(AND(AA28<=-1,AA28>=-30),"Negativo BAJO",IF(AND(AA28<=-31,AA28>=-60),"Negativo MODERADO",IF(AND(AA28<=-61,AA28>=-100),"Negativo ALTO",IF(AND(0=AA28,AA28=0),"SIN IMPACTO"))))) -> POSITIVO | AD28: ERROR | AF28: =IF(AE28="No se aplica",$Z28*0.05,IF(AE28="Se aplica ocasionalmente",$Z28*0.1,IF(AE28="Se aplica rutinariamente",$Z28*0.25,"ERROR"))) -> ERROR | AH28: ERROR | AI28: 0 | AK28: ERROR | AM28: =IF(AL28="No se aplica",$Z28*0.02,IF(AL28="Se aplica ocasionalmente",$Z28*0.08,IF(AL28="Se aplica rutinariamente",$Z28*0.2,"ERROR"))) -> ERROR | AO28: ERROR | AP28: 0 | AR28: ERROR | AT28: ERROR | AV28: ERROR | AW28: 0 | AX28: 0 | AY28: 59.725 | AZ28: 59.725 | BA28: POSITIVO | BB28: Guía de buenas prácticas ambientales, calendario ambiental, SUMA, registros de capacitación | BC28: Fomento | BD28: Seguir los lineamientos, directrices y/o requerimientos legales asociados con documento(s) relacionado(s)
A29: Dirección_Territorial_Antioquia | B29: Proceso_DT | C29: Gestión_Administrativa_ | D29: DURANTE | E29: Apoyo a la implementación del Sistema de Gestión Ambiental | F29: Administrativa | G29: N/A | H29: Normal | I29: Propia | J29: N/A | K29: Educación ambiental | L29: Conservación de flora (+) | M29: Positivo | N29: Ausencia de participación de funcionarios, contratistas y operadores en jornadas de fortalecimiento de cultura y/o conocimientos ambientales | O29: Inclusión de responsabilidad de participación en actividades convocadas desde el SGA en matriz de roles, responsabilidades, autoridades y competencias | P29: 10 | Q29: 5 | R29: =P29*Q29 -> 50 | S29: 10 | T29: 5 | U29: 10 | V29: =SUM(S29*3.5)+(T29*3.5)+(U29*3) -> 82.5 | W29: 1 | X29: 1 | Y29: 1 | Z29: 59.725 | AA29: 59.725 | AB29: =+IF(AND(1<=AA29,AA29<=100),"POSITIVO",IF(AND(AA29<=-1,AA29>=-30),"Negativo BAJO",IF(AND(AA29<=-31,AA29>=-60),"Negativo MODERADO",IF(AND(AA29<=-61,AA29>=-100),"Negativo ALTO",IF(AND(0=AA29,AA29=0),"SIN IMPACTO"))))) -> POSITIVO | AD29: ERROR | AF29: =IF(AE29="No se aplica",$Z29*0.05,IF(AE29="Se aplica ocasionalmente",$Z29*0.1,IF(AE29="Se aplica rutinariamente",$Z29*0.25,"ERROR"))) -> ERROR | AH29: ERROR | AI29: 0 | AK29: ERROR | AM29: =IF(AL29="No se aplica",$Z29*0.02,IF(AL29="Se aplica ocasionalmente",$Z29*0.08,IF(AL29="Se aplica rutinariamente",$Z29*0.2,"ERROR"))) -> ERROR | AO29: ERROR | AP29: 0 | AR29: ERROR | AT29: ERROR | AV29: ERROR | AW29: 0 | AX29: 0 | AY29: 59.725 | AZ29: 59.725 | BA29: POSITIVO | BB29: Guía de buenas prácticas ambientales, calendario ambiental, SUMA, registros de capacitación | BC29: Fomento | BD29: Seguir los lineamientos, directrices y/o requerimientos legales asociados con documento(s) relacionado(s)
A30: Dirección_Territorial_Antioquia | B30: Proceso_DT | C30: Gestión_Administrativa_ | D30: DURANTE | E30: Apoyo a la implementación del Sistema de Gestión Ambiental | F30: Administrativa | G30: N/A | H30: Normal | I30: Propia | J30: Sociedad | K30: Conversión a medios tecnológicos | L30: Disminución de consumo de papel (+) | M30: Positivo | N30: Fallas y/o inadecuado funcionamiento del medio tecnológico | O30: Realizar mantenimientos y/o revisiones de funcionamiento periódicas del medio tecnológico empleado | P30: 10 | Q30: 5 | R30: 50 | S30: 10 | T30: 5 | U30: 10 | V30: =SUM(S30*3.5)+(T30*3.5)+(U30*3) -> 82.5 | W30: 1 | X30: 1 | Y30: 1 | Z30: 59.725 | AA30: 59.725 | AB30: =+IF(AND(1<=AA30,AA30<=100),"POSITIVO",IF(AND(AA30<=-1,AA30>=-30),"Negativo BAJO",IF(AND(AA30<=-31,AA30>=-60),"Negativo MODERADO",IF(AND(AA30<=-61,AA30>=-100),"Negativo ALTO",IF(AND(0=AA30,AA30=0),"SIN IMPACTO"))))) -> POSITIVO | AD30: =IF(AC30="No se aplica",$Z30*0.05,IF(AC30="Se aplica ocasionalmente",$Z30*0.1,IF(AC30="Se aplica rutinariamente",$Z30*0.25,"ERROR"))) -> ERROR | AF30: =IF(AE30="No se aplica",$Z30*0.05,IF(AE30="Se aplica ocasionalmente",$Z30*0.1,IF(AE30="Se aplica rutinariamente",$Z30*0.25,"ERROR"))) -> ERROR | AH30: =IF(AG30="No se aplica",$Z30*0.05,IF(AG30="Se aplica ocasionalmente",$Z30*0.1,IF(AG30="Se aplica rutinariamente",$Z30*0.25,"ERROR"))) -> ERROR | AI30: =SUM(AD30,AF30,AH30)/3 -> 0 | AK30: =IF(AJ30="No se aplica",$Z30*0.02,IF(AJ30="Se aplica ocasionalmente",$Z30*0.08,IF(AJ30="Se aplica rutinariamente",$Z30*0.2,"ERROR"))) -> ERROR | AM30: =IF(AL30="No se aplica",$Z30*0.02,IF(AL30="Se aplica ocasionalmente",$Z30*0.08,IF(AL30="Se aplica rutinariamente",$Z30*0.2,"ERROR"))) -> ERROR | AO30: =IF(AN30="No se aplica",$Z30*0.02,IF(AN30="Se aplica ocasionalmente",$Z30*0.08,IF(AN30="Se aplica rutinariamente",$Z30*0.2,"ERROR"))) -> ERROR | AP30: =SUM(AK30,AM30,AO30)/3 -> 0 | AR30: =IF(AQ30="No se aplica",$Z30*0.02,IF(AQ30="Se aplica ocasionalmente",$Z30*0.08,IF(AQ30="Se aplica rutinariamente",$Z30*0.2,"ERROR"))) -> ERROR | AT30: =IF(AS30="No se aplica",$Z30*0.02,IF(AS30="Se aplica ocasionalmente",$Z30*0.08,IF(AS30="Se aplica rutinariamente",$Z30*0.2,"ERROR"))) -> ERROR | AV30: =IF(AU30="No se aplica",$Z30*0.02,IF(AU30="Se aplica ocasionalmente",$Z30*0.08,IF(AU30="Se aplica rutinariamente",$Z30*0.2,"ERROR"))) -> ERROR | AW30: =SUM(AR30,AT30,AV30)/4 -> 0 | AX30: =SUM(AI30,AP30,AW30) -> 0 | AY30: 59.725 | AZ30: 59.725 | BA30: POSITIVO | BB30: Matriz de seguimiento a programas, guía de buenas prácticas ambientales, estudios previos | BC30: Fomento | BD30: Seguir los lineamientos, directrices y/o requerimientos legales asociados con documento(s) relacionado(s)
A31: Dirección_Territorial_Antioquia | B31: Proceso_DT | C31: Gestión_Administrativa_ | D31: DURANTE | E31: Apoyo a la implementación del Sistema de Gestión Ambiental | F31: Administrativa | G31: N/A | H31: Anormal | I31: Propia | J31: Sociedad | K31: Realización de actividades de compensación ambiental | L31: Reducción de afectación al medio ambiente (+) | M31: Positivo | N31: Ausencia de participación y/o correcto desarrollo de la actividad programada | O31: Solicitud de extensión de invitación de participación a enlaces SIG y adecuada planificación del desarrollo de actividades | P31: 10 | Q31: 5 | R31: 50 | S31: 1 | T31: 10 | U31: 10 | V31: 68.5 | W31: 1 | X31: 1 | Y31: 1 | Z31: 53.425 | AA31: 53.425 | AB31: POSITIVO | AD31: =IF(AC31="No se aplica",$Z31*0.05,IF(AC31="Se aplica ocasionalmente",$Z31*0.1,IF(AC31="Se aplica rutinariamente",$Z31*0.25,"ERROR"))) -> ERROR | AF31: =IF(AE31="No se aplica",$Z31*0.05,IF(AE31="Se aplica ocasionalmente",$Z31*0.1,IF(AE31="Se aplica rutinariamente",$Z31*0.25,"ERROR"))) -> ERROR | AH31: =IF(AG31="No se aplica",$Z31*0.05,IF(AG31="Se aplica ocasionalmente",$Z31*0.1,IF(AG31="Se aplica rutinariamente",$Z31*0.25,"ERROR"))) -> ERROR | AI31: =SUM(AD31,AF31,AH31)/3 -> 0 | AK31: =IF(AJ31="No se aplica",$Z31*0.02,IF(AJ31="Se aplica ocasionalmente",$Z31*0.08,IF(AJ31="Se aplica rutinariamente",$Z31*0.2,"ERROR"))) -> ERROR | AM31: =IF(AL31="No se aplica",$Z31*0.02,IF(AL31="Se aplica ocasionalmente",$Z31*0.08,IF(AL31="Se aplica rutinariamente",$Z31*0.2,"ERROR"))) -> ERROR | AO31: =IF(AN31="No se aplica",$Z31*0.02,IF(AN31="Se aplica ocasionalmente",$Z31*0.08,IF(AN31="Se aplica rutinariamente",$Z31*0.2,"ERROR"))) -> ERROR | AP31: =SUM(AK31,AM31,AO31)/3 -> 0 | AR31: =IF(AQ31="No se aplica",$Z31*0.02,IF(AQ31="Se aplica ocasionalmente",$Z31*0.08,IF(AQ31="Se aplica rutinariamente",$Z31*0.2,"ERROR"))) -> ERROR | AT31: =IF(AS31="No se aplica",$Z31*0.02,IF(AS31="Se aplica ocasionalmente",$Z31*0.08,IF(AS31="Se aplica rutinariamente",$Z31*0.2,"ERROR"))) -> ERROR | AV31: =IF(AU31="No se aplica",$Z31*0.02,IF(AU31="Se aplica ocasionalmente",$Z31*0.08,IF(AU31="Se aplica rutinariamente",$Z31*0.2,"ERROR"))) -> ERROR | AW31: =SUM(AR31,AT31,AV31)/4 -> 0 | AX31: =SUM(AI31,AP31,AW31) -> 0 | AY31: 53.425 | AZ31: 53.425 | BA31: POSITIVO | BB31: Plan Institucional de Gestión Ambiental | BC31: Fomento | BD31: Seguir los lineamientos, directrices y/o requerimientos legales asociados con documento(s) relacionado(s)
A32: Dirección_Territorial_Antioquia | B32: Proceso_DT | C32: Gestión_Administrativa_ | D32: DURANTE | E32: Apoyo a la implementación del Sistema de Gestión Ambiental | F32: Administrativa | G32: N/A | H32: Anormal | I32: Propia | J32: Sociedad | K32: Realización de actividades de compensación ambiental | L32: Generación / Fomento de educación y conciencia ambiental (+) | M32: Positivo | N32: Ausencia de participación y/o correcto desarrollo de la actividad programada | O32: Solicitud de extensión de invitación de participación a enlaces SIG y adecuada planificación del desarrollo de actividades | P32: 10 | Q32: 5 | R32: 50 | S32: 1 | T32: 10 | U32: 10 | V32: =SUM(S32*3.5)+(T32*3.5)+(U32*3) -> 68.5 | W32: 1 | X32: 1 | Y32: 1 | Z32: =SUM(R32*0.45)+(V32*0.45)+(Y32*0.1) -> 53.425 | AA32: 53.425 | AB32: POSITIVO | AD32: ERROR | AF32: ERROR | AH32: ERROR | AI32: 0 | AK32: ERROR | AM32: ERROR | AO32: ERROR | AP32: 0 | AR32: ERROR | AT32: ERROR | AV32: ERROR | AW32: 0 | AX32: 0 | AY32: 53.425 | AZ32: 53.425 | BA32: =+IF(AND(1<=AZ32,AZ32<=100),"POSITIVO",IF(AND(AZ32<=-1,AZ32>=-30),"Negativo BAJO",IF(AND(AZ32<=-31,AZ32>=-60),"Negativo MODERADO",IF(AND(AZ32<=-61,AZ32>=-100),"Negativo ALTO",IF(AND(0=AZ32,AZ32=0),"SIN IMPACTO"))))) -> POSITIVO | BB32: Plan Institucional de Gestión Ambiental | BC32: Fomento | BD32: Seguir los lineamientos, directrices y/o requerimientos legales asociados con documento(s) relacionado(s)
A33: Dirección_Territorial_Antioquia | B33: Proceso_DT | C33: Gestión_Administrativa_ | D33: DURANTE | E33: Apoyo a la supervisión de los mantenimientos correctivos y preventivos de aparatos eléctricos y electrónicos. | F33: Administrativa | G33: N/A | H33: Anormal | I33: Propia | J33: Suelo | K33: Consumo de energía eléctrica | L33: Agotamiento de los recursos naturales (-) | M33: Negativo | N33: Aumento del consumo del recurso por malas prácticas ambientales y/o daños en aparatos eléctricos y electrónicos | O33: Fortalecimiento de cultura ambiental de personas que hagan uso del recurso y/o revisiones periódicas de los equipos eléctricos y electrónicos | P33: 10 | Q33: 5 | R33: 50 | S33: 10 | T33: 1 | U33: 5 | V33: 53.5 | W33: 1 | X33: 1 | Y33: 1 | Z33: =SUM(R33*0.45)+(V33*0.45)+(Y33*0.1) -> 46.675 | AA33: -46.675 | AB33: Negativo MODERADO | AC33: Se aplica rutinariamente | AD33: 11.66875 | AE33: Se aplica rutinariamente | AF33: 11.66875 | AG33: Se aplica rutinariamente | AH33: 11.66875 | AI33: 11.66875 | AJ33: Se aplica rutinariamente | AK33: 9.335 | AL33: Se aplica rutinariamente | AM33: 9.335 | AN33: Se aplica rutinariamente | AO33: 9.335 | AP33: 9.335 | AQ33: Se aplica rutinariamente | AR33: 9.335 | AS33: Se aplica rutinariamente | AT33: 9.335 | AU33: Se aplica rutinariamente | AV33: 9.335 | AW33: 7.00125 | AX33: 28.005 | AY33: 18.67 | AZ33: -18.67 | BA33: =+IF(AND(1<=AZ33,AZ33<=100),"POSITIVO",IF(AND(AZ33<=-1,AZ33>=-30),"Negativo BAJO",IF(AND(AZ33<=-31,AZ33>=-60),"Negativo MODERADO",IF(AND(AZ33<=-61,AZ33>=-100),"Negativo ALTO",IF(AND(0=AZ33,AZ33=0),"SIN IMPACTO"))))) -> Negativo BAJO | BB33: Guía de buenas prácticas ambientales, matriz de seguimiento a programas, estudios previos, anexo guía para supervisión SGA, normograma, matriz de verificación al cumplimiento legal | BC33: Prevención | BD33: Seguir los lineamientos, directrices y/o requerimientos legales asociados con documento(s) relacionado(s)
A34: Dirección_Territorial_Antioquia | B34: Proceso_DT | C34: Gestión_Administrativa_ | D34: DURANTE | E34: Apoyo a la supervisión de los mantenimientos correctivos y preventivos de aparatos eléctricos y electrónicos. | F34: Administrativa | G34: N/A | H34: Anormal | I34: Propia | J34: Flora | K34: Consumo de papel | L34: Agotamiento de los recursos naturales (-) | M34: Negativo | N34: Aumento del consumo del recurso por malas prácticas ambientales y/o cambios en los procesos | O34: Fortalecimiento de cultura ambiental de personas que hagan uso del recurso y/o establecimiento de recomendaciones ambientales en cambios de procesos | P34: 10 | Q34: 5 | R34: =P34*Q34 -> 50 | S34: 10 | T34: 5 | U34: 5 | V34: 67.5 | W34: 1 | X34: 1 | Y34: 1 | Z34: 52.975 | AA34: -52.975 | AB34: =+IF(AND(1<=AA34,AA34<=100),"POSITIVO",IF(AND(AA34<=-1,AA34>=-30),"Negativo BAJO",IF(AND(AA34<=-31,AA34>=-60),"Negativo MODERADO",IF(AND(AA34<=-61,AA34>=-100),"Negativo ALTO",IF(AND(0=AA34,AA34=0),"SIN IMPACTO"))))) -> Negativo MODERADO | AC34: Se aplica rutinariamente | AD34: 13.24375 | AE34: Se aplica rutinariamente | AF34: =IF(AE34="No se aplica",$Z34*0.05,IF(AE34="Se aplica ocasionalmente",$Z34*0.1,IF(AE34="Se aplica rutinariamente",$Z34*0.25,"ERROR"))) -> 13.24375 | AG34: Se aplica rutinariamente | AH34: 13.24375 | AI34: 13.24375 | AJ34: Se aplica rutinariamente | AK34: 10.595 | AL34: Se aplica rutinariamente | AM34: =IF(AL34="No se aplica",$Z34*0.02,IF(AL34="Se aplica ocasionalmente",$Z34*0.08,IF(AL34="Se aplica rutinariamente",$Z34*0.2,"ERROR"))) -> 10.595 | AN34: Se aplica rutinariamente | AO34: 10.595 | AP34: 10.595 | AQ34: Se aplica rutinariamente | AR34: 10.595 | AS34: Se aplica rutinariamente | AT34: 10.595 | AU34: Se aplica rutinariamente | AV34: 10.595 | AW34: 7.94625 | AX34: 31.785 | AY34: 21.19 | AZ34: -21.19 | BA34: Negativo BAJO | BB34: Guía de buenas prácticas ambientales, matriz de seguimiento a programas, estudios previos, anexo guía para supervisión SGA, normograma, matriz de verificación al cumplimiento legal | BC34: Prevención | BD34: Seguir los lineamientos, directrices y/o requerimientos legales asociados con documento(s) relacionado(s)
A35: Dirección_Territorial_Antioquia | B35: Proceso_DT | C35: Gestión_Administrativa_ | D35: DURANTE | E35: Apoyo a la supervisión de los mantenimientos correctivos y preventivos de aparatos eléctricos y electrónicos. | F35: Administrativa | G35: N/A | H35: Anormal | I35: Propia | J35: Suelo | K35: Consumo de tóner | L35: Agotamiento de los recursos naturales (-) | M35: Negativo | N35: Aumento del consumo del recurso por malas prácticas ambientales y/o cambios en los procesos | O35: Fortalecimiento de cultura ambiental de personas que hagan uso del recurso y/o establecimiento de recomendaciones ambientales en cambios de procesos | P35: 1 | Q35: 1 | R35: =P35*Q35 -> 1 | S35: 10 | T35: 5 | U35: 1 | V35: =SUM(S35*3.5)+(T35*3.5)+(U35*3) -> 55.5 | W35: 1 | X35: 1 | Y35: 1 | Z35: 25.525 | AA35: -25.525 | AB35: =+IF(AND(1<=AA35,AA35<=100),"POSITIVO",IF(AND(AA35<=-1,AA35>=-30),"Negativo BAJO",IF(AND(AA35<=-31,AA35>=-60),"Negativo MODERADO",IF(AND(AA35<=-61,AA35>=-100),"Negativo ALTO",IF(AND(0=AA35,AA35=0),"SIN IMPACTO"))))) -> Negativo BAJO | AD35: ERROR | AF35: =IF(AE35="No se aplica",$Z35*0.05,IF(AE35="Se aplica ocasionalmente",$Z35*0.1,IF(AE35="Se aplica rutinariamente",$Z35*0.25,"ERROR"))) -> ERROR | AH35: ERROR | AI35: 0 | AK35: ERROR | AM35: =IF(AL35="No se aplica",$Z35*0.02,IF(AL35="Se aplica ocasionalmente",$Z35*0.08,IF(AL35="Se aplica rutinariamente",$Z35*0.2,"ERROR"))) -> ERROR | AO35: ERROR | AP35: 0 | AR35: ERROR | AT35: ERROR | AV35: ERROR | AW35: 0 | AX35: 0 | AY35: 25.525 | AZ35: -25.525 | BA35: Negativo BAJO | BB35: Estudios previos, anexo guía para supervisión SGA, normograma, matriz de verificación al cumplimiento legal, guía de buenas prácticas ambientales | BC35: Prevención | BD35: Seguir los lineamientos, directrices y/o requerimientos legales asociados con documento(s) relacionado(s)
A36: Dirección_Territorial_Antioquia | B36: Proceso_DT | C36: Gestión_Administrativa_ | D36: DURANTE | E36: Apoyo a la supervisión de los mantenimientos correctivos y preventivos de aparatos eléctricos y electrónicos. | F36: Administrativa | G36: N/A | H36: Anormal | I36: Propia | J36: Sociedad | K36: Conversión a medios tecnológicos | L36: Disminución de consumo de papel (+) | M36: Positivo | N36: Fallas y/o inadecuado funcionamiento del medio tecnológico | O36: Realizar mantenimientos y/o revisiones de funcionamiento periódicas del medio tecnológico empleado | P36: 10 | Q36: 5 | R36: 50 | S36: 10 | T36: 5 | U36: 5 | V36: =SUM(S36*3.5)+(T36*3.5)+(U36*3) -> 67.5 | W36: 1 | X36: 1 | Y36: 1 | Z36: 52.975 | AA36: 52.975 | AB36: =+IF(AND(1<=AA36,AA36<=100),"POSITIVO",IF(AND(AA36<=-1,AA36>=-30),"Negativo BAJO",IF(AND(AA36<=-31,AA36>=-60),"Negativo MODERADO",IF(AND(AA36<=-61,AA36>=-100),"Negativo ALTO",IF(AND(0=AA36,AA36=0),"SIN IMPACTO"))))) -> POSITIVO | AD36: =IF(AC36="No se aplica",$Z36*0.05,IF(AC36="Se aplica ocasionalmente",$Z36*0.1,IF(AC36="Se aplica rutinariamente",$Z36*0.25,"ERROR"))) -> ERROR | AF36: =IF(AE36="No se aplica",$Z36*0.05,IF(AE36="Se aplica ocasionalmente",$Z36*0.1,IF(AE36="Se aplica rutinariamente",$Z36*0.25,"ERROR"))) -> ERROR | AH36: =IF(AG36="No se aplica",$Z36*0.05,IF(AG36="Se aplica ocasionalmente",$Z36*0.1,IF(AG36="Se aplica rutinariamente",$Z36*0.25,"ERROR"))) -> ERROR | AI36: =SUM(AD36,AF36,AH36)/3 -> 0 | AK36: =IF(AJ36="No se aplica",$Z36*0.02,IF(AJ36="Se aplica ocasionalmente",$Z36*0.08,IF(AJ36="Se aplica rutinariamente",$Z36*0.2,"ERROR"))) -> ERROR | AM36: =IF(AL36="No se aplica",$Z36*0.02,IF(AL36="Se aplica ocasionalmente",$Z36*0.08,IF(AL36="Se aplica rutinariamente",$Z36*0.2,"ERROR"))) -> ERROR | AO36: =IF(AN36="No se aplica",$Z36*0.02,IF(AN36="Se aplica ocasionalmente",$Z36*0.08,IF(AN36="Se aplica rutinariamente",$Z36*0.2,"ERROR"))) -> ERROR | AP36: =SUM(AK36,AM36,AO36)/3 -> 0 | AR36: =IF(AQ36="No se aplica",$Z36*0.02,IF(AQ36="Se aplica ocasionalmente",$Z36*0.08,IF(AQ36="Se aplica rutinariamente",$Z36*0.2,"ERROR"))) -> ERROR | AT36: =IF(AS36="No se aplica",$Z36*0.02,IF(AS36="Se aplica ocasionalmente",$Z36*0.08,IF(AS36="Se aplica rutinariamente",$Z36*0.2,"ERROR"))) -> ERROR | AV36: =IF(AU36="No se aplica",$Z36*0.02,IF(AU36="Se aplica ocasionalmente",$Z36*0.08,IF(AU36="Se aplica rutinariamente",$Z36*0.2,"ERROR"))) -> ERROR | AW36: =SUM(AR36,AT36,AV36)/4 -> 0 | AX36: =SUM(AI36,AP36,AW36) -> 0 | AY36: 52.975 | AZ36: 52.975 | BA36: POSITIVO | BB36: Matriz de seguimiento a programas, guía de buenas prácticas ambientales, estudios previos | BC36: Fomento | BD36: Seguir los lineamientos, directrices y/o requerimientos legales asociados con documento(s) relacionado(s)
A37: Dirección_Territorial_Antioquia | B37: Proceso_DT | C37: Gestión_Administrativa_ | D37: DURANTE | E37: Apoyo a la supervisión de los mantenimientos correctivos y preventivos de aparatos eléctricos y electrónicos. | F37: Administrativa | G37: N/A | H37: Anormal | I37: Propia | J37: Suelo | K37: Generación de residuos aprovechables (PAPEL) | L37: Disminución de carga en los rellenos sanitarios (+) | M37: Positivo | N37: Inadecuada segregación del residuo sólido generado | O37: Fortalecimiento de conocimiento y cultura ambiental asociada con el manejo integral de residuos sólidos | P37: 10 | Q37: 5 | R37: 50 | S37: 10 | T37: 5 | U37: 10 | V37: 82.5 | W37: 1 | X37: 1 | Y37: 1 | Z37: 59.725 | AA37: 59.725 | AB37: POSITIVO | AD37: =IF(AC37="No se aplica",$Z37*0.05,IF(AC37="Se aplica ocasionalmente",$Z37*0.1,IF(AC37="Se aplica rutinariamente",$Z37*0.25,"ERROR"))) -> ERROR | AF37: =IF(AE37="No se aplica",$Z37*0.05,IF(AE37="Se aplica ocasionalmente",$Z37*0.1,IF(AE37="Se aplica rutinariamente",$Z37*0.25,"ERROR"))) -> ERROR | AH37: =IF(AG37="No se aplica",$Z37*0.05,IF(AG37="Se aplica ocasionalmente",$Z37*0.1,IF(AG37="Se aplica rutinariamente",$Z37*0.25,"ERROR"))) -> ERROR | AI37: =SUM(AD37,AF37,AH37)/3 -> 0 | AK37: =IF(AJ37="No se aplica",$Z37*0.02,IF(AJ37="Se aplica ocasionalmente",$Z37*0.08,IF(AJ37="Se aplica rutinariamente",$Z37*0.2,"ERROR"))) -> ERROR | AM37: =IF(AL37="No se aplica",$Z37*0.02,IF(AL37="Se aplica ocasionalmente",$Z37*0.08,IF(AL37="Se aplica rutinariamente",$Z37*0.2,"ERROR"))) -> ERROR | AO37: =IF(AN37="No se aplica",$Z37*0.02,IF(AN37="Se aplica ocasionalmente",$Z37*0.08,IF(AN37="Se aplica rutinariamente",$Z37*0.2,"ERROR"))) -> ERROR | AP37: =SUM(AK37,AM37,AO37)/3 -> 0 | AR37: =IF(AQ37="No se aplica",$Z37*0.02,IF(AQ37="Se aplica ocasionalmente",$Z37*0.08,IF(AQ37="Se aplica rutinariamente",$Z37*0.2,"ERROR"))) -> ERROR | AT37: =IF(AS37="No se aplica",$Z37*0.02,IF(AS37="Se aplica ocasionalmente",$Z37*0.08,IF(AS37="Se aplica rutinariamente",$Z37*0.2,"ERROR"))) -> ERROR | AV37: =IF(AU37="No se aplica",$Z37*0.02,IF(AU37="Se aplica ocasionalmente",$Z37*0.08,IF(AU37="Se aplica rutinariamente",$Z37*0.2,"ERROR"))) -> ERROR | AW37: =SUM(AR37,AT37,AV37)/4 -> 0 | AX37: =SUM(AI37,AP37,AW37) -> 0 | AY37: 59.725 | AZ37: 59.725 | BA37: POSITIVO | BB37: Plan de Gestión Integral de residuos sólidos, matriz de seguimiento a programas, certificados de aprovechamiento | BC37: Fomento | BD37: Seguir los lineamientos, directrices y/o requerimientos legales asociados con documento(s) relacionado(s)
A38: Dirección_Territorial_Antioquia | B38: Proceso_DT | C38: Gestión_Administrativa_ | D38: DURANTE | E38: Apoyo a la supervisión de los mantenimientos correctivos y preventivos de aparatos eléctricos y electrónicos. | F38: Administrativa | G38: N/A | H38: Anormal | I38: Propia | J38: Suelo | K38: Generación de residuos peligrosos (TÓNERES) | L38: Contaminación del suelo (-) | M38: Negativo | N38: Inadecuado manejo integral del residuo sólido generado | O38: Fortalecimiento de conocimiento y cultura ambiental asociada con el manejo integral de residuos sólidos | P38: 10 | Q38: 5 | R38: 50 | S38: 5 | T38: 5 | U38: 10 | V38: =SUM(S38*3.5)+(T38*3.5)+(U38*3) -> 65 | W38: 1 | X38: 1 | Y38: 1 | Z38: =SUM(R38*0.45)+(V38*0.45)+(Y38*0.1) -> 51.85 | AA38: -51.85 | AB38: Negativo MODERADO | AC38: Se aplica rutinariamente | AD38: 12.9625 | AE38: Se aplica rutinariamente | AF38: 12.9625 | AG38: Se aplica rutinariamente | AH38: 12.9625 | AI38: 12.9625 | AJ38: Se aplica rutinariamente | AK38: 10.37 | AL38: Se aplica rutinariamente | AM38: 10.37 | AN38: Se aplica rutinariamente | AO38: 10.37 | AP38: 10.37 | AQ38: Se aplica rutinariamente | AR38: 10.37 | AS38: Se aplica rutinariamente | AT38: 10.37 | AU38: Se aplica rutinariamente | AV38: 10.37 | AW38: 7.7775 | AX38: 31.11 | AY38: 20.74 | AZ38: -20.74 | BA38: =+IF(AND(1<=AZ38,AZ38<=100),"POSITIVO",IF(AND(AZ38<=-1,AZ38>=-30),"Negativo BAJO",IF(AND(AZ38<=-31,AZ38>=-60),"Negativo MODERADO",IF(AND(AZ38<=-61,AZ38>=-100),"Negativo ALTO",IF(AND(0=AZ38,AZ38=0),"SIN IMPACTO"))))) -> Negativo BAJO | BB38: Plan de Gestión Integral de residuos sólidos, matriz de seguimiento a programas, certificados de disposición final, licencia ambiental | BC38: Prevención | BD38: Seguir los lineamientos, directrices y/o requerimientos legales asociados con documento(s) relacionado(s)
A39: Dirección_Territorial_Antioquia | B39: Proceso_DT | C39: Gestión_Administrativa_ | D39: DURANTE | E39: Apoyo a la supervisión de los mantenimientos correctivos y preventivos de aparatos eléctricos y electrónicos. | F39: Administrativa | G39: N/A | H39: Anormal | I39: Externa | J39: Suelo | K39: Generación de residuos de manejo especial (RAEE´S) | L39: Contaminación del suelo (-) | M39: Negativo | N39: Inadecuado manejo integral del residuo sólido generado | O39: Fortalecimiento de conocimiento y cultura ambiental asociada con el manejo integral de residuos sólidos | P39: 10 | Q39: 5 | R39: 50 | S39: 1 | T39: 5 | U39: 10 | V39: 51 | W39: 1 | X39: 1 | Y39: 1 | Z39: =SUM(R39*0.45)+(V39*0.45)+(Y39*0.1) -> 45.55 | AA39: -45.55 | AB39: Negativo MODERADO | AC39: Se aplica rutinariamente | AD39: 11.3875 | AE39: Se aplica rutinariamente | AF39: 11.3875 | AG39: Se aplica rutinariamente | AH39: 11.3875 | AI39: 11.3875 | AJ39: Se aplica rutinariamente | AK39: 9.11 | AL39: Se aplica rutinariamente | AM39: 9.11 | AN39: Se aplica rutinariamente | AO39: 9.11 | AP39: 9.11 | AQ39: Se aplica rutinariamente | AR39: 9.11 | AS39: Se aplica rutinariamente | AT39: 9.11 | AU39: Se aplica rutinariamente | AV39: 9.11 | AW39: 6.8325 | AX39: 27.33 | AY39: 18.22 | AZ39: -18.22 | BA39: =+IF(AND(1<=AZ39,AZ39<=100),"POSITIVO",IF(AND(AZ39<=-1,AZ39>=-30),"Negativo BAJO",IF(AND(AZ39<=-31,AZ39>=-60),"Negativo MODERADO",IF(AND(AZ39<=-61,AZ39>=-100),"Negativo ALTO",IF(AND(0=AZ39,AZ39=0),"SIN IMPACTO"))))) -> Negativo BAJO | BB39: Plan de Gestión Integral de residuos sólidos, matriz de seguimiento a programas, certificados de disposición final, licencia ambiental | BC39: Prevención | BD39: Seguir los lineamientos, directrices y/o requerimientos legales asociados con documento(s) relacionado(s)
A40: Dirección_Territorial_Antioquia | B40: Proceso_DT | C40: Gestión_Administrativa_ | D40: DURANTE | E40: Apoyo a la supervisión de los mantenimientos correctivos y preventivos de aparatos eléctricos y electrónicos. | F40: Administrativa | G40: N/A | H40: Anormal | I40: Externa | J40: Suelo | K40: Generación de residuos de manejo especial (PILAS O BATERÍAS) | L40: Contaminación del suelo (-) | M40: Negativo | N40: Inadecuado manejo integral del residuo sólido generado | O40: Fortalecimiento de conocimiento y cultura ambiental asociada con el manejo integral de residuos sólidos | P40: 10 | Q40: 5 | R40: =P40*Q40 -> 50 | S40: 5 | T40: 5 | U40: 10 | V40: 65 | W40: 1 | X40: 1 | Y40: 1 | Z40: 51.85 | AA40: -51.85 | AB40: =+IF(AND(1<=AA40,AA40<=100),"POSITIVO",IF(AND(AA40<=-1,AA40>=-30),"Negativo BAJO",IF(AND(AA40<=-31,AA40>=-60),"Negativo MODERADO",IF(AND(AA40<=-61,AA40>=-100),"Negativo ALTO",IF(AND(0=AA40,AA40=0),"SIN IMPACTO"))))) -> Negativo MODERADO | AC40: Se aplica rutinariamente | AD40: 12.9625 | AE40: Se aplica rutinariamente | AF40: =IF(AE40="No se aplica",$Z40*0.05,IF(AE40="Se aplica ocasionalmente",$Z40*0.1,IF(AE40="Se aplica rutinariamente",$Z40*0.25,"ERROR"))) -> 12.9625 | AG40: Se aplica rutinariamente | AH40: 12.9625 | AI40: 12.9625 | AJ40: Se aplica rutinariamente | AK40: 10.37 | AL40: Se aplica rutinariamente | AM40: =IF(AL40="No se aplica",$Z40*0.02,IF(AL40="Se aplica ocasionalmente",$Z40*0.08,IF(AL40="Se aplica rutinariamente",$Z40*0.2,"ERROR"))) -> 10.37 | AN40: Se aplica rutinariamente | AO40: 10.37 | AP40: 10.37 | AQ40: Se aplica rutinariamente | AR40: 10.37 | AS40: Se aplica rutinariamente | AT40: 10.37 | AU40: Se aplica rutinariamente | AV40: 10.37 | AW40: 7.7775 | AX40: 31.11 | AY40: 20.74 | AZ40: -20.74 | BA40: Negativo BAJO | BB40: Plan de Gestión Integral de residuos sólidos, matriz de seguimiento a programas, certificados de disposición final, licencia ambiental | BC40: Prevención | BD40: Seguir los lineamientos, directrices y/o requerimientos legales asociados con documento(s) relacionado(s)
A41: Dirección_Territorial_Antioquia | B41: Proceso_DT | C41: Gestión_Administrativa_ | D41: DURANTE | E41: Apoyo a la supervisión de los mantenimientos correctivos y preventivos de aparatos eléctricos y electrónicos. | F41: Administrativa | G41: N/A | H41: Anormal | I41: Externa | J41: Suelo | K41: Generación de residuos peligrosos (TÓNERES) | L41: Contaminación del suelo (-) | M41: Negativo | N41: Inadecuado manejo integral del residuo sólido generado | O41: Fortalecimiento de conocimiento y cultura ambiental asociada con el manejo integral de residuos sólidos | P41: 10 | Q41: 5 | R41: =P41*Q41 -> 50 | S41: 5 | T41: 5 | U41: 10 | V41: =SUM(S41*3.5)+(T41*3.5)+(U41*3) -> 65 | W41: 1 | X41: 1 | Y41: 1 | Z41: 51.85 | AA41: -51.85 | AB41: =+IF(AND(1<=AA41,AA41<=100),"POSITIVO",IF(AND(AA41<=-1,AA41>=-30),"Negativo BAJO",IF(AND(AA41<=-31,AA41>=-60),"Negativo MODERADO",IF(AND(AA41<=-61,AA41>=-100),"Negativo ALTO",IF(AND(0=AA41,AA41=0),"SIN IMPACTO"))))) -> Negativo MODERADO | AC41: Se aplica rutinariamente | AD41: 12.9625 | AE41: Se aplica rutinariamente | AF41: =IF(AE41="No se aplica",$Z41*0.05,IF(AE41="Se aplica ocasionalmente",$Z41*0.1,IF(AE41="Se aplica rutinariamente",$Z41*0.25,"ERROR"))) -> 12.9625 | AG41: Se aplica rutinariamente | AH41: 12.9625 | AI41: 12.9625 | AJ41: Se aplica rutinariamente | AK41: 10.37 | AL41: Se aplica rutinariamente | AM41: =IF(AL41="No se aplica",$Z41*0.02,IF(AL41="Se aplica ocasionalmente",$Z41*0.08,IF(AL41="Se aplica rutinariamente",$Z41*0.2,"ERROR"))) -> 10.37 | AN41: Se aplica rutinariamente | AO41: 10.37 | AP41: 10.37 | AQ41: Se aplica rutinariamente | AR41: 10.37 | AS41: Se aplica rutinariamente | AT41: 10.37 | AU41: Se aplica rutinariamente | AV41: 10.37 | AW41: 7.7775 | AX41: 31.11 | AY41: 20.74 | AZ41: -20.74 | BA41: Negativo BAJO | BB41: Plan de Gestión Integral de residuos sólidos, matriz de seguimiento a programas, certificados de disposición final, licencia ambiental | BC41: Prevención | BD41: Seguir los lineamientos, directrices y/o requerimientos legales asociados con documento(s) relacionado(s)
A42: Dirección_Territorial_Antioquia | B42: Proceso_DT | C42: Gestión_Administrativa_ | D42: DURANTE | E42: Apoyo a la supervisión de los mantenimientos correctivos y preventivos de aparatos eléctricos y electrónicos. | F42: Administrativa | G42: N/A | H42: Anormal | I42: Externa | J42: Suelo | K42: Consumo de sustancias químicas | L42: Agotamiento de los recursos naturales (-) | M42: Negativo | N42: Aumento del consumo del recurso por cambios en necesidades del proceso | O42: Establecimiento de lineamientos en materia ambiental en procesos contractuales buscando adquirir insumos amigables con el medio ambiente | P42: 10 | Q42: 5 | R42: 50 | S42: 5 | T42: 5 | U42: 5 | V42: =SUM(S42*3.5)+(T42*3.5)+(U42*3) -> 50 | W42: 1 | X42: 1 | Y42: 1 | Z42: 45.1 | AA42: -45.1 | AB42: =+IF(AND(1<=AA42,AA42<=100),"POSITIVO",IF(AND(AA42<=-1,AA42>=-30),"Negativo BAJO",IF(AND(AA42<=-31,AA42>=-60),"Negativo MODERADO",IF(AND(AA42<=-61,AA42>=-100),"Negativo ALTO",IF(AND(0=AA42,AA42=0),"SIN IMPACTO"))))) -> Negativo MODERADO | AC42: Se aplica rutinariamente | AD42: =IF(AC42="No se aplica",$Z42*0.05,IF(AC42="Se aplica ocasionalmente",$Z42*0.1,IF(AC42="Se aplica rutinariamente",$Z42*0.25,"ERROR"))) -> 11.275 | AE42: No se aplica | AF42: =IF(AE42="No se aplica",$Z42*0.05,IF(AE42="Se aplica ocasionalmente",$Z42*0.1,IF(AE42="Se aplica rutinariamente",$Z42*0.25,"ERROR"))) -> 2.255 | AG42: Se aplica ocasionalmente | AH42: =IF(AG42="No se aplica",$Z42*0.05,IF(AG42="Se aplica ocasionalmente",$Z42*0.1,IF(AG42="Se aplica rutinariamente",$Z42*0.25,"ERROR"))) -> 4.51 | AI42: =SUM(AD42,AF42,AH42)/3 -> 6.013333333 | AJ42: No se aplica | AK42: =IF(AJ42="No se aplica",$Z42*0.02,IF(AJ42="Se aplica ocasionalmente",$Z42*0.08,IF(AJ42="Se aplica rutinariamente",$Z42*0.2,"ERROR"))) -> 0.902 | AL42: Se aplica rutinariamente | AM42: =IF(AL42="No se aplica",$Z42*0.02,IF(AL42="Se aplica ocasionalmente",$Z42*0.08,IF(AL42="Se aplica rutinariamente",$Z42*0.2,"ERROR"))) -> 9.02 | AN42: Se aplica ocasionalmente | AO42: =IF(AN42="No se aplica",$Z42*0.02,IF(AN42="Se aplica ocasionalmente",$Z42*0.08,IF(AN42="Se aplica rutinariamente",$Z42*0.2,"ERROR"))) -> 3.608 | AP42: =SUM(AK42,AM42,AO42)/3 -> 4.51 | AQ42: Se aplica rutinariamente | AR42: =IF(AQ42="No se aplica",$Z42*0.02,IF(AQ42="Se aplica ocasionalmente",$Z42*0.08,IF(AQ42="Se aplica rutinariamente",$Z42*0.2,"ERROR"))) -> 9.02 | AS42: Se aplica rutinariamente | AT42: =IF(AS42="No se aplica",$Z42*0.02,IF(AS42="Se aplica ocasionalmente",$Z42*0.08,IF(AS42="Se aplica rutinariamente",$Z42*0.2,"ERROR"))) -> 9.02 | AU42: Se aplica rutinariamente | AV42: =IF(AU42="No se aplica",$Z42*0.02,IF(AU42="Se aplica ocasionalmente",$Z42*0.08,IF(AU42="Se aplica rutinariamente",$Z42*0.2,"ERROR"))) -> 9.02 | AW42: =SUM(AR42,AT42,AV42)/4 -> 6.765 | AX42: =SUM(AI42,AP42,AW42) -> 17.28833333 | AY42: 27.81166667 | AZ42: -27.81166667 | BA42: Negativo BAJO | BB42: Estudios previos, anexo guía para supervisión SGA, normograma, matriz de verificación al cumplimiento legal | BC42: Prevención | BD42: Seguir los lineamientos, directrices y/o requerimientos legales asociados con documento(s) relacionado(s)
A43: Dirección_Territorial_Antioquia | B43: Proceso_DT | C43: Gestión_Administrativa_ | D43: DURANTE | E43: Apoyo a la supervisión de los mantenimientos correctivos y preventivos de aparatos eléctricos y electrónicos. | F43: Administrativa | G43: N/A | H43: Anormal | I43: Externa | J43: Suelo | K43: Mantenimiento de aparatos eléctricos y/o electrónicos | L43: Alteración al medio ambiente laboral (-) | M43: Negativo | N43: Generación de impactos ambientales adicionales por realización de malas prácticas ambientales | O43: Control operacional y/o supervisión durante ejecución de mantenimiento | P43: 10 | Q43: 5 | R43: 50 | S43: 5 | T43: 5 | U43: 10 | V43: 65 | W43: 1 | X43: 1 | Y43: 1 | Z43: 51.85 | AA43: -51.85 | AB43: Negativo MODERADO | AC43: Se aplica rutinariamente | AD43: =IF(AC43="No se aplica",$Z43*0.05,IF(AC43="Se aplica ocasionalmente",$Z43*0.1,IF(AC43="Se aplica rutinariamente",$Z43*0.25,"ERROR"))) -> 12.9625 | AE43: Se aplica rutinariamente | AF43: =IF(AE43="No se aplica",$Z43*0.05,IF(AE43="Se aplica ocasionalmente",$Z43*0.1,IF(AE43="Se aplica rutinariamente",$Z43*0.25,"ERROR"))) -> 12.9625 | AG43: Se aplica rutinariamente | AH43: =IF(AG43="No se aplica",$Z43*0.05,IF(AG43="Se aplica ocasionalmente",$Z43*0.1,IF(AG43="Se aplica rutinariamente",$Z43*0.25,"ERROR"))) -> 12.9625 | AI43: =SUM(AD43,AF43,AH43)/3 -> 12.9625 | AJ43: Se aplica rutinariamente | AK43: =IF(AJ43="No se aplica",$Z43*0.02,IF(AJ43="Se aplica ocasionalmente",$Z43*0.08,IF(AJ43="Se aplica rutinariamente",$Z43*0.2,"ERROR"))) -> 10.37 | AL43: Se aplica rutinariamente | AM43: =IF(AL43="No se aplica",$Z43*0.02,IF(AL43="Se aplica ocasionalmente",$Z43*0.08,IF(AL43="Se aplica rutinariamente",$Z43*0.2,"ERROR"))) -> 10.37 | AN43: Se aplica rutinariamente | AO43: =IF(AN43="No se aplica",$Z43*0.02,IF(AN43="Se aplica ocasionalmente",$Z43*0.08,IF(AN43="Se aplica rutinariamente",$Z43*0.2,"ERROR"))) -> 10.37 | AP43: =SUM(AK43,AM43,AO43)/3 -> 10.37 | AQ43: Se aplica rutinariamente | AR43: =IF(AQ43="No se aplica",$Z43*0.02,IF(AQ43="Se aplica ocasionalmente",$Z43*0.08,IF(AQ43="Se aplica rutinariamente",$Z43*0.2,"ERROR"))) -> 10.37 | AS43: Se aplica rutinariamente | AT43: =IF(AS43="No se aplica",$Z43*0.02,IF(AS43="Se aplica ocasionalmente",$Z43*0.08,IF(AS43="Se aplica rutinariamente",$Z43*0.2,"ERROR"))) -> 10.37 | AU43: Se aplica rutinariamente | AV43: =IF(AU43="No se aplica",$Z43*0.02,IF(AU43="Se aplica ocasionalmente",$Z43*0.08,IF(AU43="Se aplica rutinariamente",$Z43*0.2,"ERROR"))) -> 10.37 | AW43: =SUM(AR43,AT43,AV43)/4 -> 7.7775 | AX43: =SUM(AI43,AP43,AW43) -> 31.11 | AY43: 20.74 | AZ43: -20.74 | BA43: Negativo BAJO | BB43: Instructivo de mantenimiento, plan de mantenimiento, registros de mantenimiento | BC43: Prevención | BD43: Seguir los lineamientos, directrices y/o requerimientos legales asociados con documento(s) relacionado(s)
A44: Dirección_Territorial_Antioquia | B44: Proceso_DT | C44: Gestión_Administrativa_ | D44: DURANTE | E44: Apoyo a la supervisión de los mantenimientos correctivos y preventivos de aparatos eléctricos y electrónicos. | F44: Administrativa | G44: N/A | H44: Anormal | I44: Externa | J44: Suelo | K44: Consumo de energía eléctrica | L44: Agotamiento de los recursos naturales (-) | M44: Negativo | N44: Aumento del consumo del recurso por malas prácticas ambientales y/o daños en aparatos eléctricos y electrónicos | O44: Fortalecimiento de cultura ambiental de personas que hagan uso del recurso y/o revisiones periódicas de los equipos eléctricos y electrónicos | P44: 10 | Q44: 5 | R44: 50 | S44: 10 | T44: 5 | U44: 5 | V44: =SUM(S44*3.5)+(T44*3.5)+(U44*3) -> 67.5 | W44: 1 | X44: 1 | Y44: 1 | Z44: =SUM(R44*0.45)+(V44*0.45)+(Y44*0.1) -> 52.975 | AA44: -52.975 | AB44: Negativo MODERADO | AC44: Se aplica rutinariamente | AD44: 13.24375 | AE44: Se aplica rutinariamente | AF44: 13.24375 | AG44: Se aplica rutinariamente | AH44: 13.24375 | AI44: 13.24375 | AJ44: Se aplica rutinariamente | AK44: 10.595 | AL44: Se aplica rutinariamente | AM44: 10.595 | AN44: Se aplica rutinariamente | AO44: 10.595 | AP44: 10.595 | AQ44: Se aplica rutinariamente | AR44: 10.595 | AS44: Se aplica rutinariamente | AT44: 10.595 | AU44: Se aplica rutinariamente | AV44: 10.595 | AW44: 7.94625 | AX44: 31.785 | AY44: 21.19 | AZ44: -21.19 | BA44: =+IF(AND(1<=AZ44,AZ44<=100),"POSITIVO",IF(AND(AZ44<=-1,AZ44>=-30),"Negativo BAJO",IF(AND(AZ44<=-31,AZ44>=-60),"Negativo MODERADO",IF(AND(AZ44<=-61,AZ44>=-100),"Negativo ALTO",IF(AND(0=AZ44,AZ44=0),"SIN IMPACTO"))))) -> Negativo BAJO | BB44: Guía de buenas prácticas ambientales, matriz de seguimiento a programas, estudios previos, anexo guía para supervisión SGA, normograma, matriz de verificación al cumplimiento legal | BC44: Prevención | BD44: Seguir los lineamientos, directrices y/o requerimientos legales asociados con documento(s) relacionado(s)
A45: Dirección_Territorial_Antioquia | B45: Proceso_DT | C45: Gestión_Administrativa_ | D45: DURANTE | E45: Apoyo a la supervisión de los mantenimientos locativos preventivos, correctivos y adecuación de puestos de trabajo. | F45: Administrativa | G45: N/A | H45: Anormal | I45: Propia | J45: Suelo | K45: Consumo de energía eléctrica | L45: Agotamiento de los recursos naturales (-) | M45: Negativo | N45: Aumento del consumo del recurso por malas prácticas ambientales y/o daños en aparatos eléctricos y electrónicos | O45: Fortalecimiento de cultura ambiental de personas que hagan uso del recurso y/o revisiones periódicas de los equipos eléctricos y electrónicos | P45: 10 | Q45: 5 | R45: 50 | S45: 10 | T45: 1 | U45: 5 | V45: 53.5 | W45: 1 | X45: 1 | Y45: 1 | Z45: =SUM(R45*0.45)+(V45*0.45)+(Y45*0.1) -> 46.675 | AA45: -46.675 | AB45: Negativo MODERADO | AC45: Se aplica rutinariamente | AD45: 11.66875 | AE45: Se aplica rutinariamente | AF45: 11.66875 | AG45: Se aplica rutinariamente | AH45: 11.66875 | AI45: 11.66875 | AJ45: Se aplica rutinariamente | AK45: 9.335 | AL45: Se aplica rutinariamente | AM45: 9.335 | AN45: Se aplica rutinariamente | AO45: 9.335 | AP45: 9.335 | AQ45: Se aplica rutinariamente | AR45: 9.335 | AS45: Se aplica rutinariamente | AT45: 9.335 | AU45: Se aplica rutinariamente | AV45: 9.335 | AW45: 7.00125 | AX45: 28.005 | AY45: 18.67 | AZ45: -18.67 | BA45: =+IF(AND(1<=AZ45,AZ45<=100),"POSITIVO",IF(AND(AZ45<=-1,AZ45>=-30),"Negativo BAJO",IF(AND(AZ45<=-31,AZ45>=-60),"Negativo MODERADO",IF(AND(AZ45<=-61,AZ45>=-100),"Negativo ALTO",IF(AND(0=AZ45,AZ45=0),"SIN IMPACTO"))))) -> Negativo BAJO | BB45: Guía de buenas prácticas ambientales, matriz de seguimiento a programas, estudios previos, anexo guía para supervisión SGA, normograma, matriz de verificación al cumplimiento legal | BC45: Prevención | BD45: Seguir los lineamientos, directrices y/o requerimientos legales asociados con documento(s) relacionado(s)
A46: Dirección_Territorial_Antioquia | B46: Proceso_DT | C46: Gestión_Administrativa_ | D46: DURANTE | E46: Apoyo a la supervisión de los mantenimientos locativos preventivos, correctivos y adecuación de puestos de trabajo. | F46: Administrativa | G46: N/A | H46: Anormal | I46: Propia | J46: Flora | K46: Consumo de papel | L46: Agotamiento de los recursos naturales (-) | M46: Negativo | N46: Aumento del consumo del recurso por malas prácticas ambientales y/o cambios en los procesos | O46: Fortalecimiento de cultura ambiental de personas que hagan uso del recurso y/o establecimiento de recomendaciones ambientales en cambios de procesos | P46: 10 | Q46: 5 | R46: =P46*Q46 -> 50 | S46: 10 | T46: 5 | U46: 5 | V46: 67.5 | W46: 1 | X46: 1 | Y46: 1 | Z46: 52.975 | AA46: -52.975 | AB46: =+IF(AND(1<=AA46,AA46<=100),"POSITIVO",IF(AND(AA46<=-1,AA46>=-30),"Negativo BAJO",IF(AND(AA46<=-31,AA46>=-60),"Negativo MODERADO",IF(AND(AA46<=-61,AA46>=-100),"Negativo ALTO",IF(AND(0=AA46,AA46=0),"SIN IMPACTO"))))) -> Negativo MODERADO | AC46: Se aplica rutinariamente | AD46: 13.24375 | AE46: Se aplica rutinariamente | AF46: =IF(AE46="No se aplica",$Z46*0.05,IF(AE46="Se aplica ocasionalmente",$Z46*0.1,IF(AE46="Se aplica rutinariamente",$Z46*0.25,"ERROR"))) -> 13.24375 | AG46: Se aplica rutinariamente | AH46: 13.24375 | AI46: 13.24375 | AJ46: Se aplica rutinariamente | AK46: 10.595 | AL46: Se aplica rutinariamente | AM46: =IF(AL46="No se aplica",$Z46*0.02,IF(AL46="Se aplica ocasionalmente",$Z46*0.08,IF(AL46="Se aplica rutinariamente",$Z46*0.2,"ERROR"))) -> 10.595 | AN46: Se aplica rutinariamente | AO46: 10.595 | AP46: 10.595 | AQ46: Se aplica rutinariamente | AR46: 10.595 | AS46: Se aplica rutinariamente | AT46: 10.595 | AU46: Se aplica rutinariamente | AV46: 10.595 | AW46: 7.94625 | AX46: 31.785 | AY46: 21.19 | AZ46: -21.19 | BA46: Negativo BAJO | BB46: Guía de buenas prácticas ambientales, matriz de seguimiento a programas, estudios previos, anexo guía para supervisión SGA, normograma, matriz de verificación al cumplimiento legal | BC46: Prevención | BD46: Seguir los lineamientos, directrices y/o requerimientos legales asociados con documento(s) relacionado(s)
A47: Dirección_Territorial_Antioquia | B47: Proceso_DT | C47: Gestión_Administrativa_ | D47: DURANTE | E47: Apoyo a la supervisión de los mantenimientos locativos preventivos, correctivos y adecuación de puestos de trabajo. | F47: Administrativa | G47: N/A | H47: Anormal | I47: Propia | J47: Suelo | K47: Consumo de tóner | L47: Agotamiento de los recursos naturales (-) | M47: Negativo | N47: Aumento del consumo del recurso por malas prácticas ambientales y/o cambios en los procesos | O47: Fortalecimiento de cultura ambiental de personas que hagan uso del recurso y/o establecimiento de recomendaciones ambientales en cambios de procesos | P47: 1 | Q47: 1 | R47: =P47*Q47 -> 1 | S47: 10 | T47: 5 | U47: 1 | V47: =SUM(S47*3.5)+(T47*3.5)+(U47*3) -> 55.5 | W47: 1 | X47: 1 | Y47: 1 | Z47: 25.525 | AA47: -25.525 | AB47: =+IF(AND(1<=AA47,AA47<=100),"POSITIVO",IF(AND(AA47<=-1,AA47>=-30),"Negativo BAJO",IF(AND(AA47<=-31,AA47>=-60),"Negativo MODERADO",IF(AND(AA47<=-61,AA47>=-100),"Negativo ALTO",IF(AND(0=AA47,AA47=0),"SIN IMPACTO"))))) -> Negativo BAJO | AD47: ERROR | AF47: =IF(AE47="No se aplica",$Z47*0.05,IF(AE47="Se aplica ocasionalmente",$Z47*0.1,IF(AE47="Se aplica rutinariamente",$Z47*0.25,"ERROR"))) -> ERROR | AH47: ERROR | AI47: 0 | AK47: ERROR | AM47: =IF(AL47="No se aplica",$Z47*0.02,IF(AL47="Se aplica ocasionalmente",$Z47*0.08,IF(AL47="Se aplica rutinariamente",$Z47*0.2,"ERROR"))) -> ERROR | AO47: ERROR | AP47: 0 | AR47: ERROR | AT47: ERROR | AV47: ERROR | AW47: 0 | AX47: 0 | AY47: 25.525 | AZ47: -25.525 | BA47: Negativo BAJO | BB47: Estudios previos, anexo guía para supervisión SGA, normograma, matriz de verificación al cumplimiento legal, guía de buenas prácticas ambientales | BC47: Prevención | BD47: Seguir los lineamientos, directrices y/o requerimientos legales asociados con documento(s) relacionado(s)
A48: Dirección_Territorial_Antioquia | B48: Proceso_DT | C48: Gestión_Administrativa_ | D48: DURANTE | E48: Apoyo a la supervisión de los mantenimientos locativos preventivos, correctivos y adecuación de puestos de trabajo. | F48: Administrativa | G48: N/A | H48: Anormal | I48: Propia | J48: Sociedad | K48: Conversión a medios tecnológicos | L48: Disminución de consumo de papel (+) | M48: Positivo | N48: Fallas y/o inadecuado funcionamiento del medio tecnológico | O48: Realizar mantenimientos y/o revisiones de funcionamiento periódicas del medio tecnológico empleado | P48: 10 | Q48: 5 | R48: 50 | S48: 10 | T48: 5 | U48: 5 | V48: =SUM(S48*3.5)+(T48*3.5)+(U48*3) -> 67.5 | W48: 1 | X48: 1 | Y48: 1 | Z48: 52.975 | AA48: 52.975 | AB48: =+IF(AND(1<=AA48,AA48<=100),"POSITIVO",IF(AND(AA48<=-1,AA48>=-30),"Negativo BAJO",IF(AND(AA48<=-31,AA48>=-60),"Negativo MODERADO",IF(AND(AA48<=-61,AA48>=-100),"Negativo ALTO",IF(AND(0=AA48,AA48=0),"SIN IMPACTO"))))) -> POSITIVO | AD48: =IF(AC48="No se aplica",$Z48*0.05,IF(AC48="Se aplica ocasionalmente",$Z48*0.1,IF(AC48="Se aplica rutinariamente",$Z48*0.25,"ERROR"))) -> ERROR | AF48: =IF(AE48="No se aplica",$Z48*0.05,IF(AE48="Se aplica ocasionalmente",$Z48*0.1,IF(AE48="Se aplica rutinariamente",$Z48*0.25,"ERROR"))) -> ERROR | AH48: =IF(AG48="No se aplica",$Z48*0.05,IF(AG48="Se aplica ocasionalmente",$Z48*0.1,IF(AG48="Se aplica rutinariamente",$Z48*0.25,"ERROR"))) -> ERROR | AI48: =SUM(AD48,AF48,AH48)/3 -> 0 | AK48: =IF(AJ48="No se aplica",$Z48*0.02,IF(AJ48="Se aplica ocasionalmente",$Z48*0.08,IF(AJ48="Se aplica rutinariamente",$Z48*0.2,"ERROR"))) -> ERROR | AM48: =IF(AL48="No se aplica",$Z48*0.02,IF(AL48="Se aplica ocasionalmente",$Z48*0.08,IF(AL48="Se aplica rutinariamente",$Z48*0.2,"ERROR"))) -> ERROR | AO48: =IF(AN48="No se aplica",$Z48*0.02,IF(AN48="Se aplica ocasionalmente",$Z48*0.08,IF(AN48="Se aplica rutinariamente",$Z48*0.2,"ERROR"))) -> ERROR | AP48: =SUM(AK48,AM48,AO48)/3 -> 0 | AR48: =IF(AQ48="No se aplica",$Z48*0.02,IF(AQ48="Se aplica ocasionalmente",$Z48*0.08,IF(AQ48="Se aplica rutinariamente",$Z48*0.2,"ERROR"))) -> ERROR | AT48: =IF(AS48="No se aplica",$Z48*0.02,IF(AS48="Se aplica ocasionalmente",$Z48*0.08,IF(AS48="Se aplica rutinariamente",$Z48*0.2,"ERROR"))) -> ERROR | AV48: =IF(AU48="No se aplica",$Z48*0.02,IF(AU48="Se aplica ocasionalmente",$Z48*0.08,IF(AU48="Se aplica rutinariamente",$Z48*0.2,"ERROR"))) -> ERROR | AW48: =SUM(AR48,AT48,AV48)/4 -> 0 | AX48: =SUM(AI48,AP48,AW48) -> 0 | AY48: 52.975 | AZ48: 52.975 | BA48: POSITIVO | BB48: Matriz de seguimiento a programas, guía de buenas prácticas ambientales, estudios previos | BC48: Fomento | BD48: Seguir los lineamientos, directrices y/o requerimientos legales asociados con documento(s) relacionado(s)
A49: Dirección_Territorial_Antioquia | B49: Proceso_DT | C49: Gestión_Administrativa_ | D49: DURANTE | E49: Apoyo a la supervisión de los mantenimientos locativos preventivos, correctivos y adecuación de puestos de trabajo. | F49: Administrativa | G49: N/A | H49: Anormal | I49: Propia | J49: Suelo | K49: Generación de residuos aprovechables (PAPEL) | L49: Disminución de carga en los rellenos sanitarios (+) | M49: Positivo | N49: Inadecuada segregación del residuo sólido generado | O49: Fortalecimiento de conocimiento y cultura ambiental asociada con el manejo integral de residuos sólidos | P49: 10 | Q49: 5 | R49: 50 | S49: 10 | T49: 5 | U49: 10 | V49: 82.5 | W49: 1 | X49: 1 | Y49: 1 | Z49: 59.725 | AA49: 59.725 | AB49: POSITIVO | AD49: =IF(AC49="No se aplica",$Z49*0.05,IF(AC49="Se aplica ocasionalmente",$Z49*0.1,IF(AC49="Se aplica rutinariamente",$Z49*0.25,"ERROR"))) -> ERROR | AF49: =IF(AE49="No se aplica",$Z49*0.05,IF(AE49="Se aplica ocasionalmente",$Z49*0.1,IF(AE49="Se aplica rutinariamente",$Z49*0.25,"ERROR"))) -> ERROR | AH49: =IF(AG49="No se aplica",$Z49*0.05,IF(AG49="Se aplica ocasionalmente",$Z49*0.1,IF(AG49="Se aplica rutinariamente",$Z49*0.25,"ERROR"))) -> ERROR | AI49: =SUM(AD49,AF49,AH49)/3 -> 0 | AK49: =IF(AJ49="No se aplica",$Z49*0.02,IF(AJ49="Se aplica ocasionalmente",$Z49*0.08,IF(AJ49="Se aplica rutinariamente",$Z49*0.2,"ERROR"))) -> ERROR | AM49: =IF(AL49="No se aplica",$Z49*0.02,IF(AL49="Se aplica ocasionalmente",$Z49*0.08,IF(AL49="Se aplica rutinariamente",$Z49*0.2,"ERROR"))) -> ERROR | AO49: =IF(AN49="No se aplica",$Z49*0.02,IF(AN49="Se aplica ocasionalmente",$Z49*0.08,IF(AN49="Se aplica rutinariamente",$Z49*0.2,"ERROR"))) -> ERROR | AP49: =SUM(AK49,AM49,AO49)/3 -> 0 | AR49: =IF(AQ49="No se aplica",$Z49*0.02,IF(AQ49="Se aplica ocasionalmente",$Z49*0.08,IF(AQ49="Se aplica rutinariamente",$Z49*0.2,"ERROR"))) -> ERROR | AT49: =IF(AS49="No se aplica",$Z49*0.02,IF(AS49="Se aplica ocasionalmente",$Z49*0.08,IF(AS49="Se aplica rutinariamente",$Z49*0.2,"ERROR"))) -> ERROR | AV49: =IF(AU49="No se aplica",$Z49*0.02,IF(AU49="Se aplica ocasionalmente",$Z49*0.08,IF(AU49="Se aplica rutinariamente",$Z49*0.2,"ERROR"))) -> ERROR | AW49: =SUM(AR49,AT49,AV49)/4 -> 0 | AX49: =SUM(AI49,AP49,AW49) -> 0 | AY49: 59.725 | AZ49: 59.725 | BA49: POSITIVO | BB49: Plan de Gestión Integral de residuos sólidos, matriz de seguimiento a programas, certificados de aprovechamiento | BC49: Fomento | BD49: Seguir los lineamientos, directrices y/o requerimientos legales asociados con documento(s) relacionado(s)
A50: Dirección_Territorial_Antioquia | B50: Proceso_DT | C50: Gestión_Administrativa_ | D50: DURANTE | E50: Apoyo a la supervisión de los mantenimientos locativos preventivos, correctivos y adecuación de puestos de trabajo. | F50: Administrativa | G50: N/A | H50: Anormal | I50: Propia | J50: Suelo | K50: Generación de residuos peligrosos (TÓNERES) | L50: Contaminación del suelo (-) | M50: Negativo | N50: Inadecuado manejo integral del residuo sólido generado | O50: Fortalecimiento de conocimiento y cultura ambiental asociada con el manejo integral de residuos sólidos | P50: 10 | Q50: 5 | R50: 50 | S50: 5 | T50: 5 | U50: 10 | V50: =SUM(S50*3.5)+(T50*3.5)+(U50*3) -> 65 | W50: 1 | X50: 1 | Y50: 1 | Z50: =SUM(R50*0.45)+(V50*0.45)+(Y50*0.1) -> 51.85 | AA50: -51.85 | AB50: Negativo MODERADO | AC50: Se aplica rutinariamente | AD50: 12.9625 | AE50: Se aplica rutinariamente | AF50: 12.9625 | AG50: Se aplica rutinariamente | AH50: 12.9625 | AI50: 12.9625 | AJ50: Se aplica rutinariamente | AK50: 10.37 | AL50: Se aplica rutinariamente | AM50: 10.37 | AN50: Se aplica rutinariamente | AO50: 10.37 | AP50: 10.37 | AQ50: Se aplica rutinariamente | AR50: 10.37 | AS50: Se aplica rutinariamente | AT50: 10.37 | AU50: Se aplica rutinariamente | AV50: 10.37 | AW50: 7.7775 | AX50: 31.11 | AY50: 20.74 | AZ50: -20.74 | BA50: =+IF(AND(1<=AZ50,AZ50<=100),"POSITIVO",IF(AND(AZ50<=-1,AZ50>=-30),"Negativo BAJO",IF(AND(AZ50<=-31,AZ50>=-60),"Negativo MODERADO",IF(AND(AZ50<=-61,AZ50>=-100),"Negativo ALTO",IF(AND(0=AZ50,AZ50=0),"SIN IMPACTO"))))) -> Negativo BAJO | BB50: Plan de Gestión Integral de residuos sólidos, matriz de seguimiento a programas, certificados de disposición final, licencia ambiental | BC50: Prevención | BD50: Seguir los lineamientos, directrices y/o requerimientos legales asociados con documento(s) relacionado(s)
A51: Dirección_Territorial_Antioquia | B51: Proceso_DT | C51: Gestión_Administrativa_ | D51: DURANTE | E51: Apoyo a la supervisión de los mantenimientos locativos preventivos, correctivos y adecuación de puestos de trabajo. | F51: Administrativa | G51: N/A | H51: Anormal | I51: Externa | J51: Suelo | K51: Consumo de energía eléctrica | L51: Agotamiento de los recursos naturales (-) | M51: Negativo | N51: Aumento del consumo del recurso por malas prácticas ambientales y/o daños en aparatos eléctricos y electrónicos | O51: Fortalecimiento de cultura ambiental de personas que hagan uso del recurso y/o revisiones periódicas de los equipos eléctricos y electrónicos | P51: 10 | Q51: 5 | R51: 50 | S51: 10 | T51: 1 | U51: 5 | V51: 53.5 | W51: 1 | X51: 1 | Y51: 1 | Z51: =SUM(R51*0.45)+(V51*0.45)+(Y51*0.1) -> 46.675 | AA51: -46.675 | AB51: Negativo MODERADO | AC51: Se aplica rutinariamente | AD51: 11.66875 | AE51: Se aplica rutinariamente | AF51: 11.66875 | AG51: Se aplica rutinariamente | AH51: 11.66875 | AI51: 11.66875 | AJ51: Se aplica rutinariamente | AK51: 9.335 | AL51: Se aplica rutinariamente | AM51: 9.335 | AN51: Se aplica rutinariamente | AO51: 9.335 | AP51: 9.335 | AQ51: Se aplica rutinariamente | AR51: 9.335 | AS51: Se aplica rutinariamente | AT51: 9.335 | AU51: Se aplica rutinariamente | AV51: 9.335 | AW51: 7.00125 | AX51: 28.005 | AY51: 18.67 | AZ51: -18.67 | BA51: =+IF(AND(1<=AZ51,AZ51<=100),"POSITIVO",IF(AND(AZ51<=-1,AZ51>=-30),"Negativo BAJO",IF(AND(AZ51<=-31,AZ51>=-60),"Negativo MODERADO",IF(AND(AZ51<=-61,AZ51>=-100),"Negativo ALTO",IF(AND(0=AZ51,AZ51=0),"SIN IMPACTO"))))) -> Negativo BAJO | BB51: Guía de buenas prácticas ambientales, matriz de seguimiento a programas, estudios previos, anexo guía para supervisión SGA, normograma, matriz de verificación al cumplimiento legal | BC51: Prevención | BD51: Seguir los lineamientos, directrices y/o requerimientos legales asociados con documento(s) relacionado(s)
A52: Dirección_Territorial_Antioquia | B52: Proceso_DT | C52: Gestión_Administrativa_ | D52: DURANTE | E52: Apoyo a la supervisión de los mantenimientos locativos preventivos, correctivos y adecuación de puestos de trabajo. | F52: Administrativa | G52: N/A | H52: Anormal | I52: Externa | J52: Suelo | K52: Consumo de materiales de construcción | L52: Agotamiento de los recursos naturales (-) | M52: Negativo | N52: Aumento del consumo del recurso por cambios en necesidades del proceso | O52: Establecimiento de lineamientos en materia ambiental en procesos contractuales buscando adquirir insumos amigables con el medio ambiente | P52: 1 | Q52: 1 | R52: =P52*Q52 -> 1 | S52: 5 | T52: 5 | U52: 5 | V52: 50 | W52: 1 | X52: 1 | Y52: 1 | Z52: 23.05 | AA52: -23.05 | AB52: =+IF(AND(1<=AA52,AA52<=100),"POSITIVO",IF(AND(AA52<=-1,AA52>=-30),"Negativo BAJO",IF(AND(AA52<=-31,AA52>=-60),"Negativo MODERADO",IF(AND(AA52<=-61,AA52>=-100),"Negativo ALTO",IF(AND(0=AA52,AA52=0),"SIN IMPACTO"))))) -> Negativo BAJO | AD52: ERROR | AF52: =IF(AE52="No se aplica",$Z52*0.05,IF(AE52="Se aplica ocasionalmente",$Z52*0.1,IF(AE52="Se aplica rutinariamente",$Z52*0.25,"ERROR"))) -> ERROR | AH52: ERROR | AI52: 0 | AK52: ERROR | AM52: =IF(AL52="No se aplica",$Z52*0.02,IF(AL52="Se aplica ocasionalmente",$Z52*0.08,IF(AL52="Se aplica rutinariamente",$Z52*0.2,"ERROR"))) -> ERROR | AO52: ERROR | AP52: 0 | AR52: ERROR | AT52: ERROR | AV52: ERROR | AW52: 0 | AX52: 0 | AY52: 23.05 | AZ52: -23.05 | BA52: Negativo BAJO | BB52: Estudios previos, anexo guía para supervisión SGA, normograma, matriz de verificación al cumplimiento legal | BC52: Prevención | BD52: Seguir los lineamientos, directrices y/o requerimientos legales asociados con documento(s) relacionado(s)
A53: Dirección_Territorial_Antioquia | B53: Proceso_DT | C53: Gestión_Administrativa_ | D53: DURANTE | E53: Apoyo a la supervisión de los mantenimientos locativos preventivos, correctivos y adecuación de puestos de trabajo. | F53: Administrativa | G53: N/A | H53: Anormal | I53: Externa | J53: Suelo | K53: Generación de residuos aprovechables (METAL) | L53: Disminución de carga en los rellenos sanitarios (+) | M53: Positivo | N53: Inadecuada segregación del residuo sólido generado | O53: Fortalecimiento de conocimiento y cultura ambiental asociada con el manejo integral de residuos sólidos | P53: 10 | Q53: 5 | R53: =P53*Q53 -> 50 | S53: 5 | T53: 5 | U53: 10 | V53: =SUM(S53*3.5)+(T53*3.5)+(U53*3) -> 65 | W53: 1 | X53: 1 | Y53: 1 | Z53: =SUM(R53*0.45)+(V53*0.45)+(Y53*0.1) -> 51.85 | AA53: 51.85 | AB53: =+IF(AND(1<=AA53,AA53<=100),"POSITIVO",IF(AND(AA53<=-1,AA53>=-30),"Negativo BAJO",IF(AND(AA53<=-31,AA53>=-60),"Negativo MODERADO",IF(AND(AA53<=-61,AA53>=-100),"Negativo ALTO",IF(AND(0=AA53,AA53=0),"SIN IMPACTO"))))) -> POSITIVO | AD53: ERROR | AF53: =IF(AE53="No se aplica",$Z53*0.05,IF(AE53="Se aplica ocasionalmente",$Z53*0.1,IF(AE53="Se aplica rutinariamente",$Z53*0.25,"ERROR"))) -> ERROR | AH53: ERROR | AI53: 0 | AK53: ERROR | AM53: =IF(AL53="No se aplica",$Z53*0.02,IF(AL53="Se aplica ocasionalmente",$Z53*0.08,IF(AL53="Se aplica rutinariamente",$Z53*0.2,"ERROR"))) -> ERROR | AO53: ERROR | AP53: 0 | AR53: ERROR | AT53: ERROR | AV53: ERROR | AW53: 0 | AX53: 0 | AY53: 51.85 | AZ53: 51.85 | BA53: POSITIVO | BB53: Plan de Gestión Integral de residuos sólidos, matriz de seguimiento a programas, certificados de aprovechamiento | BC53: Fomento | BD53: Seguir los lineamientos, directrices y/o requerimientos legales asociados con documento(s) relacionado(s)
A54: Dirección_Territorial_Antioquia | B54: Proceso_DT | C54: Gestión_Administrativa_ | D54: DURANTE | E54: Apoyo a la supervisión de los mantenimientos locativos preventivos, correctivos y adecuación de puestos de trabajo. | F54: Administrativa | G54: N/A | H54: Anormal | I54: Externa | J54: Suelo | K54: Generación de residuos aprovechables (PAPEL) | L54: Disminución de carga en los rellenos sanitarios (+) | M54: Positivo | N54: Inadecuada segregación del residuo sólido generado | O54: Fortalecimiento de conocimiento y cultura ambiental asociada con el manejo integral de residuos sólidos | P54: 10 | Q54: 5 | R54: 50 | S54: 5 | T54: 5 | U54: 10 | V54: =SUM(S54*3.5)+(T54*3.5)+(U54*3) -> 65 | W54: 1 | X54: 1 | Y54: 1 | Z54: 51.85 | AA54: 51.85 | AB54: =+IF(AND(1<=AA54,AA54<=100),"POSITIVO",IF(AND(AA54<=-1,AA54>=-30),"Negativo BAJO",IF(AND(AA54<=-31,AA54>=-60),"Negativo MODERADO",IF(AND(AA54<=-61,AA54>=-100),"Negativo ALTO",IF(AND(0=AA54,AA54=0),"SIN IMPACTO"))))) -> POSITIVO | AD54: =IF(AC54="No se aplica",$Z54*0.05,IF(AC54="Se aplica ocasionalmente",$Z54*0.1,IF(AC54="Se aplica rutinariamente",$Z54*0.25,"ERROR"))) -> ERROR | AF54: =IF(AE54="No se aplica",$Z54*0.05,IF(AE54="Se aplica ocasionalmente",$Z54*0.1,IF(AE54="Se aplica rutinariamente",$Z54*0.25,"ERROR"))) -> ERROR | AH54: =IF(AG54="No se aplica",$Z54*0.05,IF(AG54="Se aplica ocasionalmente",$Z54*0.1,IF(AG54="Se aplica rutinariamente",$Z54*0.25,"ERROR"))) -> ERROR | AI54: =SUM(AD54,AF54,AH54)/3 -> 0 | AK54: =IF(AJ54="No se aplica",$Z54*0.02,IF(AJ54="Se aplica ocasionalmente",$Z54*0.08,IF(AJ54="Se aplica rutinariamente",$Z54*0.2,"ERROR"))) -> ERROR | AM54: =IF(AL54="No se aplica",$Z54*0.02,IF(AL54="Se aplica ocasionalmente",$Z54*0.08,IF(AL54="Se aplica rutinariamente",$Z54*0.2,"ERROR"))) -> ERROR | AO54: =IF(AN54="No se aplica",$Z54*0.02,IF(AN54="Se aplica ocasionalmente",$Z54*0.08,IF(AN54="Se aplica rutinariamente",$Z54*0.2,"ERROR"))) -> ERROR | AP54: =SUM(AK54,AM54,AO54)/3 -> 0 | AR54: =IF(AQ54="No se aplica",$Z54*0.02,IF(AQ54="Se aplica ocasionalmente",$Z54*0.08,IF(AQ54="Se aplica rutinariamente",$Z54*0.2,"ERROR"))) -> ERROR | AT54: =IF(AS54="No se aplica",$Z54*0.02,IF(AS54="Se aplica ocasionalmente",$Z54*0.08,IF(AS54="Se aplica rutinariamente",$Z54*0.2,"ERROR"))) -> ERROR | AV54: =IF(AU54="No se aplica",$Z54*0.02,IF(AU54="Se aplica ocasionalmente",$Z54*0.08,IF(AU54="Se aplica rutinariamente",$Z54*0.2,"ERROR"))) -> ERROR | AW54: =SUM(AR54,AT54,AV54)/4 -> 0 | AX54: =SUM(AI54,AP54,AW54) -> 0 | AY54: 51.85 | AZ54: 51.85 | BA54: POSITIVO | BB54: Plan de Gestión Integral de residuos sólidos, matriz de seguimiento a programas, certificados de aprovechamiento | BC54: Fomento | BD54: Seguir los lineamientos, directrices y/o requerimientos legales asociados con documento(s) relacionado(s)
A55: Dirección_Territorial_Antioquia | B55: Proceso_DT | C55: Gestión_Administrativa_ | D55: DURANTE | E55: Apoyo a la supervisión de los mantenimientos locativos preventivos, correctivos y adecuación de puestos de trabajo. | F55: Administrativa | G55: N/A | H55: Anormal | I55: Externa | J55: Suelo | K55: Generación de residuos aprovechables (PLÁSTICO) | L55: Disminución de carga en los rellenos sanitarios (+) | M55: Positivo | N55: Inadecuada segregación del residuo sólido generado | O55: Fortalecimiento de conocimiento y cultura ambiental asociada con el manejo integral de residuos sólidos | P55: 10 | Q55: 5 | R55: 50 | S55: 5 | T55: 5 | U55: 10 | V55: 65 | W55: 1 | X55: 1 | Y55: 1 | Z55: 51.85 | AA55: 51.85 | AB55: POSITIVO | AD55: =IF(AC55="No se aplica",$Z55*0.05,IF(AC55="Se aplica ocasionalmente",$Z55*0.1,IF(AC55="Se aplica rutinariamente",$Z55*0.25,"ERROR"))) -> ERROR | AF55: =IF(AE55="No se aplica",$Z55*0.05,IF(AE55="Se aplica ocasionalmente",$Z55*0.1,IF(AE55="Se aplica rutinariamente",$Z55*0.25,"ERROR"))) -> ERROR | AH55: =IF(AG55="No se aplica",$Z55*0.05,IF(AG55="Se aplica ocasionalmente",$Z55*0.1,IF(AG55="Se aplica rutinariamente",$Z55*0.25,"ERROR"))) -> ERROR | AI55: =SUM(AD55,AF55,AH55)/3 -> 0 | AK55: =IF(AJ55="No se aplica",$Z55*0.02,IF(AJ55="Se aplica ocasionalmente",$Z55*0.08,IF(AJ55="Se aplica rutinariamente",$Z55*0.2,"ERROR"))) -> ERROR | AM55: =IF(AL55="No se aplica",$Z55*0.02,IF(AL55="Se aplica ocasionalmente",$Z55*0.08,IF(AL55="Se aplica rutinariamente",$Z55*0.2,"ERROR"))) -> ERROR | AO55: =IF(AN55="No se aplica",$Z55*0.02,IF(AN55="Se aplica ocasionalmente",$Z55*0.08,IF(AN55="Se aplica rutinariamente",$Z55*0.2,"ERROR"))) -> ERROR | AP55: =SUM(AK55,AM55,AO55)/3 -> 0 | AR55: =IF(AQ55="No se aplica",$Z55*0.02,IF(AQ55="Se aplica ocasionalmente",$Z55*0.08,IF(AQ55="Se aplica rutinariamente",$Z55*0.2,"ERROR"))) -> ERROR | AT55: =IF(AS55="No se aplica",$Z55*0.02,IF(AS55="Se aplica ocasionalmente",$Z55*0.08,IF(AS55="Se aplica rutinariamente",$Z55*0.2,"ERROR"))) -> ERROR | AV55: =IF(AU55="No se aplica",$Z55*0.02,IF(AU55="Se aplica ocasionalmente",$Z55*0.08,IF(AU55="Se aplica rutinariamente",$Z55*0.2,"ERROR"))) -> ERROR | AW55: =SUM(AR55,AT55,AV55)/4 -> 0 | AX55: =SUM(AI55,AP55,AW55) -> 0 | AY55: 51.85 | AZ55: 51.85 | BA55: POSITIVO | BB55: Plan de Gestión Integral de residuos sólidos, matriz de seguimiento a programas, certificados de aprovechamiento | BC55: Fomento | BD55: Seguir los lineamientos, directrices y/o requerimientos legales asociados con documento(s) relacionado(s)
A56: Dirección_Territorial_Antioquia | B56: Proceso_DT | C56: Gestión_Administrativa_ | D56: DURANTE | E56: Apoyo a la supervisión de los mantenimientos locativos preventivos, correctivos y adecuación de puestos de trabajo. | F56: Administrativa | G56: N/A | H56: Anormal | I56: Externa | J56: Suelo | K56: Generación de residuos de manejo especial (RCD´S) | L56: Contaminación del suelo (-) | M56: Negativo | N56: Inadecuado manejo integral del residuo sólido generado | O56: Fortalecimiento de conocimiento y cultura ambiental asociada con el manejo integral de residuos sólidos | P56: 10 | Q56: 5 | R56: 50 | S56: 5 | T56: 5 | U56: 10 | V56: =SUM(S56*3.5)+(T56*3.5)+(U56*3) -> 65 | W56: 1 | X56: 1 | Y56: 1 | Z56: =SUM(R56*0.45)+(V56*0.45)+(Y56*0.1) -> 51.85 | AA56: -51.85 | AB56: Negativo MODERADO | AC56: Se aplica rutinariamente | AD56: 12.9625 | AE56: Se aplica rutinariamente | AF56: 12.9625 | AG56: Se aplica rutinariamente | AH56: 12.9625 | AI56: 12.9625 | AJ56: Se aplica rutinariamente | AK56: 10.37 | AL56: Se aplica rutinariamente | AM56: 10.37 | AN56: Se aplica rutinariamente | AO56: 10.37 | AP56: 10.37 | AQ56: Se aplica rutinariamente | AR56: 10.37 | AS56: Se aplica rutinariamente | AT56: 10.37 | AU56: Se aplica rutinariamente | AV56: 10.37 | AW56: 7.7775 | AX56: 31.11 | AY56: 20.74 | AZ56: -20.74 | BA56: =+IF(AND(1<=AZ56,AZ56<=100),"POSITIVO",IF(AND(AZ56<=-1,AZ56>=-30),"Negativo BAJO",IF(AND(AZ56<=-31,AZ56>=-60),"Negativo MODERADO",IF(AND(AZ56<=-61,AZ56>=-100),"Negativo ALTO",IF(AND(0=AZ56,AZ56=0),"SIN IMPACTO"))))) -> Negativo BAJO | BB56: Plan de Gestión Integral de residuos sólidos, matriz de seguimiento a programas, certificados de disposición final, licencia ambiental | BC56: Prevención | BD56: Seguir los lineamientos, directrices y/o requerimientos legales asociados con documento(s) relacionado(s)
A57: Dirección_Territorial_Antioquia | B57: Proceso_DT | C57: Gestión_Administrativa_ | D57: DURANTE | E57: Apoyo a la supervisión de los mantenimientos locativos preventivos, correctivos y adecuación de puestos de trabajo. | F57: Administrativa | G57: N/A | H57: Anormal | I57: Externa | J57: Suelo | K57: Generación de residuos de manejo especial (LUMINARIAS) | L57: Contaminación del suelo (-) | M57: Negativo | N57: Inadecuado manejo integral del residuo sólido generado | O57: Fortalecimiento de conocimiento y cultura ambiental asociada con el manejo integral de residuos sólidos | P57: 10 | Q57: 5 | R57: 50 | S57: 5 | T57: 5 | U57: 10 | V57: 65 | W57: 1 | X57: 1 | Y57: 1 | Z57: =SUM(R57*0.45)+(V57*0.45)+(Y57*0.1) -> 51.85 | AA57: -51.85 | AB57: Negativo MODERADO | AC57: Se aplica rutinariamente | AD57: 12.9625 | AE57: Se aplica rutinariamente | AF57: 12.9625 | AG57: Se aplica rutinariamente | AH57: 12.9625 | AI57: 12.9625 | AJ57: Se aplica rutinariamente | AK57: 10.37 | AL57: Se aplica rutinariamente | AM57: 10.37 | AN57: Se aplica rutinariamente | AO57: 10.37 | AP57: 10.37 | AQ57: Se aplica rutinariamente | AR57: 10.37 | AS57: Se aplica rutinariamente | AT57: 10.37 | AU57: Se aplica rutinariamente | AV57: 10.37 | AW57: 7.7775 | AX57: 31.11 | AY57: 20.74 | AZ57: -20.74 | BA57: =+IF(AND(1<=AZ57,AZ57<=100),"POSITIVO",IF(AND(AZ57<=-1,AZ57>=-30),"Negativo BAJO",IF(AND(AZ57<=-31,AZ57>=-60),"Negativo MODERADO",IF(AND(AZ57<=-61,AZ57>=-100),"Negativo ALTO",IF(AND(0=AZ57,AZ57=0),"SIN IMPACTO"))))) -> Negativo BAJO | BB57: Plan de Gestión Integral de residuos sólidos, matriz de seguimiento a programas, certificados de disposición final, licencia ambiental | BC57: Prevención | BD57: Seguir los lineamientos, directrices y/o requerimientos legales asociados con documento(s) relacionado(s)
A58: Dirección_Territorial_Antioquia | B58: Proceso_DT | C58: Gestión_Administrativa_ | D58: DURANTE | E58: Aseo, limpieza y desinfección de tanques de almacenamiento de agua. | F58: Administrativa | G58: N/A | H58: Normal | I58: Externa | J58: Suelo | K58: Consumo de sustancias químicas | L58: Agotamiento de los recursos naturales (-) | M58: Negativo | N58: Aumento del consumo del recurso por cambios en necesidades del proceso | O58: Establecimiento de lineamientos en materia ambiental en procesos contractuales buscando adquirir insumos amigables con el medio ambiente | P58: 10 | Q58: 5 | R58: =P58*Q58 -> 50 | S58: 1 | T58: 1 | U58: 5 | V58: 22 | W58: 1 | X58: 1 | Y58: 1 | Z58: 32.5 | AA58: -32.5 | AB58: =+IF(AND(1<=AA58,AA58<=100),"POSITIVO",IF(AND(AA58<=-1,AA58>=-30),"Negativo BAJO",IF(AND(AA58<=-31,AA58>=-60),"Negativo MODERADO",IF(AND(AA58<=-61,AA58>=-100),"Negativo ALTO",IF(AND(0=AA58,AA58=0),"SIN IMPACTO"))))) -> Negativo MODERADO | AC58: Se aplica rutinariamente | AD58: 8.125 | AE58: No se aplica | AF58: =IF(AE58="No se aplica",$Z58*0.05,IF(AE58="Se aplica ocasionalmente",$Z58*0.1,IF(AE58="Se aplica rutinariamente",$Z58*0.25,"ERROR"))) -> 1.625 | AG58: Se aplica ocasionalmente | AH58: 3.25 | AI58: 4.333333333 | AJ58: No se aplica | AK58: 0.65 | AL58: Se aplica rutinariamente | AM58: =IF(AL58="No se aplica",$Z58*0.02,IF(AL58="Se aplica ocasionalmente",$Z58*0.08,IF(AL58="Se aplica rutinariamente",$Z58*0.2,"ERROR"))) -> 6.5 | AN58: Se aplica ocasionalmente | AO58: 2.6 | AP58: 3.25 | AQ58: Se aplica rutinariamente | AR58: 6.5 | AS58: Se aplica rutinariamente | AT58: 6.5 | AU58: Se aplica rutinariamente | AV58: 6.5 | AW58: 4.875 | AX58: 12.45833333 | AY58: 20.04166667 | AZ58: -20.04166667 | BA58: Negativo BAJO | BB58: Estudios previos, anexo guía para supervisión SGA, normograma, matriz de verificación al cumplimiento legal | BC58: Prevención | BD58: Seguir los lineamientos, directrices y/o requerimientos legales asociados con documento(s) relacionado(s)
A59: Dirección_Territorial_Antioquia | B59: Proceso_DT | C59: Gestión_Administrativa_ | D59: DURANTE | E59: Aseo, limpieza y desinfección de tanques de almacenamiento de agua. | F59: Administrativa | G59: N/A | H59: Normal | I59: Externa | J59: Agua | K59: Consumo de agua | L59: Agotamiento de los recursos naturales (-) | M59: Negativo | N59: Aumento del consumo del recurso por malas prácticas ambientales y/o daños en red hídrica | O59: Fortalecimiento de cultura ambiental de personas que hagan uso del recurso y/o revisiones periódicas de los equipos y puntos hídricos | P59: 10 | Q59: 5 | R59: =P59*Q59 -> 50 | S59: 1 | T59: 1 | U59: 5 | V59: =SUM(S59*3.5)+(T59*3.5)+(U59*3) -> 22 | W59: 1 | X59: 1 | Y59: 1 | Z59: 32.5 | AA59: -32.5 | AB59: =+IF(AND(1<=AA59,AA59<=100),"POSITIVO",IF(AND(AA59<=-1,AA59>=-30),"Negativo BAJO",IF(AND(AA59<=-31,AA59>=-60),"Negativo MODERADO",IF(AND(AA59<=-61,AA59>=-100),"Negativo ALTO",IF(AND(0=AA59,AA59=0),"SIN IMPACTO"))))) -> Negativo MODERADO | AC59: Se aplica rutinariamente | AD59: 8.125 | AE59: Se aplica rutinariamente | AF59: =IF(AE59="No se aplica",$Z59*0.05,IF(AE59="Se aplica ocasionalmente",$Z59*0.1,IF(AE59="Se aplica rutinariamente",$Z59*0.25,"ERROR"))) -> 8.125 | AG59: Se aplica rutinariamente | AH59: 8.125 | AI59: 8.125 | AJ59: Se aplica rutinariamente | AK59: 6.5 | AL59: Se aplica rutinariamente | AM59: =IF(AL59="No se aplica",$Z59*0.02,IF(AL59="Se aplica ocasionalmente",$Z59*0.08,IF(AL59="Se aplica rutinariamente",$Z59*0.2,"ERROR"))) -> 6.5 | AN59: Se aplica rutinariamente | AO59: 6.5 | AP59: 6.5 | AQ59: Se aplica rutinariamente | AR59: 6.5 | AS59: Se aplica rutinariamente | AT59: 6.5 | AU59: Se aplica rutinariamente | AV59: 6.5 | AW59: 4.875 | AX59: 19.5 | AY59: 13 | AZ59: -13 | BA59: Negativo BAJO | BB59: Guía de buenas prácticas ambientales, matriz de seguimiento a programas, estudios previos, anexo guía para supervisión SGA, normograma, matriz de verificación al cumplimiento legal | BC59: Prevención | BD59: Seguir los lineamientos, directrices y/o requerimientos legales asociados con documento(s) relacionado(s)
A60: Dirección_Territorial_Antioquia | B60: Proceso_DT | C60: Gestión_Administrativa_ | D60: DURANTE | E60: Aseo, limpieza y desinfección de tanques de almacenamiento de agua. | F60: Administrativa | G60: N/A | H60: Normal | I60: Externa | J60: Suelo | K60: Generación de residuos ordinarios | L60: Aumento de carga de rellenos sanitarios (-) | M60: Negativo | N60: Inadecuada segregación del residuo sólido generado | O60: Fortalecimiento de conocimiento y cultura ambiental asociada con el manejo integral de residuos sólidos | P60: 10 | Q60: 5 | R60: 50 | S60: 1 | T60: 1 | U60: 10 | V60: =SUM(S60*3.5)+(T60*3.5)+(U60*3) -> 37 | W60: 1 | X60: 1 | Y60: 1 | Z60: 39.25 | AA60: -39.25 | AB60: =+IF(AND(1<=AA60,AA60<=100),"POSITIVO",IF(AND(AA60<=-1,AA60>=-30),"Negativo BAJO",IF(AND(AA60<=-31,AA60>=-60),"Negativo MODERADO",IF(AND(AA60<=-61,AA60>=-100),"Negativo ALTO",IF(AND(0=AA60,AA60=0),"SIN IMPACTO"))))) -> Negativo MODERADO | AC60: Se aplica rutinariamente | AD60: =IF(AC60="No se aplica",$Z60*0.05,IF(AC60="Se aplica ocasionalmente",$Z60*0.1,IF(AC60="Se aplica rutinariamente",$Z60*0.25,"ERROR"))) -> 9.8125 | AE60: Se aplica rutinariamente | AF60: =IF(AE60="No se aplica",$Z60*0.05,IF(AE60="Se aplica ocasionalmente",$Z60*0.1,IF(AE60="Se aplica rutinariamente",$Z60*0.25,"ERROR"))) -> 9.8125 | AG60: Se aplica rutinariamente | AH60: =IF(AG60="No se aplica",$Z60*0.05,IF(AG60="Se aplica ocasionalmente",$Z60*0.1,IF(AG60="Se aplica rutinariamente",$Z60*0.25,"ERROR"))) -> 9.8125 | AI60: =SUM(AD60,AF60,AH60)/3 -> 9.8125 | AJ60: Se aplica rutinariamente | AK60: =IF(AJ60="No se aplica",$Z60*0.02,IF(AJ60="Se aplica ocasionalmente",$Z60*0.08,IF(AJ60="Se aplica rutinariamente",$Z60*0.2,"ERROR"))) -> 7.85 | AL60: Se aplica rutinariamente | AM60: =IF(AL60="No se aplica",$Z60*0.02,IF(AL60="Se aplica ocasionalmente",$Z60*0.08,IF(AL60="Se aplica rutinariamente",$Z60*0.2,"ERROR"))) -> 7.85 | AN60: Se aplica rutinariamente | AO60: =IF(AN60="No se aplica",$Z60*0.02,IF(AN60="Se aplica ocasionalmente",$Z60*0.08,IF(AN60="Se aplica rutinariamente",$Z60*0.2,"ERROR"))) -> 7.85 | AP60: =SUM(AK60,AM60,AO60)/3 -> 7.85 | AQ60: Se aplica rutinariamente | AR60: =IF(AQ60="No se aplica",$Z60*0.02,IF(AQ60="Se aplica ocasionalmente",$Z60*0.08,IF(AQ60="Se aplica rutinariamente",$Z60*0.2,"ERROR"))) -> 7.85 | AS60: Se aplica rutinariamente | AT60: =IF(AS60="No se aplica",$Z60*0.02,IF(AS60="Se aplica ocasionalmente",$Z60*0.08,IF(AS60="Se aplica rutinariamente",$Z60*0.2,"ERROR"))) -> 7.85 | AU60: Se aplica rutinariamente | AV60: =IF(AU60="No se aplica",$Z60*0.02,IF(AU60="Se aplica ocasionalmente",$Z60*0.08,IF(AU60="Se aplica rutinariamente",$Z60*0.2,"ERROR"))) -> 7.85 | AW60: =SUM(AR60,AT60,AV60)/4 -> 5.8875 | AX60: =SUM(AI60,AP60,AW60) -> 23.55 | AY60: 15.7 | AZ60: -15.7 | BA60: Negativo BAJO | BB60: Plan de Gestión Integral de residuos sólidos, matriz de seguimiento a programas | BC60: Prevención | BD60: Seguir los lineamientos, directrices y/o requerimientos legales asociados con documento(s) relacionado(s)
A61: Dirección_Territorial_Antioquia | B61: Proceso_DT | C61: Gestión_Administrativa_ | D61: DURANTE | E61: Aseo, limpieza y desinfección de tanques de almacenamiento de agua. | F61: Administrativa | G61: N/A | H61: Normal | I61: Externa | J61: Suelo | K61: Consumo de insumos no comestibles de cafetería | L61: Aumento de carga de rellenos sanitarios (-) | M61: Negativo | N61: Aumento del consumo del recurso por vuelta a la presencialidad | O61: Establecimiento de buenas prácticas ambientales asociadas al consumo del recurso | P61: 10 | Q61: 5 | R61: 50 | S61: 1 | T61: 1 | U61: 5 | V61: 22 | W61: 1 | X61: 1 | Y61: 1 | Z61: 32.5 | AA61: -32.5 | AB61: Negativo MODERADO | AC61: No se aplica | AD61: =IF(AC61="No se aplica",$Z61*0.05,IF(AC61="Se aplica ocasionalmente",$Z61*0.1,IF(AC61="Se aplica rutinariamente",$Z61*0.25,"ERROR"))) -> 1.625 | AE61: No se aplica | AF61: =IF(AE61="No se aplica",$Z61*0.05,IF(AE61="Se aplica ocasionalmente",$Z61*0.1,IF(AE61="Se aplica rutinariamente",$Z61*0.25,"ERROR"))) -> 1.625 | AG61: No se aplica | AH61: =IF(AG61="No se aplica",$Z61*0.05,IF(AG61="Se aplica ocasionalmente",$Z61*0.1,IF(AG61="Se aplica rutinariamente",$Z61*0.25,"ERROR"))) -> 1.625 | AI61: =SUM(AD61,AF61,AH61)/3 -> 1.625 | AJ61: No se aplica | AK61: =IF(AJ61="No se aplica",$Z61*0.02,IF(AJ61="Se aplica ocasionalmente",$Z61*0.08,IF(AJ61="Se aplica rutinariamente",$Z61*0.2,"ERROR"))) -> 0.65 | AL61: Se aplica rutinariamente | AM61: =IF(AL61="No se aplica",$Z61*0.02,IF(AL61="Se aplica ocasionalmente",$Z61*0.08,IF(AL61="Se aplica rutinariamente",$Z61*0.2,"ERROR"))) -> 6.5 | AN61: Se aplica ocasionalmente | AO61: =IF(AN61="No se aplica",$Z61*0.02,IF(AN61="Se aplica ocasionalmente",$Z61*0.08,IF(AN61="Se aplica rutinariamente",$Z61*0.2,"ERROR"))) -> 2.6 | AP61: =SUM(AK61,AM61,AO61)/3 -> 3.25 | AQ61: Se aplica rutinariamente | AR61: =IF(AQ61="No se aplica",$Z61*0.02,IF(AQ61="Se aplica ocasionalmente",$Z61*0.08,IF(AQ61="Se aplica rutinariamente",$Z61*0.2,"ERROR"))) -> 6.5 | AS61: Se aplica rutinariamente | AT61: =IF(AS61="No se aplica",$Z61*0.02,IF(AS61="Se aplica ocasionalmente",$Z61*0.08,IF(AS61="Se aplica rutinariamente",$Z61*0.2,"ERROR"))) -> 6.5 | AU61: Se aplica rutinariamente | AV61: =IF(AU61="No se aplica",$Z61*0.02,IF(AU61="Se aplica ocasionalmente",$Z61*0.08,IF(AU61="Se aplica rutinariamente",$Z61*0.2,"ERROR"))) -> 6.5 | AW61: =SUM(AR61,AT61,AV61)/4 -> 4.875 | AX61: =SUM(AI61,AP61,AW61) -> 9.75 | AY61: 22.75 | AZ61: -22.75 | BA61: Negativo BAJO | BB61: Guía de buenas prácticas ambientales, estudios previos, anexo guía para supervisión SGA, normograma, matriz de verificación al cumplimiento legal | BC61: Prevención | BD61: Seguir los lineamientos, directrices y/o requerimientos legales asociados con documento(s) relacionado(s)
A62: Dirección_Territorial_Antioquia | B62: Proceso_DT | C62: Gestión_Administrativa_ | D62: DURANTE | E62: Aseo, limpieza y desinfección de tanques de almacenamiento de agua. | F62: Administrativa | G62: N/A | H62: Normal | I62: Externa | J62: Agua | K62: Vertimiento de aguas residuales domésticas a sistemas de alcantarillado | L62: Contaminación de cuerpos hídricos (-) | M62: Negativo | N62: Vertimiento directo a suelos por daños en red sanitaria | O62: Realizar revisiones y/o mantenimientos de la red sanitaria existente | P62: 10 | Q62: 5 | R62: 50 | S62: 1 | T62: 1 | U62: 10 | V62: =SUM(S62*3.5)+(T62*3.5)+(U62*3) -> 37 | W62: 1 | X62: 1 | Y62: 1 | Z62: =SUM(R62*0.45)+(V62*0.45)+(Y62*0.1) -> 39.25 | AA62: -39.25 | AB62: Negativo MODERADO | AC62: Se aplica rutinariamente | AD62: 9.8125 | AE62: Se aplica rutinariamente | AF62: 9.8125 | AG62: Se aplica rutinariamente | AH62: 9.8125 | AI62: 9.8125 | AJ62: Se aplica rutinariamente | AK62: 7.85 | AL62: Se aplica rutinariamente | AM62: 7.85 | AN62: Se aplica rutinariamente | AO62: 7.85 | AP62: 7.85 | AQ62: Se aplica rutinariamente | AR62: 7.85 | AS62: Se aplica rutinariamente | AT62: 7.85 | AU62: Se aplica rutinariamente | AV62: 7.85 | AW62: 5.8875 | AX62: 23.55 | AY62: 15.7 | AZ62: -15.7 | BA62: =+IF(AND(1<=AZ62,AZ62<=100),"POSITIVO",IF(AND(AZ62<=-1,AZ62>=-30),"Negativo BAJO",IF(AND(AZ62<=-31,AZ62>=-60),"Negativo MODERADO",IF(AND(AZ62<=-61,AZ62>=-100),"Negativo ALTO",IF(AND(0=AZ62,AZ62=0),"SIN IMPACTO"))))) -> Negativo BAJO | BB62: Guía de buenas prácticas ambientales, normograma, matriz de verificación al cumplimiento legal | BC62: Prevención | BD62: Seguir los lineamientos, directrices y/o requerimientos legales asociados con documento(s) relacionado(s)
A63: Dirección_Territorial_Antioquia | B63: Proceso_DT | C63: Gestión_Administrativa_ | D63: DURANTE | E63: Labores de jardinería y mantenimiento de zonas verdes. | F63: Administrativa | G63: N/A | H63: Normal | I63: Externa | J63: Suelo | K63: Consumo de energía eléctrica | L63: Agotamiento de los recursos naturales (-) | M63: Negativo | N63: Aumento del consumo del recurso por malas prácticas ambientales y/o daños en aparatos eléctricos y electrónicos | O63: Fortalecimiento de cultura ambiental de personas que hagan uso del recurso y/o revisiones periódicas de los equipos eléctricos y electrónicos | P63: 10 | Q63: 5 | R63: 50 | S63: 5 | T63: 1 | U63: 5 | V63: 36 | W63: 1 | X63: 1 | Y63: 1 | Z63: =SUM(R63*0.45)+(V63*0.45)+(Y63*0.1) -> 38.8 | AA63: -38.8 | AB63: Negativo MODERADO | AC63: Se aplica rutinariamente | AD63: 9.7 | AE63: Se aplica rutinariamente | AF63: 9.7 | AG63: Se aplica rutinariamente | AH63: 9.7 | AI63: 9.7 | AJ63: Se aplica rutinariamente | AK63: 7.76 | AL63: Se aplica rutinariamente | AM63: 7.76 | AN63: Se aplica rutinariamente | AO63: 7.76 | AP63: 7.76 | AQ63: Se aplica rutinariamente | AR63: 7.76 | AS63: Se aplica rutinariamente | AT63: 7.76 | AU63: Se aplica rutinariamente | AV63: 7.76 | AW63: 5.82 | AX63: 23.28 | AY63: 15.52 | AZ63: -15.52 | BA63: =+IF(AND(1<=AZ63,AZ63<=100),"POSITIVO",IF(AND(AZ63<=-1,AZ63>=-30),"Negativo BAJO",IF(AND(AZ63<=-31,AZ63>=-60),"Negativo MODERADO",IF(AND(AZ63<=-61,AZ63>=-100),"Negativo ALTO",IF(AND(0=AZ63,AZ63=0),"SIN IMPACTO"))))) -> Negativo BAJO | BB63: Guía de buenas prácticas ambientales, matriz de seguimiento a programas, estudios previos, anexo guía para supervisión SGA, normograma, matriz de verificación al cumplimiento legal | BC63: Prevención | BD63: Seguir los lineamientos, directrices y/o requerimientos legales asociados con documento(s) relacionado(s)
A64: Dirección_Territorial_Antioquia | B64: Proceso_DT | C64: Gestión_Administrativa_ | D64: DURANTE | E64: Labores de jardinería y mantenimiento de zonas verdes. | F64: Administrativa | G64: N/A | H64: Normal | I64: Externa | J64: Agua | K64: Consumo de agua | L64: Agotamiento de los recursos naturales (-) | M64: Negativo | N64: Aumento del consumo del recurso por malas prácticas ambientales y/o daños en red hídrica | O64: Fortalecimiento de cultura ambiental de personas que hagan uso del recurso y/o revisiones periódicas de los equipos y puntos hídricos | P64: 10 | Q64: 5 | R64: =P64*Q64 -> 50 | S64: 10 | T64: 1 | U64: 5 | V64: 53.5 | W64: 1 | X64: 1 | Y64: 1 | Z64: 46.675 | AA64: -46.675 | AB64: =+IF(AND(1<=AA64,AA64<=100),"POSITIVO",IF(AND(AA64<=-1,AA64>=-30),"Negativo BAJO",IF(AND(AA64<=-31,AA64>=-60),"Negativo MODERADO",IF(AND(AA64<=-61,AA64>=-100),"Negativo ALTO",IF(AND(0=AA64,AA64=0),"SIN IMPACTO"))))) -> Negativo MODERADO | AC64: Se aplica rutinariamente | AD64: 11.66875 | AE64: Se aplica rutinariamente | AF64: =IF(AE64="No se aplica",$Z64*0.05,IF(AE64="Se aplica ocasionalmente",$Z64*0.1,IF(AE64="Se aplica rutinariamente",$Z64*0.25,"ERROR"))) -> 11.66875 | AG64: Se aplica rutinariamente | AH64: 11.66875 | AI64: 11.66875 | AJ64: Se aplica rutinariamente | AK64: 9.335 | AL64: Se aplica rutinariamente | AM64: =IF(AL64="No se aplica",$Z64*0.02,IF(AL64="Se aplica ocasionalmente",$Z64*0.08,IF(AL64="Se aplica rutinariamente",$Z64*0.2,"ERROR"))) -> 9.335 | AN64: Se aplica rutinariamente | AO64: 9.335 | AP64: 9.335 | AQ64: Se aplica rutinariamente | AR64: 9.335 | AS64: Se aplica rutinariamente | AT64: 9.335 | AU64: Se aplica rutinariamente | AV64: 9.335 | AW64: 7.00125 | AX64: 28.005 | AY64: 18.67 | AZ64: -18.67 | BA64: Negativo BAJO | BB64: Guía de buenas prácticas ambientales, matriz de seguimiento a programas, estudios previos, anexo guía para supervisión SGA, normograma, matriz de verificación al cumplimiento legal | BC64: Prevención | BD64: Seguir los lineamientos, directrices y/o requerimientos legales asociados con documento(s) relacionado(s)
A65: Dirección_Territorial_Antioquia | B65: Proceso_DT | C65: Gestión_Administrativa_ | D65: DURANTE | E65: Labores de jardinería y mantenimiento de zonas verdes. | F65: Administrativa | G65: N/A | H65: Normal | I65: Externa | J65: Suelo | K65: Consumo de fertilizantes | L65: Agotamiento de los recursos naturales (-) | M65: Negativo | N65: Aumento del consumo del recurso por cambios en necesidades del proceso | O65: Establecimiento de lineamientos en materia ambiental en procesos contractuales buscando adquirir insumos amigables con el medio ambiente | P65: 10 | Q65: 5 | R65: =P65*Q65 -> 50 | S65: 5 | T65: 5 | U65: 5 | V65: =SUM(S65*3.5)+(T65*3.5)+(U65*3) -> 50 | W65: 1 | X65: 1 | Y65: 1 | Z65: 45.1 | AA65: -45.1 | AB65: =+IF(AND(1<=AA65,AA65<=100),"POSITIVO",IF(AND(AA65<=-1,AA65>=-30),"Negativo BAJO",IF(AND(AA65<=-31,AA65>=-60),"Negativo MODERADO",IF(AND(AA65<=-61,AA65>=-100),"Negativo ALTO",IF(AND(0=AA65,AA65=0),"SIN IMPACTO"))))) -> Negativo MODERADO | AC65: Se aplica rutinariamente | AD65: 11.275 | AE65: Se aplica rutinariamente | AF65: =IF(AE65="No se aplica",$Z65*0.05,IF(AE65="Se aplica ocasionalmente",$Z65*0.1,IF(AE65="Se aplica rutinariamente",$Z65*0.25,"ERROR"))) -> 11.275 | AG65: Se aplica rutinariamente | AH65: 11.275 | AI65: 11.275 | AJ65: No se aplica | AK65: 0.902 | AL65: No se aplica | AM65: =IF(AL65="No se aplica",$Z65*0.02,IF(AL65="Se aplica ocasionalmente",$Z65*0.08,IF(AL65="Se aplica rutinariamente",$Z65*0.2,"ERROR"))) -> 0.902 | AN65: No se aplica | AO65: 0.902 | AP65: 0.902 | AQ65: Se aplica rutinariamente | AR65: 9.02 | AS65: Se aplica rutinariamente | AT65: 9.02 | AU65: Se aplica rutinariamente | AV65: 9.02 | AW65: 6.765 | AX65: 18.942 | AY65: 26.158 | AZ65: -26.158 | BA65: Negativo BAJO | BB65: Estudios previos, anexo guía para supervisión SGA, normograma, matriz de verificación al cumplimiento legal | BC65: Prevención | BD65: Seguir los lineamientos, directrices y/o requerimientos legales asociados con documento(s) relacionado(s)
A66: Dirección_Territorial_Antioquia | B66: Proceso_DT | C66: Gestión_Administrativa_ | D66: DURANTE | E66: Labores de jardinería y mantenimiento de zonas verdes. | F66: Administrativa | G66: N/A | H66: Normal | I66: Externa | J66: Suelo | K66: Generación de residuos aprovechables (CARTÓN) | L66: Disminución de carga en los rellenos sanitarios (+) | M66: Positivo | N66: Inadecuada segregación del residuo sólido generado | O66: Fortalecimiento de conocimiento y cultura ambiental asociada con el manejo integral de residuos sólidos | P66: 10 | Q66: 5 | R66: 50 | S66: 5 | T66: 5 | U66: 10 | V66: =SUM(S66*3.5)+(T66*3.5)+(U66*3) -> 65 | W66: 1 | X66: 1 | Y66: 1 | Z66: 51.85 | AA66: 51.85 | AB66: =+IF(AND(1<=AA66,AA66<=100),"POSITIVO",IF(AND(AA66<=-1,AA66>=-30),"Negativo BAJO",IF(AND(AA66<=-31,AA66>=-60),"Negativo MODERADO",IF(AND(AA66<=-61,AA66>=-100),"Negativo ALTO",IF(AND(0=AA66,AA66=0),"SIN IMPACTO"))))) -> POSITIVO | AD66: =IF(AC66="No se aplica",$Z66*0.05,IF(AC66="Se aplica ocasionalmente",$Z66*0.1,IF(AC66="Se aplica rutinariamente",$Z66*0.25,"ERROR"))) -> ERROR | AF66: =IF(AE66="No se aplica",$Z66*0.05,IF(AE66="Se aplica ocasionalmente",$Z66*0.1,IF(AE66="Se aplica rutinariamente",$Z66*0.25,"ERROR"))) -> ERROR | AH66: =IF(AG66="No se aplica",$Z66*0.05,IF(AG66="Se aplica ocasionalmente",$Z66*0.1,IF(AG66="Se aplica rutinariamente",$Z66*0.25,"ERROR"))) -> ERROR | AI66: =SUM(AD66,AF66,AH66)/3 -> 0 | AK66: =IF(AJ66="No se aplica",$Z66*0.02,IF(AJ66="Se aplica ocasionalmente",$Z66*0.08,IF(AJ66="Se aplica rutinariamente",$Z66*0.2,"ERROR"))) -> ERROR | AM66: =IF(AL66="No se aplica",$Z66*0.02,IF(AL66="Se aplica ocasionalmente",$Z66*0.08,IF(AL66="Se aplica rutinariamente",$Z66*0.2,"ERROR"))) -> ERROR | AO66: =IF(AN66="No se aplica",$Z66*0.02,IF(AN66="Se aplica ocasionalmente",$Z66*0.08,IF(AN66="Se aplica rutinariamente",$Z66*0.2,"ERROR"))) -> ERROR | AP66: =SUM(AK66,AM66,AO66)/3 -> 0 | AR66: =IF(AQ66="No se aplica",$Z66*0.02,IF(AQ66="Se aplica ocasionalmente",$Z66*0.08,IF(AQ66="Se aplica rutinariamente",$Z66*0.2,"ERROR"))) -> ERROR | AT66: =IF(AS66="No se aplica",$Z66*0.02,IF(AS66="Se aplica ocasionalmente",$Z66*0.08,IF(AS66="Se aplica rutinariamente",$Z66*0.2,"ERROR"))) -> ERROR | AV66: =IF(AU66="No se aplica",$Z66*0.02,IF(AU66="Se aplica ocasionalmente",$Z66*0.08,IF(AU66="Se aplica rutinariamente",$Z66*0.2,"ERROR"))) -> ERROR | AW66: =SUM(AR66,AT66,AV66)/4 -> 0 | AX66: =SUM(AI66,AP66,AW66) -> 0 | AY66: 51.85 | AZ66: 51.85 | BA66: POSITIVO | BB66: Plan de Gestión Integral de residuos sólidos, matriz de seguimiento a programas, certificados de aprovechamiento | BC66: Fomento | BD66: Seguir los lineamientos, directrices y/o requerimientos legales asociados con documento(s) relacionado(s)
A67: Dirección_Territorial_Antioquia | B67: Proceso_DT | C67: Gestión_Administrativa_ | D67: DURANTE | E67: Labores de jardinería y mantenimiento de zonas verdes. | F67: Administrativa | G67: N/A | H67: Normal | I67: Externa | J67: Suelo | K67: Generación de residuos aprovechables (PAPEL) | L67: Disminución de carga en los rellenos sanitarios (+) | M67: Positivo | N67: Inadecuada segregación del residuo sólido generado | O67: Fortalecimiento de conocimiento y cultura ambiental asociada con el manejo integral de residuos sólidos | P67: 10 | Q67: 5 | R67: 50 | S67: 5 | T67: 5 | U67: 10 | V67: 65 | W67: 1 | X67: 1 | Y67: 1 | Z67: 51.85 | AA67: 51.85 | AB67: POSITIVO | AD67: =IF(AC67="No se aplica",$Z67*0.05,IF(AC67="Se aplica ocasionalmente",$Z67*0.1,IF(AC67="Se aplica rutinariamente",$Z67*0.25,"ERROR"))) -> ERROR | AF67: =IF(AE67="No se aplica",$Z67*0.05,IF(AE67="Se aplica ocasionalmente",$Z67*0.1,IF(AE67="Se aplica rutinariamente",$Z67*0.25,"ERROR"))) -> ERROR | AH67: =IF(AG67="No se aplica",$Z67*0.05,IF(AG67="Se aplica ocasionalmente",$Z67*0.1,IF(AG67="Se aplica rutinariamente",$Z67*0.25,"ERROR"))) -> ERROR | AI67: =SUM(AD67,AF67,AH67)/3 -> 0 | AK67: =IF(AJ67="No se aplica",$Z67*0.02,IF(AJ67="Se aplica ocasionalmente",$Z67*0.08,IF(AJ67="Se aplica rutinariamente",$Z67*0.2,"ERROR"))) -> ERROR | AM67: =IF(AL67="No se aplica",$Z67*0.02,IF(AL67="Se aplica ocasionalmente",$Z67*0.08,IF(AL67="Se aplica rutinariamente",$Z67*0.2,"ERROR"))) -> ERROR | AO67: =IF(AN67="No se aplica",$Z67*0.02,IF(AN67="Se aplica ocasionalmente",$Z67*0.08,IF(AN67="Se aplica rutinariamente",$Z67*0.2,"ERROR"))) -> ERROR | AP67: =SUM(AK67,AM67,AO67)/3 -> 0 | AR67: =IF(AQ67="No se aplica",$Z67*0.02,IF(AQ67="Se aplica ocasionalmente",$Z67*0.08,IF(AQ67="Se aplica rutinariamente",$Z67*0.2,"ERROR"))) -> ERROR | AT67: =IF(AS67="No se aplica",$Z67*0.02,IF(AS67="Se aplica ocasionalmente",$Z67*0.08,IF(AS67="Se aplica rutinariamente",$Z67*0.2,"ERROR"))) -> ERROR | AV67: =IF(AU67="No se aplica",$Z67*0.02,IF(AU67="Se aplica ocasionalmente",$Z67*0.08,IF(AU67="Se aplica rutinariamente",$Z67*0.2,"ERROR"))) -> ERROR | AW67: =SUM(AR67,AT67,AV67)/4 -> 0 | AX67: =SUM(AI67,AP67,AW67) -> 0 | AY67: 51.85 | AZ67: 51.85 | BA67: POSITIVO | BB67: Plan de Gestión Integral de residuos sólidos, matriz de seguimiento a programas, certificados de aprovechamiento | BC67: Fomento | BD67: Seguir los lineamientos, directrices y/o requerimientos legales asociados con documento(s) relacionado(s)
A68: Dirección_Territorial_Antioquia | B68: Proceso_DT | C68: Gestión_Administrativa_ | D68: DURANTE | E68: Labores de jardinería y mantenimiento de zonas verdes. | F68: Administrativa | G68: N/A | H68: Normal | I68: Externa | J68: Suelo | K68: Generación de residuos aprovechables (PLÁSTICO) | L68: Disminución de carga en los rellenos sanitarios (+) | M68: Positivo | N68: Inadecuada segregación del residuo sólido generado | O68: Fortalecimiento de conocimiento y cultura ambiental asociada con el manejo integral de residuos sólidos | P68: 10 | Q68: 5 | R68: 50 | S68: 5 | T68: 5 | U68: 10 | V68: =SUM(S68*3.5)+(T68*3.5)+(U68*3) -> 65 | W68: 1 | X68: 1 | Y68: 1 | Z68: =SUM(R68*0.45)+(V68*0.45)+(Y68*0.1) -> 51.85 | AA68: 51.85 | AB68: POSITIVO | AD68: ERROR | AF68: ERROR | AH68: ERROR | AI68: 0 | AK68: ERROR | AM68: ERROR | AO68: ERROR | AP68: 0 | AR68: ERROR | AT68: ERROR | AV68: ERROR | AW68: 0 | AX68: 0 | AY68: 51.85 | AZ68: 51.85 | BA68: =+IF(AND(1<=AZ68,AZ68<=100),"POSITIVO",IF(AND(AZ68<=-1,AZ68>=-30),"Negativo BAJO",IF(AND(AZ68<=-31,AZ68>=-60),"Negativo MODERADO",IF(AND(AZ68<=-61,AZ68>=-100),"Negativo ALTO",IF(AND(0=AZ68,AZ68=0),"SIN IMPACTO"))))) -> POSITIVO | BB68: Plan de Gestión Integral de residuos sólidos, matriz de seguimiento a programas, certificados de aprovechamiento | BC68: Fomento | BD68: Seguir los lineamientos, directrices y/o requerimientos legales asociados con documento(s) relacionado(s)
A69: Dirección_Territorial_Antioquia | B69: Proceso_DT | C69: Gestión_Administrativa_ | D69: DURANTE | E69: Labores de jardinería y mantenimiento de zonas verdes. | F69: Administrativa | G69: N/A | H69: Normal | I69: Externa | J69: Suelo | K69: Generación de residuos ordinarios | L69: Aumento de carga de rellenos sanitarios (-) | M69: Negativo | N69: Inadecuada segregación del residuo sólido generado | O69: Fortalecimiento de conocimiento y cultura ambiental asociada con el manejo integral de residuos sólidos | P69: 10 | Q69: 5 | R69: 50 | S69: 10 | T69: 1 | U69: 10 | V69: 68.5 | W69: 1 | X69: 1 | Y69: 1 | Z69: =SUM(R69*0.45)+(V69*0.45)+(Y69*0.1) -> 53.425 | AA69: -53.425 | AB69: Negativo MODERADO | AC69: Se aplica rutinariamente | AD69: 13.35625 | AE69: Se aplica rutinariamente | AF69: 13.35625 | AG69: Se aplica rutinariamente | AH69: 13.35625 | AI69: 13.35625 | AJ69: Se aplica rutinariamente | AK69: 10.685 | AL69: Se aplica rutinariamente | AM69: 10.685 | AN69: Se aplica rutinariamente | AO69: 10.685 | AP69: 10.685 | AQ69: Se aplica rutinariamente | AR69: 10.685 | AS69: Se aplica rutinariamente | AT69: 10.685 | AU69: Se aplica rutinariamente | AV69: 10.685 | AW69: 8.01375 | AX69: 32.055 | AY69: 21.37 | AZ69: -21.37 | BA69: =+IF(AND(1<=AZ69,AZ69<=100),"POSITIVO",IF(AND(AZ69<=-1,AZ69>=-30),"Negativo BAJO",IF(AND(AZ69<=-31,AZ69>=-60),"Negativo MODERADO",IF(AND(AZ69<=-61,AZ69>=-100),"Negativo ALTO",IF(AND(0=AZ69,AZ69=0),"SIN IMPACTO"))))) -> Negativo BAJO | BB69: Plan de Gestión Integral de residuos sólidos, matriz de seguimiento a programas | BC69: Prevención | BD69: Seguir los lineamientos, directrices y/o requerimientos legales asociados con documento(s) relacionado(s)
A70: Dirección_Territorial_Antioquia | B70: Proceso_DT | C70: Gestión_Administrativa_ | D70: DURANTE | E70: Labores de jardinería y mantenimiento de zonas verdes. | F70: Administrativa | G70: N/A | H70: Normal | I70: Externa | J70: Suelo | K70: Generación de residuos orgánicos | L70: Aumento de carga de rellenos sanitarios (-) | M70: Negativo | N70: Inadecuada segregación del residuo sólido generado | O70: Fortalecimiento de conocimiento y cultura ambiental asociada con el manejo integral de residuos sólidos | P70: 10 | Q70: 5 | R70: =P70*Q70 -> 50 | S70: 10 | T70: 1 | U70: 10 | V70: 68.5 | W70: 1 | X70: 1 | Y70: 1 | Z70: 53.425 | AA70: -53.425 | AB70: =+IF(AND(1<=AA70,AA70<=100),"POSITIVO",IF(AND(AA70<=-1,AA70>=-30),"Negativo BAJO",IF(AND(AA70<=-31,AA70>=-60),"Negativo MODERADO",IF(AND(AA70<=-61,AA70>=-100),"Negativo ALTO",IF(AND(0=AA70,AA70=0),"SIN IMPACTO"))))) -> Negativo MODERADO | AC70: Se aplica rutinariamente | AD70: 13.35625 | AE70: Se aplica rutinariamente | AF70: =IF(AE70="No se aplica",$Z70*0.05,IF(AE70="Se aplica ocasionalmente",$Z70*0.1,IF(AE70="Se aplica rutinariamente",$Z70*0.25,"ERROR"))) -> 13.35625 | AG70: Se aplica rutinariamente | AH70: 13.35625 | AI70: 13.35625 | AJ70: Se aplica rutinariamente | AK70: 10.685 | AL70: Se aplica rutinariamente | AM70: =IF(AL70="No se aplica",$Z70*0.02,IF(AL70="Se aplica ocasionalmente",$Z70*0.08,IF(AL70="Se aplica rutinariamente",$Z70*0.2,"ERROR"))) -> 10.685 | AN70: Se aplica rutinariamente | AO70: 10.685 | AP70: 10.685 | AQ70: Se aplica rutinariamente | AR70: 10.685 | AS70: Se aplica rutinariamente | AT70: 10.685 | AU70: Se aplica rutinariamente | AV70: 10.685 | AW70: 8.01375 | AX70: 32.055 | AY70: 21.37 | AZ70: -21.37 | BA70: Negativo BAJO | BB70: Plan de Gestión Integral de residuos sólidos, matriz de seguimiento a programas | BC70: Prevención | BD70: Seguir los lineamientos, directrices y/o requerimientos legales asociados con documento(s) relacionado(s)
A71: Dirección_Territorial_Antioquia | B71: Proceso_DT | C71: Gestión_Administrativa_ | D71: DURANTE | E71: Manejo Integral de Plagas. | F71: Administrativa | G71: N/A | H71: Normal | I71: Externa | J71: Suelo | K71: Consumo de sustancias químicas | L71: Agotamiento de los recursos naturales (-) | M71: Negativo | N71: Aumento del consumo del recurso por cambios en necesidades del proceso | O71: Establecimiento de lineamientos en materia ambiental en procesos contractuales buscando adquirir insumos amigables con el medio ambiente | P71: 10 | Q71: 5 | R71: =P71*Q71 -> 50 | S71: 5 | T71: 5 | U71: 5 | V71: =SUM(S71*3.5)+(T71*3.5)+(U71*3) -> 50 | W71: 1 | X71: 1 | Y71: 1 | Z71: 45.1 | AA71: -45.1 | AB71: =+IF(AND(1<=AA71,AA71<=100),"POSITIVO",IF(AND(AA71<=-1,AA71>=-30),"Negativo BAJO",IF(AND(AA71<=-31,AA71>=-60),"Negativo MODERADO",IF(AND(AA71<=-61,AA71>=-100),"Negativo ALTO",IF(AND(0=AA71,AA71=0),"SIN IMPACTO"))))) -> Negativo MODERADO | AC71: Se aplica rutinariamente | AD71: 11.275 | AE71: No se aplica | AF71: =IF(AE71="No se aplica",$Z71*0.05,IF(AE71="Se aplica ocasionalmente",$Z71*0.1,IF(AE71="Se aplica rutinariamente",$Z71*0.25,"ERROR"))) -> 2.255 | AG71: Se aplica ocasionalmente | AH71: 4.51 | AI71: 6.013333333 | AJ71: No se aplica | AK71: 0.902 | AL71: Se aplica rutinariamente | AM71: =IF(AL71="No se aplica",$Z71*0.02,IF(AL71="Se aplica ocasionalmente",$Z71*0.08,IF(AL71="Se aplica rutinariamente",$Z71*0.2,"ERROR"))) -> 9.02 | AN71: Se aplica ocasionalmente | AO71: 3.608 | AP71: 4.51 | AQ71: Se aplica rutinariamente | AR71: 9.02 | AS71: Se aplica rutinariamente | AT71: 9.02 | AU71: Se aplica rutinariamente | AV71: 9.02 | AW71: 6.765 | AX71: 17.28833333 | AY71: 27.81166667 | AZ71: -27.81166667 | BA71: Negativo BAJO | BB71: Estudios previos, anexo guía para supervisión SGA, normograma, matriz de verificación al cumplimiento legal | BC71: Prevención | BD71: Seguir los lineamientos, directrices y/o requerimientos legales asociados con documento(s) relacionado(s)
A72: Dirección_Territorial_Antioquia | B72: Proceso_DT | C72: Gestión_Administrativa_ | D72: DURANTE | E72: Manejo Integral de Plagas. | F72: Administrativa | G72: N/A | H72: Normal | I72: Externa | J72: Suelo | K72: Generación de residuos peligrosos (RESIDUOS QUÍMICOS) | L72: Contaminación del suelo (-) | M72: Negativo | N72: Inadecuado manejo integral del residuo sólido generado | O72: Fortalecimiento de conocimiento y cultura ambiental asociada con el manejo integral de residuos sólidos | P72: 10 | Q72: 5 | R72: 50 | S72: 5 | T72: 5 | U72: 10 | V72: =SUM(S72*3.5)+(T72*3.5)+(U72*3) -> 65 | W72: 1 | X72: 1 | Y72: 1 | Z72: 51.85 | AA72: -51.85 | AB72: =+IF(AND(1<=AA72,AA72<=100),"POSITIVO",IF(AND(AA72<=-1,AA72>=-30),"Negativo BAJO",IF(AND(AA72<=-31,AA72>=-60),"Negativo MODERADO",IF(AND(AA72<=-61,AA72>=-100),"Negativo ALTO",IF(AND(0=AA72,AA72=0),"SIN IMPACTO"))))) -> Negativo MODERADO | AC72: Se aplica rutinariamente | AD72: =IF(AC72="No se aplica",$Z72*0.05,IF(AC72="Se aplica ocasionalmente",$Z72*0.1,IF(AC72="Se aplica rutinariamente",$Z72*0.25,"ERROR"))) -> 12.9625 | AE72: Se aplica rutinariamente | AF72: =IF(AE72="No se aplica",$Z72*0.05,IF(AE72="Se aplica ocasionalmente",$Z72*0.1,IF(AE72="Se aplica rutinariamente",$Z72*0.25,"ERROR"))) -> 12.9625 | AG72: Se aplica rutinariamente | AH72: =IF(AG72="No se aplica",$Z72*0.05,IF(AG72="Se aplica ocasionalmente",$Z72*0.1,IF(AG72="Se aplica rutinariamente",$Z72*0.25,"ERROR"))) -> 12.9625 | AI72: =SUM(AD72,AF72,AH72)/3 -> 12.9625 | AJ72: Se aplica rutinariamente | AK72: =IF(AJ72="No se aplica",$Z72*0.02,IF(AJ72="Se aplica ocasionalmente",$Z72*0.08,IF(AJ72="Se aplica rutinariamente",$Z72*0.2,"ERROR"))) -> 10.37 | AL72: Se aplica rutinariamente | AM72: =IF(AL72="No se aplica",$Z72*0.02,IF(AL72="Se aplica ocasionalmente",$Z72*0.08,IF(AL72="Se aplica rutinariamente",$Z72*0.2,"ERROR"))) -> 10.37 | AN72: Se aplica rutinariamente | AO72: =IF(AN72="No se aplica",$Z72*0.02,IF(AN72="Se aplica ocasionalmente",$Z72*0.08,IF(AN72="Se aplica rutinariamente",$Z72*0.2,"ERROR"))) -> 10.37 | AP72: =SUM(AK72,AM72,AO72)/3 -> 10.37 | AQ72: Se aplica rutinariamente | AR72: =IF(AQ72="No se aplica",$Z72*0.02,IF(AQ72="Se aplica ocasionalmente",$Z72*0.08,IF(AQ72="Se aplica rutinariamente",$Z72*0.2,"ERROR"))) -> 10.37 | AS72: Se aplica rutinariamente | AT72: =IF(AS72="No se aplica",$Z72*0.02,IF(AS72="Se aplica ocasionalmente",$Z72*0.08,IF(AS72="Se aplica rutinariamente",$Z72*0.2,"ERROR"))) -> 10.37 | AU72: Se aplica rutinariamente | AV72: =IF(AU72="No se aplica",$Z72*0.02,IF(AU72="Se aplica ocasionalmente",$Z72*0.08,IF(AU72="Se aplica rutinariamente",$Z72*0.2,"ERROR"))) -> 10.37 | AW72: =SUM(AR72,AT72,AV72)/4 -> 7.7775 | AX72: =SUM(AI72,AP72,AW72) -> 31.11 | AY72: 20.74 | AZ72: -20.74 | BA72: Negativo BAJO | BB72: Plan de Gestión Integral de residuos sólidos, matriz de seguimiento a programas, certificados de disposición final, licencia ambiental | BC72: Prevención | BD72: Seguir los lineamientos, directrices y/o requerimientos legales asociados con documento(s) relacionado(s)
A73: Dirección_Territorial_Antioquia | B73: Proceso_DT | C73: Gestión_Administrativa_ | D73: DURANTE | E73: Manejo Integral de Plagas. | F73: Administrativa | G73: N/A | H73: Normal | I73: Externa | J73: Suelo | K73: Consumo de plaguicidas | L73: Agotamiento de los recursos naturales (-) | M73: Negativo | N73: Aumento del consumo del recurso por cambios en necesidades del proceso | O73: Establecimiento de lineamientos en materia ambiental en procesos contractuales buscando adquirir insumos amigables con el medio ambiente | P73: 10 | Q73: 5 | R73: 50 | S73: 5 | T73: 5 | U73: 5 | V73: 50 | W73: 1 | X73: 1 | Y73: =W73*X73 -> 1 | Z73: 45.1 | AA73: =IF(M73="NEGATIVO",Z73*-1,Z73*1) -> -45.1 | AB73: Negativo MODERADO | AC73: Se aplica rutinariamente | AD73: =IF(AC73="No se aplica",$Z73*0.05,IF(AC73="Se aplica ocasionalmente",$Z73*0.1,IF(AC73="Se aplica rutinariamente",$Z73*0.25,"ERROR"))) -> 11.275 | AE73: No se aplica | AF73: =IF(AE73="No se aplica",$Z73*0.05,IF(AE73="Se aplica ocasionalmente",$Z73*0.1,IF(AE73="Se aplica rutinariamente",$Z73*0.25,"ERROR"))) -> 2.255 | AG73: Se aplica ocasionalmente | AH73: =IF(AG73="No se aplica",$Z73*0.05,IF(AG73="Se aplica ocasionalmente",$Z73*0.1,IF(AG73="Se aplica rutinariamente",$Z73*0.25,"ERROR"))) -> 4.51 | AI73: =SUM(AD73,AF73,AH73)/3 -> 6.013333333 | AJ73: No se aplica | AK73: =IF(AJ73="No se aplica",$Z73*0.02,IF(AJ73="Se aplica ocasionalmente",$Z73*0.08,IF(AJ73="Se aplica rutinariamente",$Z73*0.2,"ERROR"))) -> 0.902 | AL73: Se aplica rutinariamente | AM73: =IF(AL73="No se aplica",$Z73*0.02,IF(AL73="Se aplica ocasionalmente",$Z73*0.08,IF(AL73="Se aplica rutinariamente",$Z73*0.2,"ERROR"))) -> 9.02 | AN73: Se aplica ocasionalmente | AO73: =IF(AN73="No se aplica",$Z73*0.02,IF(AN73="Se aplica ocasionalmente",$Z73*0.08,IF(AN73="Se aplica rutinariamente",$Z73*0.2,"ERROR"))) -> 3.608 | AP73: =SUM(AK73,AM73,AO73)/3 -> 4.51 | AQ73: Se aplica rutinariamente | AR73: =IF(AQ73="No se aplica",$Z73*0.02,IF(AQ73="Se aplica ocasionalmente",$Z73*0.08,IF(AQ73="Se aplica rutinariamente",$Z73*0.2,"ERROR"))) -> 9.02 | AS73: Se aplica rutinariamente | AT73: =IF(AS73="No se aplica",$Z73*0.02,IF(AS73="Se aplica ocasionalmente",$Z73*0.08,IF(AS73="Se aplica rutinariamente",$Z73*0.2,"ERROR"))) -> 9.02 | AU73: Se aplica rutinariamente | AV73: =IF(AU73="No se aplica",$Z73*0.02,IF(AU73="Se aplica ocasionalmente",$Z73*0.08,IF(AU73="Se aplica rutinariamente",$Z73*0.2,"ERROR"))) -> 9.02 | AW73: =SUM(AR73,AT73,AV73)/4 -> 6.765 | AX73: =SUM(AI73,AP73,AW73) -> 17.28833333 | AY73: =Z73-AX73 -> 27.81166667 | AZ73: =IF(M73="NEGATIVO",AY73*-1,AY73*1) -> -27.81166667 | BA73: Negativo BAJO | BB73: Estudios previos, anexo guía para supervisión SGA, normograma, matriz de verificación al cumplimiento legal | BC73: Prevención | BD73: Seguir los lineamientos, directrices y/o requerimientos legales asociados con documento(s) relacionado(s)
A74: Dirección_Territorial_Antioquia | B74: Proceso_DT | C74: Gestión_Administrativa_ | D74: DURANTE | E74: Manejo Integral de Plagas. | F74: Administrativa | G74: N/A | H74: Normal | I74: Externa | J74: Suelo | K74: Generación de residuos peligrosos (PLAGUICIDAS) | L74: Contaminación del suelo (-) | M74: Negativo | N74: Inadecuado manejo integral del residuo líquido generado | O74: Fortalecimiento de conocimiento y cultura ambiental asociada con el manejo integral de residuos líquidos | P74: 10 | Q74: 5 | R74: 50 | S74: 5 | T74: 5 | U74: 10 | V74: =SUM(S74*3.5)+(T74*3.5)+(U74*3) -> 65 | W74: 1 | X74: 1 | Y74: 1 | Z74: =SUM(R74*0.45)+(V74*0.45)+(Y74*0.1) -> 51.85 | AA74: -51.85 | AB74: Negativo MODERADO | AC74: Se aplica rutinariamente | AD74: 12.9625 | AE74: Se aplica rutinariamente | AF74: 12.9625 | AG74: Se aplica rutinariamente | AH74: 12.9625 | AI74: 12.9625 | AJ74: Se aplica rutinariamente | AK74: 10.37 | AL74: Se aplica rutinariamente | AM74: 10.37 | AN74: Se aplica rutinariamente | AO74: 10.37 | AP74: 10.37 | AQ74: Se aplica rutinariamente | AR74: 10.37 | AS74: Se aplica rutinariamente | AT74: 10.37 | AU74: Se aplica rutinariamente | AV74: 10.37 | AW74: 7.7775 | AX74: 31.11 | AY74: 20.74 | AZ74: -20.74 | BA74: =+IF(AND(1<=AZ74,AZ74<=100),"POSITIVO",IF(AND(AZ74<=-1,AZ74>=-30),"Negativo BAJO",IF(AND(AZ74<=-31,AZ74>=-60),"Negativo MODERADO",IF(AND(AZ74<=-61,AZ74>=-100),"Negativo ALTO",IF(AND(0=AZ74,AZ74=0),"SIN IMPACTO"))))) -> Negativo BAJO | BB74: Plan de Gestión Integral de residuos sólidos, matriz de seguimiento a programas, certificados de disposición final, licencia ambiental | BC74: =IF(BA74="Negativo MODERADO","Control",IF(BA74="Negativo BAJO","Prevención",IF(BA74="Negativo ALTO","Control",IF(BA74="POSITIVO","Fomento",IF(BA74="SIN IMPACTO","N/A","ERROR"))))) -> Prevención | BD74: Seguir los lineamientos, directrices y/o requerimientos legales asociados con documento(s) relacionado(s)
A75: Dirección_Territorial_Antioquia | B75: Proceso_DT | C75: Gestión_de_Talento_Humano_ | D75: DURANTE | E75: Capacitación, inducción o reinducción de funcionarios y contratistas. | F75: Administrativa | G75: N/A | H75: Normal | I75: Propia | J75: Suelo | K75: Consumo de energía eléctrica | L75: Agotamiento de los recursos naturales (-) | M75: Negativo | N75: Aumento del consumo del recurso por malas prácticas ambientales y/o daños en aparatos eléctricos y electrónicos | O75: Fortalecimiento de cultura ambiental de personas que hagan uso del recurso y/o revisiones periódicas de los equipos eléctricos y electrónicos | P75: 10 | Q75: 5 | R75: 50 | S75: 10 | T75: 1 | U75: 5 | V75: 53.5 | W75: 1 | X75: 1 | Y75: 1 | Z75: =SUM(R75*0.45)+(V75*0.45)+(Y75*0.1) -> 46.675 | AA75: -46.675 | AB75: Negativo MODERADO | AC75: Se aplica rutinariamente | AD75: 11.66875 | AE75: Se aplica rutinariamente | AF75: 11.66875 | AG75: Se aplica rutinariamente | AH75: 11.66875 | AI75: 11.66875 | AJ75: Se aplica rutinariamente | AK75: 9.335 | AL75: Se aplica rutinariamente | AM75: 9.335 | AN75: Se aplica rutinariamente | AO75: 9.335 | AP75: 9.335 | AQ75: Se aplica rutinariamente | AR75: 9.335 | AS75: Se aplica rutinariamente | AT75: 9.335 | AU75: Se aplica rutinariamente | AV75: 9.335 | AW75: 7.00125 | AX75: 28.005 | AY75: 18.67 | AZ75: -18.67 | BA75: =+IF(AND(1<=AZ75,AZ75<=100),"POSITIVO",IF(AND(AZ75<=-1,AZ75>=-30),"Negativo BAJO",IF(AND(AZ75<=-31,AZ75>=-60),"Negativo MODERADO",IF(AND(AZ75<=-61,AZ75>=-100),"Negativo ALTO",IF(AND(0=AZ75,AZ75=0),"SIN IMPACTO"))))) -> Negativo BAJO | BB75: Guía de buenas prácticas ambientales, matriz de seguimiento a programas, estudios previos, anexo guía para supervisión SGA, normograma, matriz de verificación al cumplimiento legal | BC75: Prevención | BD75: Seguir los lineamientos, directrices y/o requerimientos legales asociados con documento(s) relacionado(s)
A76: Dirección_Territorial_Antioquia | B76: Proceso_DT | C76: Gestión_de_Talento_Humano_ | D76: DURANTE | E76: Capacitación, inducción o reinducción de funcionarios y contratistas. | F76: Administrativa | G76: N/A | H76: Normal | I76: Propia | J76: Flora | K76: Consumo de papel | L76: Agotamiento de los recursos naturales (-) | M76: Negativo | N76: Aumento del consumo del recurso por malas prácticas ambientales y/o cambios en los procesos | O76: Fortalecimiento de cultura ambiental de personas que hagan uso del recurso y/o establecimiento de recomendaciones ambientales en cambios de procesos | P76: 10 | Q76: 5 | R76: =P76*Q76 -> 50 | S76: 10 | T76: 5 | U76: 5 | V76: 67.5 | W76: 1 | X76: 1 | Y76: 1 | Z76: 52.975 | AA76: -52.975 | AB76: =+IF(AND(1<=AA76,AA76<=100),"POSITIVO",IF(AND(AA76<=-1,AA76>=-30),"Negativo BAJO",IF(AND(AA76<=-31,AA76>=-60),"Negativo MODERADO",IF(AND(AA76<=-61,AA76>=-100),"Negativo ALTO",IF(AND(0=AA76,AA76=0),"SIN IMPACTO"))))) -> Negativo MODERADO | AC76: Se aplica rutinariamente | AD76: 13.24375 | AE76: Se aplica rutinariamente | AF76: =IF(AE76="No se aplica",$Z76*0.05,IF(AE76="Se aplica ocasionalmente",$Z76*0.1,IF(AE76="Se aplica rutinariamente",$Z76*0.25,"ERROR"))) -> 13.24375 | AG76: Se aplica rutinariamente | AH76: 13.24375 | AI76: 13.24375 | AJ76: Se aplica rutinariamente | AK76: 10.595 | AL76: Se aplica rutinariamente | AM76: =IF(AL76="No se aplica",$Z76*0.02,IF(AL76="Se aplica ocasionalmente",$Z76*0.08,IF(AL76="Se aplica rutinariamente",$Z76*0.2,"ERROR"))) -> 10.595 | AN76: Se aplica rutinariamente | AO76: 10.595 | AP76: 10.595 | AQ76: Se aplica rutinariamente | AR76: 10.595 | AS76: Se aplica rutinariamente | AT76: 10.595 | AU76: Se aplica rutinariamente | AV76: 10.595 | AW76: 7.94625 | AX76: 31.785 | AY76: 21.19 | AZ76: -21.19 | BA76: Negativo BAJO | BB76: Guía de buenas prácticas ambientales, matriz de seguimiento a programas, estudios previos, anexo guía para supervisión SGA, normograma, matriz de verificación al cumplimiento legal | BC76: Prevención | BD76: Seguir los lineamientos, directrices y/o requerimientos legales asociados con documento(s) relacionado(s)
A77: Dirección_Territorial_Antioquia | B77: Proceso_DT | C77: Gestión_de_Talento_Humano_ | D77: DURANTE | E77: Capacitación, inducción o reinducción de funcionarios y contratistas. | F77: Administrativa | G77: N/A | H77: Normal | I77: Propia | J77: Suelo | K77: Consumo de tóner | L77: Agotamiento de los recursos naturales (-) | M77: Negativo | N77: Aumento del consumo del recurso por malas prácticas ambientales y/o cambios en los procesos | O77: Fortalecimiento de cultura ambiental de personas que hagan uso del recurso y/o establecimiento de recomendaciones ambientales en cambios de procesos | P77: 1 | Q77: 1 | R77: =P77*Q77 -> 1 | S77: 10 | T77: 5 | U77: 1 | V77: =SUM(S77*3.5)+(T77*3.5)+(U77*3) -> 55.5 | W77: 1 | X77: 1 | Y77: 1 | Z77: 25.525 | AA77: -25.525 | AB77: =+IF(AND(1<=AA77,AA77<=100),"POSITIVO",IF(AND(AA77<=-1,AA77>=-30),"Negativo BAJO",IF(AND(AA77<=-31,AA77>=-60),"Negativo MODERADO",IF(AND(AA77<=-61,AA77>=-100),"Negativo ALTO",IF(AND(0=AA77,AA77=0),"SIN IMPACTO"))))) -> Negativo BAJO | AD77: ERROR | AF77: =IF(AE77="No se aplica",$Z77*0.05,IF(AE77="Se aplica ocasionalmente",$Z77*0.1,IF(AE77="Se aplica rutinariamente",$Z77*0.25,"ERROR"))) -> ERROR | AH77: ERROR | AI77: 0 | AK77: ERROR | AM77: =IF(AL77="No se aplica",$Z77*0.02,IF(AL77="Se aplica ocasionalmente",$Z77*0.08,IF(AL77="Se aplica rutinariamente",$Z77*0.2,"ERROR"))) -> ERROR | AO77: ERROR | AP77: 0 | AR77: ERROR | AT77: ERROR | AV77: ERROR | AW77: 0 | AX77: 0 | AY77: 25.525 | AZ77: -25.525 | BA77: Negativo BAJO | BB77: Estudios previos, anexo guía para supervisión SGA, normograma, matriz de verificación al cumplimiento legal, guía de buenas prácticas ambientales | BC77: Prevención | BD77: Seguir los lineamientos, directrices y/o requerimientos legales asociados con documento(s) relacionado(s)
A78: Dirección_Territorial_Antioquia | B78: Proceso_DT | C78: Gestión_de_Talento_Humano_ | D78: DURANTE | E78: Capacitación, inducción o reinducción de funcionarios y contratistas. | F78: Administrativa | G78: N/A | H78: Normal | I78: Propia | J78: Sociedad | K78: Conversión a medios tecnológicos | L78: Disminución de consumo de papel (+) | M78: Positivo | N78: Fallas y/o inadecuado funcionamiento del medio tecnológico | O78: Realizar mantenimientos y/o revisiones de funcionamiento periódicas del medio tecnológico empleado | P78: 10 | Q78: 5 | R78: 50 | S78: 10 | T78: 5 | U78: 5 | V78: =SUM(S78*3.5)+(T78*3.5)+(U78*3) -> 67.5 | W78: 1 | X78: 1 | Y78: 1 | Z78: 52.975 | AA78: 52.975 | AB78: =+IF(AND(1<=AA78,AA78<=100),"POSITIVO",IF(AND(AA78<=-1,AA78>=-30),"Negativo BAJO",IF(AND(AA78<=-31,AA78>=-60),"Negativo MODERADO",IF(AND(AA78<=-61,AA78>=-100),"Negativo ALTO",IF(AND(0=AA78,AA78=0),"SIN IMPACTO"))))) -> POSITIVO | AD78: =IF(AC78="No se aplica",$Z78*0.05,IF(AC78="Se aplica ocasionalmente",$Z78*0.1,IF(AC78="Se aplica rutinariamente",$Z78*0.25,"ERROR"))) -> ERROR | AF78: =IF(AE78="No se aplica",$Z78*0.05,IF(AE78="Se aplica ocasionalmente",$Z78*0.1,IF(AE78="Se aplica rutinariamente",$Z78*0.25,"ERROR"))) -> ERROR | AH78: =IF(AG78="No se aplica",$Z78*0.05,IF(AG78="Se aplica ocasionalmente",$Z78*0.1,IF(AG78="Se aplica rutinariamente",$Z78*0.25,"ERROR"))) -> ERROR | AI78: =SUM(AD78,AF78,AH78)/3 -> 0 | AK78: =IF(AJ78="No se aplica",$Z78*0.02,IF(AJ78="Se aplica ocasionalmente",$Z78*0.08,IF(AJ78="Se aplica rutinariamente",$Z78*0.2,"ERROR"))) -> ERROR | AM78: =IF(AL78="No se aplica",$Z78*0.02,IF(AL78="Se aplica ocasionalmente",$Z78*0.08,IF(AL78="Se aplica rutinariamente",$Z78*0.2,"ERROR"))) -> ERROR | AO78: =IF(AN78="No se aplica",$Z78*0.02,IF(AN78="Se aplica ocasionalmente",$Z78*0.08,IF(AN78="Se aplica rutinariamente",$Z78*0.2,"ERROR"))) -> ERROR | AP78: =SUM(AK78,AM78,AO78)/3 -> 0 | AR78: =IF(AQ78="No se aplica",$Z78*0.02,IF(AQ78="Se aplica ocasionalmente",$Z78*0.08,IF(AQ78="Se aplica rutinariamente",$Z78*0.2,"ERROR"))) -> ERROR | AT78: =IF(AS78="No se aplica",$Z78*0.02,IF(AS78="Se aplica ocasionalmente",$Z78*0.08,IF(AS78="Se aplica rutinariamente",$Z78*0.2,"ERROR"))) -> ERROR | AV78: =IF(AU78="No se aplica",$Z78*0.02,IF(AU78="Se aplica ocasionalmente",$Z78*0.08,IF(AU78="Se aplica rutinariamente",$Z78*0.2,"ERROR"))) -> ERROR | AW78: =SUM(AR78,AT78,AV78)/4 -> 0 | AX78: =SUM(AI78,AP78,AW78) -> 0 | AY78: 52.975 | AZ78: 52.975 | BA78: POSITIVO | BB78: Matriz de seguimiento a programas, guía de buenas prácticas ambientales, estudios previos | BC78: Fomento | BD78: Seguir los lineamientos, directrices y/o requerimientos legales asociados con documento(s) relacionado(s)
A79: Dirección_Territorial_Antioquia | B79: Proceso_DT | C79: Gestión_de_Talento_Humano_ | D79: DURANTE | E79: Capacitación, inducción o reinducción de funcionarios y contratistas. | F79: Administrativa | G79: N/A | H79: Normal | I79: Propia | J79: Suelo | K79: Generación de residuos aprovechables (PAPEL) | L79: Disminución de carga en los rellenos sanitarios (+) | M79: Positivo | N79: Inadecuada segregación del residuo sólido generado | O79: Fortalecimiento de conocimiento y cultura ambiental asociada con el manejo integral de residuos sólidos | P79: 10 | Q79: 5 | R79: 50 | S79: 10 | T79: 5 | U79: 10 | V79: 82.5 | W79: 1 | X79: 1 | Y79: 1 | Z79: 59.725 | AA79: 59.725 | AB79: POSITIVO | AD79: =IF(AC79="No se aplica",$Z79*0.05,IF(AC79="Se aplica ocasionalmente",$Z79*0.1,IF(AC79="Se aplica rutinariamente",$Z79*0.25,"ERROR"))) -> ERROR | AF79: =IF(AE79="No se aplica",$Z79*0.05,IF(AE79="Se aplica ocasionalmente",$Z79*0.1,IF(AE79="Se aplica rutinariamente",$Z79*0.25,"ERROR"))) -> ERROR | AH79: =IF(AG79="No se aplica",$Z79*0.05,IF(AG79="Se aplica ocasionalmente",$Z79*0.1,IF(AG79="Se aplica rutinariamente",$Z79*0.25,"ERROR"))) -> ERROR | AI79: =SUM(AD79,AF79,AH79)/3 -> 0 | AK79: =IF(AJ79="No se aplica",$Z79*0.02,IF(AJ79="Se aplica ocasionalmente",$Z79*0.08,IF(AJ79="Se aplica rutinariamente",$Z79*0.2,"ERROR"))) -> ERROR | AM79: =IF(AL79="No se aplica",$Z79*0.02,IF(AL79="Se aplica ocasionalmente",$Z79*0.08,IF(AL79="Se aplica rutinariamente",$Z79*0.2,"ERROR"))) -> ERROR | AO79: =IF(AN79="No se aplica",$Z79*0.02,IF(AN79="Se aplica ocasionalmente",$Z79*0.08,IF(AN79="Se aplica rutinariamente",$Z79*0.2,"ERROR"))) -> ERROR | AP79: =SUM(AK79,AM79,AO79)/3 -> 0 | AR79: =IF(AQ79="No se aplica",$Z79*0.02,IF(AQ79="Se aplica ocasionalmente",$Z79*0.08,IF(AQ79="Se aplica rutinariamente",$Z79*0.2,"ERROR"))) -> ERROR | AT79: =IF(AS79="No se aplica",$Z79*0.02,IF(AS79="Se aplica ocasionalmente",$Z79*0.08,IF(AS79="Se aplica rutinariamente",$Z79*0.2,"ERROR"))) -> ERROR | AV79: =IF(AU79="No se aplica",$Z79*0.02,IF(AU79="Se aplica ocasionalmente",$Z79*0.08,IF(AU79="Se aplica rutinariamente",$Z79*0.2,"ERROR"))) -> ERROR | AW79: =SUM(AR79,AT79,AV79)/4 -> 0 | AX79: =SUM(AI79,AP79,AW79) -> 0 | AY79: 59.725 | AZ79: 59.725 | BA79: POSITIVO | BB79: Plan de Gestión Integral de residuos sólidos, matriz de seguimiento a programas, certificados de aprovechamiento | BC79: Fomento | BD79: Seguir los lineamientos, directrices y/o requerimientos legales asociados con documento(s) relacionado(s)
A80: Dirección_Territorial_Antioquia | B80: Proceso_DT | C80: Gestión_de_Talento_Humano_ | D80: DURANTE | E80: Capacitación, inducción o reinducción de funcionarios y contratistas. | F80: Administrativa | G80: N/A | H80: Normal | I80: Propia | J80: Suelo | K80: Generación de residuos peligrosos (TÓNERES) | L80: Contaminación del suelo (-) | M80: Negativo | N80: Inadecuado manejo integral del residuo sólido generado | O80: Fortalecimiento de conocimiento y cultura ambiental asociada con el manejo integral de residuos sólidos | P80: 10 | Q80: 5 | R80: 50 | S80: 5 | T80: 5 | U80: 10 | V80: =SUM(S80*3.5)+(T80*3.5)+(U80*3) -> 65 | W80: 1 | X80: 1 | Y80: 1 | Z80: =SUM(R80*0.45)+(V80*0.45)+(Y80*0.1) -> 51.85 | AA80: -51.85 | AB80: Negativo MODERADO | AC80: Se aplica rutinariamente | AD80: 12.9625 | AE80: Se aplica rutinariamente | AF80: 12.9625 | AG80: Se aplica rutinariamente | AH80: 12.9625 | AI80: 12.9625 | AJ80: Se aplica rutinariamente | AK80: 10.37 | AL80: Se aplica rutinariamente | AM80: 10.37 | AN80: Se aplica rutinariamente | AO80: 10.37 | AP80: 10.37 | AQ80: Se aplica rutinariamente | AR80: 10.37 | AS80: Se aplica rutinariamente | AT80: 10.37 | AU80: Se aplica rutinariamente | AV80: 10.37 | AW80: 7.7775 | AX80: 31.11 | AY80: 20.74 | AZ80: -20.74 | BA80: =+IF(AND(1<=AZ80,AZ80<=100),"POSITIVO",IF(AND(AZ80<=-1,AZ80>=-30),"Negativo BAJO",IF(AND(AZ80<=-31,AZ80>=-60),"Negativo MODERADO",IF(AND(AZ80<=-61,AZ80>=-100),"Negativo ALTO",IF(AND(0=AZ80,AZ80=0),"SIN IMPACTO"))))) -> Negativo BAJO | BB80: Plan de Gestión Integral de residuos sólidos, matriz de seguimiento a programas, certificados de disposición final, licencia ambiental | BC80: Prevención | BD80: Seguir los lineamientos, directrices y/o requerimientos legales asociados con documento(s) relacionado(s)
A81: Dirección_Territorial_Antioquia | B81: Proceso_DT | C81: Gestión_de_Talento_Humano_ | D81: DURANTE | E81: Capacitación, inducción o reinducción de funcionarios y contratistas. | F81: Administrativa | G81: N/A | H81: Normal | I81: Propia | J81: Sociedad | K81: Educación ambiental | L81: Fomento de buenas prácticas ambientales (+) | M81: Positivo | N81: Ausencia de participación de funcionarios, contratistas y operadores en jornadas de fortalecimiento de cultura y/o conocimientos ambientales | O81: Inclusión de responsabilidad de participación en actividades convocadas desde el SGA en matriz de roles, responsabilidades, autoridades y competencias | P81: 10 | Q81: 5 | R81: 50 | S81: 10 | T81: 1 | U81: 5 | V81: 53.5 | W81: 1 | X81: 1 | Y81: 1 | Z81: =SUM(R81*0.45)+(V81*0.45)+(Y81*0.1) -> 46.675 | AA81: 46.675 | AB81: POSITIVO | AD81: ERROR | AF81: ERROR | AH81: ERROR | AI81: 0 | AK81: ERROR | AM81: ERROR | AO81: ERROR | AP81: 0 | AR81: ERROR | AT81: ERROR | AV81: ERROR | AW81: 0 | AX81: 0 | AY81: 46.675 | AZ81: 46.675 | BA81: =+IF(AND(1<=AZ81,AZ81<=100),"POSITIVO",IF(AND(AZ81<=-1,AZ81>=-30),"Negativo BAJO",IF(AND(AZ81<=-31,AZ81>=-60),"Negativo MODERADO",IF(AND(AZ81<=-61,AZ81>=-100),"Negativo ALTO",IF(AND(0=AZ81,AZ81=0),"SIN IMPACTO"))))) -> POSITIVO | BB81: Guía de buenas prácticas ambientales, calendario ambiental, SUMA, registros de capacitación | BC81: Fomento | BD81: Seguir los lineamientos, directrices y/o requerimientos legales asociados con documento(s) relacionado(s)
A82: Dirección_Territorial_Antioquia | B82: Proceso_DT | C82: Gestión_de_Talento_Humano_ | D82: DURANTE | E82: Capacitación, inducción o reinducción de funcionarios y contratistas. | F82: Administrativa | G82: N/A | H82: Normal | I82: Propia | J82: Sociedad | K82: Educación ambiental | L82: Generación / Fomento de educación y conciencia ambiental (+) | M82: Positivo | N82: Ausencia de participación de funcionarios, contratistas y operadores en jornadas de fortalecimiento de cultura y/o conocimientos ambientales | O82: Inclusión de responsabilidad de participación en actividades convocadas desde el SGA en matriz de roles, responsabilidades, autoridades y competencias | P82: 10 | Q82: 5 | R82: =P82*Q82 -> 50 | S82: 10 | T82: 1 | U82: 5 | V82: 53.5 | W82: 1 | X82: 1 | Y82: 1 | Z82: 46.675 | AA82: 46.675 | AB82: =+IF(AND(1<=AA82,AA82<=100),"POSITIVO",IF(AND(AA82<=-1,AA82>=-30),"Negativo BAJO",IF(AND(AA82<=-31,AA82>=-60),"Negativo MODERADO",IF(AND(AA82<=-61,AA82>=-100),"Negativo ALTO",IF(AND(0=AA82,AA82=0),"SIN IMPACTO"))))) -> POSITIVO | AD82: ERROR | AF82: =IF(AE82="No se aplica",$Z82*0.05,IF(AE82="Se aplica ocasionalmente",$Z82*0.1,IF(AE82="Se aplica rutinariamente",$Z82*0.25,"ERROR"))) -> ERROR | AH82: ERROR | AI82: 0 | AK82: ERROR | AM82: =IF(AL82="No se aplica",$Z82*0.02,IF(AL82="Se aplica ocasionalmente",$Z82*0.08,IF(AL82="Se aplica rutinariamente",$Z82*0.2,"ERROR"))) -> ERROR | AO82: ERROR | AP82: 0 | AR82: ERROR | AT82: ERROR | AV82: ERROR | AW82: 0 | AX82: 0 | AY82: 46.675 | AZ82: 46.675 | BA82: POSITIVO | BB82: Guía de buenas prácticas ambientales, calendario ambiental, SUMA, registros de capacitación | BC82: Fomento | BD82: Seguir los lineamientos, directrices y/o requerimientos legales asociados con documento(s) relacionado(s)
A83: Dirección_Territorial_Antioquia | B83: Proceso_DT | C83: Gestión_de_Talento_Humano_ | D83: DURANTE | E83: Realización de jornadas de bienestar | F83: Administrativa | G83: N/A | H83: Normal | I83: Propia | J83: Suelo | K83: Consumo de energía eléctrica | L83: Agotamiento de los recursos naturales (-) | M83: Positivo | N83: Aumento del consumo del recurso por malas prácticas ambientales y/o daños en aparatos eléctricos y electrónicos | O83: Fortalecimiento de cultura ambiental de personas que hagan uso del recurso y/o revisiones periódicas de los equipos eléctricos y electrónicos | P83: 10 | Q83: 5 | R83: =P83*Q83 -> 50 | S83: 10 | T83: 1 | U83: 5 | V83: =SUM(S83*3.5)+(T83*3.5)+(U83*3) -> 53.5 | W83: 1 | X83: 1 | Y83: 1 | Z83: 46.675 | AA83: 46.675 | AB83: =+IF(AND(1<=AA83,AA83<=100),"POSITIVO",IF(AND(AA83<=-1,AA83>=-30),"Negativo BAJO",IF(AND(AA83<=-31,AA83>=-60),"Negativo MODERADO",IF(AND(AA83<=-61,AA83>=-100),"Negativo ALTO",IF(AND(0=AA83,AA83=0),"SIN IMPACTO"))))) -> POSITIVO | AD83: ERROR | AF83: =IF(AE83="No se aplica",$Z83*0.05,IF(AE83="Se aplica ocasionalmente",$Z83*0.1,IF(AE83="Se aplica rutinariamente",$Z83*0.25,"ERROR"))) -> ERROR | AH83: ERROR | AI83: 0 | AK83: ERROR | AM83: =IF(AL83="No se aplica",$Z83*0.02,IF(AL83="Se aplica ocasionalmente",$Z83*0.08,IF(AL83="Se aplica rutinariamente",$Z83*0.2,"ERROR"))) -> ERROR | AO83: ERROR | AP83: 0 | AR83: ERROR | AT83: ERROR | AV83: ERROR | AW83: 0 | AX83: 0 | AY83: 46.675 | AZ83: 46.675 | BA83: POSITIVO | BB83: Guía de buenas prácticas ambientales, matriz de seguimiento a programas, estudios previos, anexo guía para supervisión SGA, normograma, matriz de verificación al cumplimiento legal | BC83: Fomento | BD83: Seguir los lineamientos, directrices y/o requerimientos legales asociados con documento(s) relacionado(s)
A84: Dirección_Territorial_Antioquia | B84: Proceso_DT | C84: Gestión_de_Talento_Humano_ | D84: DURANTE | E84: Realización de jornadas de bienestar | F84: Administrativa | G84: N/A | H84: Normal | I84: Propia | J84: Flora | K84: Consumo de papel | L84: Agotamiento de los recursos naturales (-) | M84: Negativo | N84: Aumento del consumo del recurso por malas prácticas ambientales y/o cambios en los procesos | O84: Fortalecimiento de cultura ambiental de personas que hagan uso del recurso y/o establecimiento de recomendaciones ambientales en cambios de procesos | P84: 10 | Q84: 5 | R84: 50 | S84: 10 | T84: 5 | U84: 5 | V84: =SUM(S84*3.5)+(T84*3.5)+(U84*3) -> 67.5 | W84: 1 | X84: 1 | Y84: 1 | Z84: 52.975 | AA84: -52.975 | AB84: =+IF(AND(1<=AA84,AA84<=100),"POSITIVO",IF(AND(AA84<=-1,AA84>=-30),"Negativo BAJO",IF(AND(AA84<=-31,AA84>=-60),"Negativo MODERADO",IF(AND(AA84<=-61,AA84>=-100),"Negativo ALTO",IF(AND(0=AA84,AA84=0),"SIN IMPACTO"))))) -> Negativo MODERADO | AC84: Se aplica rutinariamente | AD84: =IF(AC84="No se aplica",$Z84*0.05,IF(AC84="Se aplica ocasionalmente",$Z84*0.1,IF(AC84="Se aplica rutinariamente",$Z84*0.25,"ERROR"))) -> 13.24375 | AE84: Se aplica rutinariamente | AF84: =IF(AE84="No se aplica",$Z84*0.05,IF(AE84="Se aplica ocasionalmente",$Z84*0.1,IF(AE84="Se aplica rutinariamente",$Z84*0.25,"ERROR"))) -> 13.24375 | AG84: Se aplica rutinariamente | AH84: =IF(AG84="No se aplica",$Z84*0.05,IF(AG84="Se aplica ocasionalmente",$Z84*0.1,IF(AG84="Se aplica rutinariamente",$Z84*0.25,"ERROR"))) -> 13.24375 | AI84: =SUM(AD84,AF84,AH84)/3 -> 13.24375 | AJ84: Se aplica rutinariamente | AK84: =IF(AJ84="No se aplica",$Z84*0.02,IF(AJ84="Se aplica ocasionalmente",$Z84*0.08,IF(AJ84="Se aplica rutinariamente",$Z84*0.2,"ERROR"))) -> 10.595 | AL84: Se aplica rutinariamente | AM84: =IF(AL84="No se aplica",$Z84*0.02,IF(AL84="Se aplica ocasionalmente",$Z84*0.08,IF(AL84="Se aplica rutinariamente",$Z84*0.2,"ERROR"))) -> 10.595 | AN84: Se aplica rutinariamente | AO84: =IF(AN84="No se aplica",$Z84*0.02,IF(AN84="Se aplica ocasionalmente",$Z84*0.08,IF(AN84="Se aplica rutinariamente",$Z84*0.2,"ERROR"))) -> 10.595 | AP84: =SUM(AK84,AM84,AO84)/3 -> 10.595 | AQ84: Se aplica rutinariamente | AR84: =IF(AQ84="No se aplica",$Z84*0.02,IF(AQ84="Se aplica ocasionalmente",$Z84*0.08,IF(AQ84="Se aplica rutinariamente",$Z84*0.2,"ERROR"))) -> 10.595 | AS84: Se aplica rutinariamente | AT84: =IF(AS84="No se aplica",$Z84*0.02,IF(AS84="Se aplica ocasionalmente",$Z84*0.08,IF(AS84="Se aplica rutinariamente",$Z84*0.2,"ERROR"))) -> 10.595 | AU84: Se aplica rutinariamente | AV84: =IF(AU84="No se aplica",$Z84*0.02,IF(AU84="Se aplica ocasionalmente",$Z84*0.08,IF(AU84="Se aplica rutinariamente",$Z84*0.2,"ERROR"))) -> 10.595 | AW84: =SUM(AR84,AT84,AV84)/4 -> 7.94625 | AX84: =SUM(AI84,AP84,AW84) -> 31.785 | AY84: 21.19 | AZ84: -21.19 | BA84: Negativo BAJO | BB84: Guía de buenas prácticas ambientales, matriz de seguimiento a programas, estudios previos, anexo guía para supervisión SGA, normograma, matriz de verificación al cumplimiento legal | BC84: Prevención | BD84: Seguir los lineamientos, directrices y/o requerimientos legales asociados con documento(s) relacionado(s)
A85: Dirección_Territorial_Antioquia | B85: Proceso_DT | C85: Gestión_de_Talento_Humano_ | D85: DURANTE | E85: Realización de jornadas de bienestar | F85: Administrativa | G85: N/A | H85: Normal | I85: Propia | J85: Suelo | K85: Generación de residuos ordinarios | L85: Contaminación del suelo (-) | M85: Negativo | N85: Inadecuada segregación del residuo sólido generado | O85: Fortalecimiento de conocimiento y cultura ambiental asociada con el manejo integral de residuos sólidos | P85: 10 | Q85: 5 | R85: 50 | S85: 10 | T85: 1 | U85: 10 | V85: 68.5 | W85: 1 | X85: 1 | Y85: 1 | Z85: 53.425 | AA85: -53.425 | AB85: Negativo MODERADO | AC85: Se aplica rutinariamente | AD85: =IF(AC85="No se aplica",$Z85*0.05,IF(AC85="Se aplica ocasionalmente",$Z85*0.1,IF(AC85="Se aplica rutinariamente",$Z85*0.25,"ERROR"))) -> 13.35625 | AE85: Se aplica rutinariamente | AF85: =IF(AE85="No se aplica",$Z85*0.05,IF(AE85="Se aplica ocasionalmente",$Z85*0.1,IF(AE85="Se aplica rutinariamente",$Z85*0.25,"ERROR"))) -> 13.35625 | AG85: Se aplica rutinariamente | AH85: =IF(AG85="No se aplica",$Z85*0.05,IF(AG85="Se aplica ocasionalmente",$Z85*0.1,IF(AG85="Se aplica rutinariamente",$Z85*0.25,"ERROR"))) -> 13.35625 | AI85: =SUM(AD85,AF85,AH85)/3 -> 13.35625 | AJ85: Se aplica rutinariamente | AK85: =IF(AJ85="No se aplica",$Z85*0.02,IF(AJ85="Se aplica ocasionalmente",$Z85*0.08,IF(AJ85="Se aplica rutinariamente",$Z85*0.2,"ERROR"))) -> 10.685 | AL85: Se aplica rutinariamente | AM85: =IF(AL85="No se aplica",$Z85*0.02,IF(AL85="Se aplica ocasionalmente",$Z85*0.08,IF(AL85="Se aplica rutinariamente",$Z85*0.2,"ERROR"))) -> 10.685 | AN85: Se aplica rutinariamente | AO85: =IF(AN85="No se aplica",$Z85*0.02,IF(AN85="Se aplica ocasionalmente",$Z85*0.08,IF(AN85="Se aplica rutinariamente",$Z85*0.2,"ERROR"))) -> 10.685 | AP85: =SUM(AK85,AM85,AO85)/3 -> 10.685 | AQ85: Se aplica rutinariamente | AR85: =IF(AQ85="No se aplica",$Z85*0.02,IF(AQ85="Se aplica ocasionalmente",$Z85*0.08,IF(AQ85="Se aplica rutinariamente",$Z85*0.2,"ERROR"))) -> 10.685 | AS85: Se aplica rutinariamente | AT85: =IF(AS85="No se aplica",$Z85*0.02,IF(AS85="Se aplica ocasionalmente",$Z85*0.08,IF(AS85="Se aplica rutinariamente",$Z85*0.2,"ERROR"))) -> 10.685 | AU85: Se aplica rutinariamente | AV85: =IF(AU85="No se aplica",$Z85*0.02,IF(AU85="Se aplica ocasionalmente",$Z85*0.08,IF(AU85="Se aplica rutinariamente",$Z85*0.2,"ERROR"))) -> 10.685 | AW85: =SUM(AR85,AT85,AV85)/4 -> 8.01375 | AX85: =SUM(AI85,AP85,AW85) -> 32.055 | AY85: 21.37 | AZ85: -21.37 | BA85: Negativo BAJO | BB85: Plan de Gestión Integral de residuos sólidos, matriz de seguimiento a programas | BC85: Prevención | BD85: Seguir los lineamientos, directrices y/o requerimientos legales asociados con documento(s) relacionado(s)
A86: Dirección_Territorial_Antioquia | B86: Proceso_DT | C86: Gestión_de_Talento_Humano_ | D86: DURANTE | E86: Realización de jornadas de bienestar | F86: Administrativa | G86: N/A | H86: Normal | I86: Propia | J86: Suelo | K86: Consumo de insumos comestibles de cafetería | L86: Agotamiento de los recursos naturales (-) | M86: Negativo | N86: Presencia de vectores por consumo y/o almacenamiento de comestibles de cafetería | O86: Realizar un manejo integral de plagas con la periodicidad adecuada para evitar presencia de vectores dentro de las instalaciones | P86: 1 | Q86: 1 | R86: 1 | S86: 10 | T86: 1 | U86: 5 | V86: =SUM(S86*3.5)+(T86*3.5)+(U86*3) -> 53.5 | W86: 1 | X86: 1 | Y86: 1 | Z86: =SUM(R86*0.45)+(V86*0.45)+(Y86*0.1) -> 24.625 | AA86: -24.625 | AB86: Negativo BAJO | AD86: ERROR | AF86: ERROR | AH86: ERROR | AI86: 0 | AK86: ERROR | AM86: ERROR | AO86: ERROR | AP86: 0 | AR86: ERROR | AT86: ERROR | AV86: ERROR | AW86: 0 | AX86: 0 | AY86: 24.625 | AZ86: -24.625 | BA86: =+IF(AND(1<=AZ86,AZ86<=100),"POSITIVO",IF(AND(AZ86<=-1,AZ86>=-30),"Negativo BAJO",IF(AND(AZ86<=-31,AZ86>=-60),"Negativo MODERADO",IF(AND(AZ86<=-61,AZ86>=-100),"Negativo ALTO",IF(AND(0=AZ86,AZ86=0),"SIN IMPACTO"))))) -> Negativo BAJO | BB86: Guía de buenas prácticas ambientales, Plan de Gestión Integral de Residuos Sólidos | BC86: Prevención | BD86: Seguir los lineamientos, directrices y/o requerimientos legales asociados con documento(s) relacionado(s)
A87: Dirección_Territorial_Antioquia | B87: Proceso_DT | C87: Gestión_de_Talento_Humano_ | D87: DURANTE | E87: Realización de jornadas de bienestar | F87: Administrativa | G87: N/A | H87: Normal | I87: Propia | J87: Suelo | K87: Generación de residuos orgánicos | L87: Contaminación del suelo (-) | M87: Negativo | N87: Inadecuada segregación del residuo sólido generado | O87: Fortalecimiento de conocimiento y cultura ambiental asociada con el manejo integral de residuos sólidos | P87: 10 | Q87: 5 | R87: 50 | S87: 10 | T87: 5 | U87: 10 | V87: 82.5 | W87: 1 | X87: 1 | Y87: 1 | Z87: =SUM(R87*0.45)+(V87*0.45)+(Y87*0.1) -> 59.725 | AA87: -59.725 | AB87: Negativo MODERADO | AC87: Se aplica rutinariamente | AD87: 14.93125 | AE87: Se aplica rutinariamente | AF87: 14.93125 | AG87: Se aplica rutinariamente | AH87: 14.93125 | AI87: 14.93125 | AJ87: Se aplica rutinariamente | AK87: 11.945 | AL87: Se aplica rutinariamente | AM87: 11.945 | AN87: Se aplica rutinariamente | AO87: 11.945 | AP87: 11.945 | AQ87: Se aplica rutinariamente | AR87: 11.945 | AS87: Se aplica rutinariamente | AT87: 11.945 | AU87: Se aplica rutinariamente | AV87: 11.945 | AW87: 8.95875 | AX87: 35.835 | AY87: 23.89 | AZ87: -23.89 | BA87: =+IF(AND(1<=AZ87,AZ87<=100),"POSITIVO",IF(AND(AZ87<=-1,AZ87>=-30),"Negativo BAJO",IF(AND(AZ87<=-31,AZ87>=-60),"Negativo MODERADO",IF(AND(AZ87<=-61,AZ87>=-100),"Negativo ALTO",IF(AND(0=AZ87,AZ87=0),"SIN IMPACTO"))))) -> Negativo BAJO | BB87: Plan de Gestión Integral de residuos sólidos, matriz de seguimiento a programas | BC87: Prevención | BD87: Seguir los lineamientos, directrices y/o requerimientos legales asociados con documento(s) relacionado(s)
A88: Dirección_Territorial_Antioquia | B88: Proceso_DT | C88: Gestión_de_Talento_Humano_ | D88: DURANTE | E88: Realización de jornadas de bienestar | F88: Administrativa | G88: N/A | H88: Normal | I88: Propia | J88: Suelo | K88: Generación de residuos aprovechables (PAPEL) | L88: Disminución de carga en los rellenos sanitarios (+) | M88: Positivo | N88: Inadecuada segregación del residuo sólido generado | O88: Fortalecimiento de conocimiento y cultura ambiental asociada con el manejo integral de residuos sólidos | P88: 10 | Q88: 5 | R88: =P88*Q88 -> 50 | S88: 10 | T88: 5 | U88: 10 | V88: 82.5 | W88: 1 | X88: 1 | Y88: 1 | Z88: 59.725 | AA88: 59.725 | AB88: =+IF(AND(1<=AA88,AA88<=100),"POSITIVO",IF(AND(AA88<=-1,AA88>=-30),"Negativo BAJO",IF(AND(AA88<=-31,AA88>=-60),"Negativo MODERADO",IF(AND(AA88<=-61,AA88>=-100),"Negativo ALTO",IF(AND(0=AA88,AA88=0),"SIN IMPACTO"))))) -> POSITIVO | AD88: ERROR | AF88: =IF(AE88="No se aplica",$Z88*0.05,IF(AE88="Se aplica ocasionalmente",$Z88*0.1,IF(AE88="Se aplica rutinariamente",$Z88*0.25,"ERROR"))) -> ERROR | AH88: ERROR | AI88: 0 | AK88: ERROR | AM88: =IF(AL88="No se aplica",$Z88*0.02,IF(AL88="Se aplica ocasionalmente",$Z88*0.08,IF(AL88="Se aplica rutinariamente",$Z88*0.2,"ERROR"))) -> ERROR | AO88: ERROR | AP88: 0 | AR88: ERROR | AT88: ERROR | AV88: ERROR | AW88: 0 | AX88: 0 | AY88: 59.725 | AZ88: 59.725 | BA88: POSITIVO | BB88: Plan de Gestión Integral de residuos sólidos, matriz de seguimiento a programas, certificados de aprovechamiento | BC88: Fomento | BD88: Seguir los lineamientos, directrices y/o requerimientos legales asociados con documento(s) relacionado(s)
A89: Dirección_Territorial_Antioquia | B89: Proceso_DT | C89: Gestión_Documental_ | D89: DURANTE | E89: Organización de archivo | F89: Administrativa | G89: N/A | H89: Normal | I89: Propia | J89: Suelo | K89: Consumo de energía eléctrica | L89: Agotamiento de los recursos naturales (-) | M89: Negativo | N89: Aumento del consumo del recurso por malas prácticas ambientales y/o daños en aparatos eléctricos y electrónicos | O89: Fortalecimiento de cultura ambiental de personas que hagan uso del recurso y/o revisiones periódicas de los equipos eléctricos y electrónicos | P89: 10 | Q89: 5 | R89: =P89*Q89 -> 50 | S89: 10 | T89: 1 | U89: 5 | V89: =SUM(S89*3.5)+(T89*3.5)+(U89*3) -> 53.5 | W89: 1 | X89: 1 | Y89: 1 | Z89: =SUM(R89*0.45)+(V89*0.45)+(Y89*0.1) -> 46.675 | AA89: -46.675 | AB89: =+IF(AND(1<=AA89,AA89<=100),"POSITIVO",IF(AND(AA89<=-1,AA89>=-30),"Negativo BAJO",IF(AND(AA89<=-31,AA89>=-60),"Negativo MODERADO",IF(AND(AA89<=-61,AA89>=-100),"Negativo ALTO",IF(AND(0=AA89,AA89=0),"SIN IMPACTO"))))) -> Negativo MODERADO | AC89: Se aplica rutinariamente | AD89: 11.66875 | AE89: Se aplica rutinariamente | AF89: =IF(AE89="No se aplica",$Z89*0.05,IF(AE89="Se aplica ocasionalmente",$Z89*0.1,IF(AE89="Se aplica rutinariamente",$Z89*0.25,"ERROR"))) -> 11.66875 | AG89: Se aplica rutinariamente | AH89: 11.66875 | AI89: 11.66875 | AJ89: Se aplica rutinariamente | AK89: 9.335 | AL89: Se aplica rutinariamente | AM89: =IF(AL89="No se aplica",$Z89*0.02,IF(AL89="Se aplica ocasionalmente",$Z89*0.08,IF(AL89="Se aplica rutinariamente",$Z89*0.2,"ERROR"))) -> 9.335 | AN89: Se aplica rutinariamente | AO89: 9.335 | AP89: 9.335 | AQ89: Se aplica rutinariamente | AR89: 9.335 | AS89: Se aplica rutinariamente | AT89: 9.335 | AU89: Se aplica rutinariamente | AV89: 9.335 | AW89: 7.00125 | AX89: 28.005 | AY89: 18.67 | AZ89: -18.67 | BA89: Negativo BAJO | BB89: Guía de buenas prácticas ambientales, matriz de seguimiento a programas, estudios previos, anexo guía para supervisión SGA, normograma, matriz de verificación al cumplimiento legal | BC89: Prevención | BD89: Seguir los lineamientos, directrices y/o requerimientos legales asociados con documento(s) relacionado(s)
A90: Dirección_Territorial_Antioquia | B90: Proceso_DT | C90: Gestión_Documental_ | D90: DURANTE | E90: Organización de archivo | F90: Administrativa | G90: N/A | H90: Normal | I90: Propia | J90: Flora | K90: Consumo de papel | L90: Agotamiento de los recursos naturales (-) | M90: Negativo | N90: Aumento del consumo del recurso por malas prácticas ambientales y/o cambios en los procesos | O90: Fortalecimiento de cultura ambiental de personas que hagan uso del recurso y/o establecimiento de recomendaciones ambientales en cambios de procesos | P90: 10 | Q90: 5 | R90: 50 | S90: 10 | T90: 5 | U90: 5 | V90: =SUM(S90*3.5)+(T90*3.5)+(U90*3) -> 67.5 | W90: 1 | X90: 1 | Y90: 1 | Z90: 52.975 | AA90: -52.975 | AB90: =+IF(AND(1<=AA90,AA90<=100),"POSITIVO",IF(AND(AA90<=-1,AA90>=-30),"Negativo BAJO",IF(AND(AA90<=-31,AA90>=-60),"Negativo MODERADO",IF(AND(AA90<=-61,AA90>=-100),"Negativo ALTO",IF(AND(0=AA90,AA90=0),"SIN IMPACTO"))))) -> Negativo MODERADO | AC90: Se aplica rutinariamente | AD90: =IF(AC90="No se aplica",$Z90*0.05,IF(AC90="Se aplica ocasionalmente",$Z90*0.1,IF(AC90="Se aplica rutinariamente",$Z90*0.25,"ERROR"))) -> 13.24375 | AE90: Se aplica rutinariamente | AF90: =IF(AE90="No se aplica",$Z90*0.05,IF(AE90="Se aplica ocasionalmente",$Z90*0.1,IF(AE90="Se aplica rutinariamente",$Z90*0.25,"ERROR"))) -> 13.24375 | AG90: Se aplica rutinariamente | AH90: =IF(AG90="No se aplica",$Z90*0.05,IF(AG90="Se aplica ocasionalmente",$Z90*0.1,IF(AG90="Se aplica rutinariamente",$Z90*0.25,"ERROR"))) -> 13.24375 | AI90: =SUM(AD90,AF90,AH90)/3 -> 13.24375 | AJ90: Se aplica rutinariamente | AK90: =IF(AJ90="No se aplica",$Z90*0.02,IF(AJ90="Se aplica ocasionalmente",$Z90*0.08,IF(AJ90="Se aplica rutinariamente",$Z90*0.2,"ERROR"))) -> 10.595 | AL90: Se aplica rutinariamente | AM90: =IF(AL90="No se aplica",$Z90*0.02,IF(AL90="Se aplica ocasionalmente",$Z90*0.08,IF(AL90="Se aplica rutinariamente",$Z90*0.2,"ERROR"))) -> 10.595 | AN90: Se aplica rutinariamente | AO90: =IF(AN90="No se aplica",$Z90*0.02,IF(AN90="Se aplica ocasionalmente",$Z90*0.08,IF(AN90="Se aplica rutinariamente",$Z90*0.2,"ERROR"))) -> 10.595 | AP90: =SUM(AK90,AM90,AO90)/3 -> 10.595 | AQ90: Se aplica rutinariamente | AR90: =IF(AQ90="No se aplica",$Z90*0.02,IF(AQ90="Se aplica ocasionalmente",$Z90*0.08,IF(AQ90="Se aplica rutinariamente",$Z90*0.2,"ERROR"))) -> 10.595 | AS90: Se aplica rutinariamente | AT90: =IF(AS90="No se aplica",$Z90*0.02,IF(AS90="Se aplica ocasionalmente",$Z90*0.08,IF(AS90="Se aplica rutinariamente",$Z90*0.2,"ERROR"))) -> 10.595 | AU90: Se aplica rutinariamente | AV90: =IF(AU90="No se aplica",$Z90*0.02,IF(AU90="Se aplica ocasionalmente",$Z90*0.08,IF(AU90="Se aplica rutinariamente",$Z90*0.2,"ERROR"))) -> 10.595 | AW90: =SUM(AR90,AT90,AV90)/4 -> 7.94625 | AX90: =SUM(AI90,AP90,AW90) -> 31.785 | AY90: 21.19 | AZ90: -21.19 | BA90: Negativo BAJO | BB90: Guía de buenas prácticas ambientales, matriz de seguimiento a programas, estudios previos, anexo guía para supervisión SGA, normograma, matriz de verificación al cumplimiento legal | BC90: Prevención | BD90: Seguir los lineamientos, directrices y/o requerimientos legales asociados con documento(s) relacionado(s)
A91: Dirección_Territorial_Antioquia | B91: Proceso_DT | C91: Gestión_Documental_ | D91: DURANTE | E91: Organización de archivo | F91: Administrativa | G91: N/A | H91: Normal | I91: Propia | J91: Suelo | K91: Consumo de tóner | L91: Agotamiento de los recursos naturales (-) | M91: Negativo | N91: Aumento del consumo del recurso por malas prácticas ambientales y/o cambios en los procesos | O91: Fortalecimiento de cultura ambiental de personas que hagan uso del recurso y/o establecimiento de recomendaciones ambientales en cambios de procesos | P91: 1 | Q91: 1 | R91: 1 | S91: 10 | T91: 5 | U91: 1 | V91: 55.5 | W91: 1 | X91: 1 | Y91: 1 | Z91: 25.525 | AA91: -25.525 | AB91: Negativo BAJO | AD91: =IF(AC91="No se aplica",$Z91*0.05,IF(AC91="Se aplica ocasionalmente",$Z91*0.1,IF(AC91="Se aplica rutinariamente",$Z91*0.25,"ERROR"))) -> ERROR | AF91: =IF(AE91="No se aplica",$Z91*0.05,IF(AE91="Se aplica ocasionalmente",$Z91*0.1,IF(AE91="Se aplica rutinariamente",$Z91*0.25,"ERROR"))) -> ERROR | AH91: =IF(AG91="No se aplica",$Z91*0.05,IF(AG91="Se aplica ocasionalmente",$Z91*0.1,IF(AG91="Se aplica rutinariamente",$Z91*0.25,"ERROR"))) -> ERROR | AI91: =SUM(AD91,AF91,AH91)/3 -> 0 | AK91: =IF(AJ91="No se aplica",$Z91*0.02,IF(AJ91="Se aplica ocasionalmente",$Z91*0.08,IF(AJ91="Se aplica rutinariamente",$Z91*0.2,"ERROR"))) -> ERROR | AM91: =IF(AL91="No se aplica",$Z91*0.02,IF(AL91="Se aplica ocasionalmente",$Z91*0.08,IF(AL91="Se aplica rutinariamente",$Z91*0.2,"ERROR"))) -> ERROR | AO91: =IF(AN91="No se aplica",$Z91*0.02,IF(AN91="Se aplica ocasionalmente",$Z91*0.08,IF(AN91="Se aplica rutinariamente",$Z91*0.2,"ERROR"))) -> ERROR | AP91: =SUM(AK91,AM91,AO91)/3 -> 0 | AR91: =IF(AQ91="No se aplica",$Z91*0.02,IF(AQ91="Se aplica ocasionalmente",$Z91*0.08,IF(AQ91="Se aplica rutinariamente",$Z91*0.2,"ERROR"))) -> ERROR | AT91: =IF(AS91="No se aplica",$Z91*0.02,IF(AS91="Se aplica ocasionalmente",$Z91*0.08,IF(AS91="Se aplica rutinariamente",$Z91*0.2,"ERROR"))) -> ERROR | AV91: =IF(AU91="No se aplica",$Z91*0.02,IF(AU91="Se aplica ocasionalmente",$Z91*0.08,IF(AU91="Se aplica rutinariamente",$Z91*0.2,"ERROR"))) -> ERROR | AW91: =SUM(AR91,AT91,AV91)/4 -> 0 | AX91: =SUM(AI91,AP91,AW91) -> 0 | AY91: 25.525 | AZ91: -25.525 | BA91: Negativo BAJO | BB91: Estudios previos, anexo guía para supervisión SGA, normograma, matriz de verificación al cumplimiento legal, guía de buenas prácticas ambientales | BC91: Prevención | BD91: Seguir los lineamientos, directrices y/o requerimientos legales asociados con documento(s) relacionado(s)
A92: Dirección_Territorial_Antioquia | B92: Proceso_DT | C92: Gestión_Documental_ | D92: DURANTE | E92: Organización de archivo | F92: Administrativa | G92: N/A | H92: Normal | I92: Propia | J92: Sociedad | K92: Conversión a medios tecnológicos | L92: Disminución de consumo de papel (+) | M92: Positivo | N92: Fallas y/o inadecuado funcionamiento del medio tecnológico | O92: Realizar mantenimientos y/o revisiones de funcionamiento periódicas del medio tecnológico empleado | P92: 10 | Q92: 5 | R92: 50 | S92: 10 | T92: 5 | U92: 5 | V92: =SUM(S92*3.5)+(T92*3.5)+(U92*3) -> 67.5 | W92: 1 | X92: 1 | Y92: 1 | Z92: =SUM(R92*0.45)+(V92*0.45)+(Y92*0.1) -> 52.975 | AA92: 52.975 | AB92: POSITIVO | AD92: ERROR | AF92: ERROR | AH92: ERROR | AI92: 0 | AK92: ERROR | AM92: ERROR | AO92: ERROR | AP92: 0 | AR92: ERROR | AT92: ERROR | AV92: ERROR | AW92: 0 | AX92: 0 | AY92: 52.975 | AZ92: 52.975 | BA92: =+IF(AND(1<=AZ92,AZ92<=100),"POSITIVO",IF(AND(AZ92<=-1,AZ92>=-30),"Negativo BAJO",IF(AND(AZ92<=-31,AZ92>=-60),"Negativo MODERADO",IF(AND(AZ92<=-61,AZ92>=-100),"Negativo ALTO",IF(AND(0=AZ92,AZ92=0),"SIN IMPACTO"))))) -> POSITIVO | BB92: Matriz de seguimiento a programas, guía de buenas prácticas ambientales, estudios previos | BC92: Fomento | BD92: Seguir los lineamientos, directrices y/o requerimientos legales asociados con documento(s) relacionado(s)
A93: Dirección_Territorial_Antioquia | B93: Proceso_DT | C93: Gestión_Documental_ | D93: DURANTE | E93: Organización de archivo | F93: Administrativa | G93: N/A | H93: Normal | I93: Propia | J93: Suelo | K93: Generación de residuos aprovechables (PAPEL) | L93: Disminución de carga en los rellenos sanitarios (+) | M93: Positivo | N93: Inadecuada segregación del residuo sólido generado | O93: Fortalecimiento de conocimiento y cultura ambiental asociada con el manejo integral de residuos sólidos | P93: 10 | Q93: 5 | R93: 50 | S93: 10 | T93: 5 | U93: 10 | V93: 82.5 | W93: 1 | X93: 1 | Y93: 1 | Z93: =SUM(R93*0.45)+(V93*0.45)+(Y93*0.1) -> 59.725 | AA93: 59.725 | AB93: POSITIVO | AD93: ERROR | AF93: ERROR | AH93: ERROR | AI93: 0 | AK93: ERROR | AM93: ERROR | AO93: ERROR | AP93: 0 | AR93: ERROR | AT93: ERROR | AV93: ERROR | AW93: 0 | AX93: 0 | AY93: 59.725 | AZ93: 59.725 | BA93: =+IF(AND(1<=AZ93,AZ93<=100),"POSITIVO",IF(AND(AZ93<=-1,AZ93>=-30),"Negativo BAJO",IF(AND(AZ93<=-31,AZ93>=-60),"Negativo MODERADO",IF(AND(AZ93<=-61,AZ93>=-100),"Negativo ALTO",IF(AND(0=AZ93,AZ93=0),"SIN IMPACTO"))))) -> POSITIVO | BB93: Plan de Gestión Integral de residuos sólidos, matriz de seguimiento a programas, certificados de aprovechamiento | BC93: Fomento | BD93: Seguir los lineamientos, directrices y/o requerimientos legales asociados con documento(s) relacionado(s)
A94: Dirección_Territorial_Antioquia | B94: Proceso_DT | C94: Gestión_Documental_ | D94: DURANTE | E94: Organización de archivo | F94: Administrativa | G94: N/A | H94: Normal | I94: Propia | J94: Suelo | K94: Generación de residuos aprovechables (CARTÓN) | L94: Disminución de carga en los rellenos sanitarios (+) | M94: Positivo | N94: Inadecuada segregación del residuo sólido generado | O94: Fortalecimiento de conocimiento y cultura ambiental asociada con el manejo integral de residuos sólidos | P94: 10 | Q94: 5 | R94: =P94*Q94 -> 50 | S94: 10 | T94: 5 | U94: 10 | V94: 82.5 | W94: 1 | X94: 1 | Y94: 1 | Z94: 59.725 | AA94: 59.725 | AB94: =+IF(AND(1<=AA94,AA94<=100),"POSITIVO",IF(AND(AA94<=-1,AA94>=-30),"Negativo BAJO",IF(AND(AA94<=-31,AA94>=-60),"Negativo MODERADO",IF(AND(AA94<=-61,AA94>=-100),"Negativo ALTO",IF(AND(0=AA94,AA94=0),"SIN IMPACTO"))))) -> POSITIVO | AD94: ERROR | AF94: =IF(AE94="No se aplica",$Z94*0.05,IF(AE94="Se aplica ocasionalmente",$Z94*0.1,IF(AE94="Se aplica rutinariamente",$Z94*0.25,"ERROR"))) -> ERROR | AH94: ERROR | AI94: 0 | AK94: ERROR | AM94: =IF(AL94="No se aplica",$Z94*0.02,IF(AL94="Se aplica ocasionalmente",$Z94*0.08,IF(AL94="Se aplica rutinariamente",$Z94*0.2,"ERROR"))) -> ERROR | AO94: ERROR | AP94: 0 | AR94: ERROR | AT94: ERROR | AV94: ERROR | AW94: 0 | AX94: 0 | AY94: 59.725 | AZ94: 59.725 | BA94: POSITIVO | BB94: Plan de Gestión Integral de residuos sólidos, matriz de seguimiento a programas, certificados de aprovechamiento | BC94: Fomento | BD94: Seguir los lineamientos, directrices y/o requerimientos legales asociados con documento(s) relacionado(s)
A95: Dirección_Territorial_Antioquia | B95: Proceso_DT | C95: Gestión_Documental_ | D95: DURANTE | E95: Organización de archivo | F95: Administrativa | G95: N/A | H95: Normal | I95: Propia | J95: Suelo | K95: Generación de residuos peligrosos (TÓNERES) | L95: Contaminación del suelo (-) | M95: Negativo | N95: Inadecuado manejo integral del residuo sólido generado | O95: Fortalecimiento de conocimiento y cultura ambiental asociada con el manejo integral de residuos sólidos | P95: 10 | Q95: 5 | R95: =P95*Q95 -> 50 | S95: 5 | T95: 5 | U95: 10 | V95: =SUM(S95*3.5)+(T95*3.5)+(U95*3) -> 65 | W95: 1 | X95: 1 | Y95: 1 | Z95: 51.85 | AA95: -51.85 | AB95: =+IF(AND(1<=AA95,AA95<=100),"POSITIVO",IF(AND(AA95<=-1,AA95>=-30),"Negativo BAJO",IF(AND(AA95<=-31,AA95>=-60),"Negativo MODERADO",IF(AND(AA95<=-61,AA95>=-100),"Negativo ALTO",IF(AND(0=AA95,AA95=0),"SIN IMPACTO"))))) -> Negativo MODERADO | AC95: Se aplica rutinariamente | AD95: 12.9625 | AE95: Se aplica rutinariamente | AF95: =IF(AE95="No se aplica",$Z95*0.05,IF(AE95="Se aplica ocasionalmente",$Z95*0.1,IF(AE95="Se aplica rutinariamente",$Z95*0.25,"ERROR"))) -> 12.9625 | AG95: Se aplica rutinariamente | AH95: 12.9625 | AI95: 12.9625 | AJ95: Se aplica rutinariamente | AK95: 10.37 | AL95: Se aplica rutinariamente | AM95: =IF(AL95="No se aplica",$Z95*0.02,IF(AL95="Se aplica ocasionalmente",$Z95*0.08,IF(AL95="Se aplica rutinariamente",$Z95*0.2,"ERROR"))) -> 10.37 | AN95: Se aplica rutinariamente | AO95: 10.37 | AP95: 10.37 | AQ95: Se aplica rutinariamente | AR95: 10.37 | AS95: Se aplica rutinariamente | AT95: 10.37 | AU95: Se aplica rutinariamente | AV95: 10.37 | AW95: 7.7775 | AX95: 31.11 | AY95: 20.74 | AZ95: -20.74 | BA95: Negativo BAJO | BB95: Plan de Gestión Integral de residuos sólidos, matriz de seguimiento a programas, certificados de disposición final, licencia ambiental | BC95: Prevención | BD95: Seguir los lineamientos, directrices y/o requerimientos legales asociados con documento(s) relacionado(s)
A96: Dirección_Territorial_Antioquia | B96: Proceso_DT | C96: Gestión_Documental_ | D96: DURANTE | E96: Traslados documentales | F96: Administrativa | G96: N/A | H96: Normal | I96: Propia | J96: Suelo | K96: Consumo de energía eléctrica | L96: Agotamiento de los recursos naturales (-) | M96: Negativo | N96: Aumento del consumo del recurso por malas prácticas ambientales y/o daños en aparatos eléctricos y electrónicos | O96: Fortalecimiento de cultura ambiental de personas que hagan uso del recurso y/o revisiones periódicas de los equipos eléctricos y electrónicos | P96: 10 | Q96: 5 | R96: 50 | S96: 10 | T96: 1 | U96: 5 | V96: =SUM(S96*3.5)+(T96*3.5)+(U96*3) -> 53.5 | W96: 1 | X96: 1 | Y96: 1 | Z96: 46.675 | AA96: -46.675 | AB96: =+IF(AND(1<=AA96,AA96<=100),"POSITIVO",IF(AND(AA96<=-1,AA96>=-30),"Negativo BAJO",IF(AND(AA96<=-31,AA96>=-60),"Negativo MODERADO",IF(AND(AA96<=-61,AA96>=-100),"Negativo ALTO",IF(AND(0=AA96,AA96=0),"SIN IMPACTO"))))) -> Negativo MODERADO | AC96: Se aplica rutinariamente | AD96: =IF(AC96="No se aplica",$Z96*0.05,IF(AC96="Se aplica ocasionalmente",$Z96*0.1,IF(AC96="Se aplica rutinariamente",$Z96*0.25,"ERROR"))) -> 11.66875 | AE96: Se aplica rutinariamente | AF96: =IF(AE96="No se aplica",$Z96*0.05,IF(AE96="Se aplica ocasionalmente",$Z96*0.1,IF(AE96="Se aplica rutinariamente",$Z96*0.25,"ERROR"))) -> 11.66875 | AG96: Se aplica rutinariamente | AH96: =IF(AG96="No se aplica",$Z96*0.05,IF(AG96="Se aplica ocasionalmente",$Z96*0.1,IF(AG96="Se aplica rutinariamente",$Z96*0.25,"ERROR"))) -> 11.66875 | AI96: =SUM(AD96,AF96,AH96)/3 -> 11.66875 | AJ96: Se aplica rutinariamente | AK96: =IF(AJ96="No se aplica",$Z96*0.02,IF(AJ96="Se aplica ocasionalmente",$Z96*0.08,IF(AJ96="Se aplica rutinariamente",$Z96*0.2,"ERROR"))) -> 9.335 | AL96: Se aplica rutinariamente | AM96: =IF(AL96="No se aplica",$Z96*0.02,IF(AL96="Se aplica ocasionalmente",$Z96*0.08,IF(AL96="Se aplica rutinariamente",$Z96*0.2,"ERROR"))) -> 9.335 | AN96: Se aplica rutinariamente | AO96: =IF(AN96="No se aplica",$Z96*0.02,IF(AN96="Se aplica ocasionalmente",$Z96*0.08,IF(AN96="Se aplica rutinariamente",$Z96*0.2,"ERROR"))) -> 9.335 | AP96: =SUM(AK96,AM96,AO96)/3 -> 9.335 | AQ96: Se aplica rutinariamente | AR96: =IF(AQ96="No se aplica",$Z96*0.02,IF(AQ96="Se aplica ocasionalmente",$Z96*0.08,IF(AQ96="Se aplica rutinariamente",$Z96*0.2,"ERROR"))) -> 9.335 | AS96: Se aplica rutinariamente | AT96: =IF(AS96="No se aplica",$Z96*0.02,IF(AS96="Se aplica ocasionalmente",$Z96*0.08,IF(AS96="Se aplica rutinariamente",$Z96*0.2,"ERROR"))) -> 9.335 | AU96: Se aplica rutinariamente | AV96: =IF(AU96="No se aplica",$Z96*0.02,IF(AU96="Se aplica ocasionalmente",$Z96*0.08,IF(AU96="Se aplica rutinariamente",$Z96*0.2,"ERROR"))) -> 9.335 | AW96: =SUM(AR96,AT96,AV96)/4 -> 7.00125 | AX96: =SUM(AI96,AP96,AW96) -> 28.005 | AY96: 18.67 | AZ96: -18.67 | BA96: Negativo BAJO | BB96: Guía de buenas prácticas ambientales, matriz de seguimiento a programas, estudios previos, anexo guía para supervisión SGA, normograma, matriz de verificación al cumplimiento legal | BC96: Prevención | BD96: Seguir los lineamientos, directrices y/o requerimientos legales asociados con documento(s) relacionado(s)
A97: Dirección_Territorial_Antioquia | B97: Proceso_DT | C97: Gestión_Documental_ | D97: DURANTE | E97: Traslados documentales | F97: Administrativa | G97: N/A | H97: Normal | I97: Propia | J97: Flora | K97: Consumo de papel | L97: Agotamiento de los recursos naturales (-) | M97: Negativo | N97: Aumento del consumo del recurso por malas prácticas ambientales y/o cambios en los procesos | O97: Fortalecimiento de cultura ambiental de personas que hagan uso del recurso y/o establecimiento de recomendaciones ambientales en cambios de procesos | P97: 10 | Q97: 5 | R97: 50 | S97: 10 | T97: 5 | U97: 5 | V97: 67.5 | W97: 1 | X97: 1 | Y97: 1 | Z97: 52.975 | AA97: -52.975 | AB97: Negativo MODERADO | AC97: Se aplica rutinariamente | AD97: =IF(AC97="No se aplica",$Z97*0.05,IF(AC97="Se aplica ocasionalmente",$Z97*0.1,IF(AC97="Se aplica rutinariamente",$Z97*0.25,"ERROR"))) -> 13.24375 | AE97: Se aplica rutinariamente | AF97: =IF(AE97="No se aplica",$Z97*0.05,IF(AE97="Se aplica ocasionalmente",$Z97*0.1,IF(AE97="Se aplica rutinariamente",$Z97*0.25,"ERROR"))) -> 13.24375 | AG97: Se aplica rutinariamente | AH97: =IF(AG97="No se aplica",$Z97*0.05,IF(AG97="Se aplica ocasionalmente",$Z97*0.1,IF(AG97="Se aplica rutinariamente",$Z97*0.25,"ERROR"))) -> 13.24375 | AI97: =SUM(AD97,AF97,AH97)/3 -> 13.24375 | AJ97: Se aplica rutinariamente | AK97: =IF(AJ97="No se aplica",$Z97*0.02,IF(AJ97="Se aplica ocasionalmente",$Z97*0.08,IF(AJ97="Se aplica rutinariamente",$Z97*0.2,"ERROR"))) -> 10.595 | AL97: Se aplica rutinariamente | AM97: =IF(AL97="No se aplica",$Z97*0.02,IF(AL97="Se aplica ocasionalmente",$Z97*0.08,IF(AL97="Se aplica rutinariamente",$Z97*0.2,"ERROR"))) -> 10.595 | AN97: Se aplica rutinariamente | AO97: =IF(AN97="No se aplica",$Z97*0.02,IF(AN97="Se aplica ocasionalmente",$Z97*0.08,IF(AN97="Se aplica rutinariamente",$Z97*0.2,"ERROR"))) -> 10.595 | AP97: =SUM(AK97,AM97,AO97)/3 -> 10.595 | AQ97: Se aplica rutinariamente | AR97: =IF(AQ97="No se aplica",$Z97*0.02,IF(AQ97="Se aplica ocasionalmente",$Z97*0.08,IF(AQ97="Se aplica rutinariamente",$Z97*0.2,"ERROR"))) -> 10.595 | AS97: Se aplica rutinariamente | AT97: =IF(AS97="No se aplica",$Z97*0.02,IF(AS97="Se aplica ocasionalmente",$Z97*0.08,IF(AS97="Se aplica rutinariamente",$Z97*0.2,"ERROR"))) -> 10.595 | AU97: Se aplica rutinariamente | AV97: =IF(AU97="No se aplica",$Z97*0.02,IF(AU97="Se aplica ocasionalmente",$Z97*0.08,IF(AU97="Se aplica rutinariamente",$Z97*0.2,"ERROR"))) -> 10.595 | AW97: =SUM(AR97,AT97,AV97)/4 -> 7.94625 | AX97: =SUM(AI97,AP97,AW97) -> 31.785 | AY97: 21.19 | AZ97: -21.19 | BA97: Negativo BAJO | BB97: Guía de buenas prácticas ambientales, matriz de seguimiento a programas, estudios previos, anexo guía para supervisión SGA, normograma, matriz de verificación al cumplimiento legal | BC97: Prevención | BD97: Seguir los lineamientos, directrices y/o requerimientos legales asociados con documento(s) relacionado(s)
A98: Dirección_Territorial_Antioquia | B98: Proceso_DT | C98: Gestión_Documental_ | D98: DURANTE | E98: Traslados documentales | F98: Administrativa | G98: N/A | H98: Normal | I98: Propia | J98: Suelo | K98: Consumo de tóner | L98: Agotamiento de los recursos naturales (-) | M98: Negativo | N98: Aumento del consumo del recurso por malas prácticas ambientales y/o cambios en los procesos | O98: Fortalecimiento de cultura ambiental de personas que hagan uso del recurso y/o establecimiento de recomendaciones ambientales en cambios de procesos | P98: 1 | Q98: 1 | R98: 1 | S98: 10 | T98: 5 | U98: 1 | V98: =SUM(S98*3.5)+(T98*3.5)+(U98*3) -> 55.5 | W98: 1 | X98: 1 | Y98: 1 | Z98: =SUM(R98*0.45)+(V98*0.45)+(Y98*0.1) -> 25.525 | AA98: -25.525 | AB98: Negativo BAJO | AD98: ERROR | AF98: ERROR | AH98: ERROR | AI98: 0 | AK98: ERROR | AM98: ERROR | AO98: ERROR | AP98: 0 | AR98: ERROR | AT98: ERROR | AV98: ERROR | AW98: 0 | AX98: 0 | AY98: 25.525 | AZ98: -25.525 | BA98: =+IF(AND(1<=AZ98,AZ98<=100),"POSITIVO",IF(AND(AZ98<=-1,AZ98>=-30),"Negativo BAJO",IF(AND(AZ98<=-31,AZ98>=-60),"Negativo MODERADO",IF(AND(AZ98<=-61,AZ98>=-100),"Negativo ALTO",IF(AND(0=AZ98,AZ98=0),"SIN IMPACTO"))))) -> Negativo BAJO | BB98: Estudios previos, anexo guía para supervisión SGA, normograma, matriz de verificación al cumplimiento legal, guía de buenas prácticas ambientales | BC98: Prevención | BD98: Seguir los lineamientos, directrices y/o requerimientos legales asociados con documento(s) relacionado(s)
A99: Dirección_Territorial_Antioquia | B99: Proceso_DT | C99: Gestión_Documental_ | D99: DURANTE | E99: Traslados documentales | F99: Administrativa | G99: N/A | H99: Normal | I99: Propia | J99: Sociedad | K99: Conversión a medios tecnológicos | L99: Disminución de consumo de papel (+) | M99: Positivo | N99: Fallas y/o inadecuado funcionamiento del medio tecnológico | O99: Realizar mantenimientos y/o revisiones de funcionamiento periódicas del medio tecnológico empleado | P99: 10 | Q99: 5 | R99: 50 | S99: 10 | T99: 5 | U99: 5 | V99: 67.5 | W99: 1 | X99: 1 | Y99: 1 | Z99: =SUM(R99*0.45)+(V99*0.45)+(Y99*0.1) -> 52.975 | AA99: 52.975 | AB99: POSITIVO | AD99: ERROR | AF99: ERROR | AH99: ERROR | AI99: 0 | AK99: ERROR | AM99: ERROR | AO99: ERROR | AP99: 0 | AR99: ERROR | AT99: ERROR | AV99: ERROR | AW99: 0 | AX99: 0 | AY99: 52.975 | AZ99: 52.975 | BA99: =+IF(AND(1<=AZ99,AZ99<=100),"POSITIVO",IF(AND(AZ99<=-1,AZ99>=-30),"Negativo BAJO",IF(AND(AZ99<=-31,AZ99>=-60),"Negativo MODERADO",IF(AND(AZ99<=-61,AZ99>=-100),"Negativo ALTO",IF(AND(0=AZ99,AZ99=0),"SIN IMPACTO"))))) -> POSITIVO | BB99: Matriz de seguimiento a programas, guía de buenas prácticas ambientales, estudios previos | BC99: Fomento | BD99: Seguir los lineamientos, directrices y/o requerimientos legales asociados con documento(s) relacionado(s)
A100: Dirección_Territorial_Antioquia | B100: Proceso_DT | C100: Gestión_Documental_ | D100: DURANTE | E100: Traslados documentales | F100: Administrativa | G100: N/A | H100: Normal | I100: Propia | J100: Suelo | K100: Generación de residuos aprovechables (PAPEL) | L100: Disminución de carga en los rellenos sanitarios (+) | M100: Positivo | N100: Inadecuada segregación del residuo sólido generado | O100: Fortalecimiento de conocimiento y cultura ambiental asociada con el manejo integral de residuos sólidos | P100: 10 | Q100: 5 | R100: =P100*Q100 -> 50 | S100: 10 | T100: 5 | U100: 10 | V100: 82.5 | W100: 1 | X100: 1 | Y100: 1 | Z100: 59.725 | AA100: 59.725 | AB100: =+IF(AND(1<=AA100,AA100<=100),"POSITIVO",IF(AND(AA100<=-1,AA100>=-30),"Negativo BAJO",IF(AND(AA100<=-31,AA100>=-60),"Negativo MODERADO",IF(AND(AA100<=-61,AA100>=-100),"Negativo ALTO",IF(AND(0=AA100,AA100=0),"SIN IMPACTO"))))) -> POSITIVO | AD100: ERROR | AF100: =IF(AE100="No se aplica",$Z100*0.05,IF(AE100="Se aplica ocasionalmente",$Z100*0.1,IF(AE100="Se aplica rutinariamente",$Z100*0.25,"ERROR"))) -> ERROR | AH100: ERROR | AI100: 0 | AK100: ERROR | AM100: =IF(AL100="No se aplica",$Z100*0.02,IF(AL100="Se aplica ocasionalmente",$Z100*0.08,IF(AL100="Se aplica rutinariamente",$Z100*0.2,"ERROR"))) -> ERROR | AO100: ERROR | AP100: 0 | AR100: ERROR | AT100: ERROR | AV100: ERROR | AW100: 0 | AX100: 0 | AY100: 59.725 | AZ100: 59.725 | BA100: POSITIVO | BB100: Plan de Gestión Integral de residuos sólidos, matriz de seguimiento a programas, certificados de aprovechamiento | BC100: Fomento | BD100: Seguir los lineamientos, directrices y/o requerimientos legales asociados con documento(s) relacionado(s)
A101: Dirección_Territorial_Antioquia | B101: Proceso_DT | C101: Gestión_Documental_ | D101: DURANTE | E101: Traslados documentales | F101: Administrativa | G101: N/A | H101: Normal | I101: Propia | J101: Suelo | K101: Generación de residuos peligrosos (TÓNERES) | L101: Contaminación del suelo (-) | M101: Negativo | N101: Inadecuado manejo integral del residuo sólido generado | O101: Fortalecimiento de conocimiento y cultura ambiental asociada con el manejo integral de residuos sólidos | P101: 10 | Q101: 5 | R101: =P101*Q101 -> 50 | S101: 5 | T101: 5 | U101: 10 | V101: =SUM(S101*3.5)+(T101*3.5)+(U101*3) -> 65 | W101: 1 | X101: 1 | Y101: 1 | Z101: 51.85 | AA101: -51.85 | AB101: =+IF(AND(1<=AA101,AA101<=100),"POSITIVO",IF(AND(AA101<=-1,AA101>=-30),"Negativo BAJO",IF(AND(AA101<=-31,AA101>=-60),"Negativo MODERADO",IF(AND(AA101<=-61,AA101>=-100),"Negativo ALTO",IF(AND(0=AA101,AA101=0),"SIN IMPACTO"))))) -> Negativo MODERADO | AC101: Se aplica rutinariamente | AD101: 12.9625 | AE101: Se aplica rutinariamente | AF101: =IF(AE101="No se aplica",$Z101*0.05,IF(AE101="Se aplica ocasionalmente",$Z101*0.1,IF(AE101="Se aplica rutinariamente",$Z101*0.25,"ERROR"))) -> 12.9625 | AG101: Se aplica rutinariamente | AH101: 12.9625 | AI101: 12.9625 | AJ101: Se aplica rutinariamente | AK101: 10.37 | AL101: Se aplica rutinariamente | AM101: =IF(AL101="No se aplica",$Z101*0.02,IF(AL101="Se aplica ocasionalmente",$Z101*0.08,IF(AL101="Se aplica rutinariamente",$Z101*0.2,"ERROR"))) -> 10.37 | AN101: Se aplica rutinariamente | AO101: 10.37 | AP101: 10.37 | AQ101: Se aplica rutinariamente | AR101: =IF(AQ101="No se aplica",$Z101*0.02,IF(AQ101="Se aplica ocasionalmente",$Z101*0.08,IF(AQ101="Se aplica rutinariamente",$Z101*0.2,"ERROR"))) -> 10.37 | AS101: Se aplica rutinariamente | AT101: 10.37 | AU101: Se aplica rutinariamente | AV101: =IF(AU101="No se aplica",$Z101*0.02,IF(AU101="Se aplica ocasionalmente",$Z101*0.08,IF(AU101="Se aplica rutinariamente",$Z101*0.2,"ERROR"))) -> 10.37 | AW101: 7.7775 | AX101: 31.11 | AY101: 20.74 | AZ101: -20.74 | BA101: =+IF(AND(1<=AZ101,AZ101<=100),"POSITIVO",IF(AND(AZ101<=-1,AZ101>=-30),"Negativo BAJO",IF(AND(AZ101<=-31,AZ101>=-60),"Negativo MODERADO",IF(AND(AZ101<=-61,AZ101>=-100),"Negativo ALTO",IF(AND(0=AZ101,AZ101=0),"SIN IMPACTO"))))) -> Negativo BAJO | BB101: Plan de Gestión Integral de residuos sólidos, matriz de seguimiento a programas, certificados de disposición final, licencia ambiental | BC101: Prevención | BD101: Seguir los lineamientos, directrices y/o requerimientos legales asociados con documento(s) relacionado(s)
A102: Dirección_Territorial_Antioquia | B102: Proceso_DT | C102: Gestión_Interinstitucional_ | D102: DURANTE | E102: Adelantar gestiones para la cooperación internacional y alianzas estratégicas en el territorio | F102: Administrativa | G102: N/A | H102: Normal | I102: Propia | J102: Suelo | K102: Consumo de energía eléctrica | L102: Agotamiento de los recursos naturales (-) | M102: Negativo | N102: Aumento del consumo del recurso por malas prácticas ambientales y/o daños en aparatos eléctricos y electrónicos | O102: Fortalecimiento de cultura ambiental de personas que hagan uso del recurso y/o revisiones periódicas de los equipos eléctricos y electrónicos | P102: 10 | Q102: 5 | R102: 50 | S102: 10 | T102: 1 | U102: 5 | V102: =SUM(S102*3.5)+(T102*3.5)+(U102*3) -> 53.5 | W102: 1 | X102: 1 | Y102: 1 | Z102: =SUM(R102*0.45)+(V102*0.45)+(Y102*0.1) -> 46.675 | AA102: -46.675 | AB102: =+IF(AND(1<=AA102,AA102<=100),"POSITIVO",IF(AND(AA102<=-1,AA102>=-30),"Negativo BAJO",IF(AND(AA102<=-31,AA102>=-60),"Negativo MODERADO",IF(AND(AA102<=-61,AA102>=-100),"Negativo ALTO",IF(AND(0=AA102,AA102=0),"SIN IMPACTO"))))) -> Negativo MODERADO | AC102: Se aplica rutinariamente | AD102: 11.66875 | AE102: Se aplica rutinariamente | AF102: 11.66875 | AG102: Se aplica rutinariamente | AH102: 11.66875 | AI102: 11.66875 | AJ102: Se aplica rutinariamente | AK102: 9.335 | AL102: Se aplica rutinariamente | AM102: 9.335 | AN102: Se aplica rutinariamente | AO102: 9.335 | AP102: 9.335 | AQ102: Se aplica rutinariamente | AR102: =IF(AQ102="No se aplica",$Z102*0.02,IF(AQ102="Se aplica ocasionalmente",$Z102*0.08,IF(AQ102="Se aplica rutinariamente",$Z102*0.2,"ERROR"))) -> 9.335 | AS102: Se aplica rutinariamente | AT102: 9.335 | AU102: Se aplica rutinariamente | AV102: =IF(AU102="No se aplica",$Z102*0.02,IF(AU102="Se aplica ocasionalmente",$Z102*0.08,IF(AU102="Se aplica rutinariamente",$Z102*0.2,"ERROR"))) -> 9.335 | AW102: 7.00125 | AX102: 28.005 | AY102: 18.67 | AZ102: -18.67 | BA102: =+IF(AND(1<=AZ102,AZ102<=100),"POSITIVO",IF(AND(AZ102<=-1,AZ102>=-30),"Negativo BAJO",IF(AND(AZ102<=-31,AZ102>=-60),"Negativo MODERADO",IF(AND(AZ102<=-61,AZ102>=-100),"Negativo ALTO",IF(AND(0=AZ102,AZ102=0),"SIN IMPACTO"))))) -> Negativo BAJO | BB102: Guía de buenas prácticas ambientales, matriz de seguimiento a programas, estudios previos, anexo guía para supervisión SGA, normograma, matriz de verificación al cumplimiento legal | BC102: Prevención | BD102: Seguir los lineamientos, directrices y/o requerimientos legales asociados con documento(s) relacionado(s)
A103: Dirección_Territorial_Antioquia | B103: Proceso_DT | C103: Gestión_Interinstitucional_ | D103: DURANTE | E103: Adelantar gestiones para la cooperación internacional y alianzas estratégicas en el territorio | F103: Administrativa | G103: N/A | H103: Normal | I103: Propia | J103: Flora | K103: Consumo de papel | L103: Agotamiento de los recursos naturales (-) | M103: Negativo | N103: Aumento del consumo del recurso por malas prácticas ambientales y/o cambios en los procesos | O103: Fortalecimiento de cultura ambiental de personas que hagan uso del recurso y/o establecimiento de recomendaciones ambientales en cambios de procesos | P103: 10 | Q103: 5 | R103: 50 | S103: 10 | T103: 5 | U103: 5 | V103: 67.5 | W103: 1 | X103: 1 | Y103: 1 | Z103: =SUM(R103*0.45)+(V103*0.45)+(Y103*0.1) -> 52.975 | AA103: -52.975 | AB103: Negativo MODERADO | AC103: Se aplica rutinariamente | AD103: 13.24375 | AE103: Se aplica rutinariamente | AF103: 13.24375 | AG103: Se aplica rutinariamente | AH103: 13.24375 | AI103: 13.24375 | AJ103: Se aplica rutinariamente | AK103: 10.595 | AL103: Se aplica rutinariamente | AM103: 10.595 | AN103: Se aplica rutinariamente | AO103: 10.595 | AP103: 10.595 | AQ103: Se aplica rutinariamente | AR103: 10.595 | AS103: Se aplica rutinariamente | AT103: 10.595 | AU103: Se aplica rutinariamente | AV103: 10.595 | AW103: 7.94625 | AX103: 31.785 | AY103: 21.19 | AZ103: -21.19 | BA103: =+IF(AND(1<=AZ103,AZ103<=100),"POSITIVO",IF(AND(AZ103<=-1,AZ103>=-30),"Negativo BAJO",IF(AND(AZ103<=-31,AZ103>=-60),"Negativo MODERADO",IF(AND(AZ103<=-61,AZ103>=-100),"Negativo ALTO",IF(AND(0=AZ103,AZ103=0),"SIN IMPACTO"))))) -> Negativo BAJO | BB103: Guía de buenas prácticas ambientales, matriz de seguimiento a programas, estudios previos, anexo guía para supervisión SGA, normograma, matriz de verificación al cumplimiento legal | BC103: Prevención | BD103: Seguir los lineamientos, directrices y/o requerimientos legales asociados con documento(s) relacionado(s)
A104: Dirección_Territorial_Antioquia | B104: Proceso_DT | C104: Gestión_Interinstitucional_ | D104: DURANTE | E104: Adelantar gestiones para la cooperación internacional y alianzas estratégicas en el territorio | F104: Administrativa | G104: N/A | H104: Normal | I104: Propia | J104: Suelo | K104: Consumo de tóner | L104: Agotamiento de los recursos naturales (-) | M104: Negativo | N104: Aumento del consumo del recurso por malas prácticas ambientales y/o cambios en los procesos | O104: Fortalecimiento de cultura ambiental de personas que hagan uso del recurso y/o establecimiento de recomendaciones ambientales en cambios de procesos | P104: 1 | Q104: 1 | R104: =P104*Q104 -> 1 | S104: 10 | T104: 5 | U104: 1 | V104: 55.5 | W104: 1 | X104: 1 | Y104: 1 | Z104: 25.525 | AA104: -25.525 | AB104: Negativo BAJO | AD104: ERROR | AF104: ERROR | AH104: ERROR | AI104: 0 | AK104: ERROR | AM104: ERROR | AO104: ERROR | AP104: 0 | AR104: ERROR | AT104: ERROR | AV104: ERROR | AW104: 0 | AX104: 0 | AY104: 25.525 | AZ104: -25.525 | BA104: Negativo BAJO | BB104: Estudios previos, anexo guía para supervisión SGA, normograma, matriz de verificación al cumplimiento legal, guía de buenas prácticas ambientales | BC104: Prevención | BD104: Seguir los lineamientos, directrices y/o requerimientos legales asociados con documento(s) relacionado(s)
A105: Dirección_Territorial_Antioquia | B105: Proceso_DT | C105: Gestión_Interinstitucional_ | D105: DURANTE | E105: Adelantar gestiones para la cooperación internacional y alianzas estratégicas en el territorio | F105: Administrativa | G105: N/A | H105: Normal | I105: Propia | J105: Sociedad | K105: Conversión a medios tecnológicos | L105: Disminución de consumo de papel (+) | M105: Positivo | N105: Fallas y/o inadecuado funcionamiento del medio tecnológico | O105: Realizar mantenimientos y/o revisiones de funcionamiento periódicas del medio tecnológico empleado | P105: 10 | Q105: 5 | R105: =P105*Q105 -> 50 | S105: 10 | T105: 5 | U105: 5 | V105: =SUM(S105*3.5)+(T105*3.5)+(U105*3) -> 67.5 | W105: 1 | X105: 1 | Y105: 1 | Z105: 52.975 | AA105: 52.975 | AB105: =+IF(AND(1<=AA105,AA105<=100),"POSITIVO",IF(AND(AA105<=-1,AA105>=-30),"Negativo BAJO",IF(AND(AA105<=-31,AA105>=-60),"Negativo MODERADO",IF(AND(AA105<=-61,AA105>=-100),"Negativo ALTO",IF(AND(0=AA105,AA105=0),"SIN IMPACTO"))))) -> POSITIVO | AD105: ERROR | AF105: ERROR | AH105: ERROR | AI105: 0 | AK105: ERROR | AM105: ERROR | AO105: ERROR | AP105: 0 | AR105: ERROR | AT105: ERROR | AV105: ERROR | AW105: 0 | AX105: 0 | AY105: 52.975 | AZ105: 52.975 | BA105: POSITIVO | BB105: Matriz de seguimiento a programas, guía de buenas prácticas ambientales, estudios previos | BC105: Fomento | BD105: Seguir los lineamientos, directrices y/o requerimientos legales asociados con documento(s) relacionado(s)
A106: Dirección_Territorial_Antioquia | B106: Proceso_DT | C106: Gestión_Interinstitucional_ | D106: DURANTE | E106: Adelantar gestiones para la cooperación internacional y alianzas estratégicas en el territorio | F106: Administrativa | G106: N/A | H106: Normal | I106: Propia | J106: Suelo | K106: Generación de residuos aprovechables (PAPEL) | L106: Disminución de carga en los rellenos sanitarios (+) | M106: Positivo | N106: Inadecuada segregación del residuo sólido generado | O106: Fortalecimiento de conocimiento y cultura ambiental asociada con el manejo integral de residuos sólidos | P106: 10 | Q106: 5 | R106: 50 | S106: 10 | T106: 5 | U106: 10 | V106: =SUM(S106*3.5)+(T106*3.5)+(U106*3) -> 82.5 | W106: 1 | X106: 1 | Y106: 1 | Z106: 59.725 | AA106: 59.725 | AB106: =+IF(AND(1<=AA106,AA106<=100),"POSITIVO",IF(AND(AA106<=-1,AA106>=-30),"Negativo BAJO",IF(AND(AA106<=-31,AA106>=-60),"Negativo MODERADO",IF(AND(AA106<=-61,AA106>=-100),"Negativo ALTO",IF(AND(0=AA106,AA106=0),"SIN IMPACTO"))))) -> POSITIVO | AD106: =IF(AC106="No se aplica",$Z106*0.05,IF(AC106="Se aplica ocasionalmente",$Z106*0.1,IF(AC106="Se aplica rutinariamente",$Z106*0.25,"ERROR"))) -> ERROR | AF106: =IF(AE106="No se aplica",$Z106*0.05,IF(AE106="Se aplica ocasionalmente",$Z106*0.1,IF(AE106="Se aplica rutinariamente",$Z106*0.25,"ERROR"))) -> ERROR | AH106: =IF(AG106="No se aplica",$Z106*0.05,IF(AG106="Se aplica ocasionalmente",$Z106*0.1,IF(AG106="Se aplica rutinariamente",$Z106*0.25,"ERROR"))) -> ERROR | AI106: =SUM(AD106,AF106,AH106)/3 -> 0 | AK106: =IF(AJ106="No se aplica",$Z106*0.02,IF(AJ106="Se aplica ocasionalmente",$Z106*0.08,IF(AJ106="Se aplica rutinariamente",$Z106*0.2,"ERROR"))) -> ERROR | AM106: =IF(AL106="No se aplica",$Z106*0.02,IF(AL106="Se aplica ocasionalmente",$Z106*0.08,IF(AL106="Se aplica rutinariamente",$Z106*0.2,"ERROR"))) -> ERROR | AO106: =IF(AN106="No se aplica",$Z106*0.02,IF(AN106="Se aplica ocasionalmente",$Z106*0.08,IF(AN106="Se aplica rutinariamente",$Z106*0.2,"ERROR"))) -> ERROR | AP106: =SUM(AK106,AM106,AO106)/3 -> 0 | AR106: =IF(AQ106="No se aplica",$Z106*0.02,IF(AQ106="Se aplica ocasionalmente",$Z106*0.08,IF(AQ106="Se aplica rutinariamente",$Z106*0.2,"ERROR"))) -> ERROR | AT106: =IF(AS106="No se aplica",$Z106*0.02,IF(AS106="Se aplica ocasionalmente",$Z106*0.08,IF(AS106="Se aplica rutinariamente",$Z106*0.2,"ERROR"))) -> ERROR | AV106: =IF(AU106="No se aplica",$Z106*0.02,IF(AU106="Se aplica ocasionalmente",$Z106*0.08,IF(AU106="Se aplica rutinariamente",$Z106*0.2,"ERROR"))) -> ERROR | AW106: =SUM(AR106,AT106,AV106)/4 -> 0 | AX106: =SUM(AI106,AP106,AW106) -> 0 | AY106: 59.725 | AZ106: 59.725 | BA106: POSITIVO | BB106: Plan de Gestión Integral de residuos sólidos, matriz de seguimiento a programas, certificados de aprovechamiento | BC106: Fomento | BD106: Seguir los lineamientos, directrices y/o requerimientos legales asociados con documento(s) relacionado(s)
A107: Dirección_Territorial_Antioquia | B107: Proceso_DT | C107: Gestión_Interinstitucional_ | D107: DURANTE | E107: Adelantar gestiones para la cooperación internacional y alianzas estratégicas en el territorio | F107: Administrativa | G107: N/A | H107: Normal | I107: Propia | J107: Suelo | K107: Generación de residuos peligrosos (TÓNERES) | L107: Contaminación del suelo (-) | M107: Negativo | N107: Inadecuado manejo integral del residuo sólido generado | O107: Fortalecimiento de conocimiento y cultura ambiental asociada con el manejo integral de residuos sólidos | P107: 10 | Q107: 5 | R107: 50 | S107: 5 | T107: 5 | U107: 10 | V107: 65 | W107: 1 | X107: 1 | Y107: 1 | Z107: 51.85 | AA107: -51.85 | AB107: Negativo MODERADO | AC107: Se aplica rutinariamente | AD107: =IF(AC107="No se aplica",$Z107*0.05,IF(AC107="Se aplica ocasionalmente",$Z107*0.1,IF(AC107="Se aplica rutinariamente",$Z107*0.25,"ERROR"))) -> 12.9625 | AE107: Se aplica rutinariamente | AF107: =IF(AE107="No se aplica",$Z107*0.05,IF(AE107="Se aplica ocasionalmente",$Z107*0.1,IF(AE107="Se aplica rutinariamente",$Z107*0.25,"ERROR"))) -> 12.9625 | AG107: Se aplica rutinariamente | AH107: =IF(AG107="No se aplica",$Z107*0.05,IF(AG107="Se aplica ocasionalmente",$Z107*0.1,IF(AG107="Se aplica rutinariamente",$Z107*0.25,"ERROR"))) -> 12.9625 | AI107: =SUM(AD107,AF107,AH107)/3 -> 12.9625 | AJ107: Se aplica rutinariamente | AK107: =IF(AJ107="No se aplica",$Z107*0.02,IF(AJ107="Se aplica ocasionalmente",$Z107*0.08,IF(AJ107="Se aplica rutinariamente",$Z107*0.2,"ERROR"))) -> 10.37 | AL107: Se aplica rutinariamente | AM107: =IF(AL107="No se aplica",$Z107*0.02,IF(AL107="Se aplica ocasionalmente",$Z107*0.08,IF(AL107="Se aplica rutinariamente",$Z107*0.2,"ERROR"))) -> 10.37 | AN107: Se aplica rutinariamente | AO107: =IF(AN107="No se aplica",$Z107*0.02,IF(AN107="Se aplica ocasionalmente",$Z107*0.08,IF(AN107="Se aplica rutinariamente",$Z107*0.2,"ERROR"))) -> 10.37 | AP107: =SUM(AK107,AM107,AO107)/3 -> 10.37 | AQ107: Se aplica rutinariamente | AR107: =IF(AQ107="No se aplica",$Z107*0.02,IF(AQ107="Se aplica ocasionalmente",$Z107*0.08,IF(AQ107="Se aplica rutinariamente",$Z107*0.2,"ERROR"))) -> 10.37 | AS107: Se aplica rutinariamente | AT107: =IF(AS107="No se aplica",$Z107*0.02,IF(AS107="Se aplica ocasionalmente",$Z107*0.08,IF(AS107="Se aplica rutinariamente",$Z107*0.2,"ERROR"))) -> 10.37 | AU107: Se aplica rutinariamente | AV107: =IF(AU107="No se aplica",$Z107*0.02,IF(AU107="Se aplica ocasionalmente",$Z107*0.08,IF(AU107="Se aplica rutinariamente",$Z107*0.2,"ERROR"))) -> 10.37 | AW107: =SUM(AR107,AT107,AV107)/4 -> 7.7775 | AX107: =SUM(AI107,AP107,AW107) -> 31.11 | AY107: 20.74 | AZ107: -20.74 | BA107: Negativo BAJO | BB107: Plan de Gestión Integral de residuos sólidos, matriz de seguimiento a programas, certificados de disposición final, licencia ambiental | BC107: Prevención | BD107: Seguir los lineamientos, directrices y/o requerimientos legales asociados con documento(s) relacionado(s)
A108: Dirección_Territorial_Antioquia | B108: Proceso_DT | C108: Gestión_Interinstitucional_ | D108: DURANTE | E108: Asistencia técnica y acompañamiento a los EETT en los comités de justicia transicional para el cumplimiento de la PPV | F108: Administrativa | G108: N/A | H108: Normal | I108: Propia | J108: Suelo | K108: Consumo de energía eléctrica | L108: Agotamiento de los recursos naturales (-) | M108: Negativo | N108: Aumento del consumo del recurso por malas prácticas ambientales y/o daños en aparatos eléctricos y electrónicos | O108: Fortalecimiento de cultura ambiental de personas que hagan uso del recurso y/o revisiones periódicas de los equipos eléctricos y electrónicos | P108: 10 | Q108: 5 | R108: 50 | S108: 10 | T108: 1 | U108: 5 | V108: =SUM(S108*3.5)+(T108*3.5)+(U108*3) -> 53.5 | W108: 1 | X108: 1 | Y108: 1 | Z108: =SUM(R108*0.45)+(V108*0.45)+(Y108*0.1) -> 46.675 | AA108: -46.675 | AB108: Negativo MODERADO | AC108: Se aplica rutinariamente | AD108: 11.66875 | AE108: Se aplica rutinariamente | AF108: 11.66875 | AG108: Se aplica rutinariamente | AH108: 11.66875 | AI108: 11.66875 | AJ108: Se aplica rutinariamente | AK108: 9.335 | AL108: Se aplica rutinariamente | AM108: 9.335 | AN108: Se aplica rutinariamente | AO108: 9.335 | AP108: 9.335 | AQ108: Se aplica rutinariamente | AR108: 9.335 | AS108: Se aplica rutinariamente | AT108: 9.335 | AU108: Se aplica rutinariamente | AV108: 9.335 | AW108: 7.00125 | AX108: 28.005 | AY108: 18.67 | AZ108: -18.67 | BA108: =+IF(AND(1<=AZ108,AZ108<=100),"POSITIVO",IF(AND(AZ108<=-1,AZ108>=-30),"Negativo BAJO",IF(AND(AZ108<=-31,AZ108>=-60),"Negativo MODERADO",IF(AND(AZ108<=-61,AZ108>=-100),"Negativo ALTO",IF(AND(0=AZ108,AZ108=0),"SIN IMPACTO"))))) -> Negativo BAJO | BB108: Guía de buenas prácticas ambientales, matriz de seguimiento a programas, estudios previos, anexo guía para supervisión SGA, normograma, matriz de verificación al cumplimiento legal | BC108: Prevención | BD108: Seguir los lineamientos, directrices y/o requerimientos legales asociados con documento(s) relacionado(s)
A109: Dirección_Territorial_Antioquia | B109: Proceso_DT | C109: Gestión_Interinstitucional_ | D109: DURANTE | E109: Asistencia técnica y acompañamiento a los EETT en los comités de justicia transicional para el cumplimiento de la PPV | F109: Administrativa | G109: N/A | H109: Normal | I109: Propia | J109: Flora | K109: Consumo de papel | L109: Agotamiento de los recursos naturales (-) | M109: Negativo | N109: Aumento del consumo del recurso por malas prácticas ambientales y/o cambios en los procesos | O109: Fortalecimiento de cultura ambiental de personas que hagan uso del recurso y/o establecimiento de recomendaciones ambientales en cambios de procesos | P109: 10 | Q109: 5 | R109: 50 | S109: 10 | T109: 5 | U109: 5 | V109: 67.5 | W109: 1 | X109: 1 | Y109: 1 | Z109: =SUM(R109*0.45)+(V109*0.45)+(Y109*0.1) -> 52.975 | AA109: -52.975 | AB109: Negativo MODERADO | AC109: Se aplica rutinariamente | AD109: 13.24375 | AE109: Se aplica rutinariamente | AF109: 13.24375 | AG109: Se aplica rutinariamente | AH109: 13.24375 | AI109: 13.24375 | AJ109: Se aplica rutinariamente | AK109: 10.595 | AL109: Se aplica rutinariamente | AM109: 10.595 | AN109: Se aplica rutinariamente | AO109: 10.595 | AP109: 10.595 | AQ109: Se aplica rutinariamente | AR109: 10.595 | AS109: Se aplica rutinariamente | AT109: 10.595 | AU109: Se aplica rutinariamente | AV109: 10.595 | AW109: 7.94625 | AX109: 31.785 | AY109: 21.19 | AZ109: -21.19 | BA109: =+IF(AND(1<=AZ109,AZ109<=100),"POSITIVO",IF(AND(AZ109<=-1,AZ109>=-30),"Negativo BAJO",IF(AND(AZ109<=-31,AZ109>=-60),"Negativo MODERADO",IF(AND(AZ109<=-61,AZ109>=-100),"Negativo ALTO",IF(AND(0=AZ109,AZ109=0),"SIN IMPACTO"))))) -> Negativo BAJO | BB109: Guía de buenas prácticas ambientales, matriz de seguimiento a programas, estudios previos, anexo guía para supervisión SGA, normograma, matriz de verificación al cumplimiento legal | BC109: Prevención | BD109: Seguir los lineamientos, directrices y/o requerimientos legales asociados con documento(s) relacionado(s)
A110: Dirección_Territorial_Antioquia | B110: Proceso_DT | C110: Gestión_Interinstitucional_ | D110: DURANTE | E110: Asistencia técnica y acompañamiento a los EETT en los comités de justicia transicional para el cumplimiento de la PPV | F110: Administrativa | G110: N/A | H110: Normal | I110: Propia | J110: Sociedad | K110: Conversión a medios tecnológicos | L110: Disminución de consumo de papel (+) | M110: Positivo | N110: Fallas y/o inadecuado funcionamiento del medio tecnológico | O110: Realizar mantenimientos y/o revisiones de funcionamiento periódicas del medio tecnológico empleado | P110: 10 | Q110: 5 | R110: =P110*Q110 -> 50 | S110: 10 | T110: 5 | U110: 5 | V110: 67.5 | W110: 1 | X110: 1 | Y110: 1 | Z110: 52.975 | AA110: 52.975 | AB110: =+IF(AND(1<=AA110,AA110<=100),"POSITIVO",IF(AND(AA110<=-1,AA110>=-30),"Negativo BAJO",IF(AND(AA110<=-31,AA110>=-60),"Negativo MODERADO",IF(AND(AA110<=-61,AA110>=-100),"Negativo ALTO",IF(AND(0=AA110,AA110=0),"SIN IMPACTO"))))) -> POSITIVO | AD110: ERROR | AF110: =IF(AE110="No se aplica",$Z110*0.05,IF(AE110="Se aplica ocasionalmente",$Z110*0.1,IF(AE110="Se aplica rutinariamente",$Z110*0.25,"ERROR"))) -> ERROR | AH110: ERROR | AI110: 0 | AK110: ERROR | AM110: =IF(AL110="No se aplica",$Z110*0.02,IF(AL110="Se aplica ocasionalmente",$Z110*0.08,IF(AL110="Se aplica rutinariamente",$Z110*0.2,"ERROR"))) -> ERROR | AO110: ERROR | AP110: 0 | AR110: ERROR | AT110: ERROR | AV110: ERROR | AW110: 0 | AX110: 0 | AY110: 52.975 | AZ110: 52.975 | BA110: POSITIVO | BB110: Matriz de seguimiento a programas, guía de buenas prácticas ambientales, estudios previos | BC110: Fomento | BD110: Seguir los lineamientos, directrices y/o requerimientos legales asociados con documento(s) relacionado(s)
A111: Dirección_Territorial_Antioquia | B111: Proceso_DT | C111: Gestión_Interinstitucional_ | D111: DURANTE | E111: Asistencia técnica y acompañamiento a los EETT en los comités de justicia transicional para el cumplimiento de la PPV | F111: Administrativa | G111: N/A | H111: Normal | I111: Propia | J111: Suelo | K111: Generación de residuos aprovechables (PAPEL) | L111: Disminución de carga en los rellenos sanitarios (+) | M111: Positivo | N111: Inadecuada segregación del residuo sólido generado | O111: Fortalecimiento de conocimiento y cultura ambiental asociada con el manejo integral de residuos sólidos | P111: 10 | Q111: 5 | R111: =P111*Q111 -> 50 | S111: 10 | T111: 5 | U111: 10 | V111: =SUM(S111*3.5)+(T111*3.5)+(U111*3) -> 82.5 | W111: 1 | X111: 1 | Y111: 1 | Z111: 59.725 | AA111: 59.725 | AB111: =+IF(AND(1<=AA111,AA111<=100),"POSITIVO",IF(AND(AA111<=-1,AA111>=-30),"Negativo BAJO",IF(AND(AA111<=-31,AA111>=-60),"Negativo MODERADO",IF(AND(AA111<=-61,AA111>=-100),"Negativo ALTO",IF(AND(0=AA111,AA111=0),"SIN IMPACTO"))))) -> POSITIVO | AD111: ERROR | AF111: =IF(AE111="No se aplica",$Z111*0.05,IF(AE111="Se aplica ocasionalmente",$Z111*0.1,IF(AE111="Se aplica rutinariamente",$Z111*0.25,"ERROR"))) -> ERROR | AH111: ERROR | AI111: 0 | AK111: ERROR | AM111: =IF(AL111="No se aplica",$Z111*0.02,IF(AL111="Se aplica ocasionalmente",$Z111*0.08,IF(AL111="Se aplica rutinariamente",$Z111*0.2,"ERROR"))) -> ERROR | AO111: ERROR | AP111: 0 | AR111: ERROR | AT111: ERROR | AV111: ERROR | AW111: 0 | AX111: 0 | AY111: 59.725 | AZ111: 59.725 | BA111: POSITIVO | BB111: Plan de Gestión Integral de residuos sólidos, matriz de seguimiento a programas, certificados de aprovechamiento | BC111: Fomento | BD111: Seguir los lineamientos, directrices y/o requerimientos legales asociados con documento(s) relacionado(s)
A112: Dirección_Territorial_Antioquia | B112: Proceso_DT | C112: Gestión_Jurídica_ | D112: DURANTE | E112: Consecución de insumos para dar trámite y respuesta a los requerimientos judiciales | F112: Administrativa | G112: N/A | H112: Normal | I112: Propia | J112: Suelo | K112: Consumo de energía eléctrica | L112: Agotamiento de los recursos naturales (-) | M112: Negativo | N112: Aumento del consumo del recurso por malas prácticas ambientales y/o daños en aparatos eléctricos y electrónicos | O112: Fortalecimiento de cultura ambiental de personas que hagan uso del recurso y/o revisiones periódicas de los equipos eléctricos y electrónicos | P112: 10 | Q112: 5 | R112: 50 | S112: 10 | T112: 1 | U112: 5 | V112: 53.5 | W112: 1 | X112: 1 | Y112: 1 | Z112: =SUM(R112*0.45)+(V112*0.45)+(Y112*0.1) -> 46.675 | AA112: -46.675 | AB112: =+IF(AND(1<=AA112,AA112<=100),"POSITIVO",IF(AND(AA112<=-1,AA112>=-30),"Negativo BAJO",IF(AND(AA112<=-31,AA112>=-60),"Negativo MODERADO",IF(AND(AA112<=-61,AA112>=-100),"Negativo ALTO",IF(AND(0=AA112,AA112=0),"SIN IMPACTO"))))) -> Negativo MODERADO | AC112: Se aplica rutinariamente | AD112: 11.66875 | AE112: Se aplica rutinariamente | AF112: 11.66875 | AG112: Se aplica rutinariamente | AH112: 11.66875 | AI112: 11.66875 | AJ112: Se aplica rutinariamente | AK112: 9.335 | AL112: Se aplica rutinariamente | AM112: 9.335 | AN112: Se aplica rutinariamente | AO112: 9.335 | AP112: 9.335 | AQ112: Se aplica rutinariamente | AR112: =IF(AQ112="No se aplica",$Z112*0.02,IF(AQ112="Se aplica ocasionalmente",$Z112*0.08,IF(AQ112="Se aplica rutinariamente",$Z112*0.2,"ERROR"))) -> 9.335 | AS112: Se aplica rutinariamente | AT112: 9.335 | AU112: Se aplica rutinariamente | AV112: =IF(AU112="No se aplica",$Z112*0.02,IF(AU112="Se aplica ocasionalmente",$Z112*0.08,IF(AU112="Se aplica rutinariamente",$Z112*0.2,"ERROR"))) -> 9.335 | AW112: 7.00125 | AX112: 28.005 | AY112: 18.67 | AZ112: -18.67 | BA112: =+IF(AND(1<=AZ112,AZ112<=100),"POSITIVO",IF(AND(AZ112<=-1,AZ112>=-30),"Negativo BAJO",IF(AND(AZ112<=-31,AZ112>=-60),"Negativo MODERADO",IF(AND(AZ112<=-61,AZ112>=-100),"Negativo ALTO",IF(AND(0=AZ112,AZ112=0),"SIN IMPACTO"))))) -> Negativo BAJO | BB112: Guía de buenas prácticas ambientales, matriz de seguimiento a programas, estudios previos, anexo guía para supervisión SGA, normograma, matriz de verificación al cumplimiento legal | BC112: Prevención | BD112: Seguir los lineamientos, directrices y/o requerimientos legales asociados con documento(s) relacionado(s)
A113: Dirección_Territorial_Antioquia | B113: Proceso_DT | C113: Gestión_Jurídica_ | D113: DURANTE | E113: Consecución de insumos para dar trámite y respuesta a los requerimientos judiciales | F113: Administrativa | G113: N/A | H113: Normal | I113: Propia | J113: Flora | K113: Consumo de papel | L113: Agotamiento de los recursos naturales (-) | M113: Negativo | N113: Aumento del consumo del recurso por malas prácticas ambientales y/o cambios en los procesos | O113: Fortalecimiento de cultura ambiental de personas que hagan uso del recurso y/o establecimiento de recomendaciones ambientales en cambios de procesos | P113: 10 | Q113: 5 | R113: 50 | S113: 10 | T113: 5 | U113: 5 | V113: 67.5 | W113: 1 | X113: 1 | Y113: 1 | Z113: =SUM(R113*0.45)+(V113*0.45)+(Y113*0.1) -> 52.975 | AA113: -52.975 | AB113: =+IF(AND(1<=AA113,AA113<=100),"POSITIVO",IF(AND(AA113<=-1,AA113>=-30),"Negativo BAJO",IF(AND(AA113<=-31,AA113>=-60),"Negativo MODERADO",IF(AND(AA113<=-61,AA113>=-100),"Negativo ALTO",IF(AND(0=AA113,AA113=0),"SIN IMPACTO"))))) -> Negativo MODERADO | AC113: Se aplica rutinariamente | AD113: 13.24375 | AE113: Se aplica rutinariamente | AF113: 13.24375 | AG113: Se aplica rutinariamente | AH113: 13.24375 | AI113: 13.24375 | AJ113: Se aplica rutinariamente | AK113: 10.595 | AL113: Se aplica rutinariamente | AM113: 10.595 | AN113: Se aplica rutinariamente | AO113: 10.595 | AP113: 10.595 | AQ113: Se aplica rutinariamente | AR113: =IF(AQ113="No se aplica",$Z113*0.02,IF(AQ113="Se aplica ocasionalmente",$Z113*0.08,IF(AQ113="Se aplica rutinariamente",$Z113*0.2,"ERROR"))) -> 10.595 | AS113: Se aplica rutinariamente | AT113: 10.595 | AU113: Se aplica rutinariamente | AV113: =IF(AU113="No se aplica",$Z113*0.02,IF(AU113="Se aplica ocasionalmente",$Z113*0.08,IF(AU113="Se aplica rutinariamente",$Z113*0.2,"ERROR"))) -> 10.595 | AW113: 7.94625 | AX113: 31.785 | AY113: 21.19 | AZ113: -21.19 | BA113: =+IF(AND(1<=AZ113,AZ113<=100),"POSITIVO",IF(AND(AZ113<=-1,AZ113>=-30),"Negativo BAJO",IF(AND(AZ113<=-31,AZ113>=-60),"Negativo MODERADO",IF(AND(AZ113<=-61,AZ113>=-100),"Negativo ALTO",IF(AND(0=AZ113,AZ113=0),"SIN IMPACTO"))))) -> Negativo BAJO | BB113: Guía de buenas prácticas ambientales, matriz de seguimiento a programas, estudios previos, anexo guía para supervisión SGA, normograma, matriz de verificación al cumplimiento legal | BC113: Prevención | BD113: Seguir los lineamientos, directrices y/o requerimientos legales asociados con documento(s) relacionado(s)
A114: Dirección_Territorial_Antioquia | B114: Proceso_DT | C114: Gestión_Jurídica_ | D114: DURANTE | E114: Consecución de insumos para dar trámite y respuesta a los requerimientos judiciales | F114: Administrativa | G114: N/A | H114: Normal | I114: Propia | J114: Suelo | K114: Consumo de tóner | L114: Agotamiento de los recursos naturales (-) | M114: Negativo | N114: Aumento del consumo del recurso por malas prácticas ambientales y/o cambios en los procesos | O114: Fortalecimiento de cultura ambiental de personas que hagan uso del recurso y/o establecimiento de recomendaciones ambientales en cambios de procesos | P114: 1 | Q114: 1 | R114: 1 | S114: 10 | T114: 5 | U114: 1 | V114: 55.5 | W114: 1 | X114: 1 | Y114: 1 | Z114: =SUM(R114*0.45)+(V114*0.45)+(Y114*0.1) -> 25.525 | AA114: -25.525 | AB114: Negativo BAJO | AD114: ERROR | AF114: ERROR | AH114: ERROR | AI114: 0 | AK114: ERROR | AM114: ERROR | AO114: ERROR | AP114: 0 | AR114: ERROR | AT114: ERROR | AV114: ERROR | AW114: 0 | AX114: 0 | AY114: 25.525 | AZ114: -25.525 | BA114: =+IF(AND(1<=AZ114,AZ114<=100),"POSITIVO",IF(AND(AZ114<=-1,AZ114>=-30),"Negativo BAJO",IF(AND(AZ114<=-31,AZ114>=-60),"Negativo MODERADO",IF(AND(AZ114<=-61,AZ114>=-100),"Negativo ALTO",IF(AND(0=AZ114,AZ114=0),"SIN IMPACTO"))))) -> Negativo BAJO | BB114: Estudios previos, anexo guía para supervisión SGA, normograma, matriz de verificación al cumplimiento legal, guía de buenas prácticas ambientales | BC114: Prevención | BD114: Seguir los lineamientos, directrices y/o requerimientos legales asociados con documento(s) relacionado(s)
A115: Dirección_Territorial_Antioquia | B115: Proceso_DT | C115: Gestión_Jurídica_ | D115: DURANTE | E115: Consecución de insumos para dar trámite y respuesta a los requerimientos judiciales | F115: Administrativa | G115: N/A | H115: Normal | I115: Propia | J115: Sociedad | K115: Conversión a medios tecnológicos | L115: Disminución de consumo de papel (+) | M115: Positivo | N115: Fallas y/o inadecuado funcionamiento del medio tecnológico | O115: Realizar mantenimientos y/o revisiones de funcionamiento periódicas del medio tecnológico empleado | P115: 10 | Q115: 5 | R115: 50 | S115: 10 | T115: 5 | U115: 5 | V115: 67.5 | W115: 1 | X115: 1 | Y115: 1 | Z115: 52.975 | AA115: 52.975 | AB115: POSITIVO | AD115: ERROR | AF115: ERROR | AH115: ERROR | AI115: 0 | AK115: ERROR | AM115: ERROR | AO115: ERROR | AP115: 0 | AR115: ERROR | AT115: ERROR | AV115: ERROR | AW115: 0 | AX115: 0 | AY115: 52.975 | AZ115: 52.975 | BA115: POSITIVO | BB115: Matriz de seguimiento a programas, guía de buenas prácticas ambientales, estudios previos | BC115: Fomento | BD115: Seguir los lineamientos, directrices y/o requerimientos legales asociados con documento(s) relacionado(s)
A116: Dirección_Territorial_Antioquia | B116: Proceso_DT | C116: Gestión_Jurídica_ | D116: DURANTE | E116: Consecución de insumos para dar trámite y respuesta a los requerimientos judiciales | F116: Administrativa | G116: N/A | H116: Normal | I116: Propia | J116: Suelo | K116: Generación de residuos aprovechables (PAPEL) | L116: Disminución de carga en los rellenos sanitarios (+) | M116: Positivo | N116: Inadecuada segregación del residuo sólido generado | O116: Fortalecimiento de conocimiento y cultura ambiental asociada con el manejo integral de residuos sólidos | P116: 10 | Q116: 5 | R116: 50 | S116: 10 | T116: 5 | U116: 10 | V116: =SUM(S116*3.5)+(T116*3.5)+(U116*3) -> 82.5 | W116: 1 | X116: 1 | Y116: 1 | Z116: =SUM(R116*0.45)+(V116*0.45)+(Y116*0.1) -> 59.725 | AA116: 59.725 | AB116: POSITIVO | AD116: ERROR | AF116: ERROR | AH116: ERROR | AI116: 0 | AK116: ERROR | AM116: ERROR | AO116: ERROR | AP116: 0 | AR116: ERROR | AT116: ERROR | AV116: ERROR | AW116: 0 | AX116: 0 | AY116: 59.725 | AZ116: 59.725 | BA116: POSITIVO | BB116: Plan de Gestión Integral de residuos sólidos, matriz de seguimiento a programas, certificados de aprovechamiento | BC116: Fomento | BD116: Seguir los lineamientos, directrices y/o requerimientos legales asociados con documento(s) relacionado(s)
A117: Dirección_Territorial_Antioquia | B117: Proceso_DT | C117: Gestión_Jurídica_ | D117: DURANTE | E117: Consecución de insumos para dar trámite y respuesta a los requerimientos judiciales | F117: Administrativa | G117: N/A | H117: Normal | I117: Propia | J117: Suelo | K117: Generación de residuos peligrosos (TÓNERES) | L117: Contaminación del suelo (-) | M117: Negativo | N117: Inadecuado manejo integral del residuo sólido generado | O117: Fortalecimiento de conocimiento y cultura ambiental asociada con el manejo integral de residuos sólidos | P117: 10 | Q117: 5 | R117: 50 | S117: 5 | T117: 5 | U117: 10 | V117: =SUM(S117*3.5)+(T117*3.5)+(U117*3) -> 65 | W117: 1 | X117: 1 | Y117: 1 | Z117: =SUM(R117*0.45)+(V117*0.45)+(Y117*0.1) -> 51.85 | AA117: -51.85 | AB117: =+IF(AND(1<=AA117,AA117<=100),"POSITIVO",IF(AND(AA117<=-1,AA117>=-30),"Negativo BAJO",IF(AND(AA117<=-31,AA117>=-60),"Negativo MODERADO",IF(AND(AA117<=-61,AA117>=-100),"Negativo ALTO",IF(AND(0=AA117,AA117=0),"SIN IMPACTO"))))) -> Negativo MODERADO | AC117: Se aplica rutinariamente | AD117: 12.9625 | AE117: Se aplica rutinariamente | AF117: 12.9625 | AG117: Se aplica rutinariamente | AH117: 12.9625 | AI117: 12.9625 | AJ117: Se aplica rutinariamente | AK117: 10.37 | AL117: Se aplica rutinariamente | AM117: 10.37 | AN117: Se aplica rutinariamente | AO117: 10.37 | AP117: 10.37 | AQ117: Se aplica rutinariamente | AR117: 10.37 | AS117: Se aplica rutinariamente | AT117: 10.37 | AU117: Se aplica rutinariamente | AV117: 10.37 | AW117: 7.7775 | AX117: 31.11 | AY117: 20.74 | AZ117: -20.74 | BA117: Negativo BAJO | BB117: Plan de Gestión Integral de residuos sólidos, matriz de seguimiento a programas, certificados de disposición final, licencia ambiental | BC117: Prevención | BD117: Seguir los lineamientos, directrices y/o requerimientos legales asociados con documento(s) relacionado(s)
A118: Dirección_Territorial_Antioquia | B118: Proceso_DT | C118: Gestión_Jurídica_ | D118: DURANTE | E118: Representación jurídica de la entidad ante las instancias judiciales de los diferentes procesos | F118: Administrativa | G118: N/A | H118: Normal | I118: Propia | J118: Suelo | K118: Consumo de energía eléctrica | L118: Agotamiento de los recursos naturales (-) | M118: Negativo | N118: Aumento del consumo del recurso por malas prácticas ambientales y/o daños en aparatos eléctricos y electrónicos | O118: Fortalecimiento de cultura ambiental de personas que hagan uso del recurso y/o revisiones periódicas de los equipos eléctricos y electrónicos | P118: 10 | Q118: 5 | R118: 50 | S118: 10 | T118: 1 | U118: 5 | V118: =SUM(S118*3.5)+(T118*3.5)+(U118*3) -> 53.5 | W118: 1 | X118: 1 | Y118: 1 | Z118: 46.675 | AA118: -46.675 | AB118: =+IF(AND(1<=AA118,AA118<=100),"POSITIVO",IF(AND(AA118<=-1,AA118>=-30),"Negativo BAJO",IF(AND(AA118<=-31,AA118>=-60),"Negativo MODERADO",IF(AND(AA118<=-61,AA118>=-100),"Negativo ALTO",IF(AND(0=AA118,AA118=0),"SIN IMPACTO"))))) -> Negativo MODERADO | AC118: Se aplica rutinariamente | AD118: =IF(AC118="No se aplica",$Z118*0.05,IF(AC118="Se aplica ocasionalmente",$Z118*0.1,IF(AC118="Se aplica rutinariamente",$Z118*0.25,"ERROR"))) -> 11.66875 | AE118: Se aplica rutinariamente | AF118: =IF(AE118="No se aplica",$Z118*0.05,IF(AE118="Se aplica ocasionalmente",$Z118*0.1,IF(AE118="Se aplica rutinariamente",$Z118*0.25,"ERROR"))) -> 11.66875 | AG118: Se aplica rutinariamente | AH118: =IF(AG118="No se aplica",$Z118*0.05,IF(AG118="Se aplica ocasionalmente",$Z118*0.1,IF(AG118="Se aplica rutinariamente",$Z118*0.25,"ERROR"))) -> 11.66875 | AI118: =SUM(AD118,AF118,AH118)/3 -> 11.66875 | AJ118: Se aplica rutinariamente | AK118: =IF(AJ118="No se aplica",$Z118*0.02,IF(AJ118="Se aplica ocasionalmente",$Z118*0.08,IF(AJ118="Se aplica rutinariamente",$Z118*0.2,"ERROR"))) -> 9.335 | AL118: Se aplica rutinariamente | AM118: =IF(AL118="No se aplica",$Z118*0.02,IF(AL118="Se aplica ocasionalmente",$Z118*0.08,IF(AL118="Se aplica rutinariamente",$Z118*0.2,"ERROR"))) -> 9.335 | AN118: Se aplica rutinariamente | AO118: =IF(AN118="No se aplica",$Z118*0.02,IF(AN118="Se aplica ocasionalmente",$Z118*0.08,IF(AN118="Se aplica rutinariamente",$Z118*0.2,"ERROR"))) -> 9.335 | AP118: =SUM(AK118,AM118,AO118)/3 -> 9.335 | AQ118: Se aplica rutinariamente | AR118: =IF(AQ118="No se aplica",$Z118*0.02,IF(AQ118="Se aplica ocasionalmente",$Z118*0.08,IF(AQ118="Se aplica rutinariamente",$Z118*0.2,"ERROR"))) -> 9.335 | AS118: Se aplica rutinariamente | AT118: =IF(AS118="No se aplica",$Z118*0.02,IF(AS118="Se aplica ocasionalmente",$Z118*0.08,IF(AS118="Se aplica rutinariamente",$Z118*0.2,"ERROR"))) -> 9.335 | AU118: Se aplica rutinariamente | AV118: =IF(AU118="No se aplica",$Z118*0.02,IF(AU118="Se aplica ocasionalmente",$Z118*0.08,IF(AU118="Se aplica rutinariamente",$Z118*0.2,"ERROR"))) -> 9.335 | AW118: =SUM(AR118,AT118,AV118)/4 -> 7.00125 | AX118: =SUM(AI118,AP118,AW118) -> 28.005 | AY118: 18.67 | AZ118: -18.67 | BA118: Negativo BAJO | BB118: Guía de buenas prácticas ambientales, matriz de seguimiento a programas, estudios previos, anexo guía para supervisión SGA, normograma, matriz de verificación al cumplimiento legal | BC118: Prevención | BD118: Seguir los lineamientos, directrices y/o requerimientos legales asociados con documento(s) relacionado(s)
A119: Dirección_Territorial_Antioquia | B119: Proceso_DT | C119: Gestión_Jurídica_ | D119: DURANTE | E119: Representación jurídica de la entidad ante las instancias judiciales de los diferentes procesos | F119: Administrativa | G119: N/A | H119: Normal | I119: Propia | J119: Flora | K119: Consumo de papel | L119: Agotamiento de los recursos naturales (-) | M119: Negativo | N119: Aumento del consumo del recurso por malas prácticas ambientales y/o cambios en los procesos | O119: Fortalecimiento de cultura ambiental de personas que hagan uso del recurso y/o establecimiento de recomendaciones ambientales en cambios de procesos | P119: 10 | Q119: 5 | R119: 50 | S119: 10 | T119: 5 | U119: 5 | V119: 67.5 | W119: 1 | X119: 1 | Y119: 1 | Z119: 52.975 | AA119: -52.975 | AB119: Negativo MODERADO | AC119: Se aplica rutinariamente | AD119: =IF(AC119="No se aplica",$Z119*0.05,IF(AC119="Se aplica ocasionalmente",$Z119*0.1,IF(AC119="Se aplica rutinariamente",$Z119*0.25,"ERROR"))) -> 13.24375 | AE119: Se aplica rutinariamente | AF119: =IF(AE119="No se aplica",$Z119*0.05,IF(AE119="Se aplica ocasionalmente",$Z119*0.1,IF(AE119="Se aplica rutinariamente",$Z119*0.25,"ERROR"))) -> 13.24375 | AG119: Se aplica rutinariamente | AH119: =IF(AG119="No se aplica",$Z119*0.05,IF(AG119="Se aplica ocasionalmente",$Z119*0.1,IF(AG119="Se aplica rutinariamente",$Z119*0.25,"ERROR"))) -> 13.24375 | AI119: =SUM(AD119,AF119,AH119)/3 -> 13.24375 | AJ119: Se aplica rutinariamente | AK119: =IF(AJ119="No se aplica",$Z119*0.02,IF(AJ119="Se aplica ocasionalmente",$Z119*0.08,IF(AJ119="Se aplica rutinariamente",$Z119*0.2,"ERROR"))) -> 10.595 | AL119: Se aplica rutinariamente | AM119: =IF(AL119="No se aplica",$Z119*0.02,IF(AL119="Se aplica ocasionalmente",$Z119*0.08,IF(AL119="Se aplica rutinariamente",$Z119*0.2,"ERROR"))) -> 10.595 | AN119: Se aplica rutinariamente | AO119: =IF(AN119="No se aplica",$Z119*0.02,IF(AN119="Se aplica ocasionalmente",$Z119*0.08,IF(AN119="Se aplica rutinariamente",$Z119*0.2,"ERROR"))) -> 10.595 | AP119: =SUM(AK119,AM119,AO119)/3 -> 10.595 | AQ119: Se aplica rutinariamente | AR119: =IF(AQ119="No se aplica",$Z119*0.02,IF(AQ119="Se aplica ocasionalmente",$Z119*0.08,IF(AQ119="Se aplica rutinariamente",$Z119*0.2,"ERROR"))) -> 10.595 | AS119: Se aplica rutinariamente | AT119: =IF(AS119="No se aplica",$Z119*0.02,IF(AS119="Se aplica ocasionalmente",$Z119*0.08,IF(AS119="Se aplica rutinariamente",$Z119*0.2,"ERROR"))) -> 10.595 | AU119: Se aplica rutinariamente | AV119: =IF(AU119="No se aplica",$Z119*0.02,IF(AU119="Se aplica ocasionalmente",$Z119*0.08,IF(AU119="Se aplica rutinariamente",$Z119*0.2,"ERROR"))) -> 10.595 | AW119: =SUM(AR119,AT119,AV119)/4 -> 7.94625 | AX119: =SUM(AI119,AP119,AW119) -> 31.785 | AY119: 21.19 | AZ119: -21.19 | BA119: Negativo BAJO | BB119: Guía de buenas prácticas ambientales, matriz de seguimiento a programas, estudios previos, anexo guía para supervisión SGA, normograma, matriz de verificación al cumplimiento legal | BC119: Prevención | BD119: Seguir los lineamientos, directrices y/o requerimientos legales asociados con documento(s) relacionado(s)
A120: Dirección_Territorial_Antioquia | B120: Proceso_DT | C120: Gestión_Jurídica_ | D120: DURANTE | E120: Representación jurídica de la entidad ante las instancias judiciales de los diferentes procesos | F120: Administrativa | G120: N/A | H120: Normal | I120: Propia | J120: Suelo | K120: Consumo de tóner | L120: Agotamiento de los recursos naturales (-) | M120: Negativo | N120: Aumento del consumo del recurso por malas prácticas ambientales y/o cambios en los procesos | O120: Fortalecimiento de cultura ambiental de personas que hagan uso del recurso y/o establecimiento de recomendaciones ambientales en cambios de procesos | P120: 1 | Q120: 1 | R120: 1 | S120: 10 | T120: 5 | U120: 1 | V120: =SUM(S120*3.5)+(T120*3.5)+(U120*3) -> 55.5 | W120: 1 | X120: 1 | Y120: 1 | Z120: =SUM(R120*0.45)+(V120*0.45)+(Y120*0.1) -> 25.525 | AA120: -25.525 | AB120: Negativo BAJO | AD120: ERROR | AF120: ERROR | AH120: ERROR | AI120: 0 | AK120: ERROR | AM120: ERROR | AO120: ERROR | AP120: 0 | AR120: ERROR | AT120: ERROR | AV120: ERROR | AW120: 0 | AX120: 0 | AY120: 25.525 | AZ120: -25.525 | BA120: =+IF(AND(1<=AZ120,AZ120<=100),"POSITIVO",IF(AND(AZ120<=-1,AZ120>=-30),"Negativo BAJO",IF(AND(AZ120<=-31,AZ120>=-60),"Negativo MODERADO",IF(AND(AZ120<=-61,AZ120>=-100),"Negativo ALTO",IF(AND(0=AZ120,AZ120=0),"SIN IMPACTO"))))) -> Negativo BAJO | BB120: Estudios previos, anexo guía para supervisión SGA, normograma, matriz de verificación al cumplimiento legal, guía de buenas prácticas ambientales | BC120: Prevención | BD120: Seguir los lineamientos, directrices y/o requerimientos legales asociados con documento(s) relacionado(s)
A121: Dirección_Territorial_Antioquia | B121: Proceso_DT | C121: Gestión_Jurídica_ | D121: DURANTE | E121: Representación jurídica de la entidad ante las instancias judiciales de los diferentes procesos | F121: Administrativa | G121: N/A | H121: Normal | I121: Propia | J121: Sociedad | K121: Conversión a medios tecnológicos | L121: Disminución de consumo de papel (+) | M121: Positivo | N121: Fallas y/o inadecuado funcionamiento del medio tecnológico | O121: Realizar mantenimientos y/o revisiones de funcionamiento periódicas del medio tecnológico empleado | P121: 10 | Q121: 5 | R121: 50 | S121: 10 | T121: 5 | U121: 5 | V121: 67.5 | W121: 1 | X121: 1 | Y121: 1 | Z121: =SUM(R121*0.45)+(V121*0.45)+(Y121*0.1) -> 52.975 | AA121: 52.975 | AB121: POSITIVO | AD121: ERROR | AF121: ERROR | AH121: ERROR | AI121: 0 | AK121: ERROR | AM121: ERROR | AO121: ERROR | AP121: 0 | AR121: ERROR | AT121: ERROR | AV121: ERROR | AW121: 0 | AX121: 0 | AY121: 52.975 | AZ121: 52.975 | BA121: =+IF(AND(1<=AZ121,AZ121<=100),"POSITIVO",IF(AND(AZ121<=-1,AZ121>=-30),"Negativo BAJO",IF(AND(AZ121<=-31,AZ121>=-60),"Negativo MODERADO",IF(AND(AZ121<=-61,AZ121>=-100),"Negativo ALTO",IF(AND(0=AZ121,AZ121=0),"SIN IMPACTO"))))) -> POSITIVO | BB121: Matriz de seguimiento a programas, guía de buenas prácticas ambientales, estudios previos | BC121: Fomento | BD121: Seguir los lineamientos, directrices y/o requerimientos legales asociados con documento(s) relacionado(s)
A122: Dirección_Territorial_Antioquia | B122: Proceso_DT | C122: Gestión_Jurídica_ | D122: DURANTE | E122: Representación jurídica de la entidad ante las instancias judiciales de los diferentes procesos | F122: Administrativa | G122: N/A | H122: Normal | I122: Propia | J122: Suelo | K122: Generación de residuos aprovechables (PAPEL) | L122: Disminución de carga en los rellenos sanitarios (+) | M122: Positivo | N122: Inadecuada segregación del residuo sólido generado | O122: Fortalecimiento de conocimiento y cultura ambiental asociada con el manejo integral de residuos sólidos | P122: 10 | Q122: 5 | R122: =P122*Q122 -> 50 | S122: 10 | T122: 5 | U122: 10 | V122: 82.5 | W122: 1 | X122: 1 | Y122: 1 | Z122: 59.725 | AA122: 59.725 | AB122: =+IF(AND(1<=AA122,AA122<=100),"POSITIVO",IF(AND(AA122<=-1,AA122>=-30),"Negativo BAJO",IF(AND(AA122<=-31,AA122>=-60),"Negativo MODERADO",IF(AND(AA122<=-61,AA122>=-100),"Negativo ALTO",IF(AND(0=AA122,AA122=0),"SIN IMPACTO"))))) -> POSITIVO | AD122: ERROR | AF122: =IF(AE122="No se aplica",$Z122*0.05,IF(AE122="Se aplica ocasionalmente",$Z122*0.1,IF(AE122="Se aplica rutinariamente",$Z122*0.25,"ERROR"))) -> ERROR | AH122: ERROR | AI122: 0 | AK122: ERROR | AM122: =IF(AL122="No se aplica",$Z122*0.02,IF(AL122="Se aplica ocasionalmente",$Z122*0.08,IF(AL122="Se aplica rutinariamente",$Z122*0.2,"ERROR"))) -> ERROR | AO122: ERROR | AP122: 0 | AR122: ERROR | AT122: ERROR | AV122: ERROR | AW122: 0 | AX122: 0 | AY122: 59.725 | AZ122: 59.725 | BA122: POSITIVO | BB122: Plan de Gestión Integral de residuos sólidos, matriz de seguimiento a programas, certificados de aprovechamiento | BC122: Fomento | BD122: Seguir los lineamientos, directrices y/o requerimientos legales asociados con documento(s) relacionado(s)
A123: Dirección_Territorial_Antioquia | B123: Proceso_DT | C123: Gestión_Jurídica_ | D123: DURANTE | E123: Representación jurídica de la entidad ante las instancias judiciales de los diferentes procesos | F123: Administrativa | G123: N/A | H123: Normal | I123: Propia | J123: Suelo | K123: Generación de residuos peligrosos (TÓNERES) | L123: Contaminación del suelo (-) | M123: Negativo | N123: Inadecuado manejo integral del residuo sólido generado | O123: Fortalecimiento de conocimiento y cultura ambiental asociada con el manejo integral de residuos sólidos | P123: 10 | Q123: 5 | R123: =P123*Q123 -> 50 | S123: 5 | T123: 5 | U123: 10 | V123: =SUM(S123*3.5)+(T123*3.5)+(U123*3) -> 65 | W123: 1 | X123: 1 | Y123: 1 | Z123: 51.85 | AA123: -51.85 | AB123: =+IF(AND(1<=AA123,AA123<=100),"POSITIVO",IF(AND(AA123<=-1,AA123>=-30),"Negativo BAJO",IF(AND(AA123<=-31,AA123>=-60),"Negativo MODERADO",IF(AND(AA123<=-61,AA123>=-100),"Negativo ALTO",IF(AND(0=AA123,AA123=0),"SIN IMPACTO"))))) -> Negativo MODERADO | AC123: Se aplica rutinariamente | AD123: 12.9625 | AE123: Se aplica rutinariamente | AF123: =IF(AE123="No se aplica",$Z123*0.05,IF(AE123="Se aplica ocasionalmente",$Z123*0.1,IF(AE123="Se aplica rutinariamente",$Z123*0.25,"ERROR"))) -> 12.9625 | AG123: Se aplica rutinariamente | AH123: 12.9625 | AI123: 12.9625 | AJ123: Se aplica rutinariamente | AK123: 10.37 | AL123: Se aplica rutinariamente | AM123: =IF(AL123="No se aplica",$Z123*0.02,IF(AL123="Se aplica ocasionalmente",$Z123*0.08,IF(AL123="Se aplica rutinariamente",$Z123*0.2,"ERROR"))) -> 10.37 | AN123: Se aplica rutinariamente | AO123: 10.37 | AP123: 10.37 | AQ123: Se aplica rutinariamente | AR123: 10.37 | AS123: Se aplica rutinariamente | AT123: 10.37 | AU123: Se aplica rutinariamente | AV123: 10.37 | AW123: 7.7775 | AX123: 31.11 | AY123: 20.74 | AZ123: -20.74 | BA123: Negativo BAJO | BB123: Plan de Gestión Integral de residuos sólidos, matriz de seguimiento a programas, certificados de disposición final, licencia ambiental | BC123: Prevención | BD123: Seguir los lineamientos, directrices y/o requerimientos legales asociados con documento(s) relacionado(s)
A124: Dirección_Territorial_Antioquia | B124: Proceso_DT | C124: Gestión_Jurídica_ | D124: DURANTE | E124: Seguimiento a los despachos judiciales en territorio | F124: Administrativa | G124: N/A | H124: Normal | I124: Propia | J124: Suelo | K124: Consumo de energía eléctrica | L124: Agotamiento de los recursos naturales (-) | M124: Negativo | N124: Aumento del consumo del recurso por malas prácticas ambientales y/o daños en aparatos eléctricos y electrónicos | O124: Fortalecimiento de cultura ambiental de personas que hagan uso del recurso y/o revisiones periódicas de los equipos eléctricos y electrónicos | P124: 10 | Q124: 5 | R124: 50 | S124: 10 | T124: 1 | U124: 5 | V124: =SUM(S124*3.5)+(T124*3.5)+(U124*3) -> 53.5 | W124: 1 | X124: 1 | Y124: 1 | Z124: =SUM(R124*0.45)+(V124*0.45)+(Y124*0.1) -> 46.675 | AA124: -46.675 | AB124: =+IF(AND(1<=AA124,AA124<=100),"POSITIVO",IF(AND(AA124<=-1,AA124>=-30),"Negativo BAJO",IF(AND(AA124<=-31,AA124>=-60),"Negativo MODERADO",IF(AND(AA124<=-61,AA124>=-100),"Negativo ALTO",IF(AND(0=AA124,AA124=0),"SIN IMPACTO"))))) -> Negativo MODERADO | AC124: Se aplica rutinariamente | AD124: 11.66875 | AE124: Se aplica rutinariamente | AF124: 11.66875 | AG124: Se aplica rutinariamente | AH124: 11.66875 | AI124: 11.66875 | AJ124: Se aplica rutinariamente | AK124: 9.335 | AL124: Se aplica rutinariamente | AM124: 9.335 | AN124: Se aplica rutinariamente | AO124: 9.335 | AP124: 9.335 | AQ124: Se aplica rutinariamente | AR124: =IF(AQ124="No se aplica",$Z124*0.02,IF(AQ124="Se aplica ocasionalmente",$Z124*0.08,IF(AQ124="Se aplica rutinariamente",$Z124*0.2,"ERROR"))) -> 9.335 | AS124: Se aplica rutinariamente | AT124: 9.335 | AU124: Se aplica rutinariamente | AV124: =IF(AU124="No se aplica",$Z124*0.02,IF(AU124="Se aplica ocasionalmente",$Z124*0.08,IF(AU124="Se aplica rutinariamente",$Z124*0.2,"ERROR"))) -> 9.335 | AW124: 7.00125 | AX124: 28.005 | AY124: 18.67 | AZ124: -18.67 | BA124: =+IF(AND(1<=AZ124,AZ124<=100),"POSITIVO",IF(AND(AZ124<=-1,AZ124>=-30),"Negativo BAJO",IF(AND(AZ124<=-31,AZ124>=-60),"Negativo MODERADO",IF(AND(AZ124<=-61,AZ124>=-100),"Negativo ALTO",IF(AND(0=AZ124,AZ124=0),"SIN IMPACTO"))))) -> Negativo BAJO | BB124: Guía de buenas prácticas ambientales, matriz de seguimiento a programas, estudios previos, anexo guía para supervisión SGA, normograma, matriz de verificación al cumplimiento legal | BC124: Prevención | BD124: Seguir los lineamientos, directrices y/o requerimientos legales asociados con documento(s) relacionado(s)
A125: Dirección_Territorial_Antioquia | B125: Proceso_DT | C125: Gestión_Jurídica_ | D125: DURANTE | E125: Seguimiento a los despachos judiciales en territorio | F125: Administrativa | G125: N/A | H125: Normal | I125: Propia | J125: Flora | K125: Consumo de papel | L125: Agotamiento de los recursos naturales (-) | M125: Negativo | N125: Aumento del consumo del recurso por malas prácticas ambientales y/o cambios en los procesos | O125: Fortalecimiento de cultura ambiental de personas que hagan uso del recurso y/o establecimiento de recomendaciones ambientales en cambios de procesos | P125: 10 | Q125: 5 | R125: 50 | S125: 10 | T125: 5 | U125: 5 | V125: =SUM(S125*3.5)+(T125*3.5)+(U125*3) -> 67.5 | W125: 1 | X125: 1 | Y125: 1 | Z125: =SUM(R125*0.45)+(V125*0.45)+(Y125*0.1) -> 52.975 | AA125: -52.975 | AB125: =+IF(AND(1<=AA125,AA125<=100),"POSITIVO",IF(AND(AA125<=-1,AA125>=-30),"Negativo BAJO",IF(AND(AA125<=-31,AA125>=-60),"Negativo MODERADO",IF(AND(AA125<=-61,AA125>=-100),"Negativo ALTO",IF(AND(0=AA125,AA125=0),"SIN IMPACTO"))))) -> Negativo MODERADO | AC125: Se aplica rutinariamente | AD125: 13.24375 | AE125: Se aplica rutinariamente | AF125: 13.24375 | AG125: Se aplica rutinariamente | AH125: 13.24375 | AI125: 13.24375 | AJ125: Se aplica rutinariamente | AK125: 10.595 | AL125: Se aplica rutinariamente | AM125: 10.595 | AN125: Se aplica rutinariamente | AO125: 10.595 | AP125: 10.595 | AQ125: Se aplica rutinariamente | AR125: =IF(AQ125="No se aplica",$Z125*0.02,IF(AQ125="Se aplica ocasionalmente",$Z125*0.08,IF(AQ125="Se aplica rutinariamente",$Z125*0.2,"ERROR"))) -> 10.595 | AS125: Se aplica rutinariamente | AT125: 10.595 | AU125: Se aplica rutinariamente | AV125: =IF(AU125="No se aplica",$Z125*0.02,IF(AU125="Se aplica ocasionalmente",$Z125*0.08,IF(AU125="Se aplica rutinariamente",$Z125*0.2,"ERROR"))) -> 10.595 | AW125: 7.94625 | AX125: 31.785 | AY125: 21.19 | AZ125: -21.19 | BA125: =+IF(AND(1<=AZ125,AZ125<=100),"POSITIVO",IF(AND(AZ125<=-1,AZ125>=-30),"Negativo BAJO",IF(AND(AZ125<=-31,AZ125>=-60),"Negativo MODERADO",IF(AND(AZ125<=-61,AZ125>=-100),"Negativo ALTO",IF(AND(0=AZ125,AZ125=0),"SIN IMPACTO"))))) -> Negativo BAJO | BB125: Guía de buenas prácticas ambientales, matriz de seguimiento a programas, estudios previos, anexo guía para supervisión SGA, normograma, matriz de verificación al cumplimiento legal | BC125: Prevención | BD125: Seguir los lineamientos, directrices y/o requerimientos legales asociados con documento(s) relacionado(s)
A126: Dirección_Territorial_Antioquia | B126: Proceso_DT | C126: Gestión_Jurídica_ | D126: DURANTE | E126: Seguimiento a los despachos judiciales en territorio | F126: Administrativa | G126: N/A | H126: Normal | I126: Propia | J126: Sociedad | K126: Conversión a medios tecnológicos | L126: Disminución de consumo de papel (+) | M126: Positivo | N126: Fallas y/o inadecuado funcionamiento del medio tecnológico | O126: Realizar mantenimientos y/o revisiones de funcionamiento periódicas del medio tecnológico empleado | P126: 10 | Q126: 5 | R126: 50 | S126: 10 | T126: 5 | U126: 5 | V126: 67.5 | W126: 1 | X126: 1 | Y126: 1 | Z126: =SUM(R126*0.45)+(V126*0.45)+(Y126*0.1) -> 52.975 | AA126: 52.975 | AB126: POSITIVO | AD126: ERROR | AF126: ERROR | AH126: ERROR | AI126: 0 | AK126: ERROR | AM126: ERROR | AO126: ERROR | AP126: 0 | AR126: ERROR | AT126: ERROR | AV126: ERROR | AW126: 0 | AX126: 0 | AY126: 52.975 | AZ126: 52.975 | BA126: =+IF(AND(1<=AZ126,AZ126<=100),"POSITIVO",IF(AND(AZ126<=-1,AZ126>=-30),"Negativo BAJO",IF(AND(AZ126<=-31,AZ126>=-60),"Negativo MODERADO",IF(AND(AZ126<=-61,AZ126>=-100),"Negativo ALTO",IF(AND(0=AZ126,AZ126=0),"SIN IMPACTO"))))) -> POSITIVO | BB126: Matriz de seguimiento a programas, guía de buenas prácticas ambientales, estudios previos | BC126: Fomento | BD126: Seguir los lineamientos, directrices y/o requerimientos legales asociados con documento(s) relacionado(s)
A127: Dirección_Territorial_Antioquia | B127: Proceso_DT | C127: Gestión_Jurídica_ | D127: DURANTE | E127: Seguimiento a los despachos judiciales en territorio | F127: Administrativa | G127: N/A | H127: Normal | I127: Propia | J127: Suelo | K127: Generación de residuos aprovechables (PAPEL) | L127: Disminución de carga en los rellenos sanitarios (+) | M127: Positivo | N127: Inadecuada segregación del residuo sólido generado | O127: Fortalecimiento de conocimiento y cultura ambiental asociada con el manejo integral de residuos sólidos | P127: 10 | Q127: 5 | R127: 50 | S127: 10 | T127: 5 | U127: 10 | V127: 82.5 | W127: 1 | X127: 1 | Y127: 1 | Z127: 59.725 | AA127: 59.725 | AB127: POSITIVO | AD127: ERROR | AF127: ERROR | AH127: ERROR | AI127: 0 | AK127: ERROR | AM127: ERROR | AO127: ERROR | AP127: 0 | AR127: ERROR | AT127: ERROR | AV127: ERROR | AW127: 0 | AX127: 0 | AY127: 59.725 | AZ127: 59.725 | BA127: POSITIVO | BB127: Plan de Gestión Integral de residuos sólidos, matriz de seguimiento a programas, certificados de aprovechamiento | BC127: Fomento | BD127: Seguir los lineamientos, directrices y/o requerimientos legales asociados con documento(s) relacionado(s)
A128: Dirección_Territorial_Antioquia | B128: Proceso_DT | C128: Gestión_para_la_Asistencia_ | D128: DURANTE | E128: Apoyar proyectos agropecuarios de entidades territoriales, mediante la entrega de insumos, semillas y herramientas de uso agropecuario | F128: Administrativa | G128: N/A | H128: Normal | I128: Propia | J128: Suelo | K128: Consumo de energía eléctrica | L128: Agotamiento de los recursos naturales (-) | M128: Negativo | N128: Aumento del consumo del recurso por malas prácticas ambientales y/o daños en aparatos eléctricos y electrónicos | O128: Fortalecimiento de cultura ambiental de personas que hagan uso del recurso y/o revisiones periódicas de los equipos eléctricos y electrónicos | P128: 10 | Q128: 5 | R128: =P128*Q128 -> 50 | S128: 10 | T128: 1 | U128: 5 | V128: 53.5 | W128: 1 | X128: 1 | Y128: 1 | Z128: 46.675 | AA128: -46.675 | AB128: Negativo MODERADO | AC128: Se aplica rutinariamente | AD128: 11.66875 | AE128: Se aplica rutinariamente | AF128: 11.66875 | AG128: Se aplica rutinariamente | AH128: 11.66875 | AI128: 11.66875 | AJ128: Se aplica rutinariamente | AK128: 9.335 | AL128: Se aplica rutinariamente | AM128: 9.335 | AN128: Se aplica rutinariamente | AO128: 9.335 | AP128: 9.335 | AQ128: Se aplica rutinariamente | AR128: 9.335 | AS128: Se aplica rutinariamente | AT128: 9.335 | AU128: Se aplica rutinariamente | AV128: 9.335 | AW128: 7.00125 | AX128: 28.005 | AY128: 18.67 | AZ128: -18.67 | BA128: Negativo BAJO | BB128: Guía de buenas prácticas ambientales, matriz de seguimiento a programas, estudios previos, anexo guía para supervisión SGA, normograma, matriz de verificación al cumplimiento legal | BC128: Prevención | BD128: Seguir los lineamientos, directrices y/o requerimientos legales asociados con documento(s) relacionado(s)
A129: Dirección_Territorial_Antioquia | B129: Proceso_DT | C129: Gestión_para_la_Asistencia_ | D129: DURANTE | E129: Apoyar proyectos agropecuarios de entidades territoriales, mediante la entrega de insumos, semillas y herramientas de uso agropecuario | F129: Administrativa | G129: N/A | H129: Normal | I129: Propia | J129: Flora | K129: Consumo de papel | L129: Agotamiento de los recursos naturales (-) | M129: Negativo | N129: Aumento del consumo del recurso por malas prácticas ambientales y/o cambios en los procesos | O129: Fortalecimiento de cultura ambiental de personas que hagan uso del recurso y/o establecimiento de recomendaciones ambientales en cambios de procesos | P129: 10 | Q129: 5 | R129: =P129*Q129 -> 50 | S129: 10 | T129: 5 | U129: 5 | V129: =SUM(S129*3.5)+(T129*3.5)+(U129*3) -> 67.5 | W129: 1 | X129: 1 | Y129: 1 | Z129: 52.975 | AA129: -52.975 | AB129: =+IF(AND(1<=AA129,AA129<=100),"POSITIVO",IF(AND(AA129<=-1,AA129>=-30),"Negativo BAJO",IF(AND(AA129<=-31,AA129>=-60),"Negativo MODERADO",IF(AND(AA129<=-61,AA129>=-100),"Negativo ALTO",IF(AND(0=AA129,AA129=0),"SIN IMPACTO"))))) -> Negativo MODERADO | AC129: Se aplica rutinariamente | AD129: 13.24375 | AE129: Se aplica rutinariamente | AF129: 13.24375 | AG129: Se aplica rutinariamente | AH129: 13.24375 | AI129: 13.24375 | AJ129: Se aplica rutinariamente | AK129: 10.595 | AL129: Se aplica rutinariamente | AM129: 10.595 | AN129: Se aplica rutinariamente | AO129: 10.595 | AP129: 10.595 | AQ129: Se aplica rutinariamente | AR129: 10.595 | AS129: Se aplica rutinariamente | AT129: 10.595 | AU129: Se aplica rutinariamente | AV129: 10.595 | AW129: 7.94625 | AX129: 31.785 | AY129: 21.19 | AZ129: -21.19 | BA129: Negativo BAJO | BB129: Guía de buenas prácticas ambientales, matriz de seguimiento a programas, estudios previos, anexo guía para supervisión SGA, normograma, matriz de verificación al cumplimiento legal | BC129: Prevención | BD129: Seguir los lineamientos, directrices y/o requerimientos legales asociados con documento(s) relacionado(s)
A130: Dirección_Territorial_Antioquia | B130: Proceso_DT | C130: Gestión_para_la_Asistencia_ | D130: DURANTE | E130: Apoyar proyectos agropecuarios de entidades territoriales, mediante la entrega de insumos, semillas y herramientas de uso agropecuario | F130: Administrativa | G130: N/A | H130: Normal | I130: Propia | J130: Sociedad | K130: Conversión a medios tecnológicos | L130: Disminución de consumo de papel (+) | M130: Positivo | N130: Fallas y/o inadecuado funcionamiento del medio tecnológico | O130: Realizar mantenimientos y/o revisiones de funcionamiento periódicas del medio tecnológico empleado | P130: 10 | Q130: 5 | R130: 50 | S130: 10 | T130: 5 | U130: 5 | V130: =SUM(S130*3.5)+(T130*3.5)+(U130*3) -> 67.5 | W130: 1 | X130: 1 | Y130: 1 | Z130: 52.975 | AA130: 52.975 | AB130: =+IF(AND(1<=AA130,AA130<=100),"POSITIVO",IF(AND(AA130<=-1,AA130>=-30),"Negativo BAJO",IF(AND(AA130<=-31,AA130>=-60),"Negativo MODERADO",IF(AND(AA130<=-61,AA130>=-100),"Negativo ALTO",IF(AND(0=AA130,AA130=0),"SIN IMPACTO"))))) -> POSITIVO | AD130: =IF(AC130="No se aplica",$Z130*0.05,IF(AC130="Se aplica ocasionalmente",$Z130*0.1,IF(AC130="Se aplica rutinariamente",$Z130*0.25,"ERROR"))) -> ERROR | AF130: =IF(AE130="No se aplica",$Z130*0.05,IF(AE130="Se aplica ocasionalmente",$Z130*0.1,IF(AE130="Se aplica rutinariamente",$Z130*0.25,"ERROR"))) -> ERROR | AH130: =IF(AG130="No se aplica",$Z130*0.05,IF(AG130="Se aplica ocasionalmente",$Z130*0.1,IF(AG130="Se aplica rutinariamente",$Z130*0.25,"ERROR"))) -> ERROR | AI130: =SUM(AD130,AF130,AH130)/3 -> 0 | AK130: =IF(AJ130="No se aplica",$Z130*0.02,IF(AJ130="Se aplica ocasionalmente",$Z130*0.08,IF(AJ130="Se aplica rutinariamente",$Z130*0.2,"ERROR"))) -> ERROR | AM130: =IF(AL130="No se aplica",$Z130*0.02,IF(AL130="Se aplica ocasionalmente",$Z130*0.08,IF(AL130="Se aplica rutinariamente",$Z130*0.2,"ERROR"))) -> ERROR | AO130: =IF(AN130="No se aplica",$Z130*0.02,IF(AN130="Se aplica ocasionalmente",$Z130*0.08,IF(AN130="Se aplica rutinariamente",$Z130*0.2,"ERROR"))) -> ERROR | AP130: =SUM(AK130,AM130,AO130)/3 -> 0 | AR130: =IF(AQ130="No se aplica",$Z130*0.02,IF(AQ130="Se aplica ocasionalmente",$Z130*0.08,IF(AQ130="Se aplica rutinariamente",$Z130*0.2,"ERROR"))) -> ERROR | AT130: =IF(AS130="No se aplica",$Z130*0.02,IF(AS130="Se aplica ocasionalmente",$Z130*0.08,IF(AS130="Se aplica rutinariamente",$Z130*0.2,"ERROR"))) -> ERROR | AV130: =IF(AU130="No se aplica",$Z130*0.02,IF(AU130="Se aplica ocasionalmente",$Z130*0.08,IF(AU130="Se aplica rutinariamente",$Z130*0.2,"ERROR"))) -> ERROR | AW130: =SUM(AR130,AT130,AV130)/4 -> 0 | AX130: =SUM(AI130,AP130,AW130) -> 0 | AY130: 52.975 | AZ130: 52.975 | BA130: POSITIVO | BB130: Matriz de seguimiento a programas, guía de buenas prácticas ambientales, estudios previos | BC130: Fomento | BD130: Seguir los lineamientos, directrices y/o requerimientos legales asociados con documento(s) relacionado(s)
A131: Dirección_Territorial_Antioquia | B131: Proceso_DT | C131: Gestión_para_la_Asistencia_ | D131: DURANTE | E131: Apoyar proyectos agropecuarios de entidades territoriales, mediante la entrega de insumos, semillas y herramientas de uso agropecuario | F131: Administrativa | G131: N/A | H131: Normal | I131: Propia | J131: Suelo | K131: Generación de residuos aprovechables (PAPEL) | L131: Disminución de carga en los rellenos sanitarios (+) | M131: Positivo | N131: Inadecuada segregación del residuo sólido generado | O131: Fortalecimiento de conocimiento y cultura ambiental asociada con el manejo integral de residuos sólidos | P131: 10 | Q131: 5 | R131: 50 | S131: 10 | T131: 5 | U131: 10 | V131: 82.5 | W131: 1 | X131: 1 | Y131: 1 | Z131: 59.725 | AA131: 59.725 | AB131: POSITIVO | AD131: =IF(AC131="No se aplica",$Z131*0.05,IF(AC131="Se aplica ocasionalmente",$Z131*0.1,IF(AC131="Se aplica rutinariamente",$Z131*0.25,"ERROR"))) -> ERROR | AF131: =IF(AE131="No se aplica",$Z131*0.05,IF(AE131="Se aplica ocasionalmente",$Z131*0.1,IF(AE131="Se aplica rutinariamente",$Z131*0.25,"ERROR"))) -> ERROR | AH131: =IF(AG131="No se aplica",$Z131*0.05,IF(AG131="Se aplica ocasionalmente",$Z131*0.1,IF(AG131="Se aplica rutinariamente",$Z131*0.25,"ERROR"))) -> ERROR | AI131: =SUM(AD131,AF131,AH131)/3 -> 0 | AK131: =IF(AJ131="No se aplica",$Z131*0.02,IF(AJ131="Se aplica ocasionalmente",$Z131*0.08,IF(AJ131="Se aplica rutinariamente",$Z131*0.2,"ERROR"))) -> ERROR | AM131: =IF(AL131="No se aplica",$Z131*0.02,IF(AL131="Se aplica ocasionalmente",$Z131*0.08,IF(AL131="Se aplica rutinariamente",$Z131*0.2,"ERROR"))) -> ERROR | AO131: =IF(AN131="No se aplica",$Z131*0.02,IF(AN131="Se aplica ocasionalmente",$Z131*0.08,IF(AN131="Se aplica rutinariamente",$Z131*0.2,"ERROR"))) -> ERROR | AP131: =SUM(AK131,AM131,AO131)/3 -> 0 | AR131: =IF(AQ131="No se aplica",$Z131*0.02,IF(AQ131="Se aplica ocasionalmente",$Z131*0.08,IF(AQ131="Se aplica rutinariamente",$Z131*0.2,"ERROR"))) -> ERROR | AT131: =IF(AS131="No se aplica",$Z131*0.02,IF(AS131="Se aplica ocasionalmente",$Z131*0.08,IF(AS131="Se aplica rutinariamente",$Z131*0.2,"ERROR"))) -> ERROR | AV131: =IF(AU131="No se aplica",$Z131*0.02,IF(AU131="Se aplica ocasionalmente",$Z131*0.08,IF(AU131="Se aplica rutinariamente",$Z131*0.2,"ERROR"))) -> ERROR | AW131: =SUM(AR131,AT131,AV131)/4 -> 0 | AX131: =SUM(AI131,AP131,AW131) -> 0 | AY131: 59.725 | AZ131: 59.725 | BA131: POSITIVO | BB131: Plan de Gestión Integral de residuos sólidos, matriz de seguimiento a programas, certificados de aprovechamiento | BC131: Fomento | BD131: Seguir los lineamientos, directrices y/o requerimientos legales asociados con documento(s) relacionado(s)
A132: Dirección_Territorial_Antioquia | B132: Proceso_DT | C132: Gestión_para_la_Asistencia_ | D132: DURANTE | E132: Apoyar proyectos agropecuarios de entidades territoriales, mediante la entrega de insumos, semillas y herramientas de uso agropecuario | F132: Administrativa | G132: N/A | H132: Normal | I132: Externa | J132: Suelo | K132: Consumo de combustibles | L132: Emisión de gases efecto invernadero (-) | M132: Negativo | N132: Aumento del consumo del recurso por incremento de necesidad de traslado de personal, materiales, mensajería, etc. | O132: Establecimiento de lineamientos en materia ambiental en procesos contractuales buscando mejora en eficiencia de consumo de combustibles | P132: 1 | Q132: 1 | R132: 1 | S132: 5 | T132: 5 | U132: 10 | V132: =SUM(S132*3.5)+(T132*3.5)+(U132*3) -> 65 | W132: 1 | X132: 1 | Y132: 1 | Z132: =SUM(R132*0.45)+(V132*0.45)+(Y132*0.1) -> 29.8 | AA132: -29.8 | AB132: Negativo BAJO | AD132: ERROR | AF132: ERROR | AH132: ERROR | AI132: 0 | AK132: ERROR | AM132: ERROR | AO132: ERROR | AP132: 0 | AR132: ERROR | AT132: ERROR | AV132: ERROR | AW132: 0 | AX132: 0 | AY132: 29.8 | AZ132: -29.8 | BA132: =+IF(AND(1<=AZ132,AZ132<=100),"POSITIVO",IF(AND(AZ132<=-1,AZ132>=-30),"Negativo BAJO",IF(AND(AZ132<=-31,AZ132>=-60),"Negativo MODERADO",IF(AND(AZ132<=-61,AZ132>=-100),"Negativo ALTO",IF(AND(0=AZ132,AZ132=0),"SIN IMPACTO"))))) -> Negativo BAJO | BB132: Estudios previos, anexo guía para supervisión SGA, normograma, matriz de verificación al cumplimiento legal | BC132: Prevención | BD132: Seguir los lineamientos, directrices y/o requerimientos legales asociados con documento(s) relacionado(s)
A133: Dirección_Territorial_Antioquia | B133: Proceso_DT | C133: Gestión_para_la_Asistencia_ | D133: DURANTE | E133: Apoyar proyectos agropecuarios de entidades territoriales, mediante la entrega de insumos, semillas y herramientas de uso agropecuario | F133: Administrativa | G133: N/A | H133: Normal | I133: Externa | J133: Aire | K133: Generación de emisiones atmosféricas fuentes móviles | L133: Contaminación del aire (-) | M133: Negativo | N133: Aumento de generación de emisiones por cambios en necesidades del proceso | O133: Establecimiento de lineamientos en materia ambiental en procesos contractuales buscando reducir la generación de emisiones | P133: 10 | Q133: 5 | R133: =P133*Q133 -> 50 | S133: 5 | T133: 5 | U133: 10 | V133: 65 | W133: 1 | X133: 1 | Y133: 1 | Z133: =SUM(R133*0.45)+(V133*0.45)+(Y133*0.1) -> 51.85 | AA133: -51.85 | AB133: =+IF(AND(1<=AA133,AA133<=100),"POSITIVO",IF(AND(AA133<=-1,AA133>=-30),"Negativo BAJO",IF(AND(AA133<=-31,AA133>=-60),"Negativo MODERADO",IF(AND(AA133<=-61,AA133>=-100),"Negativo ALTO",IF(AND(0=AA133,AA133=0),"SIN IMPACTO"))))) -> Negativo MODERADO | AC133: No se aplica | AD133: 2.5925 | AE133: No se aplica | AF133: =IF(AE133="No se aplica",$Z133*0.05,IF(AE133="Se aplica ocasionalmente",$Z133*0.1,IF(AE133="Se aplica rutinariamente",$Z133*0.25,"ERROR"))) -> 2.5925 | AG133: No se aplica | AH133: 2.5925 | AI133: 2.5925 | AJ133: No se aplica | AK133: 1.037 | AL133: No se aplica | AM133: =IF(AL133="No se aplica",$Z133*0.02,IF(AL133="Se aplica ocasionalmente",$Z133*0.08,IF(AL133="Se aplica rutinariamente",$Z133*0.2,"ERROR"))) -> 1.037 | AN133: No se aplica | AO133: 1.037 | AP133: 1.037 | AQ133: Se aplica rutinariamente | AR133: 10.37 | AS133: Se aplica rutinariamente | AT133: 10.37 | AU133: Se aplica rutinariamente | AV133: 10.37 | AW133: 7.7775 | AX133: 11.407 | AY133: 40.443 | AZ133: -40.443 | BA133: =+IF(AND(1<=AZ133,AZ133<=100),"POSITIVO",IF(AND(AZ133<=-1,AZ133>=-30),"Negativo BAJO",IF(AND(AZ133<=-31,AZ133>=-60),"Negativo MODERADO",IF(AND(AZ133<=-61,AZ133>=-100),"Negativo ALTO",IF(AND(0=AZ133,AZ133=0),"SIN IMPACTO"))))) -> Negativo MODERADO | BB133: Anexo guía para supervisión SGA, RTM y EC | BC133: Control | BD133: Establecimiento de controles y/o requisitos en procesos contractuales relacionados con el aspecto e impacto ambiental identificado asegurando el cumplimiento de los requisitos legales y otros requisitos aplicables
A134: Dirección_Territorial_Antioquia | B134: Proceso_DT | C134: Gestión_para_la_Asistencia_ | D134: DURANTE | E134: Apoyar proyectos de infraestructura social y comunitaria de entidades territoriales, mediante la entrega de materiales para construcción y/o dotación mobiliaria. | F134: Administrativa | G134: N/A | H134: Normal | I134: Propia | J134: Suelo | K134: Consumo de energía eléctrica | L134: Agotamiento de los recursos naturales (-) | M134: Negativo | N134: Aumento del consumo del recurso por malas prácticas ambientales y/o daños en aparatos eléctricos y electrónicos | O134: Fortalecimiento de cultura ambiental de personas que hagan uso del recurso y/o revisiones periódicas de los equipos eléctricos y electrónicos | P134: 10 | Q134: 5 | R134: =P134*Q134 -> 50 | S134: 10 | T134: 1 | U134: 5 | V134: =SUM(S134*3.5)+(T134*3.5)+(U134*3) -> 53.5 | W134: 1 | X134: 1 | Y134: 1 | Z134: =SUM(R134*0.45)+(V134*0.45)+(Y134*0.1) -> 46.675 | AA134: -46.675 | AB134: =+IF(AND(1<=AA134,AA134<=100),"POSITIVO",IF(AND(AA134<=-1,AA134>=-30),"Negativo BAJO",IF(AND(AA134<=-31,AA134>=-60),"Negativo MODERADO",IF(AND(AA134<=-61,AA134>=-100),"Negativo ALTO",IF(AND(0=AA134,AA134=0),"SIN IMPACTO"))))) -> Negativo MODERADO | AC134: Se aplica rutinariamente | AD134: 11.66875 | AE134: Se aplica rutinariamente | AF134: =IF(AE134="No se aplica",$Z134*0.05,IF(AE134="Se aplica ocasionalmente",$Z134*0.1,IF(AE134="Se aplica rutinariamente",$Z134*0.25,"ERROR"))) -> 11.66875 | AG134: Se aplica rutinariamente | AH134: 11.66875 | AI134: 11.66875 | AJ134: Se aplica rutinariamente | AK134: 9.335 | AL134: Se aplica rutinariamente | AM134: =IF(AL134="No se aplica",$Z134*0.02,IF(AL134="Se aplica ocasionalmente",$Z134*0.08,IF(AL134="Se aplica rutinariamente",$Z134*0.2,"ERROR"))) -> 9.335 | AN134: Se aplica rutinariamente | AO134: 9.335 | AP134: 9.335 | AQ134: Se aplica rutinariamente | AR134: 9.335 | AS134: Se aplica rutinariamente | AT134: 9.335 | AU134: Se aplica rutinariamente | AV134: 9.335 | AW134: 7.00125 | AX134: 28.005 | AY134: 18.67 | AZ134: -18.67 | BA134: Negativo BAJO | BB134: Guía de buenas prácticas ambientales, matriz de seguimiento a programas, estudios previos, anexo guía para supervisión SGA, normograma, matriz de verificación al cumplimiento legal | BC134: Prevención | BD134: Seguir los lineamientos, directrices y/o requerimientos legales asociados con documento(s) relacionado(s)
A135: Dirección_Territorial_Antioquia | B135: Proceso_DT | C135: Gestión_para_la_Asistencia_ | D135: DURANTE | E135: Apoyar proyectos de infraestructura social y comunitaria de entidades territoriales, mediante la entrega de materiales para construcción y/o dotación mobiliaria. | F135: Administrativa | G135: N/A | H135: Normal | I135: Propia | J135: Flora | K135: Consumo de papel | L135: Agotamiento de los recursos naturales (-) | M135: Negativo | N135: Aumento del consumo del recurso por malas prácticas ambientales y/o cambios en los procesos | O135: Fortalecimiento de cultura ambiental de personas que hagan uso del recurso y/o establecimiento de recomendaciones ambientales en cambios de procesos | P135: 10 | Q135: 5 | R135: 50 | S135: 10 | T135: 5 | U135: 5 | V135: =SUM(S135*3.5)+(T135*3.5)+(U135*3) -> 67.5 | W135: 1 | X135: 1 | Y135: 1 | Z135: =SUM(R135*0.45)+(V135*0.45)+(Y135*0.1) -> 52.975 | AA135: -52.975 | AB135: =+IF(AND(1<=AA135,AA135<=100),"POSITIVO",IF(AND(AA135<=-1,AA135>=-30),"Negativo BAJO",IF(AND(AA135<=-31,AA135>=-60),"Negativo MODERADO",IF(AND(AA135<=-61,AA135>=-100),"Negativo ALTO",IF(AND(0=AA135,AA135=0),"SIN IMPACTO"))))) -> Negativo MODERADO | AC135: Se aplica rutinariamente | AD135: 13.24375 | AE135: Se aplica rutinariamente | AF135: 13.24375 | AG135: Se aplica rutinariamente | AH135: 13.24375 | AI135: 13.24375 | AJ135: Se aplica rutinariamente | AK135: 10.595 | AL135: Se aplica rutinariamente | AM135: 10.595 | AN135: Se aplica rutinariamente | AO135: 10.595 | AP135: 10.595 | AQ135: Se aplica rutinariamente | AR135: 10.595 | AS135: Se aplica rutinariamente | AT135: 10.595 | AU135: Se aplica rutinariamente | AV135: 10.595 | AW135: 7.94625 | AX135: 31.785 | AY135: 21.19 | AZ135: -21.19 | BA135: =+IF(AND(1<=AZ135,AZ135<=100),"POSITIVO",IF(AND(AZ135<=-1,AZ135>=-30),"Negativo BAJO",IF(AND(AZ135<=-31,AZ135>=-60),"Negativo MODERADO",IF(AND(AZ135<=-61,AZ135>=-100),"Negativo ALTO",IF(AND(0=AZ135,AZ135=0),"SIN IMPACTO"))))) -> Negativo BAJO | BB135: Guía de buenas prácticas ambientales, matriz de seguimiento a programas, estudios previos, anexo guía para supervisión SGA, normograma, matriz de verificación al cumplimiento legal | BC135: Prevención | BD135: Seguir los lineamientos, directrices y/o requerimientos legales asociados con documento(s) relacionado(s)
A136: Dirección_Territorial_Antioquia | B136: Proceso_DT | C136: Gestión_para_la_Asistencia_ | D136: DURANTE | E136: Apoyar proyectos de infraestructura social y comunitaria de entidades territoriales, mediante la entrega de materiales para construcción y/o dotación mobiliaria. | F136: Administrativa | G136: N/A | H136: Normal | I136: Propia | J136: Sociedad | K136: Conversión a medios tecnológicos | L136: Disminución de consumo de papel (+) | M136: Positivo | N136: Fallas y/o inadecuado funcionamiento del medio tecnológico | O136: Realizar mantenimientos y/o revisiones de funcionamiento periódicas del medio tecnológico empleado | P136: 10 | Q136: 5 | R136: 50 | S136: 10 | T136: 5 | U136: 5 | V136: 67.5 | W136: 1 | X136: 1 | Y136: 1 | Z136: =SUM(R136*0.45)+(V136*0.45)+(Y136*0.1) -> 52.975 | AA136: 52.975 | AB136: POSITIVO | AD136: ERROR | AF136: ERROR | AH136: ERROR | AI136: 0 | AK136: ERROR | AM136: ERROR | AO136: ERROR | AP136: 0 | AR136: ERROR | AT136: ERROR | AV136: ERROR | AW136: 0 | AX136: 0 | AY136: 52.975 | AZ136: 52.975 | BA136: =+IF(AND(1<=AZ136,AZ136<=100),"POSITIVO",IF(AND(AZ136<=-1,AZ136>=-30),"Negativo BAJO",IF(AND(AZ136<=-31,AZ136>=-60),"Negativo MODERADO",IF(AND(AZ136<=-61,AZ136>=-100),"Negativo ALTO",IF(AND(0=AZ136,AZ136=0),"SIN IMPACTO"))))) -> POSITIVO | BB136: Matriz de seguimiento a programas, guía de buenas prácticas ambientales, estudios previos | BC136: Fomento | BD136: Seguir los lineamientos, directrices y/o requerimientos legales asociados con documento(s) relacionado(s)
A137: Dirección_Territorial_Antioquia | B137: Proceso_DT | C137: Gestión_para_la_Asistencia_ | D137: DURANTE | E137: Apoyar proyectos de infraestructura social y comunitaria de entidades territoriales, mediante la entrega de materiales para construcción y/o dotación mobiliaria. | F137: Administrativa | G137: N/A | H137: Normal | I137: Propia | J137: Suelo | K137: Generación de residuos aprovechables (PAPEL) | L137: Disminución de carga en los rellenos sanitarios (+) | M137: Positivo | N137: Inadecuada segregación del residuo sólido generado | O137: Fortalecimiento de conocimiento y cultura ambiental asociada con el manejo integral de residuos sólidos | P137: 10 | Q137: 5 | R137: =P137*Q137 -> 50 | S137: 10 | T137: 5 | U137: 10 | V137: 82.5 | W137: 1 | X137: 1 | Y137: =W137*X137 -> 1 | Z137: 59.725 | AA137: =IF(M137="NEGATIVO",Z137*-1,Z137*1) -> 59.725 | AB137: POSITIVO | AD137: ERROR | AF137: ERROR | AH137: ERROR | AI137: 0 | AK137: ERROR | AM137: ERROR | AO137: ERROR | AP137: 0 | AR137: ERROR | AT137: ERROR | AV137: ERROR | AW137: 0 | AX137: 0 | AY137: =Z137-AX137 -> 59.725 | AZ137: =IF(M137="NEGATIVO",AY137*-1,AY137*1) -> 59.725 | BA137: POSITIVO | BB137: Plan de Gestión Integral de residuos sólidos, matriz de seguimiento a programas, certificados de aprovechamiento | BC137: Fomento | BD137: Seguir los lineamientos, directrices y/o requerimientos legales asociados con documento(s) relacionado(s)
A138: Dirección_Territorial_Antioquia | B138: Proceso_DT | C138: Gestión_para_la_Asistencia_ | D138: DURANTE | E138: Apoyar proyectos de infraestructura social y comunitaria de entidades territoriales, mediante la entrega de materiales para construcción y/o dotación mobiliaria. | F138: Administrativa | G138: N/A | H138: Normal | I138: Externa | J138: Suelo | K138: Consumo de combustibles | L138: Emisión de gases efecto invernadero (-) | M138: Negativo | N138: Aumento del consumo del recurso por incremento de necesidad de traslado de personal, materiales, mensajería, etc. | O138: Establecimiento de lineamientos en materia ambiental en procesos contractuales buscando mejora en eficiencia de consumo de combustibles | P138: 1 | Q138: 1 | R138: =P138*Q138 -> 1 | S138: 5 | T138: 5 | U138: 10 | V138: =SUM(S138*3.5)+(T138*3.5)+(U138*3) -> 65 | W138: 1 | X138: 1 | Y138: 1 | Z138: 29.8 | AA138: -29.8 | AB138: =+IF(AND(1<=AA138,AA138<=100),"POSITIVO",IF(AND(AA138<=-1,AA138>=-30),"Negativo BAJO",IF(AND(AA138<=-31,AA138>=-60),"Negativo MODERADO",IF(AND(AA138<=-61,AA138>=-100),"Negativo ALTO",IF(AND(0=AA138,AA138=0),"SIN IMPACTO"))))) -> Negativo BAJO | AD138: ERROR | AF138: ERROR | AH138: ERROR | AI138: 0 | AK138: ERROR | AM138: ERROR | AO138: ERROR | AP138: 0 | AR138: ERROR | AT138: ERROR | AV138: ERROR | AW138: 0 | AX138: 0 | AY138: 29.8 | AZ138: -29.8 | BA138: Negativo BAJO | BB138: Estudios previos, anexo guía para supervisión SGA, normograma, matriz de verificación al cumplimiento legal | BC138: =IF(BA138="Negativo MODERADO","Control",IF(BA138="Negativo BAJO","Prevención",IF(BA138="Negativo ALTO","Control",IF(BA138="POSITIVO","Fomento",IF(BA138="SIN IMPACTO","N/A","ERROR"))))) -> Prevención | BD138: Seguir los lineamientos, directrices y/o requerimientos legales asociados con documento(s) relacionado(s)
A139: Dirección_Territorial_Antioquia | B139: Proceso_DT | C139: Gestión_para_la_Asistencia_ | D139: DURANTE | E139: Apoyar proyectos de infraestructura social y comunitaria de entidades territoriales, mediante la entrega de materiales para construcción y/o dotación mobiliaria. | F139: Administrativa | G139: N/A | H139: Normal | I139: Externa | J139: Aire | K139: Generación de emisiones atmosféricas fuentes móviles | L139: Contaminación del aire (-) | M139: Negativo | N139: Aumento de generación de emisiones por cambios en necesidades del proceso | O139: Establecimiento de lineamientos en materia ambiental en procesos contractuales buscando reducir la generación de emisiones | P139: 10 | Q139: 5 | R139: 50 | S139: 5 | T139: 5 | U139: 10 | V139: =SUM(S139*3.5)+(T139*3.5)+(U139*3) -> 65 | W139: 1 | X139: 1 | Y139: 1 | Z139: 51.85 | AA139: -51.85 | AB139: =+IF(AND(1<=AA139,AA139<=100),"POSITIVO",IF(AND(AA139<=-1,AA139>=-30),"Negativo BAJO",IF(AND(AA139<=-31,AA139>=-60),"Negativo MODERADO",IF(AND(AA139<=-61,AA139>=-100),"Negativo ALTO",IF(AND(0=AA139,AA139=0),"SIN IMPACTO"))))) -> Negativo MODERADO | AC139: No se aplica | AD139: =IF(AC139="No se aplica",$Z139*0.05,IF(AC139="Se aplica ocasionalmente",$Z139*0.1,IF(AC139="Se aplica rutinariamente",$Z139*0.25,"ERROR"))) -> 2.5925 | AE139: No se aplica | AF139: =IF(AE139="No se aplica",$Z139*0.05,IF(AE139="Se aplica ocasionalmente",$Z139*0.1,IF(AE139="Se aplica rutinariamente",$Z139*0.25,"ERROR"))) -> 2.5925 | AG139: No se aplica | AH139: =IF(AG139="No se aplica",$Z139*0.05,IF(AG139="Se aplica ocasionalmente",$Z139*0.1,IF(AG139="Se aplica rutinariamente",$Z139*0.25,"ERROR"))) -> 2.5925 | AI139: =SUM(AD139,AF139,AH139)/3 -> 2.5925 | AJ139: No se aplica | AK139: =IF(AJ139="No se aplica",$Z139*0.02,IF(AJ139="Se aplica ocasionalmente",$Z139*0.08,IF(AJ139="Se aplica rutinariamente",$Z139*0.2,"ERROR"))) -> 1.037 | AL139: No se aplica | AM139: =IF(AL139="No se aplica",$Z139*0.02,IF(AL139="Se aplica ocasionalmente",$Z139*0.08,IF(AL139="Se aplica rutinariamente",$Z139*0.2,"ERROR"))) -> 1.037 | AN139: No se aplica | AO139: =IF(AN139="No se aplica",$Z139*0.02,IF(AN139="Se aplica ocasionalmente",$Z139*0.08,IF(AN139="Se aplica rutinariamente",$Z139*0.2,"ERROR"))) -> 1.037 | AP139: =SUM(AK139,AM139,AO139)/3 -> 1.037 | AQ139: Se aplica rutinariamente | AR139: =IF(AQ139="No se aplica",$Z139*0.02,IF(AQ139="Se aplica ocasionalmente",$Z139*0.08,IF(AQ139="Se aplica rutinariamente",$Z139*0.2,"ERROR"))) -> 10.37 | AS139: Se aplica rutinariamente | AT139: =IF(AS139="No se aplica",$Z139*0.02,IF(AS139="Se aplica ocasionalmente",$Z139*0.08,IF(AS139="Se aplica rutinariamente",$Z139*0.2,"ERROR"))) -> 10.37 | AU139: Se aplica rutinariamente | AV139: =IF(AU139="No se aplica",$Z139*0.02,IF(AU139="Se aplica ocasionalmente",$Z139*0.08,IF(AU139="Se aplica rutinariamente",$Z139*0.2,"ERROR"))) -> 10.37 | AW139: =SUM(AR139,AT139,AV139)/4 -> 7.7775 | AX139: =SUM(AI139,AP139,AW139) -> 11.407 | AY139: 40.443 | AZ139: -40.443 | BA139: Negativo MODERADO | BB139: Anexo guía para supervisión SGA, RTM y EC | BC139: Control | BD139: Establecimiento de controles y/o requisitos en procesos contractuales relacionados con el aspecto e impacto ambiental identificado asegurando el cumplimiento de los requisitos legales y otros requisitos aplicables
A140: Dirección_Territorial_Antioquia | B140: Proceso_DT | C140: Gestión_para_la_Asistencia_ | D140: DURANTE | E140: Atención de emergencias humanitarias (tramite de solicitudes y requerimientos, participación en jornadas de atención asistencia humanitaria) | F140: Administrativa | G140: N/A | H140: Normal | I140: Propia | J140: Suelo | K140: Consumo de energía eléctrica | L140: Agotamiento de los recursos naturales (-) | M140: Negativo | N140: Aumento del consumo del recurso por malas prácticas ambientales y/o daños en aparatos eléctricos y electrónicos | O140: Fortalecimiento de cultura ambiental de personas que hagan uso del recurso y/o revisiones periódicas de los equipos eléctricos y electrónicos | P140: 10 | Q140: 5 | R140: 50 | S140: 10 | T140: 1 | U140: 5 | V140: 53.5 | W140: 1 | X140: 1 | Y140: 1 | Z140: 46.675 | AA140: -46.675 | AB140: Negativo MODERADO | AC140: Se aplica rutinariamente | AD140: =IF(AC140="No se aplica",$Z140*0.05,IF(AC140="Se aplica ocasionalmente",$Z140*0.1,IF(AC140="Se aplica rutinariamente",$Z140*0.25,"ERROR"))) -> 11.66875 | AE140: Se aplica rutinariamente | AF140: =IF(AE140="No se aplica",$Z140*0.05,IF(AE140="Se aplica ocasionalmente",$Z140*0.1,IF(AE140="Se aplica rutinariamente",$Z140*0.25,"ERROR"))) -> 11.66875 | AG140: Se aplica rutinariamente | AH140: =IF(AG140="No se aplica",$Z140*0.05,IF(AG140="Se aplica ocasionalmente",$Z140*0.1,IF(AG140="Se aplica rutinariamente",$Z140*0.25,"ERROR"))) -> 11.66875 | AI140: =SUM(AD140,AF140,AH140)/3 -> 11.66875 | AJ140: Se aplica rutinariamente | AK140: =IF(AJ140="No se aplica",$Z140*0.02,IF(AJ140="Se aplica ocasionalmente",$Z140*0.08,IF(AJ140="Se aplica rutinariamente",$Z140*0.2,"ERROR"))) -> 9.335 | AL140: Se aplica rutinariamente | AM140: =IF(AL140="No se aplica",$Z140*0.02,IF(AL140="Se aplica ocasionalmente",$Z140*0.08,IF(AL140="Se aplica rutinariamente",$Z140*0.2,"ERROR"))) -> 9.335 | AN140: Se aplica rutinariamente | AO140: =IF(AN140="No se aplica",$Z140*0.02,IF(AN140="Se aplica ocasionalmente",$Z140*0.08,IF(AN140="Se aplica rutinariamente",$Z140*0.2,"ERROR"))) -> 9.335 | AP140: =SUM(AK140,AM140,AO140)/3 -> 9.335 | AQ140: Se aplica rutinariamente | AR140: =IF(AQ140="No se aplica",$Z140*0.02,IF(AQ140="Se aplica ocasionalmente",$Z140*0.08,IF(AQ140="Se aplica rutinariamente",$Z140*0.2,"ERROR"))) -> 9.335 | AS140: Se aplica rutinariamente | AT140: =IF(AS140="No se aplica",$Z140*0.02,IF(AS140="Se aplica ocasionalmente",$Z140*0.08,IF(AS140="Se aplica rutinariamente",$Z140*0.2,"ERROR"))) -> 9.335 | AU140: Se aplica rutinariamente | AV140: =IF(AU140="No se aplica",$Z140*0.02,IF(AU140="Se aplica ocasionalmente",$Z140*0.08,IF(AU140="Se aplica rutinariamente",$Z140*0.2,"ERROR"))) -> 9.335 | AW140: =SUM(AR140,AT140,AV140)/4 -> 7.00125 | AX140: =SUM(AI140,AP140,AW140) -> 28.005 | AY140: 18.67 | AZ140: -18.67 | BA140: Negativo BAJO | BB140: Guía de buenas prácticas ambientales, matriz de seguimiento a programas, estudios previos, anexo guía para supervisión SGA, normograma, matriz de verificación al cumplimiento legal | BC140: Prevención | BD140: Seguir los lineamientos, directrices y/o requerimientos legales asociados con documento(s) relacionado(s)
A141: Dirección_Territorial_Antioquia | B141: Proceso_DT | C141: Gestión_para_la_Asistencia_ | D141: DURANTE | E141: Atención de emergencias humanitarias (tramite de solicitudes y requerimientos, participación en jornadas de atención asistencia humanitaria) | F141: Administrativa | G141: N/A | H141: Normal | I141: Propia | J141: Flora | K141: Consumo de papel | L141: Agotamiento de los recursos naturales (-) | M141: Negativo | N141: Aumento del consumo del recurso por malas prácticas ambientales y/o cambios en los procesos | O141: Fortalecimiento de cultura ambiental de personas que hagan uso del recurso y/o establecimiento de recomendaciones ambientales en cambios de procesos | P141: 10 | Q141: 5 | R141: 50 | S141: 10 | T141: 5 | U141: 5 | V141: =SUM(S141*3.5)+(T141*3.5)+(U141*3) -> 67.5 | W141: 1 | X141: 1 | Y141: 1 | Z141: =SUM(R141*0.45)+(V141*0.45)+(Y141*0.1) -> 52.975 | AA141: -52.975 | AB141: Negativo MODERADO | AC141: Se aplica rutinariamente | AD141: 13.24375 | AE141: Se aplica rutinariamente | AF141: 13.24375 | AG141: Se aplica rutinariamente | AH141: 13.24375 | AI141: 13.24375 | AJ141: Se aplica rutinariamente | AK141: 10.595 | AL141: Se aplica rutinariamente | AM141: 10.595 | AN141: Se aplica rutinariamente | AO141: 10.595 | AP141: 10.595 | AQ141: Se aplica rutinariamente | AR141: 10.595 | AS141: Se aplica rutinariamente | AT141: 10.595 | AU141: Se aplica rutinariamente | AV141: 10.595 | AW141: 7.94625 | AX141: 31.785 | AY141: 21.19 | AZ141: -21.19 | BA141: =+IF(AND(1<=AZ141,AZ141<=100),"POSITIVO",IF(AND(AZ141<=-1,AZ141>=-30),"Negativo BAJO",IF(AND(AZ141<=-31,AZ141>=-60),"Negativo MODERADO",IF(AND(AZ141<=-61,AZ141>=-100),"Negativo ALTO",IF(AND(0=AZ141,AZ141=0),"SIN IMPACTO"))))) -> Negativo BAJO | BB141: Guía de buenas prácticas ambientales, matriz de seguimiento a programas, estudios previos, anexo guía para supervisión SGA, normograma, matriz de verificación al cumplimiento legal | BC141: Prevención | BD141: Seguir los lineamientos, directrices y/o requerimientos legales asociados con documento(s) relacionado(s)
A142: Dirección_Territorial_Antioquia | B142: Proceso_DT | C142: Gestión_para_la_Asistencia_ | D142: DURANTE | E142: Atención de emergencias humanitarias (tramite de solicitudes y requerimientos, participación en jornadas de atención asistencia humanitaria) | F142: Administrativa | G142: N/A | H142: Normal | I142: Propia | J142: Sociedad | K142: Conversión a medios tecnológicos | L142: Disminución de consumo de papel (+) | M142: Positivo | N142: Fallas y/o inadecuado funcionamiento del medio tecnológico | O142: Realizar mantenimientos y/o revisiones de funcionamiento periódicas del medio tecnológico empleado | P142: 10 | Q142: 5 | R142: 50 | S142: 10 | T142: 5 | U142: 5 | V142: 67.5 | W142: 1 | X142: 1 | Y142: 1 | Z142: =SUM(R142*0.45)+(V142*0.45)+(Y142*0.1) -> 52.975 | AA142: 52.975 | AB142: POSITIVO | AD142: ERROR | AF142: ERROR | AH142: ERROR | AI142: 0 | AK142: ERROR | AM142: ERROR | AO142: ERROR | AP142: 0 | AR142: ERROR | AT142: ERROR | AV142: ERROR | AW142: 0 | AX142: 0 | AY142: 52.975 | AZ142: 52.975 | BA142: =+IF(AND(1<=AZ142,AZ142<=100),"POSITIVO",IF(AND(AZ142<=-1,AZ142>=-30),"Negativo BAJO",IF(AND(AZ142<=-31,AZ142>=-60),"Negativo MODERADO",IF(AND(AZ142<=-61,AZ142>=-100),"Negativo ALTO",IF(AND(0=AZ142,AZ142=0),"SIN IMPACTO"))))) -> POSITIVO | BB142: Matriz de seguimiento a programas, guía de buenas prácticas ambientales, estudios previos | BC142: Fomento | BD142: Seguir los lineamientos, directrices y/o requerimientos legales asociados con documento(s) relacionado(s)
